Workbook

Sheet OM_LOAN REQUEST (hidden)
B2: MAY NOT BE USED
B3: FINANCING REQUEST
B5: Loan Request
B6: Loan Amount | C6: =Debt_Total -> 62275994.32
B7: Per Rentable SF | C7: =C6/Units_SF_M2 -> 180.7521792
B8: LTC | C8: =Debt_LTC_Target -> 0.85
B9: Loan Term | C9: JIMMY TO COMMENT
B10: Interest Rate | C10: Best Available
B11: Amortization | C11: Interest Only
B12: Recourse | C12: Non-recourse Preferred
B13: Funding Structure | C13: Construction Debt
C27: 56750 | D27: 0
D39: 0 | E39: 2906.25 | F39: 18659.375 | G39: 22051.65625 | H39: 22713.20594

Sheet Summary
B9: v1.7
P10: ="ANALYSIS START - "&UPPER(TEXT(Underwriting!E13,"MMM YYYY")) -> ANALYSIS START - JAN 2026
B11: INVESTMENT DESCRIPTION
B12: Address | E12: =Underwriting!E10&", "&Underwriting!E11&" "&Underwriting!I10 -> , Bastrop TX | F12: Notes:
B13: Units | E13: =Units -> 400
B14: ="NRA ("&Unit_Type&")" -> NRA (SF) | E14: =Units_SF_M2 -> 344538
B15: Land Area | E15: =Underwriting!E15 -> 1
B16: Building(s) | E16: =IF(Underwriting!I15=1,Underwriting!I15&" Bldg",Underwriting!I15&" Bldgs") -> 18 Bldgs
B17: Height | E17: =Underwriting!I16&"-Story" -> 3-Story
B18: Parking Spaces | E18: =Parking_Total -> 631
B19: Parking Ratio | E19: =Underwriting!E20 -> 1.5775
B20: Analysis Start | D20: 1 | E20: =Underwriting!E13 -> 2026-01-01
B21: Construction Start | D21: 1 | E21: =Underwriting!E13 -> 2026-01-01
B22: Construction End | D22: =Timing_Construction_End -> 26 | E22: =INDEX(Underwriting!$M$124:$EN$124,1,MATCH(Timing_Construction_End,Underwriting!$M$123:$EN$123,0)) -> 2028-02-29
B23: 1st Unit Delivered | D23: =Timing_Operation_Begin_Month -> 27 | E23: =INDEX(Underwriting!$M$124:$EN$124,1,MATCH(Timing_Operation_Begin_Month,Underwriting!$M$123:$EN$123,0)) -> 2028-03-31
B24: Stabilization | D24: =Stabilization_1st_Month -> 39 | E24: =INDEX(Underwriting!$M$124:$EN$124,1,MATCH(Stabilization_1st_Month,Underwriting!$M$123:$EN$123,0)) -> 2029-03-31
B25: Sale Date | D25: =Timing_Reversion_Month -> 60 | E25: =INDEX(Underwriting!$M$124:$EN$124,1,MATCH(Timing_Reversion_Month,Underwriting!$M$123:$EN$123,0)) -> 2030-12-31
B26: KEY ASSUMPTIONS & RETURN METRICS
B27: Growth Rates - Income / Expense | F27: =TEXT(Underwriting!D126,"0.00%")&" / "&TEXT(Underwriting!D155,"0.00%") -> 3.00% / 3.00% | G27: PRO FORMA | I27: Untrended | J27: Trended | K27: Sale | L27: PARTNERSHIP RETURNS | N27: ROI | O27: EMx | P27: IRR
B28: Effective Rent - PSF / Per Unit | F28: =TEXT(Underwriting!G138,"0.00")&" / "&TEXT(Underwriting!H138,"#,##0") -> 2.05 / 1,767 | G28: Effective Gross Revenue | I28: =Underwriting!G207 -> 8268747.75 | J28: =Underwriting!H207 -> 8589721.827 | K28: =Underwriting!I207 -> 9044074.559 | L28: =Underwriting!B267 -> LP | N28: =Underwriting!G267 -> 1.15725957 | O28: =Underwriting!H267 -> 2.15725957 | P28: =Underwriting!I267 -> 0.2087539375
B29: General Vacancy & Credit Loss | F29: =Underwriting!F151 -> 0.05 | G29: - Operating Expenses | I29: =-Underwriting!G220 -> -3289888.91 | J29: =-Underwriting!H220 -> -3498636.191 | K29: =-Underwriting!I220 -> -3684216.169 | L29: =Underwriting!B268 -> GP | N29: =Underwriting!G268 -> 6490075159 | O29: =Underwriting!H268 -> 6490075160 | P29: =Underwriting!I268 -> 98.52320023
B30: Operating Expense Ratio | F30: =Underwriting!G169 -> 0.3978702712 | G30: Net Operating Income | I30: =I28+I29 -> 4978858.84 | J30: =J28+J29 -> 5091085.636 | K30: =K28+K29 -> 5359858.39 | L30: =Underwriting!B269 ->  | N30: =Underwriting!G269 ->  | O30: =Underwriting!H269 ->  | P30: =Underwriting!I269 -> 
B31: Breakeven Occupancy (Untrended) | F31: =(-I29-I31+(MAX(Underwriting!$L$87:$EN$87)*12))/I28 -> 0.9578333596 | G31: - Capital Expenditures | I31: =-Underwriting!G228 -> -100000 | J31: =-Underwriting!H228 -> -106620.45 | K31: =-Underwriting!I228 -> -112277.6993 | L31: PROPERTY RETURNS | N31: ROI | O31: EMx | P31: IRR
B32: Reversion Net Proceeds (After Selling Costs) | F32: =Underwriting!E234 -> 100561152.6 | G32: Cash Flow from Operations | I32: =SUM(I30:I31) -> 4878858.84 | J32: =SUM(J30:J31) -> 4984465.186 | K32: =SUM(K30:K31) -> 5247580.69 | L32: Unlevered | N32: =Underwriting!I256/Underwriting!I84 -> 0.7222226699 | O32: =Underwriting!G256 -> 1.719056247 | P32: =Underwriting!H256 -> 0.1427095234
B33: =IF(Perm_Debt?,"Permanent Loan Payoff","Construction Loan Payoff") -> Permanent Loan Payoff | F33: =IF(Perm_Debt?,Underwriting!I120,-Underwriting!I112) -> -55243922.35 | G33: Cap Rate | I33: =Underwriting!G233 -> 0.055 | J33: =Underwriting!H233 -> 0.053375 | K33: =Underwriting!I233 -> 0.0525 | L33: Levered | N33: =Underwriting!I257/Equity_Total -> 2.75186888 | O33: =Underwriting!G257 -> 2.806267085 | P33: =Underwriting!H257 -> 0.2843963206
B34: Equity Proceeds from Sale | F34: =Underwriting!E236 -> 45317230.3 | G34: Valuation | I34: =Underwriting!G235 -> 90524706.18 | J34: =Underwriting!H235 -> 95383337.44 | K34: =Underwriting!I235 -> 102092540.8
B35: =IF(Perm_Debt?=0,"",Underwriting!E181) -> Cash-on-Cash Return (Month 40) | F35: =+Underwriting!F181 -> 0.08316185156 | G35: % of Total Project Cost | I35: =I34/$K$43 -> 1.235564587 | J35: =J34/$K$43 -> 1.301879662 | K35: =K34/$K$43 -> 1.39345305 | L35: DEVELOPMENT RETURNS | N35: =PROPER(Underwriting!G259) -> Untrended | O35: =PROPER(Underwriting!H259) -> Trended | P35: =PROPER(Underwriting!I259) -> Sale
B36: =IF(Perm_Debt?=0,"",Underwriting!G120) -> Debt Service Coverage Ratio (Month 40): | F36: =+Underwriting!H120 -> 1.250055621 | G36: Valuation/Unit | I36: =I34/Units -> 226311.7655 | J36: =J34/Units -> 238458.3436 | K36: =K34/Units -> 255231.3519 | L36: =Underwriting!B260 -> Yield-on-Cost | N36: =Underwriting!G260 -> 0.06795605228 | O36: =Underwriting!H260 -> 0.06948782698 | P36: =Underwriting!I260 -> 0.07315628513
L37: =Underwriting!B261 -> Market Cap Rate | N37: =Underwriting!G261 -> 0.055 | O37: =Underwriting!H261 -> 0.053375 | P37: =Underwriting!I261 -> 0.0525
B38: SOURCES | D38: % | E38: /Unit | F38: Amount | G38: USES | H38: % | I38: /Buildable SF | J38: /Unit | K38: Amount | L38: =Underwriting!B262 -> Development Spread | N38: =Underwriting!G262 -> 129.5605228 | O38: =Underwriting!H262 -> 161.1282698 | P38: =Underwriting!I262 -> 206.5628513
B39: =+Underwriting!B102 -> Senior Loan (SOFR+300bps) | D39: =IF(Dbl_Promote?=1,F39/$F$44,F39/$F$43) -> 0.6000001009 | E39: =IFERROR(F39/Units,"") -> 109898.8135 | F39: =Underwriting!I102 -> 43959525.4 | G39: =Underwriting!B25 -> Land Costs | H39: =K39/$K$43 -> 0.1637870551 | I39: =K39/Underwriting!$E$18 -> 29.59054089 | J39: =IFERROR(K39/Units,"") -> 30000 | K39: =Underwriting!I28 -> 12000000
B40: =+Underwriting!B103 -> Mezzanine Loan (SOFR+800bps) | D40: =IF(Dbl_Promote?=1,F40/$F$44,F40/$F$43) -> 0.250000042 | E40: 45791.17229 | F40: =Underwriting!I103 -> 18316468.92 | G40: =Underwriting!B30 -> Hard Costs | H40: =K40/$K$43 -> 0.6610438584 | I40: =K40/Underwriting!$E$18 -> 119.4272973 | J40: =IFERROR(K40/Units,"") -> 121079.8725 | K40: =Underwriting!I69 -> 48431949 | L40: SENSITIVITY | N40: Exit Cap Rate | O40: =Underwriting!H315 -> Dev. Spread | P40: =Underwriting!I315 -> Levered EMx
B41: Equity | D41: =IF(Dbl_Promote?=1,F41/$F$44,F41/$F$43) -> 0.1499998571 | E41: 27474.67257 | F41: =Equity_Total -> 10989869.03 | G41: =Underwriting!B71 -> Soft Costs | H41: =K41/$K$43 -> 0.05424224321 | I41: =K41/Underwriting!$E$18 -> 9.799659164 | J41: =IFERROR(K41/Units,"") -> 9935.261947 | K41: =Underwriting!I82 -> 3974104.779 | M41: =Underwriting!B316 -> Base Case | N41: =Underwriting!G316 -> 0.0525 | O41: =Underwriting!H316 -> 206.5628513 | P41: =Underwriting!I316 -> 2.806267085
G42: =Underwriting!B86 -> Carry Costs | H42: =K42/$K$43 -> 0.1209268432 | I42: =K42/Underwriting!$E$18 -> 21.84721311 | J42: =IFERROR(K42/Units,"") -> 22149.52393 | K42: =Underwriting!I92 -> 8859809.57 | M42: =Underwriting!B317 -> Downside #1 | N42: =Underwriting!G317 -> 0.05 | O42: =Underwriting!H317 -> 231.5628513 | P42: =Underwriting!I317 -> 3.106571669
B43: =IF(Dbl_Promote?=1,Underwriting!B269,"Total Sources") -> Total Sources | D43: =IF(Dbl_Promote?=1,F43/$F$44,F43/$F$43) -> 1 | E43: 183164.6584 | F43: =IF(B44="",SUM(F39:F42),Underwriting!D269) -> 73265863.35 | G43: Total Uses | H43: =K43/$K$43 -> 1 | I43: =SUM(I39:I42) -> 180.6647104 | J43: =SUM(J39:J42) -> 183164.6584 | K43: =SUM(K39:K42) -> 73265863.35 | M43: =Underwriting!B318 -> Downside #2 | N43: =Underwriting!G318 -> 0.0525 | O43: =Underwriting!H318 -> 206.5628513 | P43: =Underwriting!I318 -> 2.806267085
B44: =IF(Dbl_Promote?=1,"Total Sources","") ->  | D44: =IF(Dbl_Promote?=1,F44/$F$44,"") ->  | F44: =IF(B44="","",SUM(F39:F43)) ->  | M44: =Underwriting!B319 -> Downside #3 | N44: =Underwriting!G319 -> 0.055 | O44: =Underwriting!H319 -> 181.5628513 | P44: =Underwriting!I319 -> 2.533262918
A45: 1 | B45: PROPERTY-LEVEL CASH FLOW | N45: ANNUAL CASH FLOW REPORT: | O45: Hide | P45: Show

Sheet OM_SOURCES & USES
B3: FINANCING REQUEST
B5: Sources & Uses
B6: Sources of Capital | C6: Amount ($MM) | D6: Per RSF | E6: Per Unit | F6: % of Total
B7: Proposed Loan | C7: =Debt_Total/1000000 -> 62.27599432 | D7: =Underwriting!G98 -> 180.7521792 | E7: =Underwriting!H98 -> 155689.9858 | F7: =C7/$C$9 -> 0.8500001429
B8: Sponsor Equity | C8: =Equity_Total/1000000 -> 10.98986903 | D8: =Underwriting!G97 -> 31.89740763 | E8: =Underwriting!H97 -> 27474.67257 | F8: =C8/$C$9 -> 0.1499998571
B9: Total Sources of Capital | C9: =SUM(C7,C8) -> 73.26586335 | D9: =SUM(D7,D8) -> 212.6495868 | E9: =SUM(E7,E8) -> 183164.6584 | F9: =SUM(F7:F8) -> 1
B11: Uses of Capital | C11: Amount ($MM) | D11: Per RSF | E11: Per Unit | F11: % of Total
B12: Land Acquisition | C12: =Underwriting!I28/1000000 -> 12 | D12: =Underwriting!G28 -> 34.8292496 | E12: =Underwriting!H28 -> 30000 | F12: =C12/$C$16 -> 0.1637870551
B13: Hard Costs | C13: =Underwriting!I69/1000000 -> 48.431949 | D13: =Underwriting!G69 -> 140.5707034 | E13: =Underwriting!H69 -> 121079.8725 | F13: =C13/$C$16 -> 0.6610438584
B14: Soft Costs | C14: =Underwriting!I82/1000000 -> 3.974104779 | D14: =Underwriting!G82 -> 11.53459061 | E14: =Underwriting!H82 -> 9935.261947 | F14: =C14/$C$16 -> 0.05424224321
B15: Carry/Financing Costs | C15: =Underwriting!I92/1000000 -> 8.85980957 | D15: =Underwriting!G92 -> 25.71504325 | E15: =Underwriting!H92 -> 22149.52393 | F15: =C15/$C$16 -> 0.1209268432
B16: Total Uses of Capital | C16: =SUM(C12:C15) -> 73.26586335 | D16: =SUM(D12:D15) -> 212.6495868 | E16: =SUM(E12:E15) -> 183164.6584 | F16: =SUM(F12:F15) -> 1
C27: 56750 | D27: 0
D39: 0 | E39: 2906.25 | F39: 18659.375 | G39: 22051.65625 | H39: 22713.20594

Sheet Underwriting
B2: =UPPER(Investment_Name) -> PECAN PARK APARTMENTS | D2: =IF(Recalc?=FALSE,"","CLICK TO RECALCULATE") ->  | K2: Analysis Year | L2: =ROUNDUP(L3/12,0) -> 0 | M2: =ROUNDUP(M3/12,0) -> 1 | N2: =ROUNDUP(N3/12,0) -> 1 | O2: 1 | P2: 1 | Q2: 1 | R2: 1 | S2: 1 | T2: 1 | U2: 1 | V2: 1 | W2: 1 | X2: 1 | Y2: 2 | Z2: 2 | AA2: 2 | AB2: 2 | AC2: 2 | AD2: 2 | AE2: 2 | AF2: 2 | AG2: 2 | AH2: 2 | AI2: 2 | AJ2: 2 | AK2: 3 | AL2: 3 | AM2: 3 | AN2: 3 | AO2: 3 | AP2: 3 | AQ2: 3 | AR2: 3 | AS2: 3 | AT2: 3 | AU2: 3 | AV2: 3 | AW2: 4 | AX2: 4 | AY2: 4 | AZ2: 4 | BA2: 4 | BB2: 4 | BC2: 4 | BD2: 4 | BE2: 4 | BF2: 4 | BG2: 4 | BH2: 4 | BI2: 5 | BJ2: 5 | BK2: 5 | BL2: 5 | BM2: 5 | BN2: 5 | BO2: 5 | BP2: 5 | BQ2: 5 | BR2: 5 | BS2: 5 | BT2: 5 | BU2: 6 | BV2: 6 | BW2: 6 | BX2: 6 | BY2: 6 | BZ2: =ROUNDUP(BZ3/12,0) -> 6 | CA2: 6 | CB2: 6 | CC2: 6 | CD2: 6 | CE2: 6 | CF2: 6 | CG2: 7 | CH2: 7 | CI2: 7 | CJ2: 7 | CK2: 7 | CL2: 7 | CM2: 7 | CN2: 7 | CO2: 7 | CP2: 7 | CQ2: 7 | CR2: 7 | CS2: 8 | CT2: 8 | CU2: 8 | CV2: 8 | CW2: 8 | CX2: 8 | CY2: 8 | CZ2: 8 | DA2: 8 | DB2: 8 | DC2: 8 | DD2: 8 | DE2: 9 | DF2: 9 | DG2: 9 | DH2: 9 | DI2: 9 | DJ2: 9 | DK2: 9 | DL2: 9 | DM2: 9 | DN2: 9 | DO2: 9 | DP2: 9 | DQ2: 10 | DR2: 10 | DS2: 10 | DT2: 10 | DU2: 10 | DV2: 10 | DW2: 10 | DX2: 10 | DY2: 10 | DZ2: 10 | EA2: 10 | EB2: 10 | EC2: 11 | ED2: 11 | EE2: 11 | EF2: 11 | EG2: 11 | EH2: 11 | EI2: 11 | EJ2: 11 | EK2: 11 | EL2: =ROUNDUP(EL3/12,0) -> 11 | EM2: =ROUNDUP(EM3/12,0) -> 11 | EN2: =ROUNDUP(EN3/12,0) -> 11 | EV2: =L2 -> 0 | EW2: =M2 -> 1 | EX2: 1 | EY2: 1 | EZ2: 1 | FA2: 1 | FB2: 1 | FC2: 1 | FD2: 1 | FE2: 1 | FF2: 1 | FG2: 1 | FH2: 1 | FI2: 2 | FJ2: 2 | FK2: 2 | FL2: 2 | FM2: 2 | FN2: 2 | FO2: 2 | FP2: 2 | FQ2: 2 | FR2: 2 | FS2: 2 | FT2: 2 | FU2: 3 | FV2: 3 | FW2: 3 | FX2: 3 | FY2: 3 | FZ2: 3 | GA2: 3 | GB2: 3 | GC2: 3 | GD2: 3 | GE2: 3 | GF2: 3 | GG2: 4 | GH2: 4 | GI2: 4 | GJ2: 4 | GK2: 4 | GL2: 4 | GM2: 4 | GN2: 4 | GO2: 4 | GP2: 4 | GQ2: 4 | GR2: 4 | GS2: 5 | GT2: 5 | GU2: 5 | GV2: 5 | GW2: 5 | GX2: 5 | GY2: 5 | GZ2: 5 | HA2: 5 | HB2: 5 | HC2: 5 | HD2: 5 | HE2: 6 | HF2: 6 | HG2: 6 | HH2: 6 | HI2: =BY2 -> 6 | HJ2: 6 | HK2: 6 | HL2: 6 | HM2: 6 | HN2: 6 | HO2: 6 | HP2: 6 | HQ2: 7 | HR2: 7 | HS2: 7 | HT2: 7 | HU2: 7 | HV2: 7 | HW2: 7 | HX2: 7 | HY2: 7 | HZ2: 7 | IA2: 7 | IB2: 7 | IC2: 8 | ID2: 8 | IE2: 8 | IF2: 8 | IG2: 8 | IH2: 8 | II2: 8 | IJ2: 8 | IK2: 8 | IL2: 8 | IM2: 8 | IN2: 8 | IO2: 9 | IP2: 9 | IQ2: 9 | IR2: =DH2 -> 9 | IS2: 9 | IT2: 9 | IU2: 9 | IV2: 9 | IW2: 9 | IX2: 9 | IY2: 9 | IZ2: 9 | JA2: 10 | JB2: =DR2 -> 10 | JC2: 10 | JD2: 10 | JE2: 10 | JF2: 10 | JG2: 10 | JH2: 10 | JI2: 10 | JJ2: 10 | JK2: 10 | JL2: =EB2 -> 10 | JM2: 11 | JN2: 11 | JO2: 11 | JP2: 11 | JQ2: 11 | JR2: 11 | JS2: 11 | JT2: 11 | JU2: 11 | JV2: =EL2 -> 11 | JW2: 11 | JX2: 11
K3: Analysis Month | L3: 0 | M3: =L3+1 -> 1 | N3: =M3+1 -> 2 | O3: 3 | P3: 4 | Q3: 5 | R3: 6 | S3: 7 | T3: 8 | U3: 9 | V3: 10 | W3: 11 | X3: 12 | Y3: 13 | Z3: 14 | AA3: 15 | AB3: 16 | AC3: 17 | AD3: 18 | AE3: 19 | AF3: 20 | AG3: 21 | AH3: 22 | AI3: 23 | AJ3: 24 | AK3: 25 | AL3: 26 | AM3: 27 | AN3: 28 | AO3: 29 | AP3: 30 | AQ3: 31 | AR3: 32 | AS3: 33 | AT3: 34 | AU3: 35 | AV3: 36 | AW3: 37 | AX3: 38 | AY3: 39 | AZ3: 40 | BA3: 41 | BB3: 42 | BC3: 43 | BD3: 44 | BE3: 45 | BF3: 46 | BG3: 47 | BH3: 48 | BI3: 49 | BJ3: 50 | BK3: 51 | BL3: 52 | BM3: 53 | BN3: 54 | BO3: 55 | BP3: 56 | BQ3: 57 | BR3: 58 | BS3: 59 | BT3: 60 | BU3: 61 | BV3: 62 | BW3: 63 | BX3: 64 | BY3: 65 | BZ3: =BY3+1 -> 66 | CA3: 67 | CB3: 68 | CC3: 69 | CD3: 70 | CE3: 71 | CF3: 72 | CG3: 73 | CH3: 74 | CI3: 75 | CJ3: 76 | CK3: 77 | CL3: 78 | CM3: 79 | CN3: 80 | CO3: 81 | CP3: 82 | CQ3: 83 | CR3: 84 | CS3: 85 | CT3: 86 | CU3: 87 | CV3: 88 | CW3: 89 | CX3: 90 | CY3: 91 | CZ3: 92 | DA3: 93 | DB3: 94 | DC3: 95 | DD3: 96 | DE3: 97 | DF3: 98 | DG3: 99 | DH3: 100 | DI3: 101 | DJ3: 102 | DK3: 103 | DL3: 104 | DM3: 105 | DN3: 106 | DO3: 107 | DP3: 108 | DQ3: 109 | DR3: 110 | DS3: 111 | DT3: 112 | DU3: 113 | DV3: 114 | DW3: 115 | DX3: 116 | DY3: 117 | DZ3: 118 | EA3: 119 | EB3: 120 | EC3: 121 | ED3: 122 | EE3: 123 | EF3: 124 | EG3: 125 | EH3: 126 | EI3: 127 | EJ3: 128 | EK3: 129 | EL3: =EK3+1 -> 130 | EM3: =EL3+1 -> 131 | EN3: =EM3+1 -> 132 | EV3: =L3 -> 0 | EW3: 1 | EX3: 2 | EY3: 3 | EZ3: 4 | FA3: 5 | FB3: 6 | FC3: 7 | FD3: 8 | FE3: 9 | FF3: 10 | FG3: 11 | FH3: 12 | FI3: 13 | FJ3: 14 | FK3: 15 | FL3: 16 | FM3: 17 | FN3: 18 | FO3: 19 | FP3: 20 | FQ3: 21 | FR3: 22 | FS3: 23 | FT3: 24 | FU3: 25 | FV3: 26 | FW3: 27 | FX3: 28 | FY3: 29 | FZ3: 30 | GA3: 31 | GB3: 32 | GC3: 33 | GD3: 34 | GE3: 35 | GF3: 36 | GG3: 37 | GH3: 38 | GI3: 39 | GJ3: 40 | GK3: 41 | GL3: 42 | GM3: 43 | GN3: 44 | GO3: 45 | GP3: 46 | GQ3: 47 | GR3: 48 | GS3: 49 | GT3: 50 | GU3: 51 | GV3: 52 | GW3: 53 | GX3: 54 | GY3: 55 | GZ3: 56 | HA3: 57 | HB3: 58 | HC3: 59 | HD3: 60 | HE3: 61 | HF3: 62 | HG3: 63 | HH3: 64 | HI3: 65 | HJ3: 66 | HK3: 67 | HL3: 68 | HM3: 69 | HN3: 70 | HO3: 71 | HP3: 72 | HQ3: 73 | HR3: 74 | HS3: 75 | HT3: 76 | HU3: 77 | HV3: 78 | HW3: 79 | HX3: 80 | HY3: 81 | HZ3: 82 | IA3: 83 | IB3: 84 | IC3: 85 | ID3: 86 | IE3: 87 | IF3: 88 | IG3: 89 | IH3: 90 | II3: 91 | IJ3: 92 | IK3: 93 | IL3: 94 | IM3: 95 | IN3: 96 | IO3: 97 | IP3: 98 | IQ3: 99 | IR3: 100 | IS3: 101 | IT3: 102 | IU3: 103 | IV3: 104 | IW3: 105 | IX3: 106 | IY3: 107 | IZ3: 108 | JA3: 109 | JB3: 110 | JC3: 111 | JD3: 112 | JE3: 113 | JF3: 114 | JG3: 115 | JH3: 116 | JI3: 117 | JJ3: 118 | JK3: 119 | JL3: 120 | JM3: 121 | JN3: 122 | JO3: 123 | JP3: 124 | JQ3: 125 | JR3: 126 | JS3: 127 | JT3: 128 | JU3: 129 | JV3: 130 | JW3: 131 | JX3: 132
B5: Levered IRR | C5: =H257 -> 0.2843963206 | D5: Levered EMx: | E5: =G257 -> 2.806267085 | H5: Development Spread (Untrended) | I5: =G262 -> 129.5605228 | EM5: Hide Calc | EN5: Show Calc | EO5: 0
B8: INVESTMENT DESCRIPTION | I8: SF
B9: Name | E9: Pecan Park Apartments | F9: County | I9: Bastrop
B10: Address | F10: State | I10: TX
B11: City | E11: Bastrop
B13: Analysis Begin Date | E13: 2026-01-01 | F13: Sale Date | H13: =Timing_Reversion_Month -> 60 | I13: =EDATE(E13,H13-1) -> 2030-12-01
B15: Land Area | C15: =IF(Unit_Type="SF",E15*43560,E15*4046.86) -> 43560 | D15: =Unit_Type -> SF | E15: 1 | F15: Buildings (incl. Clubhouse) | I15: 18
B16: Units/Acre | E16: =I17/E15 -> 400 | F16: Avg. # of Stories | I16: 3
B17: FAR | E17: =E18/C15 -> 9.309802571 | F17: Units | I17: =C134 -> 400
B18: ="Gross Buildable (GBA - "&Unit_Type&")" -> Gross Buildable (GBA - SF) | E18: 405535 | F18: ="Net Rentable (NRA - "&Unit_Type&")" -> Net Rentable (NRA - SF) | H18: =TEXT(Units_SF_M2/E18,"0.00%")&" of GBA" -> 84.96% of GBA | I18: =(I17*D134)+Units_Retail -> 344538
B19: Total Parking Spaces | E19: =SUM(I19:I20) -> 631 | F19: Structured Parking Spaces | I19: 631
B20: Parking Ratio | E20: =E19/I17 -> 1.5775 | F20: Surface Parking Spaces | I20: 0
B22: INVESTMENT PERIOD CASH FLOWS | K22: Analysis Month | L22: 0 | M22: =L22+1 -> 1 | N22: 2 | O22: 3 | P22: 4 | Q22: 5 | R22: 6 | S22: 7 | T22: 8 | U22: 9 | V22: 10 | W22: 11 | X22: 12 | Y22: 13 | Z22: 14 | AA22: 15 | AB22: 16 | AC22: 17 | AD22: 18 | AE22: 19 | AF22: 20 | AG22: 21 | AH22: 22 | AI22: 23 | AJ22: 24 | AK22: 25 | AL22: 26 | AM22: 27 | AN22: 28 | AO22: 29 | AP22: 30 | AQ22: 31 | AR22: 32 | AS22: 33 | AT22: 34 | AU22: 35 | AV22: 36 | AW22: 37 | AX22: 38 | AY22: 39 | AZ22: 40 | BA22: 41 | BB22: 42 | BC22: 43 | BD22: 44 | BE22: 45 | BF22: 46 | BG22: 47 | BH22: 48 | BI22: 49 | BJ22: 50 | BK22: 51 | BL22: 52 | BM22: 53 | BN22: 54 | BO22: 55 | BP22: 56 | BQ22: 57 | BR22: 58 | BS22: 59 | BT22: 60 | BU22: 61 | BV22: 62 | BW22: 63 | BX22: 64 | BY22: =BX22+1 -> 65 | BZ22: 66 | CA22: 67 | CB22: 68 | CC22: 69 | CD22: 70 | CE22: 71 | CF22: 72 | CG22: 73 | CH22: 74 | CI22: 75 | CJ22: 76 | CK22: 77 | CL22: 78 | CM22: 79 | CN22: 80 | CO22: 81 | CP22: 82 | CQ22: 83 | CR22: 84 | CS22: 85 | CT22: 86 | CU22: 87 | CV22: 88 | CW22: 89 | CX22: 90 | CY22: 91 | CZ22: 92 | DA22: 93 | DB22: 94 | DC22: 95 | DD22: 96 | DE22: 97 | DF22: 98 | DG22: 99 | DH22: 100 | DI22: 101 | DJ22: 102 | DK22: 103 | DL22: 104 | DM22: 105 | DN22: 106 | DO22: 107 | DP22: 108 | DQ22: 109 | DR22: 110 | DS22: 111 | DT22: 112 | DU22: 113 | DV22: 114 | DW22: 115 | DX22: 116 | DY22: 117 | DZ22: 118 | EA22: 119 | EB22: 120 | EC22: 121 | ED22: 122 | EE22: 123 | EF22: 124 | EG22: 125 | EH22: 126 | EI22: 127 | EJ22: 128 | EK22: =EJ22+1 -> 129 | EL22: =EK22+1 -> 130 | EM22: =EL22+1 -> 131 | EN22: =EM22+1 -> 132 | EP22: S-CURVE CALCULATION | EV22: =L22 -> 0 | EW22: =M22 -> 1 | EX22: 2 | EY22: 3 | EZ22: 4 | FA22: 5 | FB22: 6 | FC22: 7 | FD22: 8 | FE22: 9 | FF22: 10 | FG22: 11 | FH22: 12 | FI22: 13 | FJ22: 14 | FK22: 15 | FL22: 16 | FM22: 17 | FN22: 18 | FO22: 19 | FP22: 20 | FQ22: 21 | FR22: 22 | FS22: 23 | FT22: 24 | FU22: 25 | FV22: 26 | FW22: 27 | FX22: 28 | FY22: 29 | FZ22: 30 | GA22: 31 | GB22: 32 | GC22: 33 | GD22: 34 | GE22: 35 | GF22: 36 | GG22: 37 | GH22: 38 | GI22: 39 | GJ22: 40 | GK22: 41 | GL22: 42 | GM22: 43 | GN22: 44 | GO22: 45 | GP22: 46 | GQ22: 47 | GR22: 48 | GS22: 49 | GT22: 50 | GU22: 51 | GV22: 52 | GW22: 53 | GX22: 54 | GY22: 55 | GZ22: 56 | HA22: 57 | HB22: 58 | HC22: 59 | HD22: 60 | HE22: 61 | HF22: 62 | HG22: 63 | HH22: 64 | HI22: =BY22 -> 65 | HJ22: 66 | HK22: 67 | HL22: 68 | HM22: 69 | HN22: 70 | HO22: 71 | HP22: 72 | HQ22: 73 | HR22: 74 | HS22: 75 | HT22: 76 | HU22: 77 | HV22: 78 | HW22: 79 | HX22: 80 | HY22: 81 | HZ22: 82 | IA22: 83 | IB22: 84 | IC22: 85 | ID22: 86 | IE22: 87 | IF22: 88 | IG22: 89 | IH22: 90 | II22: 91 | IJ22: 92 | IK22: 93 | IL22: 94 | IM22: 95 | IN22: 96 | IO22: 97 | IP22: 98 | IQ22: 99 | IR22: 100 | IS22: 101 | IT22: 102 | IU22: 103 | IV22: 104 | IW22: 105 | IX22: 106 | IY22: 107 | IZ22: 108 | JA22: 109 | JB22: 110 | JC22: 111 | JD22: 112 | JE22: 113 | JF22: 114 | JG22: 115 | JH22: 116 | JI22: 117 | JJ22: 118 | JK22: 119 | JL22: 120 | JM22: 121 | JN22: 122 | JO22: 123 | JP22: 124 | JQ22: 125 | JR22: 126 | JS22: 127 | JT22: 128 | JU22: =EK22 -> 129 | JV22: 130 | JW22: 131 | JX22: 132
B23: SOURCES AND USES | G23: =TEXT(Units_SF_M2,"#,##0")&" NRA" -> 344,538 NRA | H23: =Units -> 400 | K23: Analysis Date | L23: =EOMONTH(E13,-1) -> 2025-12-31 | M23: =EOMONTH(L23,1) -> 2026-01-31 | N23: =EOMONTH(M23,1) -> 2026-02-28 | O23: 2026-03-31 | P23: 2026-04-30 | Q23: 2026-05-31 | R23: 2026-06-30 | S23: 2026-07-31 | T23: 2026-08-31 | U23: 2026-09-30 | V23: 2026-10-31 | W23: 2026-11-30 | X23: 2026-12-31 | Y23: 2027-01-31 | Z23: 2027-02-28 | AA23: 2027-03-31 | AB23: 2027-04-30 | AC23: 2027-05-31 | AD23: 2027-06-30 | AE23: 2027-07-31 | AF23: 2027-08-31 | AG23: 2027-09-30 | AH23: 2027-10-31 | AI23: 2027-11-30 | AJ23: 2027-12-31 | AK23: 2028-01-31 | AL23: 2028-02-29 | AM23: 2028-03-31 | AN23: 2028-04-30 | AO23: 2028-05-31 | AP23: 2028-06-30 | AQ23: 2028-07-31 | AR23: 2028-08-31 | AS23: 2028-09-30 | AT23: 2028-10-31 | AU23: 2028-11-30 | AV23: 2028-12-31 | AW23: 2029-01-31 | AX23: 2029-02-28 | AY23: 2029-03-31 | AZ23: 2029-04-30 | BA23: 2029-05-31 | BB23: 2029-06-30 | BC23: 2029-07-31 | BD23: 2029-08-31 | BE23: 2029-09-30 | BF23: 2029-10-31 | BG23: 2029-11-30 | BH23: 2029-12-31 | BI23: 2030-01-31 | BJ23: 2030-02-28 | BK23: 2030-03-31 | BL23: 2030-04-30 | BM23: 2030-05-31 | BN23: 2030-06-30 | BO23: 2030-07-31 | BP23: 2030-08-31 | BQ23: 2030-09-30 | BR23: 2030-10-31 | BS23: 2030-11-30 | BT23: 2030-12-31 | BU23: 2031-01-31 | BV23: 2031-02-28 | BW23: 2031-03-31 | BX23: 2031-04-30 | BY23: 2031-05-31 | BZ23: =EOMONTH(BY23,1) -> 2031-06-30 | CA23: 2031-07-31 | CB23: 2031-08-31 | CC23: 2031-09-30 | CD23: 2031-10-31 | CE23: 2031-11-30 | CF23: 2031-12-31 | CG23: 2032-01-31 | CH23: 2032-02-29 | CI23: 2032-03-31 | CJ23: 2032-04-30 | CK23: 2032-05-31 | CL23: 2032-06-30 | CM23: 2032-07-31 | CN23: 2032-08-31 | CO23: 2032-09-30 | CP23: 2032-10-31 | CQ23: 2032-11-30 | CR23: 2032-12-31 | CS23: 2033-01-31 | CT23: 2033-02-28 | CU23: 2033-03-31 | CV23: 2033-04-30 | CW23: 2033-05-31 | CX23: 2033-06-30 | CY23: 2033-07-31 | CZ23: 2033-08-31 | DA23: 2033-09-30 | DB23: 2033-10-31 | DC23: 2033-11-30 | DD23: 2033-12-31 | DE23: 2034-01-31 | DF23: 2034-02-28 | DG23: 2034-03-31 | DH23: 2034-04-30 | DI23: 2034-05-31 | DJ23: 2034-06-30 | DK23: 2034-07-31 | DL23: 2034-08-31 | DM23: 2034-09-30 | DN23: 2034-10-31 | DO23: 2034-11-30 | DP23: 2034-12-31 | DQ23: 2035-01-31 | DR23: 2035-02-28 | DS23: 2035-03-31 | DT23: 2035-04-30 | DU23: 2035-05-31 | DV23: 2035-06-30 | DW23: 2035-07-31 | DX23: 2035-08-31 | DY23: 2035-09-30 | DZ23: 2035-10-31 | EA23: 2035-11-30 | EB23: 2035-12-31 | EC23: 2036-01-31 | ED23: 2036-02-29 | EE23: 2036-03-31 | EF23: 2036-04-30 | EG23: 2036-05-31 | EH23: 2036-06-30 | EI23: 2036-07-31 | EJ23: 2036-08-31 | EK23: 2036-09-30 | EL23: =EOMONTH(EK23,1) -> 2036-10-31 | EM23: =EOMONTH(EL23,1) -> 2036-11-30 | EN23: =EOMONTH(EM23,1) -> 2036-12-31 | EP23: Amount | EQ23: Start Period | ER23: End Period | ES23: Months | ET23: Timing | EU23: StDev | EV23: =L23 -> 2025-12-31 | EW23: 2026-01-31 | EX23: 2026-02-28 | EY23: 2026-03-31 | EZ23: 2026-04-30 | FA23: 2026-05-31 | FB23: 2026-06-30 | FC23: 2026-07-31 | FD23: 2026-08-31 | FE23: 2026-09-30 | FF23: 2026-10-31 | FG23: 2026-11-30 | FH23: 2026-12-31 | FI23: 2027-01-31 | FJ23: 2027-02-28 | FK23: 2027-03-31 | FL23: 2027-04-30 | FM23: 2027-05-31 | FN23: 2027-06-30 | FO23: 2027-07-31 | FP23: 2027-08-31 | FQ23: 2027-09-30 | FR23: 2027-10-31 | FS23: 2027-11-30 | FT23: 2027-12-31 | FU23: 2028-01-31 | FV23: 2028-02-29 | FW23: 2028-03-31 | FX23: 2028-04-30 | FY23: 2028-05-31 | FZ23: 2028-06-30 | GA23: 2028-07-31 | GB23: 2028-08-31 | GC23: 2028-09-30 | GD23: 2028-10-31 | GE23: 2028-11-30 | GF23: 2028-12-31 | GG23: 2029-01-31 | GH23: 2029-02-28 | GI23: 2029-03-31 | GJ23: 2029-04-30 | GK23: 2029-05-31 | GL23: 2029-06-30 | GM23: 2029-07-31 | GN23: 2029-08-31 | GO23: 2029-09-30 | GP23: 2029-10-31 | GQ23: 2029-11-30 | GR23: 2029-12-31 | GS23: 2030-01-31 | GT23: 2030-02-28 | GU23: 2030-03-31 | GV23: 2030-04-30 | GW23: 2030-05-31 | GX23: 2030-06-30 | GY23: 2030-07-31 | GZ23: 2030-08-31 | HA23: 2030-09-30 | HB23: 2030-10-31 | HC23: 2030-11-30 | HD23: 2030-12-31 | HE23: 2031-01-31 | HF23: 2031-02-28 | HG23: 2031-03-31 | HH23: 2031-04-30 | HI23: 2031-05-31 | HJ23: 2031-06-30 | HK23: 2031-07-31 | HL23: 2031-08-31 | HM23: 2031-09-30 | HN23: 2031-10-31 | HO23: 2031-11-30 | HP23: 2031-12-31 | HQ23: 2032-01-31 | HR23: 2032-02-29 | HS23: 2032-03-31 | HT23: 2032-04-30 | HU23: 2032-05-31 | HV23: 2032-06-30 | HW23: 2032-07-31 | HX23: 2032-08-31 | HY23: 2032-09-30 | HZ23: 2032-10-31 | IA23: 2032-11-30 | IB23: 2032-12-31 | IC23: 2033-01-31 | ID23: 2033-02-28 | IE23: 2033-03-31 | IF23: 2033-04-30 | IG23: 2033-05-31 | IH23: 2033-06-30 | II23: 2033-07-31 | IJ23: 2033-08-31 | IK23: 2033-09-30 | IL23: 2033-10-31 | IM23: 2033-11-30 | IN23: 2033-12-31 | IO23: 2034-01-31 | IP23: 2034-02-28 | IQ23: 2034-03-31 | IR23: 2034-04-30 | IS23: 2034-05-31 | IT23: 2034-06-30 | IU23: 2034-07-31 | IV23: 2034-08-31 | IW23: 2034-09-30 | IX23: 2034-10-31 | IY23: 2034-11-30 | IZ23: 2034-12-31 | JA23: 2035-01-31 | JB23: 2035-02-28 | JC23: 2035-03-31 | JD23: 2035-04-30 | JE23: 2035-05-31 | JF23: 2035-06-30 | JG23: 2035-07-31 | JH23: 2035-08-31 | JI23: 2035-09-30 | JJ23: 2035-10-31 | JK23: 2035-11-30 | JL23: 2035-12-31 | JM23: 2036-01-31 | JN23: 2036-02-29 | JO23: 2036-03-31 | JP23: 2036-04-30 | JQ23: 2036-05-31 | JR23: 2036-06-30 | JS23: 2036-07-31 | JT23: 2036-08-31 | JU23: 2036-09-30 | JV23: 2036-10-31 | JW23: 2036-11-30 | JX23: 2036-12-31
B24: USES | D24: START | E24: END | F24: METHOD | G24: ="/RENTABLE "&Unit_Type -> /RENTABLE SF | H24: /UNIT | I24: AMOUNT | K24: Cum. Spent % | L24: =SUM($L$94:L94)/Project_Cost_Total -> 0.1637870551 | M24: =SUM($L$94:M94)/Project_Cost_Total -> 0.2031737856 | N24: =SUM($L$94:N94)/Project_Cost_Total -> 0.2194570864 | O24: =SUM($L$94:O94)/Project_Cost_Total -> 0.2364398554 | P24: =SUM($L$94:P94)/Project_Cost_Total -> 0.2585767333 | Q24: =SUM($L$94:Q94)/Project_Cost_Total -> 0.3005797887 | R24: =SUM($L$94:R94)/Project_Cost_Total -> 0.3239224005 | S24: =SUM($L$94:S94)/Project_Cost_Total -> 0.3479649336 | T24: =SUM($L$94:T94)/Project_Cost_Total -> 0.389812223 | U24: =SUM($L$94:U94)/Project_Cost_Total -> 0.4203591421 | V24: =SUM($L$94:V94)/Project_Cost_Total -> 0.4616350282 | W24: =SUM($L$94:W94)/Project_Cost_Total -> 0.4956371786 | X24: =SUM($L$94:X94)/Project_Cost_Total -> 0.5428343845 | Y24: =SUM($L$94:Y94)/Project_Cost_Total -> 0.5807079452 | Z24: =SUM($L$94:Z94)/Project_Cost_Total -> 0.618675014 | AA24: =SUM($L$94:AA94)/Project_Cost_Total -> 0.656346466 | AB24: =SUM($L$94:AB94)/Project_Cost_Total -> 0.6942098198 | AC24: =SUM($L$94:AC94)/Project_Cost_Total -> 0.7307139479 | AD24: =SUM($L$94:AD94)/Project_Cost_Total -> 0.7665006823 | AE24: =SUM($L$94:AE94)/Project_Cost_Total -> 0.8023251496 | AF24: =SUM($L$94:AF94)/Project_Cost_Total -> 0.8383222924 | AG24: =SUM($L$94:AG94)/Project_Cost_Total -> 0.8693164117 | AH24: =SUM($L$94:AH94)/Project_Cost_Total -> 0.8960941548 | AI24: =SUM($L$94:AI94)/Project_Cost_Total -> 0.9180748651 | AJ24: =SUM($L$94:AJ94)/Project_Cost_Total -> 0.931692115 | AK24: =SUM($L$94:AK94)/Project_Cost_Total -> 0.9421562934 | AL24: =SUM($L$94:AL94)/Project_Cost_Total -> 0.9528036755 | AM24: =SUM($L$94:AM94)/Project_Cost_Total -> 0.9596506604 | AN24: =SUM($L$94:AN94)/Project_Cost_Total -> 0.9659768677 | AO24: =SUM($L$94:AO94)/Project_Cost_Total -> 0.9717785447 | AP24: =SUM($L$94:AP94)/Project_Cost_Total -> 0.9770523661 | AQ24: =SUM($L$94:AQ94)/Project_Cost_Total -> 0.9817955424 | AR24: =SUM($L$94:AR94)/Project_Cost_Total -> 0.9860041564 | AS24: =SUM($L$94:AS94)/Project_Cost_Total -> 0.9896750075 | AT24: =SUM($L$94:AT94)/Project_Cost_Total -> 0.9928045948 | AU24: =SUM($L$94:AU94)/Project_Cost_Total -> 0.995389678 | AV24: =SUM($L$94:AV94)/Project_Cost_Total -> 0.997543578 | AW24: =SUM($L$94:AW94)/Project_Cost_Total -> 0.9990311111 | AX24: =SUM($L$94:AX94)/Project_Cost_Total -> 0.9999467074 | AY24: =SUM($L$94:AY94)/Project_Cost_Total -> 0.9999999957 | AZ24: =SUM($L$94:AZ94)/Project_Cost_Total -> 0.9999999957 | BA24: =SUM($L$94:BA94)/Project_Cost_Total -> 0.9999999957 | BB24: =SUM($L$94:BB94)/Project_Cost_Total -> 0.9999999957 | BC24: =SUM($L$94:BC94)/Project_Cost_Total -> 0.9999999957 | BD24: =SUM($L$94:BD94)/Project_Cost_Total -> 0.9999999957 | BE24: =SUM($L$94:BE94)/Project_Cost_Total -> 0.9999999957 | BF24: =SUM($L$94:BF94)/Project_Cost_Total -> 0.9999999957 | BG24: =SUM($L$94:BG94)/Project_Cost_Total -> 0.9999999957 | BH24: =SUM($L$94:BH94)/Project_Cost_Total -> 0.9999999957 | BI24: =SUM($L$94:BI94)/Project_Cost_Total -> 0.9999999957 | BJ24: =SUM($L$94:BJ94)/Project_Cost_Total -> 0.9999999957 | BK24: =SUM($L$94:BK94)/Project_Cost_Total -> 0.9999999957 | BL24: =SUM($L$94:BL94)/Project_Cost_Total -> 0.9999999957 | BM24: =SUM($L$94:BM94)/Project_Cost_Total -> 0.9999999957 | BN24: =SUM($L$94:BN94)/Project_Cost_Total -> 0.9999999957 | BO24: =SUM($L$94:BO94)/Project_Cost_Total -> 0.9999999957 | BP24: =SUM($L$94:BP94)/Project_Cost_Total -> 0.9999999957 | BQ24: =SUM($L$94:BQ94)/Project_Cost_Total -> 0.9999999957 | BR24: =SUM($L$94:BR94)/Project_Cost_Total -> 0.9999999957 | BS24: =SUM($L$94:BS94)/Project_Cost_Total -> 0.9999999957 | BT24: =SUM($L$94:BT94)/Project_Cost_Total -> 0.9999999957 | BU24: =SUM($L$94:BU94)/Project_Cost_Total -> 0.9999999957 | BV24: =SUM($L$94:BV94)/Project_Cost_Total -> 0.9999999957 | BW24: =SUM($L$94:BW94)/Project_Cost_Total -> 0.9999999957 | BX24: =SUM($L$94:BX94)/Project_Cost_Total -> 0.9999999957 | BY24: =SUM($L$94:BY94)/Project_Cost_Total -> 0.9999999957 | BZ24: =SUM($L$94:BZ94)/Project_Cost_Total -> 0.9999999957 | CA24: =SUM($L$94:CA94)/Project_Cost_Total -> 0.9999999957 | CB24: =SUM($L$94:CB94)/Project_Cost_Total -> 0.9999999957 | CC24: =SUM($L$94:CC94)/Project_Cost_Total -> 0.9999999957 | CD24: =SUM($L$94:CD94)/Project_Cost_Total -> 0.9999999957 | CE24: =SUM($L$94:CE94)/Project_Cost_Total -> 0.9999999957 | CF24: =SUM($L$94:CF94)/Project_Cost_Total -> 0.9999999957 | CG24: =SUM($L$94:CG94)/Project_Cost_Total -> 0.9999999957 | CH24: =SUM($L$94:CH94)/Project_Cost_Total -> 0.9999999957 | CI24: =SUM($L$94:CI94)/Project_Cost_Total -> 0.9999999957 | CJ24: =SUM($L$94:CJ94)/Project_Cost_Total -> 0.9999999957 | CK24: =SUM($L$94:CK94)/Project_Cost_Total -> 0.9999999957 | CL24: =SUM($L$94:CL94)/Project_Cost_Total -> 0.9999999957 | CM24: =SUM($L$94:CM94)/Project_Cost_Total -> 0.9999999957 | CN24: =SUM($L$94:CN94)/Project_Cost_Total -> 0.9999999957 | CO24: =SUM($L$94:CO94)/Project_Cost_Total -> 0.9999999957 | CP24: =SUM($L$94:CP94)/Project_Cost_Total -> 0.9999999957 | CQ24: =SUM($L$94:CQ94)/Project_Cost_Total -> 0.9999999957 | CR24: =SUM($L$94:CR94)/Project_Cost_Total -> 0.9999999957 | CS24: =SUM($L$94:CS94)/Project_Cost_Total -> 0.9999999957 | CT24: =SUM($L$94:CT94)/Project_Cost_Total -> 0.9999999957 | CU24: =SUM($L$94:CU94)/Project_Cost_Total -> 0.9999999957 | CV24: =SUM($L$94:CV94)/Project_Cost_Total -> 0.9999999957 | CW24: =SUM($L$94:CW94)/Project_Cost_Total -> 0.9999999957 | CX24: =SUM($L$94:CX94)/Project_Cost_Total -> 0.9999999957 | CY24: =SUM($L$94:CY94)/Project_Cost_Total -> 0.9999999957 | CZ24: =SUM($L$94:CZ94)/Project_Cost_Total -> 0.9999999957 | DA24: =SUM($L$94:DA94)/Project_Cost_Total -> 0.9999999957 | DB24: =SUM($L$94:DB94)/Project_Cost_Total -> 0.9999999957 | DC24: =SUM($L$94:DC94)/Project_Cost_Total -> 0.9999999957 | DD24: =SUM($L$94:DD94)/Project_Cost_Total -> 0.9999999957 | DE24: =SUM($L$94:DE94)/Project_Cost_Total -> 0.9999999957 | DF24: =SUM($L$94:DF94)/Project_Cost_Total -> 0.9999999957 | DG24: =SUM($L$94:DG94)/Project_Cost_Total -> 0.9999999957 | DH24: =SUM($L$94:DH94)/Project_Cost_Total -> 0.9999999957 | DI24: =SUM($L$94:DI94)/Project_Cost_Total -> 0.9999999957 | DJ24: =SUM($L$94:DJ94)/Project_Cost_Total -> 0.9999999957 | DK24: =SUM($L$94:DK94)/Project_Cost_Total -> 0.9999999957 | DL24: =SUM($L$94:DL94)/Project_Cost_Total -> 0.9999999957 | DM24: =SUM($L$94:DM94)/Project_Cost_Total -> 0.9999999957 | DN24: =SUM($L$94:DN94)/Project_Cost_Total -> 0.9999999957 | DO24: =SUM($L$94:DO94)/Project_Cost_Total -> 0.9999999957 | DP24: =SUM($L$94:DP94)/Project_Cost_Total -> 0.9999999957 | DQ24: =SUM($L$94:DQ94)/Project_Cost_Total -> 0.9999999957 | DR24: =SUM($L$94:DR94)/Project_Cost_Total -> 0.9999999957 | DS24: =SUM($L$94:DS94)/Project_Cost_Total -> 0.9999999957 | DT24: =SUM($L$94:DT94)/Project_Cost_Total -> 0.9999999957 | DU24: =SUM($L$94:DU94)/Project_Cost_Total -> 0.9999999957 | DV24: =SUM($L$94:DV94)/Project_Cost_Total -> 0.9999999957 | DW24: =SUM($L$94:DW94)/Project_Cost_Total -> 0.9999999957 | DX24: =SUM($L$94:DX94)/Project_Cost_Total -> 0.9999999957 | DY24: =SUM($L$94:DY94)/Project_Cost_Total -> 0.9999999957 | DZ24: =SUM($L$94:DZ94)/Project_Cost_Total -> 0.9999999957 | EA24: =SUM($L$94:EA94)/Project_Cost_Total -> 0.9999999957 | EB24: =SUM($L$94:EB94)/Project_Cost_Total -> 0.9999999957 | EC24: =SUM($L$94:EC94)/Project_Cost_Total -> 0.9999999957 | ED24: =SUM($L$94:ED94)/Project_Cost_Total -> 0.9999999957 | EE24: =SUM($L$94:EE94)/Project_Cost_Total -> 0.9999999957 | EF24: =SUM($L$94:EF94)/Project_Cost_Total -> 0.9999999957 | EG24: =SUM($L$94:EG94)/Project_Cost_Total -> 0.9999999957 | EH24: =SUM($L$94:EH94)/Project_Cost_Total -> 0.9999999957 | EI24: =SUM($L$94:EI94)/Project_Cost_Total -> 0.9999999957 | EJ24: =SUM($L$94:EJ94)/Project_Cost_Total -> 0.9999999957 | EK24: =SUM($L$94:EK94)/Project_Cost_Total -> 0.9999999957 | EL24: =SUM($L$94:EL94)/Project_Cost_Total -> 0.9999999957 | EM24: =SUM($L$94:EM94)/Project_Cost_Total -> 0.9999999957 | EN24: =SUM($L$94:EN94)/Project_Cost_Total -> 0.9999999957
B25: Land Costs | K25: Spent % | L25: =L24 -> 0.1637870551 | M25: =M24-L24 -> 0.0393867305 | N25: =N24-M24 -> 0.01628330074 | O25: 0.01698276899 | P25: 0.02213687792 | Q25: 0.04200305544 | R25: 0.02334261182 | S25: 0.0240425331 | T25: 0.04184728936 | U25: 0.03054691913 | V25: 0.04127588611 | W25: 0.0340021504 | X25: 0.04719720581 | Y25: 0.03787356073 | Z25: 0.03796706883 | AA25: 0.037671452 | AB25: 0.03786335381 | AC25: 0.03650412809 | AD25: 0.03578673442 | AE25: 0.0358244673 | AF25: 0.03599714273 | AG25: 0.03099411935 | AH25: 0.0267777431 | AI25: 0.02198071028 | AJ25: 0.01361724991 | AK25: 0.01046417836 | AL25: 0.01064738211 | AM25: 0.006846984971 | AN25: 0.006326207241 | AO25: 0.005801677047 | AP25: 0.005273821348 | AQ25: 0.004743176302 | AR25: 0.004208614032 | AS25: 0.003670851079 | AT25: 0.003129587279 | AU25: 0.002585083189 | AV25: 0.002153900022 | AW25: 0.00148753315 | AX25: 0.0009155962414 | AY25: 5.328833168e-05 | AZ25: 0 | BA25: 0 | BB25: 0 | BC25: 0 | BD25: 0 | BE25: 0 | BF25: 0 | BG25: 0 | BH25: 0 | BI25: 0 | BJ25: 0 | BK25: 0 | BL25: 0 | BM25: 0 | BN25: 0 | BO25: 0 | BP25: 0 | BQ25: 0 | BR25: 0 | BS25: 0 | BT25: 0 | BU25: 0 | BV25: 0 | BW25: 0 | BX25: 0 | BY25: 0 | BZ25: =BZ24-BY24 -> 0 | CA25: 0 | CB25: 0 | CC25: 0 | CD25: 0 | CE25: 0 | CF25: 0 | CG25: 0 | CH25: 0 | CI25: 0 | CJ25: 0 | CK25: 0 | CL25: 0 | CM25: 0 | CN25: 0 | CO25: 0 | CP25: 0 | CQ25: 0 | CR25: 0 | CS25: 0 | CT25: 0 | CU25: 0 | CV25: 0 | CW25: 0 | CX25: 0 | CY25: 0 | CZ25: 0 | DA25: 0 | DB25: 0 | DC25: 0 | DD25: 0 | DE25: 0 | DF25: 0 | DG25: 0 | DH25: 0 | DI25: 0 | DJ25: 0 | DK25: 0 | DL25: 0 | DM25: 0 | DN25: 0 | DO25: 0 | DP25: 0 | DQ25: 0 | DR25: 0 | DS25: 0 | DT25: 0 | DU25: 0 | DV25: 0 | DW25: 0 | DX25: 0 | DY25: 0 | DZ25: 0 | EA25: 0 | EB25: 0 | EC25: 0 | ED25: 0 | EE25: 0 | EF25: 0 | EG25: 0 | EH25: 0 | EI25: 0 | EJ25: 0 | EK25: 0 | EL25: =EL24-EK24 -> 0 | EM25: =EM24-EL24 -> 0 | EN25: =EN24-EM24 -> 0
B26: Land Costs (Resi) | C26: =I26/Units -> 30000 | D26: 0 | E26: 0 | F26: Straight-Line | G26: =I26/Units_SF_M2 -> 34.8292496 | H26: =I26/Units -> 30000 | I26: 12000000 | K26: =Summary!N36 -> 0.06795605228 | L26: =AND(L$22>=$D26,L$22<=$E26)*IF(OR($F26="Straight-Line",$F26="Detail"),$I26/$ES26,EV26) -> 12000000 | M26: 0 | N26: 0 | O26: 0 | P26: 0 | Q26: 0 | R26: 0 | S26: 0 | T26: 0 | U26: 0 | V26: 0 | W26: 0 | X26: 0 | Y26: 0 | Z26: 0 | AA26: 0 | AB26: 0 | AC26: 0 | AD26: 0 | AE26: 0 | AF26: 0 | AG26: 0 | AH26: 0 | AI26: 0 | AJ26: 0 | AK26: 0 | AL26: 0 | AM26: 0 | AN26: 0 | AO26: 0 | AP26: 0 | AQ26: 0 | AR26: =AND(AR$22>=$D26,AR$22<=$E26)*IF(OR($F26="Straight-Line",$F26="Detail"),$I26/$ES26,GB26) -> 0 | AS26: 0 | AT26: 0 | AU26: 0 | AV26: 0 | AW26: 0 | AX26: 0 | AY26: 0 | AZ26: 0 | BA26: 0 | BB26: 0 | BC26: 0 | BD26: 0 | BE26: 0 | BF26: 0 | BG26: 0 | BH26: 0 | BI26: 0 | BJ26: 0 | BK26: 0 | BL26: 0 | BM26: 0 | BN26: 0 | BO26: 0 | BP26: 0 | BQ26: 0 | BR26: 0 | BS26: 0 | BT26: 0 | BU26: 0 | BV26: 0 | BW26: 0 | BX26: =AND(BX$22>=$D26,BX$22<=$E26)*IF(OR($F26="Straight-Line",$F26="Detail"),$I26/$ES26,HH26) -> 0 | BY26: 0 | BZ26: 0 | CA26: 0 | CB26: 0 | CC26: 0 | CD26: 0 | CE26: 0 | CF26: 0 | CG26: 0 | CH26: 0 | CI26: 0 | CJ26: 0 | CK26: 0 | CL26: 0 | CM26: 0 | CN26: 0 | CO26: 0 | CP26: 0 | CQ26: 0 | CR26: 0 | CS26: 0 | CT26: 0 | CU26: 0 | CV26: 0 | CW26: 0 | CX26: 0 | CY26: 0 | CZ26: 0 | DA26: 0 | DB26: 0 | DC26: 0 | DD26: =AND(DD$22>=$D26,DD$22<=$E26)*IF(OR($F26="Straight-Line",$F26="Detail"),$I26/$ES26,IN26) -> 0 | DE26: 0 | DF26: 0 | DG26: 0 | DH26: 0 | DI26: 0 | DJ26: 0 | DK26: 0 | DL26: 0 | DM26: 0 | DN26: 0 | DO26: 0 | DP26: 0 | DQ26: 0 | DR26: 0 | DS26: 0 | DT26: 0 | DU26: 0 | DV26: 0 | DW26: 0 | DX26: 0 | DY26: 0 | DZ26: 0 | EA26: 0 | EB26: 0 | EC26: 0 | ED26: 0 | EE26: 0 | EF26: 0 | EG26: 0 | EH26: 0 | EI26: 0 | EJ26: =AND(EJ$22>=$D26,EJ$22<=$E26)*IF(OR($F26="Straight-Line",$F26="Detail"),$I26/$ES26,JT26) -> 0 | EK26: 0 | EL26: 0 | EM26: 0 | EN26: 0 | EP26: =I26 -> 12000000 | EQ26: =INDEX($L$23:$EN$23,1,$D26+1) -> 2025-12-31 | ER26: =INDEX($L$23:$EN$23,1,$E26+1) -> 2025-12-31 | ES26: =+E26-D26+1 -> 1 | ET26: =F26 -> Straight-Line | EU26: =ES26/Scurve_Dist -> 0.1666666667 | EV26: =AND($ET26="S-Curve",EV$23>=$EQ26,EV$23<=$ER26)*(_xlfn.NORM.DIST((YEAR(EV$23)-YEAR($EQ26))*12+MONTH(EV$23)-MONTH($EQ26)+1,$ES26/2,$EU26,TRUE)-_xlfn.NORM.DIST((YEAR(EV$23)-YEAR($EQ26))*12+MONTH(EV$23)-MONTH($EQ26),$ES26/2,$EU26,TRUE))/(1-2*_xlfn.NORM.DIST(0,$ES26/2,$EU26,TRUE))*$EP26 -> 0 | EW26: =AND($ET26="S-Curve",EW$23>=$EQ26,EW$23<=$ER26)*(_xlfn.NORM.DIST((YEAR(EW$23)-YEAR($EQ26))*12+MONTH(EW$23)-MONTH($EQ26)+1,$ES26/2,$EU26,TRUE)-_xlfn.NORM.DIST((YEAR(EW$23)-YEAR($EQ26))*12+MONTH(EW$23)-MONTH($EQ26),$ES26/2,$EU26,TRUE))/(1-2*_xlfn.NORM.DIST(0,$ES26/2,$EU26,TRUE))*$EP26 -> 0 | EX26: 0 | EY26: 0 | EZ26: 0 | FA26: 0 | FB26: 0 | FC26: 0 | FD26: 0 | FE26: 0 | FF26: 0 | FG26: 0 | FH26: 0 | FI26: 0 | FJ26: 0 | FK26: 0 | FL26: 0 | FM26: 0 | FN26: 0 | FO26: 0 | FP26: 0 | FQ26: 0 | FR26: 0 | FS26: 0 | FT26: 0 | FU26: 0 | FV26: 0 | FW26: 0 | FX26: 0 | FY26: 0 | FZ26: 0 | GA26: 0 | GB26: 0 | GC26: 0 | GD26: 0 | GE26: 0 | GF26: 0 | GG26: 0 | GH26: 0 | GI26: 0 | GJ26: 0 | GK26: 0 | GL26: 0 | GM26: 0 | GN26: 0 | GO26: 0 | GP26: 0 | GQ26: 0 | GR26: 0 | GS26: 0 | GT26: 0 | GU26: 0 | GV26: 0 | GW26: 0 | GX26: 0 | GY26: 0 | GZ26: 0 | HA26: 0 | HB26: 0 | HC26: 0 | HD26: 0 | HE26: 0 | HF26: 0 | HG26: 0 | HH26: 0 | HI26: =AND($ET26="S-Curve",HI$23>=$EQ26,HI$23<=$ER26)*(_xlfn.NORM.DIST((YEAR(HI$23)-YEAR($EQ26))*12+MONTH(HI$23)-MONTH($EQ26)+1,$ES26/2,$EU26,TRUE)-_xlfn.NORM.DIST((YEAR(HI$23)-YEAR($EQ26))*12+MONTH(HI$23)-MONTH($EQ26),$ES26/2,$EU26,TRUE))/(1-2*_xlfn.NORM.DIST(0,$ES26/2,$EU26,TRUE))*$EP26 -> 0 | HJ26: 0 | HK26: 0 | HL26: 0 | HM26: 0 | HN26: 0 | HO26: 0 | HP26: 0 | HQ26: 0 | HR26: 0 | HS26: 0 | HT26: 0 | HU26: 0 | HV26: 0 | HW26: 0 | HX26: 0 | HY26: 0 | HZ26: 0 | IA26: 0 | IB26: 0 | IC26: 0 | ID26: 0 | IE26: 0 | IF26: 0 | IG26: 0 | IH26: 0 | II26: 0 | IJ26: 0 | IK26: 0 | IL26: 0 | IM26: 0 | IN26: 0 | IO26: 0 | IP26: 0 | IQ26: 0 | IR26: 0 | IS26: 0 | IT26: 0 | IU26: 0 | IV26: 0 | IW26: 0 | IX26: 0 | IY26: 0 | IZ26: 0 | JA26: 0 | JB26: 0 | JC26: 0 | JD26: 0 | JE26: 0 | JF26: 0 | JG26: 0 | JH26: 0 | JI26: 0 | JJ26: 0 | JK26: 0 | JL26: 0 | JM26: 0 | JN26: 0 | JO26: 0 | JP26: 0 | JQ26: 0 | JR26: 0 | JS26: 0 | JT26: 0 | JU26: =AND($ET26="S-Curve",JU$23>=$EQ26,JU$23<=$ER26)*(_xlfn.NORM.DIST((YEAR(JU$23)-YEAR($EQ26))*12+MONTH(JU$23)-MONTH($EQ26)+1,$ES26/2,$EU26,TRUE)-_xlfn.NORM.DIST((YEAR(JU$23)-YEAR($EQ26))*12+MONTH(JU$23)-MONTH($EQ26),$ES26/2,$EU26,TRUE))/(1-2*_xlfn.NORM.DIST(0,$ES26/2,$EU26,TRUE))*$EP26 -> 0 | JV26: 0 | JW26: 0 | JX26: 0
B27: Closing Costs | C27: 0 | D27: 0 | E27: 0 | F27: Straight-Line | G27: =I27/Units_SF_M2 -> 0 | H27: =I27/Units -> 0 | I27: =C27*I26 -> 0 | K27: =IF(ROUND(SUM(L27:EN27),0)=ROUND(I27,0),"","Incomplete") ->  | L27: =AND(L$22>=$D27,L$22<=$E27)*IF(OR($F27="Straight-Line",$F27="Detail"),$I27/$ES27,EV27) -> 0 | M27: 0 | N27: 0 | O27: 0 | P27: 0 | Q27: 0 | R27: 0 | S27: 0 | T27: 0 | U27: 0 | V27: =AND(V$22>=$D27,V$22<=$E27)*IF(OR($F27="Straight-Line",$F27="Detail"),$I27/$ES27,FF27) -> 0 | W27: 0 | X27: 0 | Y27: 0 | Z27: 0 | AA27: 0 | AB27: 0 | AC27: 0 | AD27: 0 | AE27: 0 | AF27: =AND(AF$22>=$D27,AF$22<=$E27)*IF(OR($F27="Straight-Line",$F27="Detail"),$I27/$ES27,FP27) -> 0 | AG27: 0 | AH27: 0 | AI27: 0 | AJ27: 0 | AK27: 0 | AL27: 0 | AM27: 0 | AN27: 0 | AO27: 0 | AP27: =AND(AP$22>=$D27,AP$22<=$E27)*IF(OR($F27="Straight-Line",$F27="Detail"),$I27/$ES27,FZ27) -> 0 | AQ27: 0 | AR27: 0 | AS27: 0 | AT27: 0 | AU27: 0 | AV27: 0 | AW27: 0 | AX27: 0 | AY27: 0 | AZ27: =AND(AZ$22>=$D27,AZ$22<=$E27)*IF(OR($F27="Straight-Line",$F27="Detail"),$I27/$ES27,GJ27) -> 0 | BA27: 0 | BB27: 0 | BC27: 0 | BD27: 0 | BE27: 0 | BF27: 0 | BG27: 0 | BH27: 0 | BI27: 0 | BJ27: =AND(BJ$22>=$D27,BJ$22<=$E27)*IF(OR($F27="Straight-Line",$F27="Detail"),$I27/$ES27,GT27) -> 0 | BK27: 0 | BL27: 0 | BM27: 0 | BN27: 0 | BO27: 0 | BP27: 0 | BQ27: 0 | BR27: 0 | BS27: 0 | BT27: =AND(BT$22>=$D27,BT$22<=$E27)*IF(OR($F27="Straight-Line",$F27="Detail"),$I27/$ES27,HD27) -> 0 | BU27: 0 | BV27: 0 | BW27: 0 | BX27: 0 | BY27: 0 | BZ27: 0 | CA27: 0 | CB27: 0 | CC27: 0 | CD27: =AND(CD$22>=$D27,CD$22<=$E27)*IF(OR($F27="Straight-Line",$F27="Detail"),$I27/$ES27,HN27) -> 0 | CE27: 0 | CF27: 0 | CG27: 0 | CH27: 0 | CI27: 0 | CJ27: 0 | CK27: 0 | CL27: 0 | CM27: 0 | CN27: =AND(CN$22>=$D27,CN$22<=$E27)*IF(OR($F27="Straight-Line",$F27="Detail"),$I27/$ES27,HX27) -> 0 | CO27: 0 | CP27: 0 | CQ27: 0 | CR27: 0 | CS27: 0 | CT27: 0 | CU27: 0 | CV27: 0 | CW27: 0 | CX27: =AND(CX$22>=$D27,CX$22<=$E27)*IF(OR($F27="Straight-Line",$F27="Detail"),$I27/$ES27,IH27) -> 0 | CY27: 0 | CZ27: 0 | DA27: 0 | DB27: 0 | DC27: 0 | DD27: 0 | DE27: 0 | DF27: 0 | DG27: 0 | DH27: =AND(DH$22>=$D27,DH$22<=$E27)*IF(OR($F27="Straight-Line",$F27="Detail"),$I27/$ES27,IR27) -> 0 | DI27: 0 | DJ27: 0 | DK27: 0 | DL27: 0 | DM27: 0 | DN27: 0 | DO27: 0 | DP27: 0 | DQ27: 0 | DR27: =AND(DR$22>=$D27,DR$22<=$E27)*IF(OR($F27="Straight-Line",$F27="Detail"),$I27/$ES27,JB27) -> 0 | DS27: 0 | DT27: 0 | DU27: 0 | DV27: 0 | DW27: 0 | DX27: 0 | DY27: 0 | DZ27: 0 | EA27: 0 | EB27: =AND(EB$22>=$D27,EB$22<=$E27)*IF(OR($F27="Straight-Line",$F27="Detail"),$I27/$ES27,JL27) -> 0 | EC27: 0 | ED27: 0 | EE27: 0 | EF27: 0 | EG27: 0 | EH27: 0 | EI27: 0 | EJ27: 0 | EK27: 0 | EL27: 0 | EM27: 0 | EN27: 0 | EP27: =I27 -> 0 | EQ27: =INDEX($L$23:$EN$23,1,$D27+1) -> 2025-12-31 | ER27: =INDEX($L$23:$EN$23,1,$E27+1) -> 2025-12-31 | ES27: =+E27-D27+1 -> 1 | ET27: =F27 -> Straight-Line | EU27: =ES27/Scurve_Dist -> 0.1666666667 | EV27: =AND($ET27="S-Curve",EV$23>=$EQ27,EV$23<=$ER27)*(_xlfn.NORM.DIST((YEAR(EV$23)-YEAR($EQ27))*12+MONTH(EV$23)-MONTH($EQ27)+1,$ES27/2,$EU27,TRUE)-_xlfn.NORM.DIST((YEAR(EV$23)-YEAR($EQ27))*12+MONTH(EV$23)-MONTH($EQ27),$ES27/2,$EU27,TRUE))/(1-2*_xlfn.NORM.DIST(0,$ES27/2,$EU27,TRUE))*$EP27 -> 0 | EW27: =AND($ET27="S-Curve",EW$23>=$EQ27,EW$23<=$ER27)*(_xlfn.NORM.DIST((YEAR(EW$23)-YEAR($EQ27))*12+MONTH(EW$23)-MONTH($EQ27)+1,$ES27/2,$EU27,TRUE)-_xlfn.NORM.DIST((YEAR(EW$23)-YEAR($EQ27))*12+MONTH(EW$23)-MONTH($EQ27),$ES27/2,$EU27,TRUE))/(1-2*_xlfn.NORM.DIST(0,$ES27/2,$EU27,TRUE))*$EP27 -> 0 | EX27: 0 | EY27: 0 | EZ27: 0 | FA27: 0 | FB27: 0 | FC27: 0 | FD27: 0 | FE27: 0 | FF27: 0 | FG27: 0 | FH27: 0 | FI27: 0 | FJ27: 0 | FK27: 0 | FL27: 0 | FM27: 0 | FN27: 0 | FO27: 0 | FP27: 0 | FQ27: 0 | FR27: 0 | FS27: 0 | FT27: 0 | FU27: 0 | FV27: 0 | FW27: 0 | FX27: 0 | FY27: 0 | FZ27: 0 | GA27: 0 | GB27: 0 | GC27: 0 | GD27: 0 | GE27: 0 | GF27: 0 | GG27: 0 | GH27: 0 | GI27: 0 | GJ27: 0 | GK27: 0 | GL27: 0 | GM27: 0 | GN27: 0 | GO27: 0 | GP27: 0 | GQ27: 0 | GR27: 0 | GS27: 0 | GT27: 0 | GU27: 0 | GV27: 0 | GW27: 0 | GX27: 0 | GY27: 0 | GZ27: 0 | HA27: 0 | HB27: 0 | HC27: 0 | HD27: 0 | HE27: 0 | HF27: 0 | HG27: 0 | HH27: 0 | HI27: =AND($ET27="S-Curve",HI$23>=$EQ27,HI$23<=$ER27)*(_xlfn.NORM.DIST((YEAR(HI$23)-YEAR($EQ27))*12+MONTH(HI$23)-MONTH($EQ27)+1,$ES27/2,$EU27,TRUE)-_xlfn.NORM.DIST((YEAR(HI$23)-YEAR($EQ27))*12+MONTH(HI$23)-MONTH($EQ27),$ES27/2,$EU27,TRUE))/(1-2*_xlfn.NORM.DIST(0,$ES27/2,$EU27,TRUE))*$EP27 -> 0 | HJ27: 0 | HK27: 0 | HL27: 0 | HM27: 0 | HN27: 0 | HO27: 0 | HP27: 0 | HQ27: 0 | HR27: 0 | HS27: 0 | HT27: 0 | HU27: 0 | HV27: 0 | HW27: 0 | HX27: 0 | HY27: 0 | HZ27: 0 | IA27: 0 | IB27: 0 | IC27: 0 | ID27: 0 | IE27: 0 | IF27: 0 | IG27: 0 | IH27: 0 | II27: 0 | IJ27: 0 | IK27: 0 | IL27: 0 | IM27: 0 | IN27: 0 | IO27: 0 | IP27: 0 | IQ27: 0 | IR27: 0 | IS27: 0 | IT27: 0 | IU27: 0 | IV27: 0 | IW27: 0 | IX27: 0 | IY27: 0 | IZ27: 0 | JA27: 0 | JB27: 0 | JC27: 0 | JD27: 0 | JE27: 0 | JF27: 0 | JG27: 0 | JH27: 0 | JI27: 0 | JJ27: 0 | JK27: 0 | JL27: 0 | JM27: 0 | JN27: 0 | JO27: 0 | JP27: 0 | JQ27: 0 | JR27: 0 | JS27: 0 | JT27: 0 | JU27: 0 | JV27: 0 | JW27: 0 | JX27: 0
B28: Total Land Costs | D28: =MIN(D26:D27) -> 0 | E28: =MAX(E26:E27) -> 0 | G28: =SUM(G26:G27) -> 34.8292496 | H28: =SUM(H26:H27) -> 30000 | I28: =SUM(I26:I27) -> 12000000 | K28: =IF(ROUND(SUM(L28:EN28),0)=ROUND(I28,0),"","Incomplete") ->  | L28: =SUM(L26:L27) -> 12000000 | M28: 0 | N28: 0 | O28: 0 | P28: 0 | Q28: 0 | R28: 0 | S28: 0 | T28: 0 | U28: 0 | V28: 0 | W28: 0 | X28: 0 | Y28: 0 | Z28: 0 | AA28: 0 | AB28: 0 | AC28: 0 | AD28: 0 | AE28: 0 | AF28: 0 | AG28: 0 | AH28: 0 | AI28: 0 | AJ28: 0 | AK28: 0 | AL28: 0 | AM28: 0 | AN28: 0 | AO28: 0 | AP28: 0 | AQ28: 0 | AR28: =SUM(AR26:AR27) -> 0 | AS28: 0 | AT28: 0 | AU28: 0 | AV28: 0 | AW28: 0 | AX28: 0 | AY28: 0 | AZ28: 0 | BA28: 0 | BB28: 0 | BC28: 0 | BD28: 0 | BE28: 0 | BF28: 0 | BG28: 0 | BH28: 0 | BI28: 0 | BJ28: 0 | BK28: 0 | BL28: 0 | BM28: 0 | BN28: 0 | BO28: 0 | BP28: 0 | BQ28: 0 | BR28: 0 | BS28: 0 | BT28: 0 | BU28: 0 | BV28: 0 | BW28: 0 | BX28: =SUM(BX26:BX27) -> 0 | BY28: 0 | BZ28: 0 | CA28: 0 | CB28: 0 | CC28: 0 | CD28: 0 | CE28: 0 | CF28: 0 | CG28: 0 | CH28: 0 | CI28: 0 | CJ28: 0 | CK28: 0 | CL28: 0 | CM28: 0 | CN28: 0 | CO28: 0 | CP28: 0 | CQ28: 0 | CR28: 0 | CS28: 0 | CT28: 0 | CU28: 0 | CV28: 0 | CW28: 0 | CX28: 0 | CY28: 0 | CZ28: 0 | DA28: 0 | DB28: 0 | DC28: 0 | DD28: =SUM(DD26:DD27) -> 0 | DE28: 0 | DF28: 0 | DG28: 0 | DH28: 0 | DI28: 0 | DJ28: 0 | DK28: 0 | DL28: 0 | DM28: 0 | DN28: 0 | DO28: 0 | DP28: 0 | DQ28: 0 | DR28: 0 | DS28: 0 | DT28: 0 | DU28: 0 | DV28: 0 | DW28: 0 | DX28: 0 | DY28: 0 | DZ28: 0 | EA28: 0 | EB28: 0 | EC28: 0 | ED28: 0 | EE28: 0 | EF28: 0 | EG28: 0 | EH28: 0 | EI28: 0 | EJ28: =SUM(EJ26:EJ27) -> 0 | EK28: 0 | EL28: 0 | EM28: 0 | EN28: 0 | EQ28: # of Land Cost Items | ER28: =COUNTA($B$26:$B$27) -> 2
B30: Hard Costs
B31: General Conditions | D31: 1 | E31: 26 | F31: Detail | G31: =I31/Units_SF_M2 -> 11.70246823 | H31: =I31/Units -> 10079.8625 | I31: 4031945 | L31: =AND(L$22>=$D31,L$22<=$E31)*IF(OR($F31="Straight-Line",$F31="Detail"),$I31/$ES31,EV31) -> 0 | M31: =$I$31*'HC Draw'!E22 -> 224438.3702 | N31: =$I$31*'HC Draw'!F22 -> 152300.2598 | O31: =$I$31*'HC Draw'!G22 -> 152300.2598 | P31: =$I$31*'HC Draw'!H22 -> 152300.2598 | Q31: =$I$31*'HC Draw'!I22 -> 152300.2598 | R31: =$I$31*'HC Draw'!J22 -> 152300.2598 | S31: =$I$31*'HC Draw'!K22 -> 152300.2598 | T31: =$I$31*'HC Draw'!L22 -> 152300.2598 | U31: =$I$31*'HC Draw'!M22 -> 152300.2598 | V31: =$I$31*'HC Draw'!N22 -> 152300.2598 | W31: =$I$31*'HC Draw'!O22 -> 152300.2598 | X31: =$I$31*'HC Draw'!P22 -> 152300.2598 | Y31: =$I$31*'HC Draw'!Q22 -> 152300.2598 | Z31: =$I$31*'HC Draw'!R22 -> 152300.2598 | AA31: =$I$31*'HC Draw'!S22 -> 152300.2598 | AB31: =$I$31*'HC Draw'!T22 -> 152300.2598 | AC31: =$I$31*'HC Draw'!U22 -> 152300.2598 | AD31: =$I$31*'HC Draw'!V22 -> 152300.2598 | AE31: =$I$31*'HC Draw'!W22 -> 152300.2598 | AF31: =$I$31*'HC Draw'!X22 -> 152300.2598 | AG31: =$I$31*'HC Draw'!Y22 -> 152300.2598 | AH31: =$I$31*'HC Draw'!Z22 -> 152300.2598 | AI31: =$I$31*'HC Draw'!AA22 -> 152300.2598 | AJ31: =$I$31*'HC Draw'!AB22 -> 152300.2598 | AK31: =$I$31*'HC Draw'!AC22 -> 152300.2598 | AL31: =$I$31*'HC Draw'!AD22 -> 152300.2598 | AM31: =AND(AM$22>=$D31,AM$22<=$E31)*IF(OR($F31="Straight-Line",$F31="Detail"),$I31/$ES31,FW31) -> 0 | AN31: 0 | AO31: 0 | AP31: =AND(AP$22>=$D31,AP$22<=$E31)*IF(OR($F31="Straight-Line",$F31="Detail"),$I31/$ES31,FZ31) -> 0 | AQ31: 0 | AR31: 0 | AS31: 0 | AT31: 0 | AU31: 0 | AV31: 0 | AW31: 0 | AX31: 0 | AY31: 0 | AZ31: =AND(AZ$22>=$D31,AZ$22<=$E31)*IF(OR($F31="Straight-Line",$F31="Detail"),$I31/$ES31,GJ31) -> 0 | BA31: 0 | BB31: 0 | BC31: 0 | BD31: 0 | BE31: 0 | BF31: 0 | BG31: 0 | BH31: 0 | BI31: 0 | BJ31: =AND(BJ$22>=$D31,BJ$22<=$E31)*IF(OR($F31="Straight-Line",$F31="Detail"),$I31/$ES31,GT31) -> 0 | BK31: 0 | BL31: 0 | BM31: 0 | BN31: 0 | BO31: 0 | BP31: 0 | BQ31: 0 | BR31: 0 | BS31: 0 | BT31: =AND(BT$22>=$D31,BT$22<=$E31)*IF(OR($F31="Straight-Line",$F31="Detail"),$I31/$ES31,HD31) -> 0 | BU31: 0 | BV31: 0 | BW31: 0 | BX31: 0 | BY31: 0 | BZ31: 0 | CA31: 0 | CB31: 0 | CC31: 0 | CD31: =AND(CD$22>=$D31,CD$22<=$E31)*IF(OR($F31="Straight-Line",$F31="Detail"),$I31/$ES31,HN31) -> 0 | CE31: 0 | CF31: 0 | CG31: 0 | CH31: 0 | CI31: 0 | CJ31: 0 | CK31: 0 | CL31: 0 | CM31: 0 | CN31: =AND(CN$22>=$D31,CN$22<=$E31)*IF(OR($F31="Straight-Line",$F31="Detail"),$I31/$ES31,HX31) -> 0 | CO31: 0 | CP31: 0 | CQ31: 0 | CR31: 0 | CS31: 0 | CT31: 0 | CU31: 0 | CV31: 0 | CW31: 0 | CX31: =AND(CX$22>=$D31,CX$22<=$E31)*IF(OR($F31="Straight-Line",$F31="Detail"),$I31/$ES31,IH31) -> 0 | CY31: 0 | CZ31: 0 | DA31: 0 | DB31: 0 | DC31: 0 | DD31: 0 | DE31: 0 | DF31: 0 | DG31: 0 | DH31: =AND(DH$22>=$D31,DH$22<=$E31)*IF(OR($F31="Straight-Line",$F31="Detail"),$I31/$ES31,IR31) -> 0 | DI31: 0 | DJ31: 0 | DK31: 0 | DL31: 0 | DM31: 0 | DN31: 0 | DO31: 0 | DP31: 0 | DQ31: 0 | DR31: =AND(DR$22>=$D31,DR$22<=$E31)*IF(OR($F31="Straight-Line",$F31="Detail"),$I31/$ES31,JB31) -> 0 | DS31: 0 | DT31: 0 | DU31: 0 | DV31: 0 | DW31: 0 | DX31: 0 | DY31: 0 | DZ31: 0 | EA31: 0 | EB31: =AND(EB$22>=$D31,EB$22<=$E31)*IF(OR($F31="Straight-Line",$F31="Detail"),$I31/$ES31,JL31) -> 0 | EC31: 0 | ED31: 0 | EE31: 0 | EF31: 0 | EG31: 0 | EH31: 0 | EI31: 0 | EJ31: 0 | EK31: 0 | EL31: =AND(EL$22>=$D31,EL$22<=$E31)*IF(OR($F31="Straight-Line",$F31="Detail"),$I31/$ES31,JV31) -> 0 | EM31: 0 | EN31: 0 | EP31: =I31 -> 4031945 | EQ31: =INDEX($L$23:$EN$23,1,$D31+1) -> 2026-01-31 | ER31: =INDEX($L$23:$EN$23,1,$E31+1) -> 2028-02-29 | ES31: =+E31-D31+1 -> 26 | ET31: =F31 -> Detail | EU31: =ES31/Scurve_Dist -> 4.333333333 | EV31: =AND($ET31="S-Curve",EV$23>=$EQ31,EV$23<=$ER31)*(_xlfn.NORM.DIST((YEAR(EV$23)-YEAR($EQ31))*12+MONTH(EV$23)-MONTH($EQ31)+1,$ES31/2,$EU31,TRUE)-_xlfn.NORM.DIST((YEAR(EV$23)-YEAR($EQ31))*12+MONTH(EV$23)-MONTH($EQ31),$ES31/2,$EU31,TRUE))/(1-2*_xlfn.NORM.DIST(0,$ES31/2,$EU31,TRUE))*$EP31 -> 0 | EW31: 0 | EX31: 0 | EY31: 0 | EZ31: 0 | FA31: 0 | FB31: 0 | FC31: 0 | FD31: 0 | FE31: 0 | FF31: 0 | FG31: 0 | FH31: 0 | FI31: 0 | FJ31: 0 | FK31: 0 | FL31: =AND($ET31="S-Curve",FL$23>=$EQ31,FL$23<=$ER31)*(_xlfn.NORM.DIST((YEAR(FL$23)-YEAR($EQ31))*12+MONTH(FL$23)-MONTH($EQ31)+1,$ES31/2,$EU31,TRUE)-_xlfn.NORM.DIST((YEAR(FL$23)-YEAR($EQ31))*12+MONTH(FL$23)-MONTH($EQ31),$ES31/2,$EU31,TRUE))/(1-2*_xlfn.NORM.DIST(0,$ES31/2,$EU31,TRUE))*$EP31 -> 0 | FM31: 0 | FN31: 0 | FO31: 0 | FP31: 0 | FQ31: 0 | FR31: 0 | FS31: 0 | FT31: 0 | FU31: 0 | FV31: 0 | FW31: 0 | FX31: 0 | FY31: 0 | FZ31: 0 | GA31: 0 | GB31: =AND($ET31="S-Curve",GB$23>=$EQ31,GB$23<=$ER31)*(_xlfn.NORM.DIST((YEAR(GB$23)-YEAR($EQ31))*12+MONTH(GB$23)-MONTH($EQ31)+1,$ES31/2,$EU31,TRUE)-_xlfn.NORM.DIST((YEAR(GB$23)-YEAR($EQ31))*12+MONTH(GB$23)-MONTH($EQ31),$ES31/2,$EU31,TRUE))/(1-2*_xlfn.NORM.DIST(0,$ES31/2,$EU31,TRUE))*$EP31 -> 0 | GC31: 0 | GD31: 0 | GE31: 0 | GF31: 0 | GG31: 0 | GH31: 0 | GI31: 0 | GJ31: 0 | GK31: 0 | GL31: 0 | GM31: 0 | GN31: 0 | GO31: 0 | GP31: 0 | GQ31: 0 | GR31: =AND($ET31="S-Curve",GR$23>=$EQ31,GR$23<=$ER31)*(_xlfn.NORM.DIST((YEAR(GR$23)-YEAR($EQ31))*12+MONTH(GR$23)-MONTH($EQ31)+1,$ES31/2,$EU31,TRUE)-_xlfn.NORM.DIST((YEAR(GR$23)-YEAR($EQ31))*12+MONTH(GR$23)-MONTH($EQ31),$ES31/2,$EU31,TRUE))/(1-2*_xlfn.NORM.DIST(0,$ES31/2,$EU31,TRUE))*$EP31 -> 0 | GS31: 0 | GT31: 0 | GU31: 0 | GV31: 0 | GW31: 0 | GX31: 0 | GY31: 0 | GZ31: 0 | HA31: 0 | HB31: 0 | HC31: 0 | HD31: 0 | HE31: 0 | HF31: 0 | HG31: 0 | HH31: =AND($ET31="S-Curve",HH$23>=$EQ31,HH$23<=$ER31)*(_xlfn.NORM.DIST((YEAR(HH$23)-YEAR($EQ31))*12+MONTH(HH$23)-MONTH($EQ31)+1,$ES31/2,$EU31,TRUE)-_xlfn.NORM.DIST((YEAR(HH$23)-YEAR($EQ31))*12+MONTH(HH$23)-MONTH($EQ31),$ES31/2,$EU31,TRUE))/(1-2*_xlfn.NORM.DIST(0,$ES31/2,$EU31,TRUE))*$EP31 -> 0 | HI31: 0 | HJ31: 0 | HK31: 0 | HL31: 0 | HM31: 0 | HN31: 0 | HO31: 0 | HP31: 0 | HQ31: 0 | HR31: 0 | HS31: 0 | HT31: 0 | HU31: 0 | HV31: 0 | HW31: 0 | HX31: =AND($ET31="S-Curve",HX$23>=$EQ31,HX$23<=$ER31)*(_xlfn.NORM.DIST((YEAR(HX$23)-YEAR($EQ31))*12+MONTH(HX$23)-MONTH($EQ31)+1,$ES31/2,$EU31,TRUE)-_xlfn.NORM.DIST((YEAR(HX$23)-YEAR($EQ31))*12+MONTH(HX$23)-MONTH($EQ31),$ES31/2,$EU31,TRUE))/(1-2*_xlfn.NORM.DIST(0,$ES31/2,$EU31,TRUE))*$EP31 -> 0 | HY31: 0 | HZ31: 0 | IA31: 0 | IB31: 0 | IC31: 0 | ID31: 0 | IE31: 0 | IF31: 0 | IG31: 0 | IH31: 0 | II31: 0 | IJ31: 0 | IK31: 0 | IL31: 0 | IM31: 0 | IN31: =AND($ET31="S-Curve",IN$23>=$EQ31,IN$23<=$ER31)*(_xlfn.NORM.DIST((YEAR(IN$23)-YEAR($EQ31))*12+MONTH(IN$23)-MONTH($EQ31)+1,$ES31/2,$EU31,TRUE)-_xlfn.NORM.DIST((YEAR(IN$23)-YEAR($EQ31))*12+MONTH(IN$23)-MONTH($EQ31),$ES31/2,$EU31,TRUE))/(1-2*_xlfn.NORM.DIST(0,$ES31/2,$EU31,TRUE))*$EP31 -> 0 | IO31: 0 | IP31: 0 | IQ31: 0 | IR31: 0 | IS31: 0 | IT31: 0 | IU31: 0 | IV31: 0 | IW31: 0 | IX31: 0 | IY31: 0 | IZ31: 0 | JA31: 0 | JB31: 0 | JC31: 0 | JD31: =AND($ET31="S-Curve",JD$23>=$EQ31,JD$23<=$ER31)*(_xlfn.NORM.DIST((YEAR(JD$23)-YEAR($EQ31))*12+MONTH(JD$23)-MONTH($EQ31)+1,$ES31/2,$EU31,TRUE)-_xlfn.NORM.DIST((YEAR(JD$23)-YEAR($EQ31))*12+MONTH(JD$23)-MONTH($EQ31),$ES31/2,$EU31,TRUE))/(1-2*_xlfn.NORM.DIST(0,$ES31/2,$EU31,TRUE))*$EP31 -> 0 | JE31: 0 | JF31: 0 | JG31: 0 | JH31: 0 | JI31: 0 | JJ31: 0 | JK31: 0 | JL31: 0 | JM31: 0 | JN31: 0 | JO31: 0 | JP31: 0 | JQ31: 0 | JR31: 0 | JS31: 0 | JT31: =AND($ET31="S-Curve",JT$23>=$EQ31,JT$23<=$ER31)*(_xlfn.NORM.DIST((YEAR(JT$23)-YEAR($EQ31))*12+MONTH(JT$23)-MONTH($EQ31)+1,$ES31/2,$EU31,TRUE)-_xlfn.NORM.DIST((YEAR(JT$23)-YEAR($EQ31))*12+MONTH(JT$23)-MONTH($EQ31),$ES31/2,$EU31,TRUE))/(1-2*_xlfn.NORM.DIST(0,$ES31/2,$EU31,TRUE))*$EP31 -> 0 | JU31: 0 | JV31: 0 | JW31: 0 | JX31: 0
B32: Insurance | D32: 1 | E32: 26 | F32: Detail | G32: =I32/Units_SF_M2 -> 1.639375047 | H32: =I32/Units -> 1412.0675 | I32: 564827 | K32: =IF(ROUND(SUM(L32:EN32),0)=ROUND(I32,0),"","Incomplete") ->  | L32: =AND(L$22>=$D32,L$22<=$E32)*IF(OR($F32="Straight-Line",$F32="Detail"),$I32/$ES32,EV32) -> 0 | M32: =$I$32*'HC Draw'!E29 -> 540619.2342 | N32: =$I$32*'HC Draw'!F29 -> 968.3083441 | O32: =$I$32*'HC Draw'!G29 -> 968.3083441 | P32: =$I$32*'HC Draw'!H29 -> 968.3083441 | Q32: =$I$32*'HC Draw'!I29 -> 968.3083441 | R32: =$I$32*'HC Draw'!J29 -> 968.3083441 | S32: =$I$32*'HC Draw'!K29 -> 968.3083441 | T32: =$I$32*'HC Draw'!L29 -> 968.3083441 | U32: =$I$32*'HC Draw'!M29 -> 968.3083441 | V32: =$I$32*'HC Draw'!N29 -> 968.3083441 | W32: =$I$32*'HC Draw'!O29 -> 968.3083441 | X32: =$I$32*'HC Draw'!P29 -> 968.3083441 | Y32: =$I$32*'HC Draw'!Q29 -> 968.3083441 | Z32: =$I$32*'HC Draw'!R29 -> 968.3083441 | AA32: =$I$32*'HC Draw'!S29 -> 968.3083441 | AB32: =$I$32*'HC Draw'!T29 -> 968.3083441 | AC32: =$I$32*'HC Draw'!U29 -> 968.3083441 | AD32: =$I$32*'HC Draw'!V29 -> 968.3083441 | AE32: =$I$32*'HC Draw'!W29 -> 968.3083441 | AF32: =$I$32*'HC Draw'!X29 -> 968.3083441 | AG32: =$I$32*'HC Draw'!Y29 -> 968.3083441 | AH32: =$I$32*'HC Draw'!Z29 -> 968.3083441 | AI32: =$I$32*'HC Draw'!AA29 -> 968.3083441 | AJ32: =$I$32*'HC Draw'!AB29 -> 968.3083441 | AK32: =$I$32*'HC Draw'!AC29 -> 968.3083441 | AL32: =$I$32*'HC Draw'!AD29 -> 968.3083441 | AM32: =AND(AM$22>=$D32,AM$22<=$E32)*IF(OR($F32="Straight-Line",$F32="Detail"),$I32/$ES32,FW32) -> 0 | AN32: =AND(AN$22>=$D32,AN$22<=$E32)*IF(OR($F32="Straight-Line",$F32="Detail"),$I32/$ES32,FX32) -> 0 | AO32: =AND(AO$22>=$D32,AO$22<=$E32)*IF(OR($F32="Straight-Line",$F32="Detail"),$I32/$ES32,FY32) -> 0 | AP32: =AND(AP$22>=$D32,AP$22<=$E32)*IF(OR($F32="Straight-Line",$F32="Detail"),$I32/$ES32,FZ32) -> 0 | AQ32: =AND(AQ$22>=$D32,AQ$22<=$E32)*IF(OR($F32="Straight-Line",$F32="Detail"),$I32/$ES32,GA32) -> 0 | AR32: =AND(AR$22>=$D32,AR$22<=$E32)*IF(OR($F32="Straight-Line",$F32="Detail"),$I32/$ES32,GB32) -> 0 | AS32: =AND(AS$22>=$D32,AS$22<=$E32)*IF(OR($F32="Straight-Line",$F32="Detail"),$I32/$ES32,GC32) -> 0 | AT32: =AND(AT$22>=$D32,AT$22<=$E32)*IF(OR($F32="Straight-Line",$F32="Detail"),$I32/$ES32,GD32) -> 0 | AU32: =AND(AU$22>=$D32,AU$22<=$E32)*IF(OR($F32="Straight-Line",$F32="Detail"),$I32/$ES32,GE32) -> 0 | AV32: =AND(AV$22>=$D32,AV$22<=$E32)*IF(OR($F32="Straight-Line",$F32="Detail"),$I32/$ES32,GF32) -> 0 | AW32: =AND(AW$22>=$D32,AW$22<=$E32)*IF(OR($F32="Straight-Line",$F32="Detail"),$I32/$ES32,GG32) -> 0 | AX32: =AND(AX$22>=$D32,AX$22<=$E32)*IF(OR($F32="Straight-Line",$F32="Detail"),$I32/$ES32,GH32) -> 0 | AY32: =AND(AY$22>=$D32,AY$22<=$E32)*IF(OR($F32="Straight-Line",$F32="Detail"),$I32/$ES32,GI32) -> 0 | AZ32: =AND(AZ$22>=$D32,AZ$22<=$E32)*IF(OR($F32="Straight-Line",$F32="Detail"),$I32/$ES32,GJ32) -> 0 | BA32: =AND(BA$22>=$D32,BA$22<=$E32)*IF(OR($F32="Straight-Line",$F32="Detail"),$I32/$ES32,GK32) -> 0 | BB32: =AND(BB$22>=$D32,BB$22<=$E32)*IF(OR($F32="Straight-Line",$F32="Detail"),$I32/$ES32,GL32) -> 0 | BC32: =AND(BC$22>=$D32,BC$22<=$E32)*IF(OR($F32="Straight-Line",$F32="Detail"),$I32/$ES32,GM32) -> 0 | BD32: =AND(BD$22>=$D32,BD$22<=$E32)*IF(OR($F32="Straight-Line",$F32="Detail"),$I32/$ES32,GN32) -> 0 | BE32: =AND(BE$22>=$D32,BE$22<=$E32)*IF(OR($F32="Straight-Line",$F32="Detail"),$I32/$ES32,GO32) -> 0 | BF32: =AND(BF$22>=$D32,BF$22<=$E32)*IF(OR($F32="Straight-Line",$F32="Detail"),$I32/$ES32,GP32) -> 0 | BG32: =AND(BG$22>=$D32,BG$22<=$E32)*IF(OR($F32="Straight-Line",$F32="Detail"),$I32/$ES32,GQ32) -> 0 | BH32: =AND(BH$22>=$D32,BH$22<=$E32)*IF(OR($F32="Straight-Line",$F32="Detail"),$I32/$ES32,GR32) -> 0 | BI32: =AND(BI$22>=$D32,BI$22<=$E32)*IF(OR($F32="Straight-Line",$F32="Detail"),$I32/$ES32,GS32) -> 0 | BJ32: =AND(BJ$22>=$D32,BJ$22<=$E32)*IF(OR($F32="Straight-Line",$F32="Detail"),$I32/$ES32,GT32) -> 0 | BK32: =AND(BK$22>=$D32,BK$22<=$E32)*IF(OR($F32="Straight-Line",$F32="Detail"),$I32/$ES32,GU32) -> 0 | BL32: =AND(BL$22>=$D32,BL$22<=$E32)*IF(OR($F32="Straight-Line",$F32="Detail"),$I32/$ES32,GV32) -> 0 | BM32: =AND(BM$22>=$D32,BM$22<=$E32)*IF(OR($F32="Straight-Line",$F32="Detail"),$I32/$ES32,GW32) -> 0 | BN32: =AND(BN$22>=$D32,BN$22<=$E32)*IF(OR($F32="Straight-Line",$F32="Detail"),$I32/$ES32,GX32) -> 0 | BO32: =AND(BO$22>=$D32,BO$22<=$E32)*IF(OR($F32="Straight-Line",$F32="Detail"),$I32/$ES32,GY32) -> 0 | BP32: =AND(BP$22>=$D32,BP$22<=$E32)*IF(OR($F32="Straight-Line",$F32="Detail"),$I32/$ES32,GZ32) -> 0 | BQ32: =AND(BQ$22>=$D32,BQ$22<=$E32)*IF(OR($F32="Straight-Line",$F32="Detail"),$I32/$ES32,HA32) -> 0 | BR32: =AND(BR$22>=$D32,BR$22<=$E32)*IF(OR($F32="Straight-Line",$F32="Detail"),$I32/$ES32,HB32) -> 0 | BS32: =AND(BS$22>=$D32,BS$22<=$E32)*IF(OR($F32="Straight-Line",$F32="Detail"),$I32/$ES32,HC32) -> 0 | BT32: =AND(BT$22>=$D32,BT$22<=$E32)*IF(OR($F32="Straight-Line",$F32="Detail"),$I32/$ES32,HD32) -> 0 | BU32: =AND(BU$22>=$D32,BU$22<=$E32)*IF(OR($F32="Straight-Line",$F32="Detail"),$I32/$ES32,HE32) -> 0 | BV32: =AND(BV$22>=$D32,BV$22<=$E32)*IF(OR($F32="Straight-Line",$F32="Detail"),$I32/$ES32,HF32) -> 0 | BW32: =AND(BW$22>=$D32,BW$22<=$E32)*IF(OR($F32="Straight-Line",$F32="Detail"),$I32/$ES32,HG32) -> 0 | BX32: =AND(BX$22>=$D32,BX$22<=$E32)*IF(OR($F32="Straight-Line",$F32="Detail"),$I32/$ES32,HH32) -> 0 | BY32: =AND(BY$22>=$D32,BY$22<=$E32)*IF(OR($F32="Straight-Line",$F32="Detail"),$I32/$ES32,HI32) -> 0 | BZ32: =AND(BZ$22>=$D32,BZ$22<=$E32)*IF(OR($F32="Straight-Line",$F32="Detail"),$I32/$ES32,HJ32) -> 0 | CA32: =AND(CA$22>=$D32,CA$22<=$E32)*IF(OR($F32="Straight-Line",$F32="Detail"),$I32/$ES32,HK32) -> 0 | CB32: =AND(CB$22>=$D32,CB$22<=$E32)*IF(OR($F32="Straight-Line",$F32="Detail"),$I32/$ES32,HL32) -> 0 | CC32: =AND(CC$22>=$D32,CC$22<=$E32)*IF(OR($F32="Straight-Line",$F32="Detail"),$I32/$ES32,HM32) -> 0 | CD32: =AND(CD$22>=$D32,CD$22<=$E32)*IF(OR($F32="Straight-Line",$F32="Detail"),$I32/$ES32,HN32) -> 0 | CE32: =AND(CE$22>=$D32,CE$22<=$E32)*IF(OR($F32="Straight-Line",$F32="Detail"),$I32/$ES32,HO32) -> 0 | CF32: =AND(CF$22>=$D32,CF$22<=$E32)*IF(OR($F32="Straight-Line",$F32="Detail"),$I32/$ES32,HP32) -> 0 | CG32: =AND(CG$22>=$D32,CG$22<=$E32)*IF(OR($F32="Straight-Line",$F32="Detail"),$I32/$ES32,HQ32) -> 0 | CH32: =AND(CH$22>=$D32,CH$22<=$E32)*IF(OR($F32="Straight-Line",$F32="Detail"),$I32/$ES32,HR32) -> 0 | CI32: =AND(CI$22>=$D32,CI$22<=$E32)*IF(OR($F32="Straight-Line",$F32="Detail"),$I32/$ES32,HS32) -> 0 | CJ32: =AND(CJ$22>=$D32,CJ$22<=$E32)*IF(OR($F32="Straight-Line",$F32="Detail"),$I32/$ES32,HT32) -> 0 | CK32: =AND(CK$22>=$D32,CK$22<=$E32)*IF(OR($F32="Straight-Line",$F32="Detail"),$I32/$ES32,HU32) -> 0 | CL32: =AND(CL$22>=$D32,CL$22<=$E32)*IF(OR($F32="Straight-Line",$F32="Detail"),$I32/$ES32,HV32) -> 0 | CM32: =AND(CM$22>=$D32,CM$22<=$E32)*IF(OR($F32="Straight-Line",$F32="Detail"),$I32/$ES32,HW32) -> 0 | CN32: =AND(CN$22>=$D32,CN$22<=$E32)*IF(OR($F32="Straight-Line",$F32="Detail"),$I32/$ES32,HX32) -> 0 | CO32: =AND(CO$22>=$D32,CO$22<=$E32)*IF(OR($F32="Straight-Line",$F32="Detail"),$I32/$ES32,HY32) -> 0 | CP32: =AND(CP$22>=$D32,CP$22<=$E32)*IF(OR($F32="Straight-Line",$F32="Detail"),$I32/$ES32,HZ32) -> 0 | CQ32: =AND(CQ$22>=$D32,CQ$22<=$E32)*IF(OR($F32="Straight-Line",$F32="Detail"),$I32/$ES32,IA32) -> 0 | CR32: =AND(CR$22>=$D32,CR$22<=$E32)*IF(OR($F32="Straight-Line",$F32="Detail"),$I32/$ES32,IB32) -> 0 | CS32: =AND(CS$22>=$D32,CS$22<=$E32)*IF(OR($F32="Straight-Line",$F32="Detail"),$I32/$ES32,IC32) -> 0 | CT32: =AND(CT$22>=$D32,CT$22<=$E32)*IF(OR($F32="Straight-Line",$F32="Detail"),$I32/$ES32,ID32) -> 0 | CU32: =AND(CU$22>=$D32,CU$22<=$E32)*IF(OR($F32="Straight-Line",$F32="Detail"),$I32/$ES32,IE32) -> 0 | CV32: =AND(CV$22>=$D32,CV$22<=$E32)*IF(OR($F32="Straight-Line",$F32="Detail"),$I32/$ES32,IF32) -> 0 | CW32: =AND(CW$22>=$D32,CW$22<=$E32)*IF(OR($F32="Straight-Line",$F32="Detail"),$I32/$ES32,IG32) -> 0 | CX32: =AND(CX$22>=$D32,CX$22<=$E32)*IF(OR($F32="Straight-Line",$F32="Detail"),$I32/$ES32,IH32) -> 0 | CY32: =AND(CY$22>=$D32,CY$22<=$E32)*IF(OR($F32="Straight-Line",$F32="Detail"),$I32/$ES32,II32) -> 0 | CZ32: =AND(CZ$22>=$D32,CZ$22<=$E32)*IF(OR($F32="Straight-Line",$F32="Detail"),$I32/$ES32,IJ32) -> 0 | DA32: =AND(DA$22>=$D32,DA$22<=$E32)*IF(OR($F32="Straight-Line",$F32="Detail"),$I32/$ES32,IK32) -> 0 | DB32: =AND(DB$22>=$D32,DB$22<=$E32)*IF(OR($F32="Straight-Line",$F32="Detail"),$I32/$ES32,IL32) -> 0 | DC32: =AND(DC$22>=$D32,DC$22<=$E32)*IF(OR($F32="Straight-Line",$F32="Detail"),$I32/$ES32,IM32) -> 0 | DD32: =AND(DD$22>=$D32,DD$22<=$E32)*IF(OR($F32="Straight-Line",$F32="Detail"),$I32/$ES32,IN32) -> 0 | DE32: =AND(DE$22>=$D32,DE$22<=$E32)*IF(OR($F32="Straight-Line",$F32="Detail"),$I32/$ES32,IO32) -> 0 | DF32: =AND(DF$22>=$D32,DF$22<=$E32)*IF(OR($F32="Straight-Line",$F32="Detail"),$I32/$ES32,IP32) -> 0 | DG32: =AND(DG$22>=$D32,DG$22<=$E32)*IF(OR($F32="Straight-Line",$F32="Detail"),$I32/$ES32,IQ32) -> 0 | DH32: =AND(DH$22>=$D32,DH$22<=$E32)*IF(OR($F32="Straight-Line",$F32="Detail"),$I32/$ES32,IR32) -> 0 | DI32: =AND(DI$22>=$D32,DI$22<=$E32)*IF(OR($F32="Straight-Line",$F32="Detail"),$I32/$ES32,IS32) -> 0 | DJ32: =AND(DJ$22>=$D32,DJ$22<=$E32)*IF(OR($F32="Straight-Line",$F32="Detail"),$I32/$ES32,IT32) -> 0 | DK32: =AND(DK$22>=$D32,DK$22<=$E32)*IF(OR($F32="Straight-Line",$F32="Detail"),$I32/$ES32,IU32) -> 0 | DL32: =AND(DL$22>=$D32,DL$22<=$E32)*IF(OR($F32="Straight-Line",$F32="Detail"),$I32/$ES32,IV32) -> 0 | DM32: =AND(DM$22>=$D32,DM$22<=$E32)*IF(OR($F32="Straight-Line",$F32="Detail"),$I32/$ES32,IW32) -> 0 | DN32: =AND(DN$22>=$D32,DN$22<=$E32)*IF(OR($F32="Straight-Line",$F32="Detail"),$I32/$ES32,IX32) -> 0 | DO32: =AND(DO$22>=$D32,DO$22<=$E32)*IF(OR($F32="Straight-Line",$F32="Detail"),$I32/$ES32,IY32) -> 0 | DP32: =AND(DP$22>=$D32,DP$22<=$E32)*IF(OR($F32="Straight-Line",$F32="Detail"),$I32/$ES32,IZ32) -> 0 | DQ32: =AND(DQ$22>=$D32,DQ$22<=$E32)*IF(OR($F32="Straight-Line",$F32="Detail"),$I32/$ES32,JA32) -> 0 | DR32: =AND(DR$22>=$D32,DR$22<=$E32)*IF(OR($F32="Straight-Line",$F32="Detail"),$I32/$ES32,JB32) -> 0 | DS32: =AND(DS$22>=$D32,DS$22<=$E32)*IF(OR($F32="Straight-Line",$F32="Detail"),$I32/$ES32,JC32) -> 0 | DT32: =AND(DT$22>=$D32,DT$22<=$E32)*IF(OR($F32="Straight-Line",$F32="Detail"),$I32/$ES32,JD32) -> 0 | DU32: =AND(DU$22>=$D32,DU$22<=$E32)*IF(OR($F32="Straight-Line",$F32="Detail"),$I32/$ES32,JE32) -> 0 | DV32: =AND(DV$22>=$D32,DV$22<=$E32)*IF(OR($F32="Straight-Line",$F32="Detail"),$I32/$ES32,JF32) -> 0 | DW32: =AND(DW$22>=$D32,DW$22<=$E32)*IF(OR($F32="Straight-Line",$F32="Detail"),$I32/$ES32,JG32) -> 0 | DX32: =AND(DX$22>=$D32,DX$22<=$E32)*IF(OR($F32="Straight-Line",$F32="Detail"),$I32/$ES32,JH32) -> 0 | DY32: =AND(DY$22>=$D32,DY$22<=$E32)*IF(OR($F32="Straight-Line",$F32="Detail"),$I32/$ES32,JI32) -> 0 | DZ32: =AND(DZ$22>=$D32,DZ$22<=$E32)*IF(OR($F32="Straight-Line",$F32="Detail"),$I32/$ES32,JJ32) -> 0 | EA32: =AND(EA$22>=$D32,EA$22<=$E32)*IF(OR($F32="Straight-Line",$F32="Detail"),$I32/$ES32,JK32) -> 0 | EB32: =AND(EB$22>=$D32,EB$22<=$E32)*IF(OR($F32="Straight-Line",$F32="Detail"),$I32/$ES32,JL32) -> 0 | EC32: =AND(EC$22>=$D32,EC$22<=$E32)*IF(OR($F32="Straight-Line",$F32="Detail"),$I32/$ES32,JM32) -> 0 | ED32: =AND(ED$22>=$D32,ED$22<=$E32)*IF(OR($F32="Straight-Line",$F32="Detail"),$I32/$ES32,JN32) -> 0 | EE32: =AND(EE$22>=$D32,EE$22<=$E32)*IF(OR($F32="Straight-Line",$F32="Detail"),$I32/$ES32,JO32) -> 0 | EF32: =AND(EF$22>=$D32,EF$22<=$E32)*IF(OR($F32="Straight-Line",$F32="Detail"),$I32/$ES32,JP32) -> 0 | EG32: =AND(EG$22>=$D32,EG$22<=$E32)*IF(OR($F32="Straight-Line",$F32="Detail"),$I32/$ES32,JQ32) -> 0 | EH32: =AND(EH$22>=$D32,EH$22<=$E32)*IF(OR($F32="Straight-Line",$F32="Detail"),$I32/$ES32,JR32) -> 0 | EI32: =AND(EI$22>=$D32,EI$22<=$E32)*IF(OR($F32="Straight-Line",$F32="Detail"),$I32/$ES32,JS32) -> 0 | EJ32: =AND(EJ$22>=$D32,EJ$22<=$E32)*IF(OR($F32="Straight-Line",$F32="Detail"),$I32/$ES32,JT32) -> 0 | EK32: =AND(EK$22>=$D32,EK$22<=$E32)*IF(OR($F32="Straight-Line",$F32="Detail"),$I32/$ES32,JU32) -> 0 | EL32: =AND(EL$22>=$D32,EL$22<=$E32)*IF(OR($F32="Straight-Line",$F32="Detail"),$I32/$ES32,JV32) -> 0 | EM32: =AND(EM$22>=$D32,EM$22<=$E32)*IF(OR($F32="Straight-Line",$F32="Detail"),$I32/$ES32,JW32) -> 0 | EN32: =AND(EN$22>=$D32,EN$22<=$E32)*IF(OR($F32="Straight-Line",$F32="Detail"),$I32/$ES32,JX32) -> 0 | EP32: =I32 -> 564827 | EQ32: 2026-01-31 | ER32: 2028-02-29 | ES32: =+E32-D32+1 -> 26 | ET32: =F32 -> Detail | EU32: =ES32/Scurve_Dist -> 4.333333333 | EV32: 0 | EW32: 0 | EX32: 0 | EY32: 0 | EZ32: 0 | FA32: 0 | FB32: 0 | FC32: 0 | FD32: 0 | FE32: 0 | FF32: 0 | FG32: 0 | FH32: 0 | FI32: 0 | FJ32: 0 | FK32: 0 | FL32: 0 | FM32: 0 | FN32: 0 | FO32: 0 | FP32: 0 | FQ32: 0 | FR32: 0 | FS32: 0 | FT32: 0 | FU32: 0 | FV32: 0 | FW32: 0 | FX32: 0 | FY32: 0 | FZ32: 0 | GA32: 0 | GB32: 0 | GC32: 0 | GD32: 0 | GE32: 0 | GF32: 0 | GG32: 0 | GH32: 0 | GI32: 0 | GJ32: 0 | GK32: 0 | GL32: 0 | GM32: 0 | GN32: 0 | GO32: 0 | GP32: 0 | GQ32: 0 | GR32: 0 | GS32: 0 | GT32: 0 | GU32: 0 | GV32: 0 | GW32: 0 | GX32: 0 | GY32: 0 | GZ32: 0 | HA32: 0 | HB32: 0 | HC32: 0 | HD32: 0 | HE32: 0 | HF32: 0 | HG32: 0 | HH32: 0 | HI32: 0 | HJ32: 0 | HK32: 0 | HL32: 0 | HM32: 0 | HN32: 0 | HO32: 0 | HP32: 0 | HQ32: 0 | HR32: 0 | HS32: 0 | HT32: 0 | HU32: 0 | HV32: 0 | HW32: 0 | HX32: 0 | HY32: 0 | HZ32: 0 | IA32: 0 | IB32: 0 | IC32: 0 | ID32: 0 | IE32: 0 | IF32: 0 | IG32: 0 | IH32: 0 | II32: 0 | IJ32: 0 | IK32: 0 | IL32: 0 | IM32: 0 | IN32: 0 | IO32: 0 | IP32: 0 | IQ32: 0 | IR32: 0 | IS32: 0 | IT32: 0 | IU32: 0 | IV32: 0 | IW32: 0 | IX32: 0 | IY32: 0 | IZ32: 0 | JA32: 0 | JB32: 0 | JC32: 0 | JD32: 0 | JE32: 0 | JF32: 0 | JG32: 0 | JH32: 0 | JI32: 0 | JJ32: 0 | JK32: 0 | JL32: 0 | JM32: 0 | JN32: 0 | JO32: 0 | JP32: 0 | JQ32: 0 | JR32: 0 | JS32: 0 | JT32: 0 | JU32: 0 | JV32: 0 | JW32: 0 | JX32: 0
B33: Temporary Utilities | D33: 1 | E33: 26 | F33: Straight-Line | G33: 0 | H33: 0 | I33: 0 | K33: =IF(ROUND(SUM(L33:EN33),0)=ROUND(I33,0),"","Incomplete") ->  | L33: =AND(L$22>=$D33,L$22<=$E33)*IF(OR($F33="Straight-Line",$F33="Detail"),$I33/$ES33,EV33) -> 0 | M33: =AND(M$22>=$D33,M$22<=$E33)*IF(OR($F33="Straight-Line",$F33="Detail"),$I33/$ES33,EW33) -> 0 | N33: =AND(N$22>=$D33,N$22<=$E33)*IF(OR($F33="Straight-Line",$F33="Detail"),$I33/$ES33,EX33) -> 0 | O33: =AND(O$22>=$D33,O$22<=$E33)*IF(OR($F33="Straight-Line",$F33="Detail"),$I33/$ES33,EY33) -> 0 | P33: =AND(P$22>=$D33,P$22<=$E33)*IF(OR($F33="Straight-Line",$F33="Detail"),$I33/$ES33,EZ33) -> 0 | Q33: =AND(Q$22>=$D33,Q$22<=$E33)*IF(OR($F33="Straight-Line",$F33="Detail"),$I33/$ES33,FA33) -> 0 | R33: =AND(R$22>=$D33,R$22<=$E33)*IF(OR($F33="Straight-Line",$F33="Detail"),$I33/$ES33,FB33) -> 0 | S33: =AND(S$22>=$D33,S$22<=$E33)*IF(OR($F33="Straight-Line",$F33="Detail"),$I33/$ES33,FC33) -> 0 | T33: =AND(T$22>=$D33,T$22<=$E33)*IF(OR($F33="Straight-Line",$F33="Detail"),$I33/$ES33,FD33) -> 0 | U33: =AND(U$22>=$D33,U$22<=$E33)*IF(OR($F33="Straight-Line",$F33="Detail"),$I33/$ES33,FE33) -> 0 | V33: =AND(V$22>=$D33,V$22<=$E33)*IF(OR($F33="Straight-Line",$F33="Detail"),$I33/$ES33,FF33) -> 0 | W33: =AND(W$22>=$D33,W$22<=$E33)*IF(OR($F33="Straight-Line",$F33="Detail"),$I33/$ES33,FG33) -> 0 | X33: =AND(X$22>=$D33,X$22<=$E33)*IF(OR($F33="Straight-Line",$F33="Detail"),$I33/$ES33,FH33) -> 0 | Y33: =AND(Y$22>=$D33,Y$22<=$E33)*IF(OR($F33="Straight-Line",$F33="Detail"),$I33/$ES33,FI33) -> 0 | Z33: =AND(Z$22>=$D33,Z$22<=$E33)*IF(OR($F33="Straight-Line",$F33="Detail"),$I33/$ES33,FJ33) -> 0 | AA33: =AND(AA$22>=$D33,AA$22<=$E33)*IF(OR($F33="Straight-Line",$F33="Detail"),$I33/$ES33,FK33) -> 0 | AB33: =AND(AB$22>=$D33,AB$22<=$E33)*IF(OR($F33="Straight-Line",$F33="Detail"),$I33/$ES33,FL33) -> 0 | AC33: =AND(AC$22>=$D33,AC$22<=$E33)*IF(OR($F33="Straight-Line",$F33="Detail"),$I33/$ES33,FM33) -> 0 | AD33: =AND(AD$22>=$D33,AD$22<=$E33)*IF(OR($F33="Straight-Line",$F33="Detail"),$I33/$ES33,FN33) -> 0 | AE33: =AND(AE$22>=$D33,AE$22<=$E33)*IF(OR($F33="Straight-Line",$F33="Detail"),$I33/$ES33,FO33) -> 0 | AF33: =AND(AF$22>=$D33,AF$22<=$E33)*IF(OR($F33="Straight-Line",$F33="Detail"),$I33/$ES33,FP33) -> 0 | AG33: =AND(AG$22>=$D33,AG$22<=$E33)*IF(OR($F33="Straight-Line",$F33="Detail"),$I33/$ES33,FQ33) -> 0 | AH33: =AND(AH$22>=$D33,AH$22<=$E33)*IF(OR($F33="Straight-Line",$F33="Detail"),$I33/$ES33,FR33) -> 0 | AI33: =AND(AI$22>=$D33,AI$22<=$E33)*IF(OR($F33="Straight-Line",$F33="Detail"),$I33/$ES33,FS33) -> 0 | AJ33: =AND(AJ$22>=$D33,AJ$22<=$E33)*IF(OR($F33="Straight-Line",$F33="Detail"),$I33/$ES33,FT33) -> 0 | AK33: =AND(AK$22>=$D33,AK$22<=$E33)*IF(OR($F33="Straight-Line",$F33="Detail"),$I33/$ES33,FU33) -> 0 | AL33: =AND(AL$22>=$D33,AL$22<=$E33)*IF(OR($F33="Straight-Line",$F33="Detail"),$I33/$ES33,FV33) -> 0 | AM33: =AND(AM$22>=$D33,AM$22<=$E33)*IF(OR($F33="Straight-Line",$F33="Detail"),$I33/$ES33,FW33) -> 0 | AN33: =AND(AN$22>=$D33,AN$22<=$E33)*IF(OR($F33="Straight-Line",$F33="Detail"),$I33/$ES33,FX33) -> 0 | AO33: =AND(AO$22>=$D33,AO$22<=$E33)*IF(OR($F33="Straight-Line",$F33="Detail"),$I33/$ES33,FY33) -> 0 | AP33: =AND(AP$22>=$D33,AP$22<=$E33)*IF(OR($F33="Straight-Line",$F33="Detail"),$I33/$ES33,FZ33) -> 0 | AQ33: =AND(AQ$22>=$D33,AQ$22<=$E33)*IF(OR($F33="Straight-Line",$F33="Detail"),$I33/$ES33,GA33) -> 0 | AR33: =AND(AR$22>=$D33,AR$22<=$E33)*IF(OR($F33="Straight-Line",$F33="Detail"),$I33/$ES33,GB33) -> 0 | AS33: =AND(AS$22>=$D33,AS$22<=$E33)*IF(OR($F33="Straight-Line",$F33="Detail"),$I33/$ES33,GC33) -> 0 | AT33: =AND(AT$22>=$D33,AT$22<=$E33)*IF(OR($F33="Straight-Line",$F33="Detail"),$I33/$ES33,GD33) -> 0 | AU33: =AND(AU$22>=$D33,AU$22<=$E33)*IF(OR($F33="Straight-Line",$F33="Detail"),$I33/$ES33,GE33) -> 0 | AV33: =AND(AV$22>=$D33,AV$22<=$E33)*IF(OR($F33="Straight-Line",$F33="Detail"),$I33/$ES33,GF33) -> 0 | AW33: =AND(AW$22>=$D33,AW$22<=$E33)*IF(OR($F33="Straight-Line",$F33="Detail"),$I33/$ES33,GG33) -> 0 | AX33: =AND(AX$22>=$D33,AX$22<=$E33)*IF(OR($F33="Straight-Line",$F33="Detail"),$I33/$ES33,GH33) -> 0 | AY33: =AND(AY$22>=$D33,AY$22<=$E33)*IF(OR($F33="Straight-Line",$F33="Detail"),$I33/$ES33,GI33) -> 0 | AZ33: =AND(AZ$22>=$D33,AZ$22<=$E33)*IF(OR($F33="Straight-Line",$F33="Detail"),$I33/$ES33,GJ33) -> 0 | BA33: =AND(BA$22>=$D33,BA$22<=$E33)*IF(OR($F33="Straight-Line",$F33="Detail"),$I33/$ES33,GK33) -> 0 | BB33: =AND(BB$22>=$D33,BB$22<=$E33)*IF(OR($F33="Straight-Line",$F33="Detail"),$I33/$ES33,GL33) -> 0 | BC33: =AND(BC$22>=$D33,BC$22<=$E33)*IF(OR($F33="Straight-Line",$F33="Detail"),$I33/$ES33,GM33) -> 0 | BD33: =AND(BD$22>=$D33,BD$22<=$E33)*IF(OR($F33="Straight-Line",$F33="Detail"),$I33/$ES33,GN33) -> 0 | BE33: =AND(BE$22>=$D33,BE$22<=$E33)*IF(OR($F33="Straight-Line",$F33="Detail"),$I33/$ES33,GO33) -> 0 | BF33: =AND(BF$22>=$D33,BF$22<=$E33)*IF(OR($F33="Straight-Line",$F33="Detail"),$I33/$ES33,GP33) -> 0 | BG33: =AND(BG$22>=$D33,BG$22<=$E33)*IF(OR($F33="Straight-Line",$F33="Detail"),$I33/$ES33,GQ33) -> 0 | BH33: =AND(BH$22>=$D33,BH$22<=$E33)*IF(OR($F33="Straight-Line",$F33="Detail"),$I33/$ES33,GR33) -> 0 | BI33: =AND(BI$22>=$D33,BI$22<=$E33)*IF(OR($F33="Straight-Line",$F33="Detail"),$I33/$ES33,GS33) -> 0 | BJ33: =AND(BJ$22>=$D33,BJ$22<=$E33)*IF(OR($F33="Straight-Line",$F33="Detail"),$I33/$ES33,GT33) -> 0 | BK33: =AND(BK$22>=$D33,BK$22<=$E33)*IF(OR($F33="Straight-Line",$F33="Detail"),$I33/$ES33,GU33) -> 0 | BL33: =AND(BL$22>=$D33,BL$22<=$E33)*IF(OR($F33="Straight-Line",$F33="Detail"),$I33/$ES33,GV33) -> 0 | BM33: =AND(BM$22>=$D33,BM$22<=$E33)*IF(OR($F33="Straight-Line",$F33="Detail"),$I33/$ES33,GW33) -> 0 | BN33: =AND(BN$22>=$D33,BN$22<=$E33)*IF(OR($F33="Straight-Line",$F33="Detail"),$I33/$ES33,GX33) -> 0 | BO33: =AND(BO$22>=$D33,BO$22<=$E33)*IF(OR($F33="Straight-Line",$F33="Detail"),$I33/$ES33,GY33) -> 0 | BP33: =AND(BP$22>=$D33,BP$22<=$E33)*IF(OR($F33="Straight-Line",$F33="Detail"),$I33/$ES33,GZ33) -> 0 | BQ33: =AND(BQ$22>=$D33,BQ$22<=$E33)*IF(OR($F33="Straight-Line",$F33="Detail"),$I33/$ES33,HA33) -> 0 | BR33: =AND(BR$22>=$D33,BR$22<=$E33)*IF(OR($F33="Straight-Line",$F33="Detail"),$I33/$ES33,HB33) -> 0 | BS33: =AND(BS$22>=$D33,BS$22<=$E33)*IF(OR($F33="Straight-Line",$F33="Detail"),$I33/$ES33,HC33) -> 0 | BT33: =AND(BT$22>=$D33,BT$22<=$E33)*IF(OR($F33="Straight-Line",$F33="Detail"),$I33/$ES33,HD33) -> 0 | BU33: =AND(BU$22>=$D33,BU$22<=$E33)*IF(OR($F33="Straight-Line",$F33="Detail"),$I33/$ES33,HE33) -> 0 | BV33: =AND(BV$22>=$D33,BV$22<=$E33)*IF(OR($F33="Straight-Line",$F33="Detail"),$I33/$ES33,HF33) -> 0 | BW33: =AND(BW$22>=$D33,BW$22<=$E33)*IF(OR($F33="Straight-Line",$F33="Detail"),$I33/$ES33,HG33) -> 0 | BX33: =AND(BX$22>=$D33,BX$22<=$E33)*IF(OR($F33="Straight-Line",$F33="Detail"),$I33/$ES33,HH33) -> 0 | BY33: =AND(BY$22>=$D33,BY$22<=$E33)*IF(OR($F33="Straight-Line",$F33="Detail"),$I33/$ES33,HI33) -> 0 | BZ33: =AND(BZ$22>=$D33,BZ$22<=$E33)*IF(OR($F33="Straight-Line",$F33="Detail"),$I33/$ES33,HJ33) -> 0 | CA33: =AND(CA$22>=$D33,CA$22<=$E33)*IF(OR($F33="Straight-Line",$F33="Detail"),$I33/$ES33,HK33) -> 0 | CB33: =AND(CB$22>=$D33,CB$22<=$E33)*IF(OR($F33="Straight-Line",$F33="Detail"),$I33/$ES33,HL33) -> 0 | CC33: =AND(CC$22>=$D33,CC$22<=$E33)*IF(OR($F33="Straight-Line",$F33="Detail"),$I33/$ES33,HM33) -> 0 | CD33: =AND(CD$22>=$D33,CD$22<=$E33)*IF(OR($F33="Straight-Line",$F33="Detail"),$I33/$ES33,HN33) -> 0 | CE33: =AND(CE$22>=$D33,CE$22<=$E33)*IF(OR($F33="Straight-Line",$F33="Detail"),$I33/$ES33,HO33) -> 0 | CF33: =AND(CF$22>=$D33,CF$22<=$E33)*IF(OR($F33="Straight-Line",$F33="Detail"),$I33/$ES33,HP33) -> 0 | CG33: =AND(CG$22>=$D33,CG$22<=$E33)*IF(OR($F33="Straight-Line",$F33="Detail"),$I33/$ES33,HQ33) -> 0 | CH33: =AND(CH$22>=$D33,CH$22<=$E33)*IF(OR($F33="Straight-Line",$F33="Detail"),$I33/$ES33,HR33) -> 0 | CI33: =AND(CI$22>=$D33,CI$22<=$E33)*IF(OR($F33="Straight-Line",$F33="Detail"),$I33/$ES33,HS33) -> 0 | CJ33: =AND(CJ$22>=$D33,CJ$22<=$E33)*IF(OR($F33="Straight-Line",$F33="Detail"),$I33/$ES33,HT33) -> 0 | CK33: =AND(CK$22>=$D33,CK$22<=$E33)*IF(OR($F33="Straight-Line",$F33="Detail"),$I33/$ES33,HU33) -> 0 | CL33: =AND(CL$22>=$D33,CL$22<=$E33)*IF(OR($F33="Straight-Line",$F33="Detail"),$I33/$ES33,HV33) -> 0 | CM33: =AND(CM$22>=$D33,CM$22<=$E33)*IF(OR($F33="Straight-Line",$F33="Detail"),$I33/$ES33,HW33) -> 0 | CN33: =AND(CN$22>=$D33,CN$22<=$E33)*IF(OR($F33="Straight-Line",$F33="Detail"),$I33/$ES33,HX33) -> 0 | CO33: =AND(CO$22>=$D33,CO$22<=$E33)*IF(OR($F33="Straight-Line",$F33="Detail"),$I33/$ES33,HY33) -> 0 | CP33: =AND(CP$22>=$D33,CP$22<=$E33)*IF(OR($F33="Straight-Line",$F33="Detail"),$I33/$ES33,HZ33) -> 0 | CQ33: =AND(CQ$22>=$D33,CQ$22<=$E33)*IF(OR($F33="Straight-Line",$F33="Detail"),$I33/$ES33,IA33) -> 0 | CR33: =AND(CR$22>=$D33,CR$22<=$E33)*IF(OR($F33="Straight-Line",$F33="Detail"),$I33/$ES33,IB33) -> 0 | CS33: =AND(CS$22>=$D33,CS$22<=$E33)*IF(OR($F33="Straight-Line",$F33="Detail"),$I33/$ES33,IC33) -> 0 | CT33: =AND(CT$22>=$D33,CT$22<=$E33)*IF(OR($F33="Straight-Line",$F33="Detail"),$I33/$ES33,ID33) -> 0 | CU33: =AND(CU$22>=$D33,CU$22<=$E33)*IF(OR($F33="Straight-Line",$F33="Detail"),$I33/$ES33,IE33) -> 0 | CV33: =AND(CV$22>=$D33,CV$22<=$E33)*IF(OR($F33="Straight-Line",$F33="Detail"),$I33/$ES33,IF33) -> 0 | CW33: =AND(CW$22>=$D33,CW$22<=$E33)*IF(OR($F33="Straight-Line",$F33="Detail"),$I33/$ES33,IG33) -> 0 | CX33: =AND(CX$22>=$D33,CX$22<=$E33)*IF(OR($F33="Straight-Line",$F33="Detail"),$I33/$ES33,IH33) -> 0 | CY33: =AND(CY$22>=$D33,CY$22<=$E33)*IF(OR($F33="Straight-Line",$F33="Detail"),$I33/$ES33,II33) -> 0 | CZ33: =AND(CZ$22>=$D33,CZ$22<=$E33)*IF(OR($F33="Straight-Line",$F33="Detail"),$I33/$ES33,IJ33) -> 0 | DA33: =AND(DA$22>=$D33,DA$22<=$E33)*IF(OR($F33="Straight-Line",$F33="Detail"),$I33/$ES33,IK33) -> 0 | DB33: =AND(DB$22>=$D33,DB$22<=$E33)*IF(OR($F33="Straight-Line",$F33="Detail"),$I33/$ES33,IL33) -> 0 | DC33: =AND(DC$22>=$D33,DC$22<=$E33)*IF(OR($F33="Straight-Line",$F33="Detail"),$I33/$ES33,IM33) -> 0 | DD33: =AND(DD$22>=$D33,DD$22<=$E33)*IF(OR($F33="Straight-Line",$F33="Detail"),$I33/$ES33,IN33) -> 0 | DE33: =AND(DE$22>=$D33,DE$22<=$E33)*IF(OR($F33="Straight-Line",$F33="Detail"),$I33/$ES33,IO33) -> 0 | DF33: =AND(DF$22>=$D33,DF$22<=$E33)*IF(OR($F33="Straight-Line",$F33="Detail"),$I33/$ES33,IP33) -> 0 | DG33: =AND(DG$22>=$D33,DG$22<=$E33)*IF(OR($F33="Straight-Line",$F33="Detail"),$I33/$ES33,IQ33) -> 0 | DH33: =AND(DH$22>=$D33,DH$22<=$E33)*IF(OR($F33="Straight-Line",$F33="Detail"),$I33/$ES33,IR33) -> 0 | DI33: =AND(DI$22>=$D33,DI$22<=$E33)*IF(OR($F33="Straight-Line",$F33="Detail"),$I33/$ES33,IS33) -> 0 | DJ33: =AND(DJ$22>=$D33,DJ$22<=$E33)*IF(OR($F33="Straight-Line",$F33="Detail"),$I33/$ES33,IT33) -> 0 | DK33: =AND(DK$22>=$D33,DK$22<=$E33)*IF(OR($F33="Straight-Line",$F33="Detail"),$I33/$ES33,IU33) -> 0 | DL33: =AND(DL$22>=$D33,DL$22<=$E33)*IF(OR($F33="Straight-Line",$F33="Detail"),$I33/$ES33,IV33) -> 0 | DM33: =AND(DM$22>=$D33,DM$22<=$E33)*IF(OR($F33="Straight-Line",$F33="Detail"),$I33/$ES33,IW33) -> 0 | DN33: =AND(DN$22>=$D33,DN$22<=$E33)*IF(OR($F33="Straight-Line",$F33="Detail"),$I33/$ES33,IX33) -> 0 | DO33: =AND(DO$22>=$D33,DO$22<=$E33)*IF(OR($F33="Straight-Line",$F33="Detail"),$I33/$ES33,IY33) -> 0 | DP33: =AND(DP$22>=$D33,DP$22<=$E33)*IF(OR($F33="Straight-Line",$F33="Detail"),$I33/$ES33,IZ33) -> 0 | DQ33: =AND(DQ$22>=$D33,DQ$22<=$E33)*IF(OR($F33="Straight-Line",$F33="Detail"),$I33/$ES33,JA33) -> 0 | DR33: =AND(DR$22>=$D33,DR$22<=$E33)*IF(OR($F33="Straight-Line",$F33="Detail"),$I33/$ES33,JB33) -> 0 | DS33: =AND(DS$22>=$D33,DS$22<=$E33)*IF(OR($F33="Straight-Line",$F33="Detail"),$I33/$ES33,JC33) -> 0 | DT33: =AND(DT$22>=$D33,DT$22<=$E33)*IF(OR($F33="Straight-Line",$F33="Detail"),$I33/$ES33,JD33) -> 0 | DU33: =AND(DU$22>=$D33,DU$22<=$E33)*IF(OR($F33="Straight-Line",$F33="Detail"),$I33/$ES33,JE33) -> 0 | DV33: =AND(DV$22>=$D33,DV$22<=$E33)*IF(OR($F33="Straight-Line",$F33="Detail"),$I33/$ES33,JF33) -> 0 | DW33: =AND(DW$22>=$D33,DW$22<=$E33)*IF(OR($F33="Straight-Line",$F33="Detail"),$I33/$ES33,JG33) -> 0 | DX33: =AND(DX$22>=$D33,DX$22<=$E33)*IF(OR($F33="Straight-Line",$F33="Detail"),$I33/$ES33,JH33) -> 0 | DY33: =AND(DY$22>=$D33,DY$22<=$E33)*IF(OR($F33="Straight-Line",$F33="Detail"),$I33/$ES33,JI33) -> 0 | DZ33: =AND(DZ$22>=$D33,DZ$22<=$E33)*IF(OR($F33="Straight-Line",$F33="Detail"),$I33/$ES33,JJ33) -> 0 | EA33: =AND(EA$22>=$D33,EA$22<=$E33)*IF(OR($F33="Straight-Line",$F33="Detail"),$I33/$ES33,JK33) -> 0 | EB33: =AND(EB$22>=$D33,EB$22<=$E33)*IF(OR($F33="Straight-Line",$F33="Detail"),$I33/$ES33,JL33) -> 0 | EC33: =AND(EC$22>=$D33,EC$22<=$E33)*IF(OR($F33="Straight-Line",$F33="Detail"),$I33/$ES33,JM33) -> 0 | ED33: =AND(ED$22>=$D33,ED$22<=$E33)*IF(OR($F33="Straight-Line",$F33="Detail"),$I33/$ES33,JN33) -> 0 | EE33: =AND(EE$22>=$D33,EE$22<=$E33)*IF(OR($F33="Straight-Line",$F33="Detail"),$I33/$ES33,JO33) -> 0 | EF33: =AND(EF$22>=$D33,EF$22<=$E33)*IF(OR($F33="Straight-Line",$F33="Detail"),$I33/$ES33,JP33) -> 0 | EG33: =AND(EG$22>=$D33,EG$22<=$E33)*IF(OR($F33="Straight-Line",$F33="Detail"),$I33/$ES33,JQ33) -> 0 | EH33: =AND(EH$22>=$D33,EH$22<=$E33)*IF(OR($F33="Straight-Line",$F33="Detail"),$I33/$ES33,JR33) -> 0 | EI33: =AND(EI$22>=$D33,EI$22<=$E33)*IF(OR($F33="Straight-Line",$F33="Detail"),$I33/$ES33,JS33) -> 0 | EJ33: =AND(EJ$22>=$D33,EJ$22<=$E33)*IF(OR($F33="Straight-Line",$F33="Detail"),$I33/$ES33,JT33) -> 0 | EK33: =AND(EK$22>=$D33,EK$22<=$E33)*IF(OR($F33="Straight-Line",$F33="Detail"),$I33/$ES33,JU33) -> 0 | EL33: =AND(EL$22>=$D33,EL$22<=$E33)*IF(OR($F33="Straight-Line",$F33="Detail"),$I33/$ES33,JV33) -> 0 | EM33: =AND(EM$22>=$D33,EM$22<=$E33)*IF(OR($F33="Straight-Line",$F33="Detail"),$I33/$ES33,JW33) -> 0 | EN33: =AND(EN$22>=$D33,EN$22<=$E33)*IF(OR($F33="Straight-Line",$F33="Detail"),$I33/$ES33,JX33) -> 0 | EP33: 0 | EQ33: 2026-01-31 | ER33: 2028-02-29 | ES33: 26 | ET33: Straight-Line | EU33: 4.333333333 | EV33: 0 | EW33: 0 | EX33: 0 | EY33: 0 | EZ33: 0 | FA33: 0 | FB33: 0 | FC33: 0 | FD33: 0 | FE33: 0 | FF33: 0 | FG33: 0 | FH33: 0 | FI33: 0 | FJ33: 0 | FK33: 0 | FL33: 0 | FM33: 0 | FN33: 0 | FO33: 0 | FP33: 0 | FQ33: 0 | FR33: 0 | FS33: 0 | FT33: 0 | FU33: 0 | FV33: 0 | FW33: 0 | FX33: 0 | FY33: 0 | FZ33: 0 | GA33: 0 | GB33: 0 | GC33: 0 | GD33: 0 | GE33: 0 | GF33: 0 | GG33: 0 | GH33: 0 | GI33: 0 | GJ33: 0 | GK33: 0 | GL33: 0 | GM33: 0 | GN33: 0 | GO33: 0 | GP33: 0 | GQ33: 0 | GR33: 0 | GS33: 0 | GT33: 0 | GU33: 0 | GV33: 0 | GW33: 0 | GX33: 0 | GY33: 0 | GZ33: 0 | HA33: 0 | HB33: 0 | HC33: 0 | HD33: 0 | HE33: 0 | HF33: 0 | HG33: 0 | HH33: 0 | HI33: 0 | HJ33: 0 | HK33: 0 | HL33: 0 | HM33: 0 | HN33: 0 | HO33: 0 | HP33: 0 | HQ33: 0 | HR33: 0 | HS33: 0 | HT33: 0 | HU33: 0 | HV33: 0 | HW33: 0 | HX33: 0 | HY33: 0 | HZ33: 0 | IA33: 0 | IB33: 0 | IC33: 0 | ID33: 0 | IE33: 0 | IF33: 0 | IG33: 0 | IH33: 0 | II33: 0 | IJ33: 0 | IK33: 0 | IL33: 0 | IM33: 0 | IN33: 0 | IO33: 0 | IP33: 0 | IQ33: 0 | IR33: 0 | IS33: 0 | IT33: 0 | IU33: 0 | IV33: 0 | IW33: 0 | IX33: 0 | IY33: 0 | IZ33: 0 | JA33: 0 | JB33: 0 | JC33: 0 | JD33: 0 | JE33: 0 | JF33: 0 | JG33: 0 | JH33: 0 | JI33: 0 | JJ33: 0 | JK33: 0 | JL33: 0 | JM33: 0 | JN33: 0 | JO33: 0 | JP33: 0 | JQ33: 0 | JR33: 0 | JS33: 0 | JT33: 0 | JU33: 0 | JV33: 0 | JW33: 0 | JX33: 0
B34: Equipment/Supplies | D34: 1 | E34: 26 | F34: Straight-Line | G34: 0 | H34: 0 | I34: 0 | L34: 0 | M34: 0 | N34: 0 | O34: 0 | P34: 0 | Q34: 0 | R34: 0 | S34: 0 | T34: 0 | U34: 0 | V34: 0 | W34: 0 | X34: 0 | Y34: 0 | Z34: 0 | AA34: 0 | AB34: 0 | AC34: 0 | AD34: 0 | AE34: 0 | AF34: 0 | AG34: 0 | AH34: 0 | AI34: 0 | AJ34: 0 | AK34: 0 | AL34: 0 | AM34: 0 | AN34: 0 | AO34: 0 | AP34: 0 | AQ34: 0 | AR34: 0 | AS34: 0 | AT34: 0 | AU34: 0 | AV34: 0 | AW34: 0 | AX34: 0 | AY34: 0 | AZ34: 0 | BA34: 0 | BB34: 0 | BC34: 0 | BD34: 0 | BE34: 0 | BF34: 0 | BG34: 0 | BH34: 0 | BI34: 0 | BJ34: 0 | BK34: 0 | BL34: 0 | BM34: 0 | BN34: 0 | BO34: 0 | BP34: 0 | BQ34: 0 | BR34: 0 | BS34: 0 | BT34: 0 | BU34: 0 | BV34: 0 | BW34: 0 | BX34: 0 | BY34: 0 | BZ34: 0 | CA34: 0 | CB34: 0 | CC34: 0 | CD34: 0 | CE34: 0 | CF34: 0 | CG34: 0 | CH34: 0 | CI34: 0 | CJ34: 0 | CK34: 0 | CL34: 0 | CM34: 0 | CN34: 0 | CO34: 0 | CP34: 0 | CQ34: 0 | CR34: 0 | CS34: 0 | CT34: 0 | CU34: 0 | CV34: 0 | CW34: 0 | CX34: 0 | CY34: 0 | CZ34: 0 | DA34: 0 | DB34: 0 | DC34: 0 | DD34: 0 | DE34: 0 | DF34: 0 | DG34: 0 | DH34: 0 | DI34: 0 | DJ34: 0 | DK34: 0 | DL34: 0 | DM34: 0 | DN34: 0 | DO34: 0 | DP34: 0 | DQ34: 0 | DR34: 0 | DS34: 0 | DT34: 0 | DU34: 0 | DV34: 0 | DW34: 0 | DX34: 0 | DY34: 0 | DZ34: 0 | EA34: 0 | EB34: 0 | EC34: 0 | ED34: 0 | EE34: 0 | EF34: 0 | EG34: 0 | EH34: 0 | EI34: 0 | EJ34: 0 | EK34: 0 | EL34: 0 | EM34: 0 | EN34: 0 | EP34: 0 | EQ34: 2026-01-31 | ER34: 2028-02-29 | ES34: 26 | ET34: Straight-Line | EU34: 4.333333333 | EV34: 0 | EW34: 0 | EX34: 0 | EY34: 0 | EZ34: 0 | FA34: 0 | FB34: 0 | FC34: 0 | FD34: 0 | FE34: 0 | FF34: 0 | FG34: 0 | FH34: 0 | FI34: 0 | FJ34: 0 | FK34: 0 | FL34: 0 | FM34: 0 | FN34: 0 | FO34: 0 | FP34: 0 | FQ34: 0 | FR34: 0 | FS34: 0 | FT34: 0 | FU34: 0 | FV34: 0 | FW34: 0 | FX34: 0 | FY34: 0 | FZ34: 0 | GA34: 0 | GB34: 0 | GC34: 0 | GD34: 0 | GE34: 0 | GF34: 0 | GG34: 0 | GH34: 0 | GI34: 0 | GJ34: 0 | GK34: 0 | GL34: 0 | GM34: 0 | GN34: 0 | GO34: 0 | GP34: 0 | GQ34: 0 | GR34: 0 | GS34: 0 | GT34: 0 | GU34: 0 | GV34: 0 | GW34: 0 | GX34: 0 | GY34: 0 | GZ34: 0 | HA34: 0 | HB34: 0 | HC34: 0 | HD34: 0 | HE34: 0 | HF34: 0 | HG34: 0 | HH34: 0 | HI34: 0 | HJ34: 0 | HK34: 0 | HL34: 0 | HM34: 0 | HN34: 0 | HO34: 0 | HP34: 0 | HQ34: 0 | HR34: 0 | HS34: 0 | HT34: 0 | HU34: 0 | HV34: 0 | HW34: 0 | HX34: 0 | HY34: 0 | HZ34: 0 | IA34: 0 | IB34: 0 | IC34: 0 | ID34: 0 | IE34: 0 | IF34: 0 | IG34: 0 | IH34: 0 | II34: 0 | IJ34: 0 | IK34: 0 | IL34: 0 | IM34: 0 | IN34: 0 | IO34: 0 | IP34: 0 | IQ34: 0 | IR34: 0 | IS34: 0 | IT34: 0 | IU34: 0 | IV34: 0 | IW34: 0 | IX34: 0 | IY34: 0 | IZ34: 0 | JA34: 0 | JB34: 0 | JC34: 0 | JD34: 0 | JE34: 0 | JF34: 0 | JG34: 0 | JH34: 0 | JI34: 0 | JJ34: 0 | JK34: 0 | JL34: 0 | JM34: 0 | JN34: 0 | JO34: 0 | JP34: 0 | JQ34: 0 | JR34: 0 | JS34: 0 | JT34: 0 | JU34: 0 | JV34: 0 | JW34: 0 | JX34: 0
B35: Security | D35: 1 | E35: 26 | F35: Straight-Line | G35: 0 | H35: 0 | I35: 0 | L35: 0 | M35: 0 | N35: 0 | O35: 0 | P35: 0 | Q35: 0 | R35: 0 | S35: 0 | T35: 0 | U35: 0 | V35: 0 | W35: 0 | X35: 0 | Y35: 0 | Z35: 0 | AA35: 0 | AB35: 0 | AC35: 0 | AD35: 0 | AE35: 0 | AF35: 0 | AG35: 0 | AH35: 0 | AI35: 0 | AJ35: 0 | AK35: 0 | AL35: 0 | AM35: 0 | AN35: 0 | AO35: 0 | AP35: 0 | AQ35: 0 | AR35: 0 | AS35: 0 | AT35: 0 | AU35: 0 | AV35: 0 | AW35: 0 | AX35: 0 | AY35: 0 | AZ35: 0 | BA35: 0 | BB35: 0 | BC35: 0 | BD35: 0 | BE35: 0 | BF35: 0 | BG35: 0 | BH35: 0 | BI35: 0 | BJ35: 0 | BK35: 0 | BL35: 0 | BM35: 0 | BN35: 0 | BO35: 0 | BP35: 0 | BQ35: 0 | BR35: 0 | BS35: 0 | BT35: 0 | BU35: 0 | BV35: 0 | BW35: 0 | BX35: 0 | BY35: 0 | BZ35: 0 | CA35: 0 | CB35: 0 | CC35: 0 | CD35: 0 | CE35: 0 | CF35: 0 | CG35: 0 | CH35: 0 | CI35: 0 | CJ35: 0 | CK35: 0 | CL35: 0 | CM35: 0 | CN35: 0 | CO35: 0 | CP35: 0 | CQ35: 0 | CR35: 0 | CS35: 0 | CT35: 0 | CU35: 0 | CV35: 0 | CW35: 0 | CX35: 0 | CY35: 0 | CZ35: 0 | DA35: 0 | DB35: 0 | DC35: 0 | DD35: 0 | DE35: 0 | DF35: 0 | DG35: 0 | DH35: 0 | DI35: 0 | DJ35: 0 | DK35: 0 | DL35: 0 | DM35: 0 | DN35: 0 | DO35: 0 | DP35: 0 | DQ35: 0 | DR35: 0 | DS35: 0 | DT35: 0 | DU35: 0 | DV35: 0 | DW35: 0 | DX35: 0 | DY35: 0 | DZ35: 0 | EA35: 0 | EB35: 0 | EC35: 0 | ED35: 0 | EE35: 0 | EF35: 0 | EG35: 0 | EH35: 0 | EI35: 0 | EJ35: 0 | EK35: 0 | EL35: 0 | EM35: 0 | EN35: 0 | EP35: 0 | EQ35: 2026-01-31 | ER35: 2028-02-29 | ES35: 26 | ET35: Straight-Line | EU35: 4.333333333 | EV35: 0 | EW35: 0 | EX35: 0 | EY35: 0 | EZ35: 0 | FA35: 0 | FB35: 0 | FC35: 0 | FD35: 0 | FE35: 0 | FF35: 0 | FG35: 0 | FH35: 0 | FI35: 0 | FJ35: 0 | FK35: 0 | FL35: 0 | FM35: 0 | FN35: 0 | FO35: 0 | FP35: 0 | FQ35: 0 | FR35: 0 | FS35: 0 | FT35: 0 | FU35: 0 | FV35: 0 | FW35: 0 | FX35: 0 | FY35: 0 | FZ35: 0 | GA35: 0 | GB35: 0 | GC35: 0 | GD35: 0 | GE35: 0 | GF35: 0 | GG35: 0 | GH35: 0 | GI35: 0 | GJ35: 0 | GK35: 0 | GL35: 0 | GM35: 0 | GN35: 0 | GO35: 0 | GP35: 0 | GQ35: 0 | GR35: 0 | GS35: 0 | GT35: 0 | GU35: 0 | GV35: 0 | GW35: 0 | GX35: 0 | GY35: 0 | GZ35: 0 | HA35: 0 | HB35: 0 | HC35: 0 | HD35: 0 | HE35: 0 | HF35: 0 | HG35: 0 | HH35: 0 | HI35: 0 | HJ35: 0 | HK35: 0 | HL35: 0 | HM35: 0 | HN35: 0 | HO35: 0 | HP35: 0 | HQ35: 0 | HR35: 0 | HS35: 0 | HT35: 0 | HU35: 0 | HV35: 0 | HW35: 0 | HX35: 0 | HY35: 0 | HZ35: 0 | IA35: 0 | IB35: 0 | IC35: 0 | ID35: 0 | IE35: 0 | IF35: 0 | IG35: 0 | IH35: 0 | II35: 0 | IJ35: 0 | IK35: 0 | IL35: 0 | IM35: 0 | IN35: 0 | IO35: 0 | IP35: 0 | IQ35: 0 | IR35: 0 | IS35: 0 | IT35: 0 | IU35: 0 | IV35: 0 | IW35: 0 | IX35: 0 | IY35: 0 | IZ35: 0 | JA35: 0 | JB35: 0 | JC35: 0 | JD35: 0 | JE35: 0 | JF35: 0 | JG35: 0 | JH35: 0 | JI35: 0 | JJ35: 0 | JK35: 0 | JL35: 0 | JM35: 0 | JN35: 0 | JO35: 0 | JP35: 0 | JQ35: 0 | JR35: 0 | JS35: 0 | JT35: 0 | JU35: 0 | JV35: 0 | JW35: 0 | JX35: 0
B36: Testing/Inspections/Surveyin g | D36: 1 | E36: 26 | F36: Straight-Line | G36: 0 | H36: 0 | I36: 0 | L36: 0 | M36: 0 | N36: 0 | O36: 0 | P36: 0 | Q36: 0 | R36: 0 | S36: 0 | T36: 0 | U36: 0 | V36: 0 | W36: 0 | X36: 0 | Y36: 0 | Z36: 0 | AA36: 0 | AB36: 0 | AC36: 0 | AD36: 0 | AE36: 0 | AF36: 0 | AG36: 0 | AH36: 0 | AI36: 0 | AJ36: 0 | AK36: 0 | AL36: 0 | AM36: 0 | AN36: 0 | AO36: 0 | AP36: 0 | AQ36: 0 | AR36: 0 | AS36: 0 | AT36: 0 | AU36: 0 | AV36: 0 | AW36: 0 | AX36: 0 | AY36: 0 | AZ36: 0 | BA36: 0 | BB36: 0 | BC36: 0 | BD36: 0 | BE36: 0 | BF36: 0 | BG36: 0 | BH36: 0 | BI36: 0 | BJ36: 0 | BK36: 0 | BL36: 0 | BM36: 0 | BN36: 0 | BO36: 0 | BP36: 0 | BQ36: 0 | BR36: 0 | BS36: 0 | BT36: 0 | BU36: 0 | BV36: 0 | BW36: 0 | BX36: 0 | BY36: 0 | BZ36: 0 | CA36: 0 | CB36: 0 | CC36: 0 | CD36: 0 | CE36: 0 | CF36: 0 | CG36: 0 | CH36: 0 | CI36: 0 | CJ36: 0 | CK36: 0 | CL36: 0 | CM36: 0 | CN36: 0 | CO36: 0 | CP36: 0 | CQ36: 0 | CR36: 0 | CS36: 0 | CT36: 0 | CU36: 0 | CV36: 0 | CW36: 0 | CX36: 0 | CY36: 0 | CZ36: 0 | DA36: 0 | DB36: 0 | DC36: 0 | DD36: 0 | DE36: 0 | DF36: 0 | DG36: 0 | DH36: 0 | DI36: 0 | DJ36: 0 | DK36: 0 | DL36: 0 | DM36: 0 | DN36: 0 | DO36: 0 | DP36: 0 | DQ36: 0 | DR36: 0 | DS36: 0 | DT36: 0 | DU36: 0 | DV36: 0 | DW36: 0 | DX36: 0 | DY36: 0 | DZ36: 0 | EA36: 0 | EB36: 0 | EC36: 0 | ED36: 0 | EE36: 0 | EF36: 0 | EG36: 0 | EH36: 0 | EI36: 0 | EJ36: 0 | EK36: 0 | EL36: 0 | EM36: 0 | EN36: 0 | EP36: 0 | EQ36: 2026-01-31 | ER36: 2028-02-29 | ES36: 26 | ET36: Straight-Line | EU36: 4.333333333 | EV36: 0 | EW36: 0 | EX36: 0 | EY36: 0 | EZ36: 0 | FA36: 0 | FB36: 0 | FC36: 0 | FD36: 0 | FE36: 0 | FF36: 0 | FG36: 0 | FH36: 0 | FI36: 0 | FJ36: 0 | FK36: 0 | FL36: 0 | FM36: 0 | FN36: 0 | FO36: 0 | FP36: 0 | FQ36: 0 | FR36: 0 | FS36: 0 | FT36: 0 | FU36: 0 | FV36: 0 | FW36: 0 | FX36: 0 | FY36: 0 | FZ36: 0 | GA36: 0 | GB36: 0 | GC36: 0 | GD36: 0 | GE36: 0 | GF36: 0 | GG36: 0 | GH36: 0 | GI36: 0 | GJ36: 0 | GK36: 0 | GL36: 0 | GM36: 0 | GN36: 0 | GO36: 0 | GP36: 0 | GQ36: 0 | GR36: 0 | GS36: 0 | GT36: 0 | GU36: 0 | GV36: 0 | GW36: 0 | GX36: 0 | GY36: 0 | GZ36: 0 | HA36: 0 | HB36: 0 | HC36: 0 | HD36: 0 | HE36: 0 | HF36: 0 | HG36: 0 | HH36: 0 | HI36: 0 | HJ36: 0 | HK36: 0 | HL36: 0 | HM36: 0 | HN36: 0 | HO36: 0 | HP36: 0 | HQ36: 0 | HR36: 0 | HS36: 0 | HT36: 0 | HU36: 0 | HV36: 0 | HW36: 0 | HX36: 0 | HY36: 0 | HZ36: 0 | IA36: 0 | IB36: 0 | IC36: 0 | ID36: 0 | IE36: 0 | IF36: 0 | IG36: 0 | IH36: 0 | II36: 0 | IJ36: 0 | IK36: 0 | IL36: 0 | IM36: 0 | IN36: 0 | IO36: 0 | IP36: 0 | IQ36: 0 | IR36: 0 | IS36: 0 | IT36: 0 | IU36: 0 | IV36: 0 | IW36: 0 | IX36: 0 | IY36: 0 | IZ36: 0 | JA36: 0 | JB36: 0 | JC36: 0 | JD36: 0 | JE36: 0 | JF36: 0 | JG36: 0 | JH36: 0 | JI36: 0 | JJ36: 0 | JK36: 0 | JL36: 0 | JM36: 0 | JN36: 0 | JO36: 0 | JP36: 0 | JQ36: 0 | JR36: 0 | JS36: 0 | JT36: 0 | JU36: 0 | JV36: 0 | JW36: 0 | JX36: 0
B37: Land Development - Onsite | D37: 1 | E37: 26 | F37: Detail | G37: 12.94109793 | H37: 11146.75 | I37: 4458700 | L37: 0 | M37: =$I$37*'HC Draw'!E85 -> 756712.7028 | N37: =$I$37*'HC Draw'!F85 -> 660781.2313 | O37: =$I$37*'HC Draw'!G85 -> 574983.5986 | P37: =$I$37*'HC Draw'!H85 -> 490965.9133 | Q37: =$I$37*'HC Draw'!I85 -> 450410.313 | R37: =$I$37*'HC Draw'!J85 -> 456899.2091 | S37: =$I$37*'HC Draw'!K85 -> 258536.0902 | T37: =$I$37*'HC Draw'!L85 -> 306783.1953 | U37: =$I$37*'HC Draw'!M85 -> 7180.320365 | V37: =$I$37*'HC Draw'!N85 -> 118020.7118 | W37: =$I$37*'HC Draw'!O85 -> 26635.42583 | X37: =$I$37*'HC Draw'!P85 -> 26635.42583 | Y37: =$I$37*'HC Draw'!Q85 -> 33908.39681 | Z37: =$I$37*'HC Draw'!R85 -> 26635.42583 | AA37: =$I$37*'HC Draw'!S85 -> 26635.42583 | AB37: =$I$37*'HC Draw'!T85 -> 26635.42583 | AC37: =$I$37*'HC Draw'!U85 -> 33908.39681 | AD37: =$I$37*'HC Draw'!V85 -> 26635.42583 | AE37: =$I$37*'HC Draw'!W85 -> 26635.42583 | AF37: =$I$37*'HC Draw'!X85 -> 26635.42583 | AG37: =$I$37*'HC Draw'!Y85 -> 26635.42583 | AH37: =$I$37*'HC Draw'!Z85 -> 33908.39681 | AI37: =$I$37*'HC Draw'!AA85 -> 26635.42583 | AJ37: =$I$37*'HC Draw'!AB85 -> 691.4243183 | AK37: =$I$37*'HC Draw'!AC85 -> 691.4243183 | AL37: =$I$37*'HC Draw'!AD85 -> 7964.395304 | AM37: 0 | AN37: 0 | AO37: 0 | AP37: 0 | AQ37: 0 | AR37: 0 | AS37: 0 | AT37: 0 | AU37: 0 | AV37: 0 | AW37: 0 | AX37: 0 | AY37: 0 | AZ37: 0 | BA37: 0 | BB37: 0 | BC37: 0 | BD37: 0 | BE37: 0 | BF37: 0 | BG37: 0 | BH37: 0 | BI37: 0 | BJ37: 0 | BK37: 0 | BL37: 0 | BM37: 0 | BN37: 0 | BO37: 0 | BP37: 0 | BQ37: 0 | BR37: 0 | BS37: 0 | BT37: 0 | BU37: 0 | BV37: 0 | BW37: 0 | BX37: 0 | BY37: 0 | BZ37: 0 | CA37: 0 | CB37: 0 | CC37: 0 | CD37: 0 | CE37: 0 | CF37: 0 | CG37: 0 | CH37: 0 | CI37: 0 | CJ37: 0 | CK37: 0 | CL37: 0 | CM37: 0 | CN37: 0 | CO37: 0 | CP37: 0 | CQ37: 0 | CR37: 0 | CS37: 0 | CT37: 0 | CU37: 0 | CV37: 0 | CW37: 0 | CX37: 0 | CY37: 0 | CZ37: 0 | DA37: 0 | DB37: 0 | DC37: 0 | DD37: 0 | DE37: 0 | DF37: 0 | DG37: 0 | DH37: 0 | DI37: 0 | DJ37: 0 | DK37: 0 | DL37: 0 | DM37: 0 | DN37: 0 | DO37: 0 | DP37: 0 | DQ37: 0 | DR37: 0 | DS37: 0 | DT37: 0 | DU37: 0 | DV37: 0 | DW37: 0 | DX37: 0 | DY37: 0 | DZ37: 0 | EA37: 0 | EB37: 0 | EC37: 0 | ED37: 0 | EE37: 0 | EF37: 0 | EG37: 0 | EH37: 0 | EI37: 0 | EJ37: 0 | EK37: 0 | EL37: 0 | EM37: 0 | EN37: 0 | EP37: 4458700 | EQ37: 2026-01-31 | ER37: 2028-02-29 | ES37: 26 | ET37: Detail | EU37: 4.333333333 | EV37: 0 | EW37: 0 | EX37: 0 | EY37: 0 | EZ37: 0 | FA37: 0 | FB37: 0 | FC37: 0 | FD37: 0 | FE37: 0 | FF37: 0 | FG37: 0 | FH37: 0 | FI37: 0 | FJ37: 0 | FK37: 0 | FL37: 0 | FM37: 0 | FN37: 0 | FO37: 0 | FP37: 0 | FQ37: 0 | FR37: 0 | FS37: 0 | FT37: 0 | FU37: 0 | FV37: 0 | FW37: 0 | FX37: 0 | FY37: 0 | FZ37: 0 | GA37: 0 | GB37: 0 | GC37: 0 | GD37: 0 | GE37: 0 | GF37: 0 | GG37: 0 | GH37: 0 | GI37: 0 | GJ37: 0 | GK37: 0 | GL37: 0 | GM37: 0 | GN37: 0 | GO37: 0 | GP37: 0 | GQ37: 0 | GR37: 0 | GS37: 0 | GT37: 0 | GU37: 0 | GV37: 0 | GW37: 0 | GX37: 0 | GY37: 0 | GZ37: 0 | HA37: 0 | HB37: 0 | HC37: 0 | HD37: 0 | HE37: 0 | HF37: 0 | HG37: 0 | HH37: 0 | HI37: 0 | HJ37: 0 | HK37: 0 | HL37: 0 | HM37: 0 | HN37: 0 | HO37: 0 | HP37: 0 | HQ37: 0 | HR37: 0 | HS37: 0 | HT37: 0 | HU37: 0 | HV37: 0 | HW37: 0 | HX37: 0 | HY37: 0 | HZ37: 0 | IA37: 0 | IB37: 0 | IC37: 0 | ID37: 0 | IE37: 0 | IF37: 0 | IG37: 0 | IH37: 0 | II37: 0 | IJ37: 0 | IK37: 0 | IL37: 0 | IM37: 0 | IN37: 0 | IO37: 0 | IP37: 0 | IQ37: 0 | IR37: 0 | IS37: 0 | IT37: 0 | IU37: 0 | IV37: 0 | IW37: 0 | IX37: 0 | IY37: 0 | IZ37: 0 | JA37: 0 | JB37: 0 | JC37: 0 | JD37: 0 | JE37: 0 | JF37: 0 | JG37: 0 | JH37: 0 | JI37: 0 | JJ37: 0 | JK37: 0 | JL37: 0 | JM37: 0 | JN37: 0 | JO37: 0 | JP37: 0 | JQ37: 0 | JR37: 0 | JS37: 0 | JT37: 0 | JU37: 0 | JV37: 0 | JW37: 0 | JX37: 0
B38: Foundations/Concrete | D38: 1 | E38: 26 | F38: Detail | G38: 7.318934341 | H38: 6304.1275 | I38: 2521651 | L38: 0 | M38: 0 | N38: 0 | O38: 0 | P38: =$I$38*'HC Draw'!H92 -> 148291.0429 | Q38: =$I$38*'HC Draw'!I92 -> 148291.0429 | R38: =$I$38*'HC Draw'!J92 -> 148291.0429 | S38: =$I$38*'HC Draw'!K92 -> 148291.0429 | T38: =$I$38*'HC Draw'!L92 -> 148291.0429 | U38: =$I$38*'HC Draw'!M92 -> 148291.0429 | V38: =$I$38*'HC Draw'!N92 -> 148291.0429 | W38: =$I$38*'HC Draw'!O92 -> 148291.0429 | X38: =$I$38*'HC Draw'!P92 -> 148291.0429 | Y38: =$I$38*'HC Draw'!Q92 -> 148291.0429 | Z38: =$I$38*'HC Draw'!R92 -> 148291.0429 | AA38: =$I$38*'HC Draw'!S92 -> 148291.0429 | AB38: =$I$38*'HC Draw'!T92 -> 148291.0429 | AC38: =$I$38*'HC Draw'!U92 -> 148291.0429 | AD38: =$I$38*'HC Draw'!V92 -> 148291.0429 | AE38: =$I$38*'HC Draw'!W92 -> 148291.0429 | AF38: =$I$38*'HC Draw'!X92 -> 148291.0429 | AG38: =$I$38*'HC Draw'!Y92 -> 703.3012139 | AM38: 0 | AN38: 0 | AO38: 0 | AP38: 0 | AQ38: 0 | AR38: 0 | AS38: 0 | AT38: 0 | AU38: 0 | AV38: 0 | AW38: 0 | AX38: 0 | AY38: 0 | AZ38: 0 | BA38: 0 | BB38: 0 | BC38: 0 | BD38: 0 | BE38: 0 | BF38: 0 | BG38: 0 | BH38: 0 | BI38: 0 | BJ38: 0 | BK38: 0 | BL38: 0 | BM38: 0 | BN38: 0 | BO38: 0 | BP38: 0 | BQ38: 0 | BR38: 0 | BS38: 0 | BT38: 0 | BU38: 0 | BV38: 0 | BW38: 0 | BX38: 0 | BY38: 0 | BZ38: 0 | CA38: 0 | CB38: 0 | CC38: 0 | CD38: 0 | CE38: 0 | CF38: 0 | CG38: 0 | CH38: 0 | CI38: 0 | CJ38: 0 | CK38: 0 | CL38: 0 | CM38: 0 | CN38: 0 | CO38: 0 | CP38: 0 | CQ38: 0 | CR38: 0 | CS38: 0 | CT38: 0 | CU38: 0 | CV38: 0 | CW38: 0 | CX38: 0 | CY38: 0 | CZ38: 0 | DA38: 0 | DB38: 0 | DC38: 0 | DD38: 0 | DE38: 0 | DF38: 0 | DG38: 0 | DH38: 0 | DI38: 0 | DJ38: 0 | DK38: 0 | DL38: 0 | DM38: 0 | DN38: 0 | DO38: 0 | DP38: 0 | DQ38: 0 | DR38: 0 | DS38: 0 | DT38: 0 | DU38: 0 | DV38: 0 | DW38: 0 | DX38: 0 | DY38: 0 | DZ38: 0 | EA38: 0 | EB38: 0 | EC38: 0 | ED38: 0 | EE38: 0 | EF38: 0 | EG38: 0 | EH38: 0 | EI38: 0 | EJ38: 0 | EK38: 0 | EL38: 0 | EM38: 0 | EN38: 0 | EP38: 2521651 | EQ38: 2026-01-31 | ER38: 2028-02-29 | ES38: 26 | ET38: Detail | EU38: 4.333333333 | EV38: 0 | EW38: 0 | EX38: 0 | EY38: 0 | EZ38: 0 | FA38: 0 | FB38: 0 | FC38: 0 | FD38: 0 | FE38: 0 | FF38: 0 | FG38: 0 | FH38: 0 | FI38: 0 | FJ38: 0 | FK38: 0 | FL38: 0 | FM38: 0 | FN38: 0 | FO38: 0 | FP38: 0 | FQ38: 0 | FR38: 0 | FS38: 0 | FT38: 0 | FU38: 0 | FV38: 0 | FW38: 0 | FX38: 0 | FY38: 0 | FZ38: 0 | GA38: 0 | GB38: 0 | GC38: 0 | GD38: 0 | GE38: 0 | GF38: 0 | GG38: 0 | GH38: 0 | GI38: 0 | GJ38: 0 | GK38: 0 | GL38: 0 | GM38: 0 | GN38: 0 | GO38: 0 | GP38: 0 | GQ38: 0 | GR38: 0 | GS38: 0 | GT38: 0 | GU38: 0 | GV38: 0 | GW38: 0 | GX38: 0 | GY38: 0 | GZ38: 0 | HA38: 0 | HB38: 0 | HC38: 0 | HD38: 0 | HE38: 0 | HF38: 0 | HG38: 0 | HH38: 0 | HI38: 0 | HJ38: 0 | HK38: 0 | HL38: 0 | HM38: 0 | HN38: 0 | HO38: 0 | HP38: 0 | HQ38: 0 | HR38: 0 | HS38: 0 | HT38: 0 | HU38: 0 | HV38: 0 | HW38: 0 | HX38: 0 | HY38: 0 | HZ38: 0 | IA38: 0 | IB38: 0 | IC38: 0 | ID38: 0 | IE38: 0 | IF38: 0 | IG38: 0 | IH38: 0 | II38: 0 | IJ38: 0 | IK38: 0 | IL38: 0 | IM38: 0 | IN38: 0 | IO38: 0 | IP38: 0 | IQ38: 0 | IR38: 0 | IS38: 0 | IT38: 0 | IU38: 0 | IV38: 0 | IW38: 0 | IX38: 0 | IY38: 0 | IZ38: 0 | JA38: 0 | JB38: 0 | JC38: 0 | JD38: 0 | JE38: 0 | JF38: 0 | JG38: 0 | JH38: 0 | JI38: 0 | JJ38: 0 | JK38: 0 | JL38: 0 | JM38: 0 | JN38: 0 | JO38: 0 | JP38: 0 | JQ38: 0 | JR38: 0 | JS38: 0 | JT38: 0 | JU38: 0 | JV38: 0 | JW38: 0 | JX38: 0
B39: Miscellaneous Steel | D39: 1 | E39: 26 | F39: Detail | G39: 5.490622225 | H39: 4729.32 | I39: 1891728 | L39: 0 | M39: =$I$39*'HC Draw'!E114 -> 0 | N39: =$I$39*'HC Draw'!F114 -> 0 | O39: =$I$39*'HC Draw'!G114 -> 0 | P39: =$I$39*'HC Draw'!H114 -> 0 | Q39: =$I$39*'HC Draw'!I114 -> 0 | R39: =$I$39*'HC Draw'!J114 -> 76156.12603 | S39: =$I$39*'HC Draw'!K114 -> 76156.12603 | T39: =$I$39*'HC Draw'!L114 -> 96113.6069 | U39: =$I$39*'HC Draw'!M114 -> 96113.6069 | V39: =$I$39*'HC Draw'!N114 -> 96113.6069 | W39: =$I$39*'HC Draw'!O114 -> 172972.3775 | X39: =$I$39*'HC Draw'!P114 -> 190174.9425 | Y39: =$I$39*'HC Draw'!Q114 -> 168167.423 | Z39: =$I$39*'HC Draw'!R114 -> 168167.423 | AA39: =$I$39*'HC Draw'!S114 -> 132361.3074 | AB39: =$I$39*'HC Draw'!T114 -> 132361.3074 | AC39: =$I$39*'HC Draw'!U114 -> 132361.3074 | AD39: =$I$39*'HC Draw'!V114 -> 66677.67309 | AE39: =$I$39*'HC Draw'!W114 -> 66677.67309 | AF39: =$I$39*'HC Draw'!X114 -> 56205.19088 | AG39: =$I$39*'HC Draw'!Y114 -> 56205.19088 | AH39: =$I$39*'HC Draw'!Z114 -> 36247.70051 | AI39: =$I$39*'HC Draw'!AA114 -> 36247.70051 | AJ39: =$I$39*'HC Draw'!AB114 -> 36247.70051 | AK39: =$I$39*'HC Draw'!AC114 -> 0 | AL39: =$I$39*'HC Draw'!AD114 -> 0 | AM39: 0 | AN39: 0 | AO39: 0 | AP39: 0 | AQ39: 0 | AR39: 0 | AS39: 0 | AT39: 0 | AU39: 0 | AV39: 0 | AW39: 0 | AX39: 0 | AY39: 0 | AZ39: 0 | BA39: 0 | BB39: 0 | BC39: 0 | BD39: 0 | BE39: 0 | BF39: 0 | BG39: 0 | BH39: 0 | BI39: 0 | BJ39: 0 | BK39: 0 | BL39: 0 | BM39: 0 | BN39: 0 | BO39: 0 | BP39: 0 | BQ39: 0 | BR39: 0 | BS39: 0 | BT39: 0 | BU39: 0 | BV39: 0 | BW39: 0 | BX39: 0 | BY39: 0 | BZ39: 0 | CA39: 0 | CB39: 0 | CC39: 0 | CD39: 0 | CE39: 0 | CF39: 0 | CG39: 0 | CH39: 0 | CI39: 0 | CJ39: 0 | CK39: 0 | CL39: 0 | CM39: 0 | CN39: 0 | CO39: 0 | CP39: 0 | CQ39: 0 | CR39: 0 | CS39: 0 | CT39: 0 | CU39: 0 | CV39: 0 | CW39: 0 | CX39: 0 | CY39: 0 | CZ39: 0 | DA39: 0 | DB39: 0 | DC39: 0 | DD39: 0 | DE39: 0 | DF39: 0 | DG39: 0 | DH39: 0 | DI39: 0 | DJ39: 0 | DK39: 0 | DL39: 0 | DM39: 0 | DN39: 0 | DO39: 0 | DP39: 0 | DQ39: 0 | DR39: 0 | DS39: 0 | DT39: 0 | DU39: 0 | DV39: 0 | DW39: 0 | DX39: 0 | DY39: 0 | DZ39: 0 | EA39: 0 | EB39: 0 | EC39: 0 | ED39: 0 | EE39: 0 | EF39: 0 | EG39: 0 | EH39: 0 | EI39: 0 | EJ39: 0 | EK39: 0 | EL39: 0 | EM39: 0 | EN39: 0 | EP39: 1891728 | EQ39: 2026-01-31 | ER39: 2028-02-29 | ES39: 26 | ET39: Detail | EU39: 4.333333333 | EV39: 0 | EW39: 0 | EX39: 0 | EY39: 0 | EZ39: 0 | FA39: 0 | FB39: 0 | FC39: 0 | FD39: 0 | FE39: 0 | FF39: 0 | FG39: 0 | FH39: 0 | FI39: 0 | FJ39: 0 | FK39: 0 | FL39: 0 | FM39: 0 | FN39: 0 | FO39: 0 | FP39: 0 | FQ39: 0 | FR39: 0 | FS39: 0 | FT39: 0 | FU39: 0 | FV39: 0 | FW39: 0 | FX39: 0 | FY39: 0 | FZ39: 0 | GA39: 0 | GB39: 0 | GC39: 0 | GD39: 0 | GE39: 0 | GF39: 0 | GG39: 0 | GH39: 0 | GI39: 0 | GJ39: 0 | GK39: 0 | GL39: 0 | GM39: 0 | GN39: 0 | GO39: 0 | GP39: 0 | GQ39: 0 | GR39: 0 | GS39: 0 | GT39: 0 | GU39: 0 | GV39: 0 | GW39: 0 | GX39: 0 | GY39: 0 | GZ39: 0 | HA39: 0 | HB39: 0 | HC39: 0 | HD39: 0 | HE39: 0 | HF39: 0 | HG39: 0 | HH39: 0 | HI39: 0 | HJ39: 0 | HK39: 0 | HL39: 0 | HM39: 0 | HN39: 0 | HO39: 0 | HP39: 0 | HQ39: 0 | HR39: 0 | HS39: 0 | HT39: 0 | HU39: 0 | HV39: 0 | HW39: 0 | HX39: 0 | HY39: 0 | HZ39: 0 | IA39: 0 | IB39: 0 | IC39: 0 | ID39: 0 | IE39: 0 | IF39: 0 | IG39: 0 | IH39: 0 | II39: 0 | IJ39: 0 | IK39: 0 | IL39: 0 | IM39: 0 | IN39: 0 | IO39: 0 | IP39: 0 | IQ39: 0 | IR39: 0 | IS39: 0 | IT39: 0 | IU39: 0 | IV39: 0 | IW39: 0 | IX39: 0 | IY39: 0 | IZ39: 0 | JA39: 0 | JB39: 0 | JC39: 0 | JD39: 0 | JE39: 0 | JF39: 0 | JG39: 0 | JH39: 0 | JI39: 0 | JJ39: 0 | JK39: 0 | JL39: 0 | JM39: 0 | JN39: 0 | JO39: 0 | JP39: 0 | JQ39: 0 | JR39: 0 | JS39: 0 | JT39: 0 | JU39: 0 | JV39: 0 | JW39: 0 | JX39: 0
B40: Framing/Carpentry | D40: 1 | E40: 26 | F40: Detail | G40: 25.68209312 | H40: 22121.1425 | I40: 8848457 | L40: 0 | M40: =$I$40*'HC Draw'!E123 -> 0 | N40: =$I$40*'HC Draw'!F123 -> 0 | O40: =$I$40*'HC Draw'!G123 -> 0 | P40: =$I$40*'HC Draw'!H123 -> 533523.8221 | Q40: =$I$40*'HC Draw'!I123 -> 2020836.656 | R40: =$I$40*'HC Draw'!J123 -> 267124.0039 | S40: =$I$40*'HC Draw'!K123 -> 267124.0039 | T40: =$I$40*'HC Draw'!L123 -> 1143980.33 | U40: =$I$40*'HC Draw'!M123 -> 267124.0039 | V40: =$I$40*'HC Draw'!N123 -> 533523.8221 | W40: =$I$40*'HC Draw'!O123 -> 267124.0039 | X40: =$I$40*'HC Draw'!P123 -> 1143980.33 | Y40: =$I$40*'HC Draw'!Q123 -> 267124.0039 | Z40: =$I$40*'HC Draw'!R123 -> 267124.0039 | AA40: =$I$40*'HC Draw'!S123 -> 267124.0039 | AB40: =$I$40*'HC Draw'!T123 -> 267124.0039 | AC40: =$I$40*'HC Draw'!U123 -> 267124.0039 | AD40: =$I$40*'HC Draw'!V123 -> 267124.0039 | AE40: =$I$40*'HC Draw'!W123 -> 267124.0039 | AF40: =$I$40*'HC Draw'!X123 -> 267124.0039 | AG40: =$I$40*'HC Draw'!Y123 -> 267124.0039 | AH40: =$I$40*'HC Draw'!Z123 -> 0 | AI40: =$I$40*'HC Draw'!AA123 -> 0 | AJ40: =$I$40*'HC Draw'!AB123 -> 0 | AK40: =$I$40*'HC Draw'!AC123 -> 0 | AL40: =$I$40*'HC Draw'!AD123 -> 0 | AM40: 0 | AN40: 0 | AO40: 0 | AP40: 0 | AQ40: 0 | AR40: 0 | AS40: 0 | AT40: 0 | AU40: 0 | AV40: 0 | AW40: 0 | AX40: 0 | AY40: 0 | AZ40: 0 | BA40: 0 | BB40: 0 | BC40: 0 | BD40: 0 | BE40: 0 | BF40: 0 | BG40: 0 | BH40: 0 | BI40: 0 | BJ40: 0 | BK40: 0 | BL40: 0 | BM40: 0 | BN40: 0 | BO40: 0 | BP40: 0 | BQ40: 0 | BR40: 0 | BS40: 0 | BT40: 0 | BU40: 0 | BV40: 0 | BW40: 0 | BX40: 0 | BY40: 0 | BZ40: 0 | CA40: 0 | CB40: 0 | CC40: 0 | CD40: 0 | CE40: 0 | CF40: 0 | CG40: 0 | CH40: 0 | CI40: 0 | CJ40: 0 | CK40: 0 | CL40: 0 | CM40: 0 | CN40: 0 | CO40: 0 | CP40: 0 | CQ40: 0 | CR40: 0 | CS40: 0 | CT40: 0 | CU40: 0 | CV40: 0 | CW40: 0 | CX40: 0 | CY40: 0 | CZ40: 0 | DA40: 0 | DB40: 0 | DC40: 0 | DD40: 0 | DE40: 0 | DF40: 0 | DG40: 0 | DH40: 0 | DI40: 0 | DJ40: 0 | DK40: 0 | DL40: 0 | DM40: 0 | DN40: 0 | DO40: 0 | DP40: 0 | DQ40: 0 | DR40: 0 | DS40: 0 | DT40: 0 | DU40: 0 | DV40: 0 | DW40: 0 | DX40: 0 | DY40: 0 | DZ40: 0 | EA40: 0 | EB40: 0 | EC40: 0 | ED40: 0 | EE40: 0 | EF40: 0 | EG40: 0 | EH40: 0 | EI40: 0 | EJ40: 0 | EK40: 0 | EL40: 0 | EM40: 0 | EN40: 0 | EP40: 8848457 | EQ40: 2026-01-31 | ER40: 2028-02-29 | ES40: 26 | ET40: Detail | EU40: 4.333333333 | EV40: 0 | EW40: 0 | EX40: 0 | EY40: 0 | EZ40: 0 | FA40: 0 | FB40: 0 | FC40: 0 | FD40: 0 | FE40: 0 | FF40: 0 | FG40: 0 | FH40: 0 | FI40: 0 | FJ40: 0 | FK40: 0 | FL40: 0 | FM40: 0 | FN40: 0 | FO40: 0 | FP40: 0 | FQ40: 0 | FR40: 0 | FS40: 0 | FT40: 0 | FU40: 0 | FV40: 0 | FW40: 0 | FX40: 0 | FY40: 0 | FZ40: 0 | GA40: 0 | GB40: 0 | GC40: 0 | GD40: 0 | GE40: 0 | GF40: 0 | GG40: 0 | GH40: 0 | GI40: 0 | GJ40: 0 | GK40: 0 | GL40: 0 | GM40: 0 | GN40: 0 | GO40: 0 | GP40: 0 | GQ40: 0 | GR40: 0 | GS40: 0 | GT40: 0 | GU40: 0 | GV40: 0 | GW40: 0 | GX40: 0 | GY40: 0 | GZ40: 0 | HA40: 0 | HB40: 0 | HC40: 0 | HD40: 0 | HE40: 0 | HF40: 0 | HG40: 0 | HH40: 0 | HI40: 0 | HJ40: 0 | HK40: 0 | HL40: 0 | HM40: 0 | HN40: 0 | HO40: 0 | HP40: 0 | HQ40: 0 | HR40: 0 | HS40: 0 | HT40: 0 | HU40: 0 | HV40: 0 | HW40: 0 | HX40: 0 | HY40: 0 | HZ40: 0 | IA40: 0 | IB40: 0 | IC40: 0 | ID40: 0 | IE40: 0 | IF40: 0 | IG40: 0 | IH40: 0 | II40: 0 | IJ40: 0 | IK40: 0 | IL40: 0 | IM40: 0 | IN40: 0 | IO40: 0 | IP40: 0 | IQ40: 0 | IR40: 0 | IS40: 0 | IT40: 0 | IU40: 0 | IV40: 0 | IW40: 0 | IX40: 0 | IY40: 0 | IZ40: 0 | JA40: 0 | JB40: 0 | JC40: 0 | JD40: 0 | JE40: 0 | JF40: 0 | JG40: 0 | JH40: 0 | JI40: 0 | JJ40: 0 | JK40: 0 | JL40: 0 | JM40: 0 | JN40: 0 | JO40: 0 | JP40: 0 | JQ40: 0 | JR40: 0 | JS40: 0 | JT40: 0 | JU40: 0 | JV40: 0 | JW40: 0 | JX40: 0
B41: Roofing/Metal Panels | D41: 1 | E41: 26 | F41: Detail | G41: 4.720869686 | H41: 4066.2975 | I41: 1626519 | L41: 0 | M41: =$I$41*'HC Draw'!E128 -> 0 | N41: =$I$41*'HC Draw'!F128 -> 0 | O41: =$I$41*'HC Draw'!G128 -> 0 | P41: =$I$41*'HC Draw'!H128 -> 0 | Q41: =$I$41*'HC Draw'!I128 -> 0 | R41: =$I$41*'HC Draw'!J128 -> 90362.17195 | S41: =$I$41*'HC Draw'!K128 -> 90362.17195 | T41: =$I$41*'HC Draw'!L128 -> 90362.17195 | U41: =$I$41*'HC Draw'!M128 -> 90362.17195 | V41: =$I$41*'HC Draw'!N128 -> 90362.17195 | W41: =$I$41*'HC Draw'!O128 -> 90362.17195 | X41: =$I$41*'HC Draw'!P128 -> 90362.17195 | Y41: =$I$41*'HC Draw'!Q128 -> 90362.17195 | Z41: =$I$41*'HC Draw'!R128 -> 90362.17195 | AA41: =$I$41*'HC Draw'!S128 -> 90362.17195 | AB41: =$I$41*'HC Draw'!T128 -> 90362.17195 | AC41: =$I$41*'HC Draw'!U128 -> 90362.17195 | AD41: =$I$41*'HC Draw'!V128 -> 90362.17195 | AE41: =$I$41*'HC Draw'!W128 -> 90362.17195 | AF41: =$I$41*'HC Draw'!X128 -> 90362.17195 | AG41: =$I$41*'HC Draw'!Y128 -> 90362.17195 | AH41: =$I$41*'HC Draw'!Z128 -> 90362.17195 | AI41: =$I$41*'HC Draw'!AA128 -> 90362.17195 | AJ41: =$I$41*'HC Draw'!AB128 -> 0 | AK41: =$I$41*'HC Draw'!AC128 -> 0 | AL41: =$I$41*'HC Draw'!AD128 -> 0 | AM41: 0 | AN41: 0 | AO41: 0 | AP41: 0 | AQ41: 0 | AR41: 0 | AS41: 0 | AT41: 0 | AU41: 0 | AV41: 0 | AW41: 0 | AX41: 0 | AY41: 0 | AZ41: 0 | BA41: 0 | BB41: 0 | BC41: 0 | BD41: 0 | BE41: 0 | BF41: 0 | BG41: 0 | BH41: 0 | BI41: 0 | BJ41: 0 | BK41: 0 | BL41: 0 | BM41: 0 | BN41: 0 | BO41: 0 | BP41: 0 | BQ41: 0 | BR41: 0 | BS41: 0 | BT41: 0 | BU41: 0 | BV41: 0 | BW41: 0 | BX41: 0 | BY41: 0 | BZ41: 0 | CA41: 0 | CB41: 0 | CC41: 0 | CD41: 0 | CE41: 0 | CF41: 0 | CG41: 0 | CH41: 0 | CI41: 0 | CJ41: 0 | CK41: 0 | CL41: 0 | CM41: 0 | CN41: 0 | CO41: 0 | CP41: 0 | CQ41: 0 | CR41: 0 | CS41: 0 | CT41: 0 | CU41: 0 | CV41: 0 | CW41: 0 | CX41: 0 | CY41: 0 | CZ41: 0 | DA41: 0 | DB41: 0 | DC41: 0 | DD41: 0 | DE41: 0 | DF41: 0 | DG41: 0 | DH41: 0 | DI41: 0 | DJ41: 0 | DK41: 0 | DL41: 0 | DM41: 0 | DN41: 0 | DO41: 0 | DP41: 0 | DQ41: 0 | DR41: 0 | DS41: 0 | DT41: 0 | DU41: 0 | DV41: 0 | DW41: 0 | DX41: 0 | DY41: 0 | DZ41: 0 | EA41: 0 | EB41: 0 | EC41: 0 | ED41: 0 | EE41: 0 | EF41: 0 | EG41: 0 | EH41: 0 | EI41: 0 | EJ41: 0 | EK41: 0 | EL41: 0 | EM41: 0 | EN41: 0 | EP41: 1626519 | EQ41: 2026-01-31 | ER41: 2028-02-29 | ES41: 26 | ET41: Detail | EU41: 4.333333333 | EV41: 0 | EW41: 0 | EX41: 0 | EY41: 0 | EZ41: 0 | FA41: 0 | FB41: 0 | FC41: 0 | FD41: 0 | FE41: 0 | FF41: 0 | FG41: 0 | FH41: 0 | FI41: 0 | FJ41: 0 | FK41: 0 | FL41: 0 | FM41: 0 | FN41: 0 | FO41: 0 | FP41: 0 | FQ41: 0 | FR41: 0 | FS41: 0 | FT41: 0 | FU41: 0 | FV41: 0 | FW41: 0 | FX41: 0 | FY41: 0 | FZ41: 0 | GA41: 0 | GB41: 0 | GC41: 0 | GD41: 0 | GE41: 0 | GF41: 0 | GG41: 0 | GH41: 0 | GI41: 0 | GJ41: 0 | GK41: 0 | GL41: 0 | GM41: 0 | GN41: 0 | GO41: 0 | GP41: 0 | GQ41: 0 | GR41: 0 | GS41: 0 | GT41: 0 | GU41: 0 | GV41: 0 | GW41: 0 | GX41: 0 | GY41: 0 | GZ41: 0 | HA41: 0 | HB41: 0 | HC41: 0 | HD41: 0 | HE41: 0 | HF41: 0 | HG41: 0 | HH41: 0 | HI41: 0 | HJ41: 0 | HK41: 0 | HL41: 0 | HM41: 0 | HN41: 0 | HO41: 0 | HP41: 0 | HQ41: 0 | HR41: 0 | HS41: 0 | HT41: 0 | HU41: 0 | HV41: 0 | HW41: 0 | HX41: 0 | HY41: 0 | HZ41: 0 | IA41: 0 | IB41: 0 | IC41: 0 | ID41: 0 | IE41: 0 | IF41: 0 | IG41: 0 | IH41: 0 | II41: 0 | IJ41: 0 | IK41: 0 | IL41: 0 | IM41: 0 | IN41: 0 | IO41: 0 | IP41: 0 | IQ41: 0 | IR41: 0 | IS41: 0 | IT41: 0 | IU41: 0 | IV41: 0 | IW41: 0 | IX41: 0 | IY41: 0 | IZ41: 0 | JA41: 0 | JB41: 0 | JC41: 0 | JD41: 0 | JE41: 0 | JF41: 0 | JG41: 0 | JH41: 0 | JI41: 0 | JJ41: 0 | JK41: 0 | JL41: 0 | JM41: 0 | JN41: 0 | JO41: 0 | JP41: 0 | JQ41: 0 | JR41: 0 | JS41: 0 | JT41: 0 | JU41: 0 | JV41: 0 | JW41: 0 | JX41: 0
B42: Windows & Glass, Doors | D42: 1 | E42: 26 | F42: Detail | G42: 6.443425689 | H42: 5550.0125 | I42: 2220005 | L42: 0 | M42: =$I$42*'HC Draw'!E134 -> 0 | N42: =$I$42*'HC Draw'!F134 -> 0 | O42: =$I$42*'HC Draw'!G134 -> 0 | P42: =$I$42*'HC Draw'!H134 -> 0 | Q42: =$I$42*'HC Draw'!I134 -> 0 | R42: =$I$42*'HC Draw'!J134 -> 103118.9923 | S42: =$I$42*'HC Draw'!K134 -> 103118.9923 | T42: =$I$42*'HC Draw'!L134 -> 406290.1591 | U42: =$I$42*'HC Draw'!M134 -> 103118.9923 | V42: =$I$42*'HC Draw'!N134 -> 103118.9923 | W42: =$I$42*'HC Draw'!O134 -> 103118.9923 | X42: =$I$42*'HC Draw'!P134 -> 103118.9923 | Y42: =$I$42*'HC Draw'!Q134 -> 103118.9923 | Z42: =$I$42*'HC Draw'!R134 -> 103118.9923 | AA42: =$I$42*'HC Draw'!S134 -> 103118.9923 | AB42: =$I$42*'HC Draw'!T134 -> 103118.9923 | AC42: =$I$42*'HC Draw'!U134 -> 103118.9923 | AD42: =$I$42*'HC Draw'!V134 -> 103118.9923 | AE42: =$I$42*'HC Draw'!W134 -> 103118.9923 | AF42: =$I$42*'HC Draw'!X134 -> 103118.9923 | AG42: =$I$42*'HC Draw'!Y134 -> 103118.9923 | AH42: =$I$42*'HC Draw'!Z134 -> 103118.9923 | AI42: =$I$42*'HC Draw'!AA134 -> 163810.8846 | AJ42: =$I$42*'HC Draw'!AB134 -> 0 | AK42: =$I$42*'HC Draw'!AC134 -> 0 | AL42: =$I$42*'HC Draw'!AD134 -> 0 | AM42: 0 | AN42: 0 | AO42: 0 | AP42: 0 | AQ42: 0 | AR42: 0 | AS42: 0 | AT42: 0 | AU42: 0 | AV42: 0 | AW42: 0 | AX42: 0 | AY42: 0 | AZ42: 0 | BA42: 0 | BB42: 0 | BC42: 0 | BD42: 0 | BE42: 0 | BF42: 0 | BG42: 0 | BH42: 0 | BI42: 0 | BJ42: 0 | BK42: 0 | BL42: 0 | BM42: 0 | BN42: 0 | BO42: 0 | BP42: 0 | BQ42: 0 | BR42: 0 | BS42: 0 | BT42: 0 | BU42: 0 | BV42: 0 | BW42: 0 | BX42: 0 | BY42: 0 | BZ42: 0 | CA42: 0 | CB42: 0 | CC42: 0 | CD42: 0 | CE42: 0 | CF42: 0 | CG42: 0 | CH42: 0 | CI42: 0 | CJ42: 0 | CK42: 0 | CL42: 0 | CM42: 0 | CN42: 0 | CO42: 0 | CP42: 0 | CQ42: 0 | CR42: 0 | CS42: 0 | CT42: 0 | CU42: 0 | CV42: 0 | CW42: 0 | CX42: 0 | CY42: 0 | CZ42: 0 | DA42: 0 | DB42: 0 | DC42: 0 | DD42: 0 | DE42: 0 | DF42: 0 | DG42: 0 | DH42: 0 | DI42: 0 | DJ42: 0 | DK42: 0 | DL42: 0 | DM42: 0 | DN42: 0 | DO42: 0 | DP42: 0 | DQ42: 0 | DR42: 0 | DS42: 0 | DT42: 0 | DU42: 0 | DV42: 0 | DW42: 0 | DX42: 0 | DY42: 0 | DZ42: 0 | EA42: 0 | EB42: 0 | EC42: 0 | ED42: 0 | EE42: 0 | EF42: 0 | EG42: 0 | EH42: 0 | EI42: 0 | EJ42: 0 | EK42: 0 | EL42: 0 | EM42: 0 | EN42: 0 | EP42: 2220005 | EQ42: 2026-01-31 | ER42: 2028-02-29 | ES42: 26 | ET42: Detail | EU42: 4.333333333 | EV42: 0 | EW42: 0 | EX42: 0 | EY42: 0 | EZ42: 0 | FA42: 0 | FB42: 0 | FC42: 0 | FD42: 0 | FE42: 0 | FF42: 0 | FG42: 0 | FH42: 0 | FI42: 0 | FJ42: 0 | FK42: 0 | FL42: 0 | FM42: 0 | FN42: 0 | FO42: 0 | FP42: 0 | FQ42: 0 | FR42: 0 | FS42: 0 | FT42: 0 | FU42: 0 | FV42: 0 | FW42: 0 | FX42: 0 | FY42: 0 | FZ42: 0 | GA42: 0 | GB42: 0 | GC42: 0 | GD42: 0 | GE42: 0 | GF42: 0 | GG42: 0 | GH42: 0 | GI42: 0 | GJ42: 0 | GK42: 0 | GL42: 0 | GM42: 0 | GN42: 0 | GO42: 0 | GP42: 0 | GQ42: 0 | GR42: 0 | GS42: 0 | GT42: 0 | GU42: 0 | GV42: 0 | GW42: 0 | GX42: 0 | GY42: 0 | GZ42: 0 | HA42: 0 | HB42: 0 | HC42: 0 | HD42: 0 | HE42: 0 | HF42: 0 | HG42: 0 | HH42: 0 | HI42: 0 | HJ42: 0 | HK42: 0 | HL42: 0 | HM42: 0 | HN42: 0 | HO42: 0 | HP42: 0 | HQ42: 0 | HR42: 0 | HS42: 0 | HT42: 0 | HU42: 0 | HV42: 0 | HW42: 0 | HX42: 0 | HY42: 0 | HZ42: 0 | IA42: 0 | IB42: 0 | IC42: 0 | ID42: 0 | IE42: 0 | IF42: 0 | IG42: 0 | IH42: 0 | II42: 0 | IJ42: 0 | IK42: 0 | IL42: 0 | IM42: 0 | IN42: 0 | IO42: 0 | IP42: 0 | IQ42: 0 | IR42: 0 | IS42: 0 | IT42: 0 | IU42: 0 | IV42: 0 | IW42: 0 | IX42: 0 | IY42: 0 | IZ42: 0 | JA42: 0 | JB42: 0 | JC42: 0 | JD42: 0 | JE42: 0 | JF42: 0 | JG42: 0 | JH42: 0 | JI42: 0 | JJ42: 0 | JK42: 0 | JL42: 0 | JM42: 0 | JN42: 0 | JO42: 0 | JP42: 0 | JQ42: 0 | JR42: 0 | JS42: 0 | JT42: 0 | JU42: 0 | JV42: 0 | JW42: 0 | JX42: 0
B43: Elevators | D43: 13 | E43: 26 | F43: Straight-Line | G43: 1.436706546 | H43: 1237.5 | I43: 495000 | L43: 0 | M43: =AND(M$22>=$D43,M$22<=$E43)*IF(OR($F43="Straight-Line",$F43="Detail"),$I43/$ES43,EW43) -> 0 | N43: =AND(N$22>=$D43,N$22<=$E43)*IF(OR($F43="Straight-Line",$F43="Detail"),$I43/$ES43,EX43) -> 0 | O43: =AND(O$22>=$D43,O$22<=$E43)*IF(OR($F43="Straight-Line",$F43="Detail"),$I43/$ES43,EY43) -> 0 | P43: =AND(P$22>=$D43,P$22<=$E43)*IF(OR($F43="Straight-Line",$F43="Detail"),$I43/$ES43,EZ43) -> 0 | Q43: =AND(Q$22>=$D43,Q$22<=$E43)*IF(OR($F43="Straight-Line",$F43="Detail"),$I43/$ES43,FA43) -> 0 | R43: =AND(R$22>=$D43,R$22<=$E43)*IF(OR($F43="Straight-Line",$F43="Detail"),$I43/$ES43,FB43) -> 0 | S43: =AND(S$22>=$D43,S$22<=$E43)*IF(OR($F43="Straight-Line",$F43="Detail"),$I43/$ES43,FC43) -> 0 | T43: =AND(T$22>=$D43,T$22<=$E43)*IF(OR($F43="Straight-Line",$F43="Detail"),$I43/$ES43,FD43) -> 0 | U43: =AND(U$22>=$D43,U$22<=$E43)*IF(OR($F43="Straight-Line",$F43="Detail"),$I43/$ES43,FE43) -> 0 | V43: =AND(V$22>=$D43,V$22<=$E43)*IF(OR($F43="Straight-Line",$F43="Detail"),$I43/$ES43,FF43) -> 0 | W43: =AND(W$22>=$D43,W$22<=$E43)*IF(OR($F43="Straight-Line",$F43="Detail"),$I43/$ES43,FG43) -> 0 | X43: =AND(X$22>=$D43,X$22<=$E43)*IF(OR($F43="Straight-Line",$F43="Detail"),$I43/$ES43,FH43) -> 0 | Y43: =AND(Y$22>=$D43,Y$22<=$E43)*IF(OR($F43="Straight-Line",$F43="Detail"),$I43/$ES43,FI43) -> 35357.14286 | Z43: =AND(Z$22>=$D43,Z$22<=$E43)*IF(OR($F43="Straight-Line",$F43="Detail"),$I43/$ES43,FJ43) -> 35357.14286 | AA43: =AND(AA$22>=$D43,AA$22<=$E43)*IF(OR($F43="Straight-Line",$F43="Detail"),$I43/$ES43,FK43) -> 35357.14286 | AB43: =AND(AB$22>=$D43,AB$22<=$E43)*IF(OR($F43="Straight-Line",$F43="Detail"),$I43/$ES43,FL43) -> 35357.14286 | AC43: =AND(AC$22>=$D43,AC$22<=$E43)*IF(OR($F43="Straight-Line",$F43="Detail"),$I43/$ES43,FM43) -> 35357.14286 | AD43: =AND(AD$22>=$D43,AD$22<=$E43)*IF(OR($F43="Straight-Line",$F43="Detail"),$I43/$ES43,FN43) -> 35357.14286 | AE43: =AND(AE$22>=$D43,AE$22<=$E43)*IF(OR($F43="Straight-Line",$F43="Detail"),$I43/$ES43,FO43) -> 35357.14286 | AF43: =AND(AF$22>=$D43,AF$22<=$E43)*IF(OR($F43="Straight-Line",$F43="Detail"),$I43/$ES43,FP43) -> 35357.14286 | AG43: =AND(AG$22>=$D43,AG$22<=$E43)*IF(OR($F43="Straight-Line",$F43="Detail"),$I43/$ES43,FQ43) -> 35357.14286 | AH43: =AND(AH$22>=$D43,AH$22<=$E43)*IF(OR($F43="Straight-Line",$F43="Detail"),$I43/$ES43,FR43) -> 35357.14286 | AI43: =AND(AI$22>=$D43,AI$22<=$E43)*IF(OR($F43="Straight-Line",$F43="Detail"),$I43/$ES43,FS43) -> 35357.14286 | AJ43: =AND(AJ$22>=$D43,AJ$22<=$E43)*IF(OR($F43="Straight-Line",$F43="Detail"),$I43/$ES43,FT43) -> 35357.14286 | AK43: =AND(AK$22>=$D43,AK$22<=$E43)*IF(OR($F43="Straight-Line",$F43="Detail"),$I43/$ES43,FU43) -> 35357.14286 | AL43: =AND(AL$22>=$D43,AL$22<=$E43)*IF(OR($F43="Straight-Line",$F43="Detail"),$I43/$ES43,FV43) -> 35357.14286 | AM43: 0 | AN43: 0 | AO43: 0 | AP43: 0 | AQ43: 0 | AR43: 0 | AS43: 0 | AT43: 0 | AU43: 0 | AV43: 0 | AW43: 0 | AX43: 0 | AY43: 0 | AZ43: 0 | BA43: 0 | BB43: 0 | BC43: 0 | BD43: 0 | BE43: 0 | BF43: 0 | BG43: 0 | BH43: 0 | BI43: 0 | BJ43: 0 | BK43: 0 | BL43: 0 | BM43: 0 | BN43: 0 | BO43: 0 | BP43: 0 | BQ43: 0 | BR43: 0 | BS43: 0 | BT43: 0 | BU43: 0 | BV43: 0 | BW43: 0 | BX43: 0 | BY43: 0 | BZ43: 0 | CA43: 0 | CB43: 0 | CC43: 0 | CD43: 0 | CE43: 0 | CF43: 0 | CG43: 0 | CH43: 0 | CI43: 0 | CJ43: 0 | CK43: 0 | CL43: 0 | CM43: 0 | CN43: 0 | CO43: 0 | CP43: 0 | CQ43: 0 | CR43: 0 | CS43: 0 | CT43: 0 | CU43: 0 | CV43: 0 | CW43: 0 | CX43: 0 | CY43: 0 | CZ43: 0 | DA43: 0 | DB43: 0 | DC43: 0 | DD43: 0 | DE43: 0 | DF43: 0 | DG43: 0 | DH43: 0 | DI43: 0 | DJ43: 0 | DK43: 0 | DL43: 0 | DM43: 0 | DN43: 0 | DO43: 0 | DP43: 0 | DQ43: 0 | DR43: 0 | DS43: 0 | DT43: 0 | DU43: 0 | DV43: 0 | DW43: 0 | DX43: 0 | DY43: 0 | DZ43: 0 | EA43: 0 | EB43: 0 | EC43: 0 | ED43: 0 | EE43: 0 | EF43: 0 | EG43: 0 | EH43: 0 | EI43: 0 | EJ43: 0 | EK43: 0 | EL43: 0 | EM43: 0 | EN43: 0 | EP43: 495000 | EQ43: 2027-01-31 | ER43: 2028-02-29 | ES43: 14 | ET43: Straight-Line | EU43: 2.333333333 | EV43: 0 | EW43: 0 | EX43: 0 | EY43: 0 | EZ43: 0 | FA43: 0 | FB43: 0 | FC43: 0 | FD43: 0 | FE43: 0 | FF43: 0 | FG43: 0 | FH43: 0 | FI43: 0 | FJ43: 0 | FK43: 0 | FL43: 0 | FM43: 0 | FN43: 0 | FO43: 0 | FP43: 0 | FQ43: 0 | FR43: 0 | FS43: 0 | FT43: 0 | FU43: 0 | FV43: 0 | FW43: 0 | FX43: 0 | FY43: 0 | FZ43: 0 | GA43: 0 | GB43: 0 | GC43: 0 | GD43: 0 | GE43: 0 | GF43: 0 | GG43: 0 | GH43: 0 | GI43: 0 | GJ43: 0 | GK43: 0 | GL43: 0 | GM43: 0 | GN43: 0 | GO43: 0 | GP43: 0 | GQ43: 0 | GR43: 0 | GS43: 0 | GT43: 0 | GU43: 0 | GV43: 0 | GW43: 0 | GX43: 0 | GY43: 0 | GZ43: 0 | HA43: 0 | HB43: 0 | HC43: 0 | HD43: 0 | HE43: 0 | HF43: 0 | HG43: 0 | HH43: 0 | HI43: 0 | HJ43: 0 | HK43: 0 | HL43: 0 | HM43: 0 | HN43: 0 | HO43: 0 | HP43: 0 | HQ43: 0 | HR43: 0 | HS43: 0 | HT43: 0 | HU43: 0 | HV43: 0 | HW43: 0 | HX43: 0 | HY43: 0 | HZ43: 0 | IA43: 0 | IB43: 0 | IC43: 0 | ID43: 0 | IE43: 0 | IF43: 0 | IG43: 0 | IH43: 0 | II43: 0 | IJ43: 0 | IK43: 0 | IL43: 0 | IM43: 0 | IN43: 0 | IO43: 0 | IP43: 0 | IQ43: 0 | IR43: 0 | IS43: 0 | IT43: 0 | IU43: 0 | IV43: 0 | IW43: 0 | IX43: 0 | IY43: 0 | IZ43: 0 | JA43: 0 | JB43: 0 | JC43: 0 | JD43: 0 | JE43: 0 | JF43: 0 | JG43: 0 | JH43: 0 | JI43: 0 | JJ43: 0 | JK43: 0 | JL43: 0 | JM43: 0 | JN43: 0 | JO43: 0 | JP43: 0 | JQ43: 0 | JR43: 0 | JS43: 0 | JT43: 0 | JU43: 0 | JV43: 0 | JW43: 0 | JX43: 0
B44: Fire Sprinkler System | D44: 1 | E44: 26 | F44: Straight-Line | G44: 0 | H44: 0 | I44: 0 | L44: =AND(L$22>=$D44,L$22<=$E44)*IF(OR($F44="Straight-Line",$F44="Detail"),$I44/$ES44,EV44) -> 0 | M44: =AND(M$22>=$D44,M$22<=$E44)*IF(OR($F44="Straight-Line",$F44="Detail"),$I44/$ES44,EW44) -> 0 | N44: =AND(N$22>=$D44,N$22<=$E44)*IF(OR($F44="Straight-Line",$F44="Detail"),$I44/$ES44,EX44) -> 0 | O44: =AND(O$22>=$D44,O$22<=$E44)*IF(OR($F44="Straight-Line",$F44="Detail"),$I44/$ES44,EY44) -> 0 | P44: =AND(P$22>=$D44,P$22<=$E44)*IF(OR($F44="Straight-Line",$F44="Detail"),$I44/$ES44,EZ44) -> 0 | Q44: =AND(Q$22>=$D44,Q$22<=$E44)*IF(OR($F44="Straight-Line",$F44="Detail"),$I44/$ES44,FA44) -> 0 | R44: =AND(R$22>=$D44,R$22<=$E44)*IF(OR($F44="Straight-Line",$F44="Detail"),$I44/$ES44,FB44) -> 0 | S44: =AND(S$22>=$D44,S$22<=$E44)*IF(OR($F44="Straight-Line",$F44="Detail"),$I44/$ES44,FC44) -> 0 | T44: =AND(T$22>=$D44,T$22<=$E44)*IF(OR($F44="Straight-Line",$F44="Detail"),$I44/$ES44,FD44) -> 0 | U44: =AND(U$22>=$D44,U$22<=$E44)*IF(OR($F44="Straight-Line",$F44="Detail"),$I44/$ES44,FE44) -> 0 | V44: =AND(V$22>=$D44,V$22<=$E44)*IF(OR($F44="Straight-Line",$F44="Detail"),$I44/$ES44,FF44) -> 0 | W44: =AND(W$22>=$D44,W$22<=$E44)*IF(OR($F44="Straight-Line",$F44="Detail"),$I44/$ES44,FG44) -> 0 | X44: =AND(X$22>=$D44,X$22<=$E44)*IF(OR($F44="Straight-Line",$F44="Detail"),$I44/$ES44,FH44) -> 0 | Y44: =AND(Y$22>=$D44,Y$22<=$E44)*IF(OR($F44="Straight-Line",$F44="Detail"),$I44/$ES44,FI44) -> 0 | Z44: =AND(Z$22>=$D44,Z$22<=$E44)*IF(OR($F44="Straight-Line",$F44="Detail"),$I44/$ES44,FJ44) -> 0 | AA44: =AND(AA$22>=$D44,AA$22<=$E44)*IF(OR($F44="Straight-Line",$F44="Detail"),$I44/$ES44,FK44) -> 0 | AB44: =AND(AB$22>=$D44,AB$22<=$E44)*IF(OR($F44="Straight-Line",$F44="Detail"),$I44/$ES44,FL44) -> 0 | AC44: =AND(AC$22>=$D44,AC$22<=$E44)*IF(OR($F44="Straight-Line",$F44="Detail"),$I44/$ES44,FM44) -> 0 | AD44: =AND(AD$22>=$D44,AD$22<=$E44)*IF(OR($F44="Straight-Line",$F44="Detail"),$I44/$ES44,FN44) -> 0 | AE44: =AND(AE$22>=$D44,AE$22<=$E44)*IF(OR($F44="Straight-Line",$F44="Detail"),$I44/$ES44,FO44) -> 0 | AF44: =AND(AF$22>=$D44,AF$22<=$E44)*IF(OR($F44="Straight-Line",$F44="Detail"),$I44/$ES44,FP44) -> 0 | AG44: =AND(AG$22>=$D44,AG$22<=$E44)*IF(OR($F44="Straight-Line",$F44="Detail"),$I44/$ES44,FQ44) -> 0 | AH44: =AND(AH$22>=$D44,AH$22<=$E44)*IF(OR($F44="Straight-Line",$F44="Detail"),$I44/$ES44,FR44) -> 0 | AI44: =AND(AI$22>=$D44,AI$22<=$E44)*IF(OR($F44="Straight-Line",$F44="Detail"),$I44/$ES44,FS44) -> 0 | AJ44: =AND(AJ$22>=$D44,AJ$22<=$E44)*IF(OR($F44="Straight-Line",$F44="Detail"),$I44/$ES44,FT44) -> 0 | AK44: =AND(AK$22>=$D44,AK$22<=$E44)*IF(OR($F44="Straight-Line",$F44="Detail"),$I44/$ES44,FU44) -> 0 | AL44: =AND(AL$22>=$D44,AL$22<=$E44)*IF(OR($F44="Straight-Line",$F44="Detail"),$I44/$ES44,FV44) -> 0 | AM44: =AND(AM$22>=$D44,AM$22<=$E44)*IF(OR($F44="Straight-Line",$F44="Detail"),$I44/$ES44,FW44) -> 0 | AN44: =AND(AN$22>=$D44,AN$22<=$E44)*IF(OR($F44="Straight-Line",$F44="Detail"),$I44/$ES44,FX44) -> 0 | AO44: =AND(AO$22>=$D44,AO$22<=$E44)*IF(OR($F44="Straight-Line",$F44="Detail"),$I44/$ES44,FY44) -> 0 | AP44: =AND(AP$22>=$D44,AP$22<=$E44)*IF(OR($F44="Straight-Line",$F44="Detail"),$I44/$ES44,FZ44) -> 0 | AQ44: =AND(AQ$22>=$D44,AQ$22<=$E44)*IF(OR($F44="Straight-Line",$F44="Detail"),$I44/$ES44,GA44) -> 0 | AR44: =AND(AR$22>=$D44,AR$22<=$E44)*IF(OR($F44="Straight-Line",$F44="Detail"),$I44/$ES44,GB44) -> 0 | AS44: =AND(AS$22>=$D44,AS$22<=$E44)*IF(OR($F44="Straight-Line",$F44="Detail"),$I44/$ES44,GC44) -> 0 | AT44: =AND(AT$22>=$D44,AT$22<=$E44)*IF(OR($F44="Straight-Line",$F44="Detail"),$I44/$ES44,GD44) -> 0 | AU44: =AND(AU$22>=$D44,AU$22<=$E44)*IF(OR($F44="Straight-Line",$F44="Detail"),$I44/$ES44,GE44) -> 0 | AV44: =AND(AV$22>=$D44,AV$22<=$E44)*IF(OR($F44="Straight-Line",$F44="Detail"),$I44/$ES44,GF44) -> 0 | AW44: =AND(AW$22>=$D44,AW$22<=$E44)*IF(OR($F44="Straight-Line",$F44="Detail"),$I44/$ES44,GG44) -> 0 | AX44: =AND(AX$22>=$D44,AX$22<=$E44)*IF(OR($F44="Straight-Line",$F44="Detail"),$I44/$ES44,GH44) -> 0 | AY44: =AND(AY$22>=$D44,AY$22<=$E44)*IF(OR($F44="Straight-Line",$F44="Detail"),$I44/$ES44,GI44) -> 0 | AZ44: =AND(AZ$22>=$D44,AZ$22<=$E44)*IF(OR($F44="Straight-Line",$F44="Detail"),$I44/$ES44,GJ44) -> 0 | BA44: =AND(BA$22>=$D44,BA$22<=$E44)*IF(OR($F44="Straight-Line",$F44="Detail"),$I44/$ES44,GK44) -> 0 | BB44: =AND(BB$22>=$D44,BB$22<=$E44)*IF(OR($F44="Straight-Line",$F44="Detail"),$I44/$ES44,GL44) -> 0 | BC44: =AND(BC$22>=$D44,BC$22<=$E44)*IF(OR($F44="Straight-Line",$F44="Detail"),$I44/$ES44,GM44) -> 0 | BD44: =AND(BD$22>=$D44,BD$22<=$E44)*IF(OR($F44="Straight-Line",$F44="Detail"),$I44/$ES44,GN44) -> 0 | BE44: =AND(BE$22>=$D44,BE$22<=$E44)*IF(OR($F44="Straight-Line",$F44="Detail"),$I44/$ES44,GO44) -> 0 | BF44: =AND(BF$22>=$D44,BF$22<=$E44)*IF(OR($F44="Straight-Line",$F44="Detail"),$I44/$ES44,GP44) -> 0 | BG44: =AND(BG$22>=$D44,BG$22<=$E44)*IF(OR($F44="Straight-Line",$F44="Detail"),$I44/$ES44,GQ44) -> 0 | BH44: =AND(BH$22>=$D44,BH$22<=$E44)*IF(OR($F44="Straight-Line",$F44="Detail"),$I44/$ES44,GR44) -> 0 | BI44: =AND(BI$22>=$D44,BI$22<=$E44)*IF(OR($F44="Straight-Line",$F44="Detail"),$I44/$ES44,GS44) -> 0 | BJ44: =AND(BJ$22>=$D44,BJ$22<=$E44)*IF(OR($F44="Straight-Line",$F44="Detail"),$I44/$ES44,GT44) -> 0 | BK44: =AND(BK$22>=$D44,BK$22<=$E44)*IF(OR($F44="Straight-Line",$F44="Detail"),$I44/$ES44,GU44) -> 0 | BL44: =AND(BL$22>=$D44,BL$22<=$E44)*IF(OR($F44="Straight-Line",$F44="Detail"),$I44/$ES44,GV44) -> 0 | BM44: =AND(BM$22>=$D44,BM$22<=$E44)*IF(OR($F44="Straight-Line",$F44="Detail"),$I44/$ES44,GW44) -> 0 | BN44: =AND(BN$22>=$D44,BN$22<=$E44)*IF(OR($F44="Straight-Line",$F44="Detail"),$I44/$ES44,GX44) -> 0 | BO44: =AND(BO$22>=$D44,BO$22<=$E44)*IF(OR($F44="Straight-Line",$F44="Detail"),$I44/$ES44,GY44) -> 0 | BP44: =AND(BP$22>=$D44,BP$22<=$E44)*IF(OR($F44="Straight-Line",$F44="Detail"),$I44/$ES44,GZ44) -> 0 | BQ44: =AND(BQ$22>=$D44,BQ$22<=$E44)*IF(OR($F44="Straight-Line",$F44="Detail"),$I44/$ES44,HA44) -> 0 | BR44: =AND(BR$22>=$D44,BR$22<=$E44)*IF(OR($F44="Straight-Line",$F44="Detail"),$I44/$ES44,HB44) -> 0 | BS44: =AND(BS$22>=$D44,BS$22<=$E44)*IF(OR($F44="Straight-Line",$F44="Detail"),$I44/$ES44,HC44) -> 0 | BT44: =AND(BT$22>=$D44,BT$22<=$E44)*IF(OR($F44="Straight-Line",$F44="Detail"),$I44/$ES44,HD44) -> 0 | BU44: =AND(BU$22>=$D44,BU$22<=$E44)*IF(OR($F44="Straight-Line",$F44="Detail"),$I44/$ES44,HE44) -> 0 | BV44: =AND(BV$22>=$D44,BV$22<=$E44)*IF(OR($F44="Straight-Line",$F44="Detail"),$I44/$ES44,HF44) -> 0 | BW44: =AND(BW$22>=$D44,BW$22<=$E44)*IF(OR($F44="Straight-Line",$F44="Detail"),$I44/$ES44,HG44) -> 0 | BX44: =AND(BX$22>=$D44,BX$22<=$E44)*IF(OR($F44="Straight-Line",$F44="Detail"),$I44/$ES44,HH44) -> 0 | BY44: =AND(BY$22>=$D44,BY$22<=$E44)*IF(OR($F44="Straight-Line",$F44="Detail"),$I44/$ES44,HI44) -> 0 | BZ44: =AND(BZ$22>=$D44,BZ$22<=$E44)*IF(OR($F44="Straight-Line",$F44="Detail"),$I44/$ES44,HJ44) -> 0 | CA44: =AND(CA$22>=$D44,CA$22<=$E44)*IF(OR($F44="Straight-Line",$F44="Detail"),$I44/$ES44,HK44) -> 0 | CB44: =AND(CB$22>=$D44,CB$22<=$E44)*IF(OR($F44="Straight-Line",$F44="Detail"),$I44/$ES44,HL44) -> 0 | CC44: =AND(CC$22>=$D44,CC$22<=$E44)*IF(OR($F44="Straight-Line",$F44="Detail"),$I44/$ES44,HM44) -> 0 | CD44: =AND(CD$22>=$D44,CD$22<=$E44)*IF(OR($F44="Straight-Line",$F44="Detail"),$I44/$ES44,HN44) -> 0 | CE44: =AND(CE$22>=$D44,CE$22<=$E44)*IF(OR($F44="Straight-Line",$F44="Detail"),$I44/$ES44,HO44) -> 0 | CF44: =AND(CF$22>=$D44,CF$22<=$E44)*IF(OR($F44="Straight-Line",$F44="Detail"),$I44/$ES44,HP44) -> 0 | CG44: =AND(CG$22>=$D44,CG$22<=$E44)*IF(OR($F44="Straight-Line",$F44="Detail"),$I44/$ES44,HQ44) -> 0 | CH44: =AND(CH$22>=$D44,CH$22<=$E44)*IF(OR($F44="Straight-Line",$F44="Detail"),$I44/$ES44,HR44) -> 0 | CI44: =AND(CI$22>=$D44,CI$22<=$E44)*IF(OR($F44="Straight-Line",$F44="Detail"),$I44/$ES44,HS44) -> 0 | CJ44: =AND(CJ$22>=$D44,CJ$22<=$E44)*IF(OR($F44="Straight-Line",$F44="Detail"),$I44/$ES44,HT44) -> 0 | CK44: =AND(CK$22>=$D44,CK$22<=$E44)*IF(OR($F44="Straight-Line",$F44="Detail"),$I44/$ES44,HU44) -> 0 | CL44: =AND(CL$22>=$D44,CL$22<=$E44)*IF(OR($F44="Straight-Line",$F44="Detail"),$I44/$ES44,HV44) -> 0 | CM44: =AND(CM$22>=$D44,CM$22<=$E44)*IF(OR($F44="Straight-Line",$F44="Detail"),$I44/$ES44,HW44) -> 0 | CN44: =AND(CN$22>=$D44,CN$22<=$E44)*IF(OR($F44="Straight-Line",$F44="Detail"),$I44/$ES44,HX44) -> 0 | CO44: =AND(CO$22>=$D44,CO$22<=$E44)*IF(OR($F44="Straight-Line",$F44="Detail"),$I44/$ES44,HY44) -> 0 | CP44: =AND(CP$22>=$D44,CP$22<=$E44)*IF(OR($F44="Straight-Line",$F44="Detail"),$I44/$ES44,HZ44) -> 0 | CQ44: =AND(CQ$22>=$D44,CQ$22<=$E44)*IF(OR($F44="Straight-Line",$F44="Detail"),$I44/$ES44,IA44) -> 0 | CR44: =AND(CR$22>=$D44,CR$22<=$E44)*IF(OR($F44="Straight-Line",$F44="Detail"),$I44/$ES44,IB44) -> 0 | CS44: =AND(CS$22>=$D44,CS$22<=$E44)*IF(OR($F44="Straight-Line",$F44="Detail"),$I44/$ES44,IC44) -> 0 | CT44: =AND(CT$22>=$D44,CT$22<=$E44)*IF(OR($F44="Straight-Line",$F44="Detail"),$I44/$ES44,ID44) -> 0 | CU44: =AND(CU$22>=$D44,CU$22<=$E44)*IF(OR($F44="Straight-Line",$F44="Detail"),$I44/$ES44,IE44) -> 0 | CV44: =AND(CV$22>=$D44,CV$22<=$E44)*IF(OR($F44="Straight-Line",$F44="Detail"),$I44/$ES44,IF44) -> 0 | CW44: =AND(CW$22>=$D44,CW$22<=$E44)*IF(OR($F44="Straight-Line",$F44="Detail"),$I44/$ES44,IG44) -> 0 | CX44: =AND(CX$22>=$D44,CX$22<=$E44)*IF(OR($F44="Straight-Line",$F44="Detail"),$I44/$ES44,IH44) -> 0 | CY44: =AND(CY$22>=$D44,CY$22<=$E44)*IF(OR($F44="Straight-Line",$F44="Detail"),$I44/$ES44,II44) -> 0 | CZ44: =AND(CZ$22>=$D44,CZ$22<=$E44)*IF(OR($F44="Straight-Line",$F44="Detail"),$I44/$ES44,IJ44) -> 0 | DA44: =AND(DA$22>=$D44,DA$22<=$E44)*IF(OR($F44="Straight-Line",$F44="Detail"),$I44/$ES44,IK44) -> 0 | DB44: =AND(DB$22>=$D44,DB$22<=$E44)*IF(OR($F44="Straight-Line",$F44="Detail"),$I44/$ES44,IL44) -> 0 | DC44: =AND(DC$22>=$D44,DC$22<=$E44)*IF(OR($F44="Straight-Line",$F44="Detail"),$I44/$ES44,IM44) -> 0 | DD44: =AND(DD$22>=$D44,DD$22<=$E44)*IF(OR($F44="Straight-Line",$F44="Detail"),$I44/$ES44,IN44) -> 0 | DE44: =AND(DE$22>=$D44,DE$22<=$E44)*IF(OR($F44="Straight-Line",$F44="Detail"),$I44/$ES44,IO44) -> 0 | DF44: =AND(DF$22>=$D44,DF$22<=$E44)*IF(OR($F44="Straight-Line",$F44="Detail"),$I44/$ES44,IP44) -> 0 | DG44: =AND(DG$22>=$D44,DG$22<=$E44)*IF(OR($F44="Straight-Line",$F44="Detail"),$I44/$ES44,IQ44) -> 0 | DH44: =AND(DH$22>=$D44,DH$22<=$E44)*IF(OR($F44="Straight-Line",$F44="Detail"),$I44/$ES44,IR44) -> 0 | DI44: =AND(DI$22>=$D44,DI$22<=$E44)*IF(OR($F44="Straight-Line",$F44="Detail"),$I44/$ES44,IS44) -> 0 | DJ44: =AND(DJ$22>=$D44,DJ$22<=$E44)*IF(OR($F44="Straight-Line",$F44="Detail"),$I44/$ES44,IT44) -> 0 | DK44: =AND(DK$22>=$D44,DK$22<=$E44)*IF(OR($F44="Straight-Line",$F44="Detail"),$I44/$ES44,IU44) -> 0 | DL44: =AND(DL$22>=$D44,DL$22<=$E44)*IF(OR($F44="Straight-Line",$F44="Detail"),$I44/$ES44,IV44) -> 0 | DM44: =AND(DM$22>=$D44,DM$22<=$E44)*IF(OR($F44="Straight-Line",$F44="Detail"),$I44/$ES44,IW44) -> 0 | DN44: =AND(DN$22>=$D44,DN$22<=$E44)*IF(OR($F44="Straight-Line",$F44="Detail"),$I44/$ES44,IX44) -> 0 | DO44: =AND(DO$22>=$D44,DO$22<=$E44)*IF(OR($F44="Straight-Line",$F44="Detail"),$I44/$ES44,IY44) -> 0 | DP44: =AND(DP$22>=$D44,DP$22<=$E44)*IF(OR($F44="Straight-Line",$F44="Detail"),$I44/$ES44,IZ44) -> 0 | DQ44: =AND(DQ$22>=$D44,DQ$22<=$E44)*IF(OR($F44="Straight-Line",$F44="Detail"),$I44/$ES44,JA44) -> 0 | DR44: =AND(DR$22>=$D44,DR$22<=$E44)*IF(OR($F44="Straight-Line",$F44="Detail"),$I44/$ES44,JB44) -> 0 | DS44: =AND(DS$22>=$D44,DS$22<=$E44)*IF(OR($F44="Straight-Line",$F44="Detail"),$I44/$ES44,JC44) -> 0 | DT44: =AND(DT$22>=$D44,DT$22<=$E44)*IF(OR($F44="Straight-Line",$F44="Detail"),$I44/$ES44,JD44) -> 0 | DU44: =AND(DU$22>=$D44,DU$22<=$E44)*IF(OR($F44="Straight-Line",$F44="Detail"),$I44/$ES44,JE44) -> 0 | DV44: =AND(DV$22>=$D44,DV$22<=$E44)*IF(OR($F44="Straight-Line",$F44="Detail"),$I44/$ES44,JF44) -> 0 | DW44: =AND(DW$22>=$D44,DW$22<=$E44)*IF(OR($F44="Straight-Line",$F44="Detail"),$I44/$ES44,JG44) -> 0 | DX44: =AND(DX$22>=$D44,DX$22<=$E44)*IF(OR($F44="Straight-Line",$F44="Detail"),$I44/$ES44,JH44) -> 0 | DY44: =AND(DY$22>=$D44,DY$22<=$E44)*IF(OR($F44="Straight-Line",$F44="Detail"),$I44/$ES44,JI44) -> 0 | DZ44: =AND(DZ$22>=$D44,DZ$22<=$E44)*IF(OR($F44="Straight-Line",$F44="Detail"),$I44/$ES44,JJ44) -> 0 | EA44: =AND(EA$22>=$D44,EA$22<=$E44)*IF(OR($F44="Straight-Line",$F44="Detail"),$I44/$ES44,JK44) -> 0 | EB44: =AND(EB$22>=$D44,EB$22<=$E44)*IF(OR($F44="Straight-Line",$F44="Detail"),$I44/$ES44,JL44) -> 0 | EC44: =AND(EC$22>=$D44,EC$22<=$E44)*IF(OR($F44="Straight-Line",$F44="Detail"),$I44/$ES44,JM44) -> 0 | ED44: =AND(ED$22>=$D44,ED$22<=$E44)*IF(OR($F44="Straight-Line",$F44="Detail"),$I44/$ES44,JN44) -> 0 | EE44: =AND(EE$22>=$D44,EE$22<=$E44)*IF(OR($F44="Straight-Line",$F44="Detail"),$I44/$ES44,JO44) -> 0 | EF44: =AND(EF$22>=$D44,EF$22<=$E44)*IF(OR($F44="Straight-Line",$F44="Detail"),$I44/$ES44,JP44) -> 0 | EG44: =AND(EG$22>=$D44,EG$22<=$E44)*IF(OR($F44="Straight-Line",$F44="Detail"),$I44/$ES44,JQ44) -> 0 | EH44: =AND(EH$22>=$D44,EH$22<=$E44)*IF(OR($F44="Straight-Line",$F44="Detail"),$I44/$ES44,JR44) -> 0 | EI44: =AND(EI$22>=$D44,EI$22<=$E44)*IF(OR($F44="Straight-Line",$F44="Detail"),$I44/$ES44,JS44) -> 0 | EJ44: =AND(EJ$22>=$D44,EJ$22<=$E44)*IF(OR($F44="Straight-Line",$F44="Detail"),$I44/$ES44,JT44) -> 0 | EK44: =AND(EK$22>=$D44,EK$22<=$E44)*IF(OR($F44="Straight-Line",$F44="Detail"),$I44/$ES44,JU44) -> 0 | EL44: =AND(EL$22>=$D44,EL$22<=$E44)*IF(OR($F44="Straight-Line",$F44="Detail"),$I44/$ES44,JV44) -> 0 | EM44: =AND(EM$22>=$D44,EM$22<=$E44)*IF(OR($F44="Straight-Line",$F44="Detail"),$I44/$ES44,JW44) -> 0 | EN44: =AND(EN$22>=$D44,EN$22<=$E44)*IF(OR($F44="Straight-Line",$F44="Detail"),$I44/$ES44,JX44) -> 0 | EP44: 0 | EQ44: 2026-01-31 | ER44: 2028-02-29 | ES44: 26 | ET44: Straight-Line | EU44: 4.333333333 | EV44: 0 | EW44: 0 | EX44: 0 | EY44: 0 | EZ44: 0 | FA44: 0 | FB44: 0 | FC44: 0 | FD44: 0 | FE44: 0 | FF44: 0 | FG44: 0 | FH44: 0 | FI44: 0 | FJ44: 0 | FK44: 0 | FL44: 0 | FM44: 0 | FN44: 0 | FO44: 0 | FP44: 0 | FQ44: 0 | FR44: 0 | FS44: 0 | FT44: 0 | FU44: 0 | FV44: 0 | FW44: 0 | FX44: 0 | FY44: 0 | FZ44: 0 | GA44: 0 | GB44: 0 | GC44: 0 | GD44: 0 | GE44: 0 | GF44: 0 | GG44: 0 | GH44: 0 | GI44: 0 | GJ44: 0 | GK44: 0 | GL44: 0 | GM44: 0 | GN44: 0 | GO44: 0 | GP44: 0 | GQ44: 0 | GR44: 0 | GS44: 0 | GT44: 0 | GU44: 0 | GV44: 0 | GW44: 0 | GX44: 0 | GY44: 0 | GZ44: 0 | HA44: 0 | HB44: 0 | HC44: 0 | HD44: 0 | HE44: 0 | HF44: 0 | HG44: 0 | HH44: 0 | HI44: 0 | HJ44: 0 | HK44: 0 | HL44: 0 | HM44: 0 | HN44: 0 | HO44: 0 | HP44: 0 | HQ44: 0 | HR44: 0 | HS44: 0 | HT44: 0 | HU44: 0 | HV44: 0 | HW44: 0 | HX44: 0 | HY44: 0 | HZ44: 0 | IA44: 0 | IB44: 0 | IC44: 0 | ID44: 0 | IE44: 0 | IF44: 0 | IG44: 0 | IH44: 0 | II44: 0 | IJ44: 0 | IK44: 0 | IL44: 0 | IM44: 0 | IN44: 0 | IO44: 0 | IP44: 0 | IQ44: 0 | IR44: 0 | IS44: 0 | IT44: 0 | IU44: 0 | IV44: 0 | IW44: 0 | IX44: 0 | IY44: 0 | IZ44: 0 | JA44: 0 | JB44: 0 | JC44: 0 | JD44: 0 | JE44: 0 | JF44: 0 | JG44: 0 | JH44: 0 | JI44: 0 | JJ44: 0 | JK44: 0 | JL44: 0 | JM44: 0 | JN44: 0 | JO44: 0 | JP44: 0 | JQ44: 0 | JR44: 0 | JS44: 0 | JT44: 0 | JU44: 0 | JV44: 0 | JW44: 0 | JX44: 0
B45: Plumbing | D45: 1 | E45: 26 | F45: Detail | G45: 18.08471344 | H45: 15577.1775 | I45: 6230871 | L45: 0 | M45: =$I$45*'HC Draw'!E151 -> 0 | N45: =$I$45*'HC Draw'!F151 -> 0 | O45: =$I$45*'HC Draw'!G151 -> 130426.4526 | P45: =$I$45*'HC Draw'!H151 -> 130426.4526 | Q45: =$I$45*'HC Draw'!I151 -> 130426.4526 | R45: =$I$45*'HC Draw'!J151 -> 130426.4526 | S45: =$I$45*'HC Draw'!K151 -> 130426.4526 | T45: =$I$45*'HC Draw'!L151 -> 130426.4526 | U45: =$I$45*'HC Draw'!M151 -> 391279.3577 | V45: =$I$45*'HC Draw'!N151 -> 394431.273 | W45: =$I$45*'HC Draw'!O151 -> 444386.8026 | X45: =$I$45*'HC Draw'!P151 -> 444386.8026 | Y45: =$I$45*'HC Draw'!Q151 -> 444386.8026 | Z45: =$I$45*'HC Draw'!R151 -> 444386.8026 | AA45: =$I$45*'HC Draw'!S151 -> 444386.8026 | AB45: =$I$45*'HC Draw'!T151 -> 444386.8026 | AC45: =$I$45*'HC Draw'!U151 -> 313960.35 | AD45: =$I$45*'HC Draw'!V151 -> 313960.35 | AE45: =$I$45*'HC Draw'!W151 -> 313960.35 | AF45: =$I$45*'HC Draw'!X151 -> 313960.35 | AG45: =$I$45*'HC Draw'!Y151 -> 313960.35 | AH45: =$I$45*'HC Draw'!Z151 -> 313960.35 | AI45: =$I$45*'HC Draw'!AA151 -> 53107.4449 | AJ45: =$I$45*'HC Draw'!AB151 -> 53107.4449 | AK45: =$I$45*'HC Draw'!AC151 -> 3151.915315 | AL45: =$I$45*'HC Draw'!AD151 -> 3151.718846 | AM45: 0 | AN45: 0 | AO45: 0 | AP45: 0 | AQ45: 0 | AR45: 0 | AS45: 0 | AT45: 0 | AU45: 0 | AV45: 0 | AW45: 0 | AX45: 0 | AY45: 0 | AZ45: 0 | BA45: 0 | BB45: 0 | BC45: 0 | BD45: 0 | BE45: 0 | BF45: 0 | BG45: 0 | BH45: 0 | BI45: 0 | BJ45: 0 | BK45: 0 | BL45: 0 | BM45: 0 | BN45: 0 | BO45: 0 | BP45: 0 | BQ45: 0 | BR45: 0 | BS45: 0 | BT45: 0 | BU45: 0 | BV45: 0 | BW45: 0 | BX45: 0 | BY45: 0 | BZ45: 0 | CA45: 0 | CB45: 0 | CC45: 0 | CD45: 0 | CE45: 0 | CF45: 0 | CG45: 0 | CH45: 0 | CI45: 0 | CJ45: 0 | CK45: 0 | CL45: 0 | CM45: 0 | CN45: 0 | CO45: 0 | CP45: 0 | CQ45: 0 | CR45: 0 | CS45: 0 | CT45: 0 | CU45: 0 | CV45: 0 | CW45: 0 | CX45: 0 | CY45: 0 | CZ45: 0 | DA45: 0 | DB45: 0 | DC45: 0 | DD45: 0 | DE45: 0 | DF45: 0 | DG45: 0 | DH45: 0 | DI45: 0 | DJ45: 0 | DK45: 0 | DL45: 0 | DM45: 0 | DN45: 0 | DO45: 0 | DP45: 0 | DQ45: 0 | DR45: 0 | DS45: 0 | DT45: 0 | DU45: 0 | DV45: 0 | DW45: 0 | DX45: 0 | DY45: 0 | DZ45: 0 | EA45: 0 | EB45: 0 | EC45: 0 | ED45: 0 | EE45: 0 | EF45: 0 | EG45: 0 | EH45: 0 | EI45: 0 | EJ45: 0 | EK45: 0 | EL45: 0 | EM45: 0 | EN45: 0 | EP45: 6230871 | EQ45: 2026-01-31 | ER45: 2028-02-29 | ES45: 26 | ET45: Detail | EU45: 4.333333333 | EV45: 0 | EW45: 0 | EX45: 0 | EY45: 0 | EZ45: 0 | FA45: 0 | FB45: 0 | FC45: 0 | FD45: 0 | FE45: 0 | FF45: 0 | FG45: 0 | FH45: 0 | FI45: 0 | FJ45: 0 | FK45: =AND($ET45="S-Curve",FK$23>=$EQ45,FK$23<=$ER45)*(_xlfn.NORM.DIST((YEAR(FK$23)-YEAR($EQ45))*12+MONTH(FK$23)-MONTH($EQ45)+1,$ES45/2,$EU45,TRUE)-_xlfn.NORM.DIST((YEAR(FK$23)-YEAR($EQ45))*12+MONTH(FK$23)-MONTH($EQ45),$ES45/2,$EU45,TRUE))/(1-2*_xlfn.NORM.DIST(0,$ES45/2,$EU45,TRUE))*$EP45 -> 0 | FL45: 0 | FM45: 0 | FN45: 0 | FO45: 0 | FP45: 0 | FQ45: 0 | FR45: 0 | FS45: 0 | FT45: 0 | FU45: 0 | FV45: 0 | FW45: 0 | FX45: 0 | FY45: 0 | FZ45: 0 | GA45: =AND($ET45="S-Curve",GA$23>=$EQ45,GA$23<=$ER45)*(_xlfn.NORM.DIST((YEAR(GA$23)-YEAR($EQ45))*12+MONTH(GA$23)-MONTH($EQ45)+1,$ES45/2,$EU45,TRUE)-_xlfn.NORM.DIST((YEAR(GA$23)-YEAR($EQ45))*12+MONTH(GA$23)-MONTH($EQ45),$ES45/2,$EU45,TRUE))/(1-2*_xlfn.NORM.DIST(0,$ES45/2,$EU45,TRUE))*$EP45 -> 0 | GB45: 0 | GC45: 0 | GD45: 0 | GE45: 0 | GF45: 0 | GG45: 0 | GH45: 0 | GI45: 0 | GJ45: 0 | GK45: 0 | GL45: 0 | GM45: 0 | GN45: 0 | GO45: 0 | GP45: 0 | GQ45: =AND($ET45="S-Curve",GQ$23>=$EQ45,GQ$23<=$ER45)*(_xlfn.NORM.DIST((YEAR(GQ$23)-YEAR($EQ45))*12+MONTH(GQ$23)-MONTH($EQ45)+1,$ES45/2,$EU45,TRUE)-_xlfn.NORM.DIST((YEAR(GQ$23)-YEAR($EQ45))*12+MONTH(GQ$23)-MONTH($EQ45),$ES45/2,$EU45,TRUE))/(1-2*_xlfn.NORM.DIST(0,$ES45/2,$EU45,TRUE))*$EP45 -> 0 | GR45: 0 | GS45: 0 | GT45: 0 | GU45: 0 | GV45: 0 | GW45: 0 | GX45: 0 | GY45: 0 | GZ45: 0 | HA45: 0 | HB45: 0 | HC45: 0 | HD45: 0 | HE45: 0 | HF45: 0 | HG45: =AND($ET45="S-Curve",HG$23>=$EQ45,HG$23<=$ER45)*(_xlfn.NORM.DIST((YEAR(HG$23)-YEAR($EQ45))*12+MONTH(HG$23)-MONTH($EQ45)+1,$ES45/2,$EU45,TRUE)-_xlfn.NORM.DIST((YEAR(HG$23)-YEAR($EQ45))*12+MONTH(HG$23)-MONTH($EQ45),$ES45/2,$EU45,TRUE))/(1-2*_xlfn.NORM.DIST(0,$ES45/2,$EU45,TRUE))*$EP45 -> 0 | HH45: 0 | HI45: 0 | HJ45: 0 | HK45: 0 | HL45: 0 | HM45: 0 | HN45: 0 | HO45: 0 | HP45: 0 | HQ45: 0 | HR45: 0 | HS45: 0 | HT45: 0 | HU45: 0 | HV45: 0 | HW45: =AND($ET45="S-Curve",HW$23>=$EQ45,HW$23<=$ER45)*(_xlfn.NORM.DIST((YEAR(HW$23)-YEAR($EQ45))*12+MONTH(HW$23)-MONTH($EQ45)+1,$ES45/2,$EU45,TRUE)-_xlfn.NORM.DIST((YEAR(HW$23)-YEAR($EQ45))*12+MONTH(HW$23)-MONTH($EQ45),$ES45/2,$EU45,TRUE))/(1-2*_xlfn.NORM.DIST(0,$ES45/2,$EU45,TRUE))*$EP45 -> 0 | HX45: 0 | HY45: 0 | HZ45: 0 | IA45: 0 | IB45: 0 | IC45: 0 | ID45: 0 | IE45: 0 | IF45: 0 | IG45: 0 | IH45: 0 | II45: 0 | IJ45: 0 | IK45: 0 | IL45: 0 | IM45: =AND($ET45="S-Curve",IM$23>=$EQ45,IM$23<=$ER45)*(_xlfn.NORM.DIST((YEAR(IM$23)-YEAR($EQ45))*12+MONTH(IM$23)-MONTH($EQ45)+1,$ES45/2,$EU45,TRUE)-_xlfn.NORM.DIST((YEAR(IM$23)-YEAR($EQ45))*12+MONTH(IM$23)-MONTH($EQ45),$ES45/2,$EU45,TRUE))/(1-2*_xlfn.NORM.DIST(0,$ES45/2,$EU45,TRUE))*$EP45 -> 0 | IN45: 0 | IO45: 0 | IP45: 0 | IQ45: 0 | IR45: 0 | IS45: 0 | IT45: 0 | IU45: 0 | IV45: 0 | IW45: 0 | IX45: 0 | IY45: 0 | IZ45: 0 | JA45: 0 | JB45: 0 | JC45: =AND($ET45="S-Curve",JC$23>=$EQ45,JC$23<=$ER45)*(_xlfn.NORM.DIST((YEAR(JC$23)-YEAR($EQ45))*12+MONTH(JC$23)-MONTH($EQ45)+1,$ES45/2,$EU45,TRUE)-_xlfn.NORM.DIST((YEAR(JC$23)-YEAR($EQ45))*12+MONTH(JC$23)-MONTH($EQ45),$ES45/2,$EU45,TRUE))/(1-2*_xlfn.NORM.DIST(0,$ES45/2,$EU45,TRUE))*$EP45 -> 0 | JD45: 0 | JE45: 0 | JF45: 0 | JG45: 0 | JH45: 0 | JI45: 0 | JJ45: 0 | JK45: 0 | JL45: 0 | JM45: 0 | JN45: 0 | JO45: 0 | JP45: 0 | JQ45: 0 | JR45: 0 | JS45: =AND($ET45="S-Curve",JS$23>=$EQ45,JS$23<=$ER45)*(_xlfn.NORM.DIST((YEAR(JS$23)-YEAR($EQ45))*12+MONTH(JS$23)-MONTH($EQ45)+1,$ES45/2,$EU45,TRUE)-_xlfn.NORM.DIST((YEAR(JS$23)-YEAR($EQ45))*12+MONTH(JS$23)-MONTH($EQ45),$ES45/2,$EU45,TRUE))/(1-2*_xlfn.NORM.DIST(0,$ES45/2,$EU45,TRUE))*$EP45 -> 0 | JT45: 0 | JU45: 0 | JV45: 0 | JW45: 0 | JX45: 0
B46: HVAC | D46: 1 | E46: 26 | F46: Straight-Line | G46: 0 | H46: 0 | I46: 0 | L46: =AND(L$22>=$D46,L$22<=$E46)*IF(OR($F46="Straight-Line",$F46="Detail"),$I46/$ES46,EV46) -> 0 | M46: =AND(M$22>=$D46,M$22<=$E46)*IF(OR($F46="Straight-Line",$F46="Detail"),$I46/$ES46,EW46) -> 0 | N46: =AND(N$22>=$D46,N$22<=$E46)*IF(OR($F46="Straight-Line",$F46="Detail"),$I46/$ES46,EX46) -> 0 | O46: =AND(O$22>=$D46,O$22<=$E46)*IF(OR($F46="Straight-Line",$F46="Detail"),$I46/$ES46,EY46) -> 0 | P46: =AND(P$22>=$D46,P$22<=$E46)*IF(OR($F46="Straight-Line",$F46="Detail"),$I46/$ES46,EZ46) -> 0 | Q46: =AND(Q$22>=$D46,Q$22<=$E46)*IF(OR($F46="Straight-Line",$F46="Detail"),$I46/$ES46,FA46) -> 0 | R46: =AND(R$22>=$D46,R$22<=$E46)*IF(OR($F46="Straight-Line",$F46="Detail"),$I46/$ES46,FB46) -> 0 | S46: =AND(S$22>=$D46,S$22<=$E46)*IF(OR($F46="Straight-Line",$F46="Detail"),$I46/$ES46,FC46) -> 0 | T46: =AND(T$22>=$D46,T$22<=$E46)*IF(OR($F46="Straight-Line",$F46="Detail"),$I46/$ES46,FD46) -> 0 | U46: =AND(U$22>=$D46,U$22<=$E46)*IF(OR($F46="Straight-Line",$F46="Detail"),$I46/$ES46,FE46) -> 0 | V46: =AND(V$22>=$D46,V$22<=$E46)*IF(OR($F46="Straight-Line",$F46="Detail"),$I46/$ES46,FF46) -> 0 | W46: =AND(W$22>=$D46,W$22<=$E46)*IF(OR($F46="Straight-Line",$F46="Detail"),$I46/$ES46,FG46) -> 0 | X46: =AND(X$22>=$D46,X$22<=$E46)*IF(OR($F46="Straight-Line",$F46="Detail"),$I46/$ES46,FH46) -> 0 | Y46: =AND(Y$22>=$D46,Y$22<=$E46)*IF(OR($F46="Straight-Line",$F46="Detail"),$I46/$ES46,FI46) -> 0 | Z46: =AND(Z$22>=$D46,Z$22<=$E46)*IF(OR($F46="Straight-Line",$F46="Detail"),$I46/$ES46,FJ46) -> 0 | AA46: =AND(AA$22>=$D46,AA$22<=$E46)*IF(OR($F46="Straight-Line",$F46="Detail"),$I46/$ES46,FK46) -> 0 | AB46: =AND(AB$22>=$D46,AB$22<=$E46)*IF(OR($F46="Straight-Line",$F46="Detail"),$I46/$ES46,FL46) -> 0 | AC46: =AND(AC$22>=$D46,AC$22<=$E46)*IF(OR($F46="Straight-Line",$F46="Detail"),$I46/$ES46,FM46) -> 0 | AD46: =AND(AD$22>=$D46,AD$22<=$E46)*IF(OR($F46="Straight-Line",$F46="Detail"),$I46/$ES46,FN46) -> 0 | AE46: =AND(AE$22>=$D46,AE$22<=$E46)*IF(OR($F46="Straight-Line",$F46="Detail"),$I46/$ES46,FO46) -> 0 | AF46: =AND(AF$22>=$D46,AF$22<=$E46)*IF(OR($F46="Straight-Line",$F46="Detail"),$I46/$ES46,FP46) -> 0 | AG46: =AND(AG$22>=$D46,AG$22<=$E46)*IF(OR($F46="Straight-Line",$F46="Detail"),$I46/$ES46,FQ46) -> 0 | AH46: =AND(AH$22>=$D46,AH$22<=$E46)*IF(OR($F46="Straight-Line",$F46="Detail"),$I46/$ES46,FR46) -> 0 | AI46: =AND(AI$22>=$D46,AI$22<=$E46)*IF(OR($F46="Straight-Line",$F46="Detail"),$I46/$ES46,FS46) -> 0 | AJ46: =AND(AJ$22>=$D46,AJ$22<=$E46)*IF(OR($F46="Straight-Line",$F46="Detail"),$I46/$ES46,FT46) -> 0 | AK46: =AND(AK$22>=$D46,AK$22<=$E46)*IF(OR($F46="Straight-Line",$F46="Detail"),$I46/$ES46,FU46) -> 0 | AL46: =AND(AL$22>=$D46,AL$22<=$E46)*IF(OR($F46="Straight-Line",$F46="Detail"),$I46/$ES46,FV46) -> 0 | AM46: =AND(AM$22>=$D46,AM$22<=$E46)*IF(OR($F46="Straight-Line",$F46="Detail"),$I46/$ES46,FW46) -> 0 | AN46: =AND(AN$22>=$D46,AN$22<=$E46)*IF(OR($F46="Straight-Line",$F46="Detail"),$I46/$ES46,FX46) -> 0 | AO46: =AND(AO$22>=$D46,AO$22<=$E46)*IF(OR($F46="Straight-Line",$F46="Detail"),$I46/$ES46,FY46) -> 0 | AP46: =AND(AP$22>=$D46,AP$22<=$E46)*IF(OR($F46="Straight-Line",$F46="Detail"),$I46/$ES46,FZ46) -> 0 | AQ46: =AND(AQ$22>=$D46,AQ$22<=$E46)*IF(OR($F46="Straight-Line",$F46="Detail"),$I46/$ES46,GA46) -> 0 | AR46: =AND(AR$22>=$D46,AR$22<=$E46)*IF(OR($F46="Straight-Line",$F46="Detail"),$I46/$ES46,GB46) -> 0 | AS46: =AND(AS$22>=$D46,AS$22<=$E46)*IF(OR($F46="Straight-Line",$F46="Detail"),$I46/$ES46,GC46) -> 0 | AT46: =AND(AT$22>=$D46,AT$22<=$E46)*IF(OR($F46="Straight-Line",$F46="Detail"),$I46/$ES46,GD46) -> 0 | AU46: =AND(AU$22>=$D46,AU$22<=$E46)*IF(OR($F46="Straight-Line",$F46="Detail"),$I46/$ES46,GE46) -> 0 | AV46: =AND(AV$22>=$D46,AV$22<=$E46)*IF(OR($F46="Straight-Line",$F46="Detail"),$I46/$ES46,GF46) -> 0 | AW46: =AND(AW$22>=$D46,AW$22<=$E46)*IF(OR($F46="Straight-Line",$F46="Detail"),$I46/$ES46,GG46) -> 0 | AX46: =AND(AX$22>=$D46,AX$22<=$E46)*IF(OR($F46="Straight-Line",$F46="Detail"),$I46/$ES46,GH46) -> 0 | AY46: =AND(AY$22>=$D46,AY$22<=$E46)*IF(OR($F46="Straight-Line",$F46="Detail"),$I46/$ES46,GI46) -> 0 | AZ46: =AND(AZ$22>=$D46,AZ$22<=$E46)*IF(OR($F46="Straight-Line",$F46="Detail"),$I46/$ES46,GJ46) -> 0 | BA46: =AND(BA$22>=$D46,BA$22<=$E46)*IF(OR($F46="Straight-Line",$F46="Detail"),$I46/$ES46,GK46) -> 0 | BB46: =AND(BB$22>=$D46,BB$22<=$E46)*IF(OR($F46="Straight-Line",$F46="Detail"),$I46/$ES46,GL46) -> 0 | BC46: =AND(BC$22>=$D46,BC$22<=$E46)*IF(OR($F46="Straight-Line",$F46="Detail"),$I46/$ES46,GM46) -> 0 | BD46: =AND(BD$22>=$D46,BD$22<=$E46)*IF(OR($F46="Straight-Line",$F46="Detail"),$I46/$ES46,GN46) -> 0 | BE46: =AND(BE$22>=$D46,BE$22<=$E46)*IF(OR($F46="Straight-Line",$F46="Detail"),$I46/$ES46,GO46) -> 0 | BF46: =AND(BF$22>=$D46,BF$22<=$E46)*IF(OR($F46="Straight-Line",$F46="Detail"),$I46/$ES46,GP46) -> 0 | BG46: =AND(BG$22>=$D46,BG$22<=$E46)*IF(OR($F46="Straight-Line",$F46="Detail"),$I46/$ES46,GQ46) -> 0 | BH46: =AND(BH$22>=$D46,BH$22<=$E46)*IF(OR($F46="Straight-Line",$F46="Detail"),$I46/$ES46,GR46) -> 0 | BI46: =AND(BI$22>=$D46,BI$22<=$E46)*IF(OR($F46="Straight-Line",$F46="Detail"),$I46/$ES46,GS46) -> 0 | BJ46: =AND(BJ$22>=$D46,BJ$22<=$E46)*IF(OR($F46="Straight-Line",$F46="Detail"),$I46/$ES46,GT46) -> 0 | BK46: =AND(BK$22>=$D46,BK$22<=$E46)*IF(OR($F46="Straight-Line",$F46="Detail"),$I46/$ES46,GU46) -> 0 | BL46: =AND(BL$22>=$D46,BL$22<=$E46)*IF(OR($F46="Straight-Line",$F46="Detail"),$I46/$ES46,GV46) -> 0 | BM46: =AND(BM$22>=$D46,BM$22<=$E46)*IF(OR($F46="Straight-Line",$F46="Detail"),$I46/$ES46,GW46) -> 0 | BN46: =AND(BN$22>=$D46,BN$22<=$E46)*IF(OR($F46="Straight-Line",$F46="Detail"),$I46/$ES46,GX46) -> 0 | BO46: =AND(BO$22>=$D46,BO$22<=$E46)*IF(OR($F46="Straight-Line",$F46="Detail"),$I46/$ES46,GY46) -> 0 | BP46: =AND(BP$22>=$D46,BP$22<=$E46)*IF(OR($F46="Straight-Line",$F46="Detail"),$I46/$ES46,GZ46) -> 0 | BQ46: =AND(BQ$22>=$D46,BQ$22<=$E46)*IF(OR($F46="Straight-Line",$F46="Detail"),$I46/$ES46,HA46) -> 0 | BR46: =AND(BR$22>=$D46,BR$22<=$E46)*IF(OR($F46="Straight-Line",$F46="Detail"),$I46/$ES46,HB46) -> 0 | BS46: =AND(BS$22>=$D46,BS$22<=$E46)*IF(OR($F46="Straight-Line",$F46="Detail"),$I46/$ES46,HC46) -> 0 | BT46: =AND(BT$22>=$D46,BT$22<=$E46)*IF(OR($F46="Straight-Line",$F46="Detail"),$I46/$ES46,HD46) -> 0 | BU46: =AND(BU$22>=$D46,BU$22<=$E46)*IF(OR($F46="Straight-Line",$F46="Detail"),$I46/$ES46,HE46) -> 0 | BV46: =AND(BV$22>=$D46,BV$22<=$E46)*IF(OR($F46="Straight-Line",$F46="Detail"),$I46/$ES46,HF46) -> 0 | BW46: =AND(BW$22>=$D46,BW$22<=$E46)*IF(OR($F46="Straight-Line",$F46="Detail"),$I46/$ES46,HG46) -> 0 | BX46: =AND(BX$22>=$D46,BX$22<=$E46)*IF(OR($F46="Straight-Line",$F46="Detail"),$I46/$ES46,HH46) -> 0 | BY46: =AND(BY$22>=$D46,BY$22<=$E46)*IF(OR($F46="Straight-Line",$F46="Detail"),$I46/$ES46,HI46) -> 0 | BZ46: =AND(BZ$22>=$D46,BZ$22<=$E46)*IF(OR($F46="Straight-Line",$F46="Detail"),$I46/$ES46,HJ46) -> 0 | CA46: =AND(CA$22>=$D46,CA$22<=$E46)*IF(OR($F46="Straight-Line",$F46="Detail"),$I46/$ES46,HK46) -> 0 | CB46: =AND(CB$22>=$D46,CB$22<=$E46)*IF(OR($F46="Straight-Line",$F46="Detail"),$I46/$ES46,HL46) -> 0 | CC46: =AND(CC$22>=$D46,CC$22<=$E46)*IF(OR($F46="Straight-Line",$F46="Detail"),$I46/$ES46,HM46) -> 0 | CD46: =AND(CD$22>=$D46,CD$22<=$E46)*IF(OR($F46="Straight-Line",$F46="Detail"),$I46/$ES46,HN46) -> 0 | CE46: =AND(CE$22>=$D46,CE$22<=$E46)*IF(OR($F46="Straight-Line",$F46="Detail"),$I46/$ES46,HO46) -> 0 | CF46: =AND(CF$22>=$D46,CF$22<=$E46)*IF(OR($F46="Straight-Line",$F46="Detail"),$I46/$ES46,HP46) -> 0 | CG46: =AND(CG$22>=$D46,CG$22<=$E46)*IF(OR($F46="Straight-Line",$F46="Detail"),$I46/$ES46,HQ46) -> 0 | CH46: =AND(CH$22>=$D46,CH$22<=$E46)*IF(OR($F46="Straight-Line",$F46="Detail"),$I46/$ES46,HR46) -> 0 | CI46: =AND(CI$22>=$D46,CI$22<=$E46)*IF(OR($F46="Straight-Line",$F46="Detail"),$I46/$ES46,HS46) -> 0 | CJ46: =AND(CJ$22>=$D46,CJ$22<=$E46)*IF(OR($F46="Straight-Line",$F46="Detail"),$I46/$ES46,HT46) -> 0 | CK46: =AND(CK$22>=$D46,CK$22<=$E46)*IF(OR($F46="Straight-Line",$F46="Detail"),$I46/$ES46,HU46) -> 0 | CL46: =AND(CL$22>=$D46,CL$22<=$E46)*IF(OR($F46="Straight-Line",$F46="Detail"),$I46/$ES46,HV46) -> 0 | CM46: =AND(CM$22>=$D46,CM$22<=$E46)*IF(OR($F46="Straight-Line",$F46="Detail"),$I46/$ES46,HW46) -> 0 | CN46: =AND(CN$22>=$D46,CN$22<=$E46)*IF(OR($F46="Straight-Line",$F46="Detail"),$I46/$ES46,HX46) -> 0 | CO46: =AND(CO$22>=$D46,CO$22<=$E46)*IF(OR($F46="Straight-Line",$F46="Detail"),$I46/$ES46,HY46) -> 0 | CP46: =AND(CP$22>=$D46,CP$22<=$E46)*IF(OR($F46="Straight-Line",$F46="Detail"),$I46/$ES46,HZ46) -> 0 | CQ46: =AND(CQ$22>=$D46,CQ$22<=$E46)*IF(OR($F46="Straight-Line",$F46="Detail"),$I46/$ES46,IA46) -> 0 | CR46: =AND(CR$22>=$D46,CR$22<=$E46)*IF(OR($F46="Straight-Line",$F46="Detail"),$I46/$ES46,IB46) -> 0 | CS46: =AND(CS$22>=$D46,CS$22<=$E46)*IF(OR($F46="Straight-Line",$F46="Detail"),$I46/$ES46,IC46) -> 0 | CT46: =AND(CT$22>=$D46,CT$22<=$E46)*IF(OR($F46="Straight-Line",$F46="Detail"),$I46/$ES46,ID46) -> 0 | CU46: =AND(CU$22>=$D46,CU$22<=$E46)*IF(OR($F46="Straight-Line",$F46="Detail"),$I46/$ES46,IE46) -> 0 | CV46: =AND(CV$22>=$D46,CV$22<=$E46)*IF(OR($F46="Straight-Line",$F46="Detail"),$I46/$ES46,IF46) -> 0 | CW46: =AND(CW$22>=$D46,CW$22<=$E46)*IF(OR($F46="Straight-Line",$F46="Detail"),$I46/$ES46,IG46) -> 0 | CX46: =AND(CX$22>=$D46,CX$22<=$E46)*IF(OR($F46="Straight-Line",$F46="Detail"),$I46/$ES46,IH46) -> 0 | CY46: =AND(CY$22>=$D46,CY$22<=$E46)*IF(OR($F46="Straight-Line",$F46="Detail"),$I46/$ES46,II46) -> 0 | CZ46: =AND(CZ$22>=$D46,CZ$22<=$E46)*IF(OR($F46="Straight-Line",$F46="Detail"),$I46/$ES46,IJ46) -> 0 | DA46: =AND(DA$22>=$D46,DA$22<=$E46)*IF(OR($F46="Straight-Line",$F46="Detail"),$I46/$ES46,IK46) -> 0 | DB46: =AND(DB$22>=$D46,DB$22<=$E46)*IF(OR($F46="Straight-Line",$F46="Detail"),$I46/$ES46,IL46) -> 0 | DC46: =AND(DC$22>=$D46,DC$22<=$E46)*IF(OR($F46="Straight-Line",$F46="Detail"),$I46/$ES46,IM46) -> 0 | DD46: =AND(DD$22>=$D46,DD$22<=$E46)*IF(OR($F46="Straight-Line",$F46="Detail"),$I46/$ES46,IN46) -> 0 | DE46: =AND(DE$22>=$D46,DE$22<=$E46)*IF(OR($F46="Straight-Line",$F46="Detail"),$I46/$ES46,IO46) -> 0 | DF46: =AND(DF$22>=$D46,DF$22<=$E46)*IF(OR($F46="Straight-Line",$F46="Detail"),$I46/$ES46,IP46) -> 0 | DG46: =AND(DG$22>=$D46,DG$22<=$E46)*IF(OR($F46="Straight-Line",$F46="Detail"),$I46/$ES46,IQ46) -> 0 | DH46: =AND(DH$22>=$D46,DH$22<=$E46)*IF(OR($F46="Straight-Line",$F46="Detail"),$I46/$ES46,IR46) -> 0 | DI46: =AND(DI$22>=$D46,DI$22<=$E46)*IF(OR($F46="Straight-Line",$F46="Detail"),$I46/$ES46,IS46) -> 0 | DJ46: =AND(DJ$22>=$D46,DJ$22<=$E46)*IF(OR($F46="Straight-Line",$F46="Detail"),$I46/$ES46,IT46) -> 0 | DK46: =AND(DK$22>=$D46,DK$22<=$E46)*IF(OR($F46="Straight-Line",$F46="Detail"),$I46/$ES46,IU46) -> 0 | DL46: =AND(DL$22>=$D46,DL$22<=$E46)*IF(OR($F46="Straight-Line",$F46="Detail"),$I46/$ES46,IV46) -> 0 | DM46: =AND(DM$22>=$D46,DM$22<=$E46)*IF(OR($F46="Straight-Line",$F46="Detail"),$I46/$ES46,IW46) -> 0 | DN46: =AND(DN$22>=$D46,DN$22<=$E46)*IF(OR($F46="Straight-Line",$F46="Detail"),$I46/$ES46,IX46) -> 0 | DO46: =AND(DO$22>=$D46,DO$22<=$E46)*IF(OR($F46="Straight-Line",$F46="Detail"),$I46/$ES46,IY46) -> 0 | DP46: =AND(DP$22>=$D46,DP$22<=$E46)*IF(OR($F46="Straight-Line",$F46="Detail"),$I46/$ES46,IZ46) -> 0 | DQ46: =AND(DQ$22>=$D46,DQ$22<=$E46)*IF(OR($F46="Straight-Line",$F46="Detail"),$I46/$ES46,JA46) -> 0 | DR46: =AND(DR$22>=$D46,DR$22<=$E46)*IF(OR($F46="Straight-Line",$F46="Detail"),$I46/$ES46,JB46) -> 0 | DS46: =AND(DS$22>=$D46,DS$22<=$E46)*IF(OR($F46="Straight-Line",$F46="Detail"),$I46/$ES46,JC46) -> 0 | DT46: =AND(DT$22>=$D46,DT$22<=$E46)*IF(OR($F46="Straight-Line",$F46="Detail"),$I46/$ES46,JD46) -> 0 | DU46: =AND(DU$22>=$D46,DU$22<=$E46)*IF(OR($F46="Straight-Line",$F46="Detail"),$I46/$ES46,JE46) -> 0 | DV46: =AND(DV$22>=$D46,DV$22<=$E46)*IF(OR($F46="Straight-Line",$F46="Detail"),$I46/$ES46,JF46) -> 0 | DW46: =AND(DW$22>=$D46,DW$22<=$E46)*IF(OR($F46="Straight-Line",$F46="Detail"),$I46/$ES46,JG46) -> 0 | DX46: =AND(DX$22>=$D46,DX$22<=$E46)*IF(OR($F46="Straight-Line",$F46="Detail"),$I46/$ES46,JH46) -> 0 | DY46: =AND(DY$22>=$D46,DY$22<=$E46)*IF(OR($F46="Straight-Line",$F46="Detail"),$I46/$ES46,JI46) -> 0 | DZ46: =AND(DZ$22>=$D46,DZ$22<=$E46)*IF(OR($F46="Straight-Line",$F46="Detail"),$I46/$ES46,JJ46) -> 0 | EA46: =AND(EA$22>=$D46,EA$22<=$E46)*IF(OR($F46="Straight-Line",$F46="Detail"),$I46/$ES46,JK46) -> 0 | EB46: =AND(EB$22>=$D46,EB$22<=$E46)*IF(OR($F46="Straight-Line",$F46="Detail"),$I46/$ES46,JL46) -> 0 | EC46: =AND(EC$22>=$D46,EC$22<=$E46)*IF(OR($F46="Straight-Line",$F46="Detail"),$I46/$ES46,JM46) -> 0 | ED46: =AND(ED$22>=$D46,ED$22<=$E46)*IF(OR($F46="Straight-Line",$F46="Detail"),$I46/$ES46,JN46) -> 0 | EE46: =AND(EE$22>=$D46,EE$22<=$E46)*IF(OR($F46="Straight-Line",$F46="Detail"),$I46/$ES46,JO46) -> 0 | EF46: =AND(EF$22>=$D46,EF$22<=$E46)*IF(OR($F46="Straight-Line",$F46="Detail"),$I46/$ES46,JP46) -> 0 | EG46: =AND(EG$22>=$D46,EG$22<=$E46)*IF(OR($F46="Straight-Line",$F46="Detail"),$I46/$ES46,JQ46) -> 0 | EH46: =AND(EH$22>=$D46,EH$22<=$E46)*IF(OR($F46="Straight-Line",$F46="Detail"),$I46/$ES46,JR46) -> 0 | EI46: =AND(EI$22>=$D46,EI$22<=$E46)*IF(OR($F46="Straight-Line",$F46="Detail"),$I46/$ES46,JS46) -> 0 | EJ46: =AND(EJ$22>=$D46,EJ$22<=$E46)*IF(OR($F46="Straight-Line",$F46="Detail"),$I46/$ES46,JT46) -> 0 | EK46: =AND(EK$22>=$D46,EK$22<=$E46)*IF(OR($F46="Straight-Line",$F46="Detail"),$I46/$ES46,JU46) -> 0 | EL46: =AND(EL$22>=$D46,EL$22<=$E46)*IF(OR($F46="Straight-Line",$F46="Detail"),$I46/$ES46,JV46) -> 0 | EM46: =AND(EM$22>=$D46,EM$22<=$E46)*IF(OR($F46="Straight-Line",$F46="Detail"),$I46/$ES46,JW46) -> 0 | EN46: =AND(EN$22>=$D46,EN$22<=$E46)*IF(OR($F46="Straight-Line",$F46="Detail"),$I46/$ES46,JX46) -> 0 | EP46: 0 | EQ46: 2026-01-31 | ER46: 2028-02-29 | ES46: 26 | ET46: Straight-Line | EU46: 4.333333333 | EV46: =AND($ET46="S-Curve",EV$23>=$EQ46,EV$23<=$ER46)*(_xlfn.NORM.DIST((YEAR(EV$23)-YEAR($EQ46))*12+MONTH(EV$23)-MONTH($EQ46)+1,$ES46/2,$EU46,TRUE)-_xlfn.NORM.DIST((YEAR(EV$23)-YEAR($EQ46))*12+MONTH(EV$23)-MONTH($EQ46),$ES46/2,$EU46,TRUE))/(1-2*_xlfn.NORM.DIST(0,$ES46/2,$EU46,TRUE))*$EP46 -> 0 | EW46: 0 | EX46: 0 | EY46: 0 | EZ46: 0 | FA46: 0 | FB46: 0 | FC46: 0 | FD46: 0 | FE46: 0 | FF46: 0 | FG46: 0 | FH46: 0 | FI46: 0 | FJ46: 0 | FK46: 0 | FL46: 0 | FM46: 0 | FN46: 0 | FO46: 0 | FP46: 0 | FQ46: 0 | FR46: 0 | FS46: 0 | FT46: 0 | FU46: 0 | FV46: 0 | FW46: 0 | FX46: 0 | FY46: 0 | FZ46: 0 | GA46: 0 | GB46: 0 | GC46: 0 | GD46: 0 | GE46: 0 | GF46: 0 | GG46: 0 | GH46: 0 | GI46: 0 | GJ46: 0 | GK46: 0 | GL46: 0 | GM46: 0 | GN46: 0 | GO46: 0 | GP46: 0 | GQ46: 0 | GR46: 0 | GS46: 0 | GT46: 0 | GU46: 0 | GV46: 0 | GW46: 0 | GX46: 0 | GY46: 0 | GZ46: 0 | HA46: 0 | HB46: 0 | HC46: 0 | HD46: 0 | HE46: 0 | HF46: 0 | HG46: 0 | HH46: =AND($ET46="S-Curve",HH$23>=$EQ46,HH$23<=$ER46)*(_xlfn.NORM.DIST((YEAR(HH$23)-YEAR($EQ46))*12+MONTH(HH$23)-MONTH($EQ46)+1,$ES46/2,$EU46,TRUE)-_xlfn.NORM.DIST((YEAR(HH$23)-YEAR($EQ46))*12+MONTH(HH$23)-MONTH($EQ46),$ES46/2,$EU46,TRUE))/(1-2*_xlfn.NORM.DIST(0,$ES46/2,$EU46,TRUE))*$EP46 -> 0 | HI46: 0 | HJ46: 0 | HK46: 0 | HL46: 0 | HM46: 0 | HN46: 0 | HO46: 0 | HP46: 0 | HQ46: 0 | HR46: 0 | HS46: 0 | HT46: 0 | HU46: 0 | HV46: 0 | HW46: 0 | HX46: 0 | HY46: 0 | HZ46: 0 | IA46: 0 | IB46: 0 | IC46: 0 | ID46: 0 | IE46: 0 | IF46: 0 | IG46: 0 | IH46: 0 | II46: 0 | IJ46: 0 | IK46: 0 | IL46: 0 | IM46: 0 | IN46: 0 | IO46: 0 | IP46: 0 | IQ46: 0 | IR46: 0 | IS46: 0 | IT46: 0 | IU46: 0 | IV46: 0 | IW46: 0 | IX46: 0 | IY46: 0 | IZ46: 0 | JA46: 0 | JB46: 0 | JC46: 0 | JD46: 0 | JE46: 0 | JF46: 0 | JG46: 0 | JH46: 0 | JI46: 0 | JJ46: 0 | JK46: 0 | JL46: 0 | JM46: 0 | JN46: 0 | JO46: 0 | JP46: 0 | JQ46: 0 | JR46: 0 | JS46: 0 | JT46: 0 | JU46: 0 | JV46: 0 | JW46: 0 | JX46: 0
B47: Electrical | D47: 1 | E47: 26 | F47: Detail | G47: 11.91264824 | H47: 10260.9 | I47: 4104360 | L47: 0 | M47: =$I$47*'HC Draw'!E163 -> 0 | N47: =$I$47*'HC Draw'!F163 -> 0 | O47: =$I$47*'HC Draw'!G163 -> 0 | P47: =$I$47*'HC Draw'!H163 -> 0 | Q47: =$I$47*'HC Draw'!I163 -> 0 | R47: =$I$47*'HC Draw'!J163 -> 0 | S47: =$I$47*'HC Draw'!K163 -> 241019.1918 | T47: =$I$47*'HC Draw'!L163 -> 288368.9672 | U47: =$I$47*'HC Draw'!M163 -> 288368.9672 | V47: =$I$47*'HC Draw'!N163 -> 288368.9672 | W47: =$I$47*'HC Draw'!O163 -> 288368.9672 | X47: =$I$47*'HC Draw'!P163 -> 355563.4959 | Y47: =$I$47*'HC Draw'!Q163 -> 288368.9672 | Z47: =$I$47*'HC Draw'!R163 -> 288368.9672 | AA47: =$I$47*'HC Draw'!S163 -> 288368.9672 | AB47: =$I$47*'HC Draw'!T163 -> 288368.9672 | AC47: =$I$47*'HC Draw'!U163 -> 288368.9672 | AD47: =$I$47*'HC Draw'!V163 -> 288368.9672 | AE47: =$I$47*'HC Draw'!W163 -> 288368.9672 | AF47: =$I$47*'HC Draw'!X163 -> 288368.9672 | AG47: =$I$47*'HC Draw'!Y163 -> 47349.76382 | AH47: =$I$47*'HC Draw'!Z163 -> 0 | AI47: =$I$47*'HC Draw'!AA163 -> 0 | AJ47: =$I$47*'HC Draw'!AB163 -> 0 | AK47: =$I$47*'HC Draw'!AC163 -> 0 | AL47: =$I$47*'HC Draw'!AD163 -> 0 | AM47: 0 | AN47: 0 | AO47: 0 | AP47: 0 | AQ47: 0 | AR47: 0 | AS47: 0 | AT47: 0 | AU47: 0 | AV47: 0 | AW47: 0 | AX47: 0 | AY47: 0 | AZ47: 0 | BA47: 0 | BB47: 0 | BC47: 0 | BD47: 0 | BE47: 0 | BF47: 0 | BG47: 0 | BH47: 0 | BI47: 0 | BJ47: 0 | BK47: 0 | BL47: 0 | BM47: 0 | BN47: 0 | BO47: 0 | BP47: 0 | BQ47: 0 | BR47: 0 | BS47: 0 | BT47: 0 | BU47: 0 | BV47: 0 | BW47: 0 | BX47: 0 | BY47: 0 | BZ47: 0 | CA47: 0 | CB47: 0 | CC47: 0 | CD47: 0 | CE47: 0 | CF47: 0 | CG47: 0 | CH47: 0 | CI47: 0 | CJ47: 0 | CK47: 0 | CL47: 0 | CM47: 0 | CN47: 0 | CO47: 0 | CP47: 0 | CQ47: 0 | CR47: 0 | CS47: 0 | CT47: 0 | CU47: 0 | CV47: 0 | CW47: 0 | CX47: 0 | CY47: 0 | CZ47: 0 | DA47: 0 | DB47: 0 | DC47: 0 | DD47: 0 | DE47: 0 | DF47: 0 | DG47: 0 | DH47: 0 | DI47: 0 | DJ47: 0 | DK47: 0 | DL47: 0 | DM47: 0 | DN47: 0 | DO47: 0 | DP47: 0 | DQ47: 0 | DR47: 0 | DS47: 0 | DT47: 0 | DU47: 0 | DV47: 0 | DW47: 0 | DX47: 0 | DY47: 0 | DZ47: 0 | EA47: 0 | EB47: 0 | EC47: 0 | ED47: 0 | EE47: 0 | EF47: 0 | EG47: 0 | EH47: 0 | EI47: 0 | EJ47: 0 | EK47: 0 | EL47: 0 | EM47: 0 | EN47: 0 | EP47: 4104360 | EQ47: 2026-01-31 | ER47: 2028-02-29 | ES47: 26 | ET47: Detail | EU47: 4.333333333 | EV47: 0 | EW47: 0 | EX47: 0 | EY47: 0 | EZ47: 0 | FA47: 0 | FB47: 0 | FC47: 0 | FD47: 0 | FE47: 0 | FF47: 0 | FG47: 0 | FH47: 0 | FI47: 0 | FJ47: 0 | FK47: 0 | FL47: 0 | FM47: 0 | FN47: 0 | FO47: 0 | FP47: 0 | FQ47: 0 | FR47: 0 | FS47: 0 | FT47: 0 | FU47: 0 | FV47: 0 | FW47: 0 | FX47: 0 | FY47: 0 | FZ47: 0 | GA47: 0 | GB47: 0 | GC47: 0 | GD47: 0 | GE47: 0 | GF47: 0 | GG47: 0 | GH47: 0 | GI47: 0 | GJ47: 0 | GK47: 0 | GL47: 0 | GM47: 0 | GN47: 0 | GO47: 0 | GP47: 0 | GQ47: 0 | GR47: 0 | GS47: 0 | GT47: 0 | GU47: 0 | GV47: 0 | GW47: 0 | GX47: 0 | GY47: 0 | GZ47: 0 | HA47: 0 | HB47: 0 | HC47: 0 | HD47: 0 | HE47: 0 | HF47: 0 | HG47: 0 | HH47: 0 | HI47: 0 | HJ47: 0 | HK47: 0 | HL47: 0 | HM47: 0 | HN47: 0 | HO47: 0 | HP47: 0 | HQ47: 0 | HR47: 0 | HS47: 0 | HT47: 0 | HU47: 0 | HV47: 0 | HW47: 0 | HX47: 0 | HY47: 0 | HZ47: 0 | IA47: 0 | IB47: 0 | IC47: 0 | ID47: 0 | IE47: 0 | IF47: 0 | IG47: 0 | IH47: 0 | II47: 0 | IJ47: 0 | IK47: 0 | IL47: 0 | IM47: 0 | IN47: 0 | IO47: 0 | IP47: 0 | IQ47: 0 | IR47: 0 | IS47: 0 | IT47: 0 | IU47: 0 | IV47: 0 | IW47: 0 | IX47: 0 | IY47: 0 | IZ47: 0 | JA47: 0 | JB47: 0 | JC47: 0 | JD47: 0 | JE47: 0 | JF47: 0 | JG47: 0 | JH47: 0 | JI47: 0 | JJ47: 0 | JK47: 0 | JL47: 0 | JM47: 0 | JN47: 0 | JO47: 0 | JP47: 0 | JQ47: 0 | JR47: 0 | JS47: 0 | JT47: 0 | JU47: 0 | JV47: 0 | JW47: 0 | JX47: 0
B48: Lighting | D48: 1 | E48: 26 | F48: Straight-Line | G48: 0 | H48: 0 | I48: 0 | L48: =AND(L$22>=$D48,L$22<=$E48)*IF(OR($F48="Straight-Line",$F48="Detail"),$I48/$ES48,EV48) -> 0 | M48: =AND(M$22>=$D48,M$22<=$E48)*IF(OR($F48="Straight-Line",$F48="Detail"),$I48/$ES48,EW48) -> 0 | N48: =AND(N$22>=$D48,N$22<=$E48)*IF(OR($F48="Straight-Line",$F48="Detail"),$I48/$ES48,EX48) -> 0 | O48: =AND(O$22>=$D48,O$22<=$E48)*IF(OR($F48="Straight-Line",$F48="Detail"),$I48/$ES48,EY48) -> 0 | P48: =AND(P$22>=$D48,P$22<=$E48)*IF(OR($F48="Straight-Line",$F48="Detail"),$I48/$ES48,EZ48) -> 0 | Q48: =AND(Q$22>=$D48,Q$22<=$E48)*IF(OR($F48="Straight-Line",$F48="Detail"),$I48/$ES48,FA48) -> 0 | R48: =AND(R$22>=$D48,R$22<=$E48)*IF(OR($F48="Straight-Line",$F48="Detail"),$I48/$ES48,FB48) -> 0 | S48: =AND(S$22>=$D48,S$22<=$E48)*IF(OR($F48="Straight-Line",$F48="Detail"),$I48/$ES48,FC48) -> 0 | T48: =AND(T$22>=$D48,T$22<=$E48)*IF(OR($F48="Straight-Line",$F48="Detail"),$I48/$ES48,FD48) -> 0 | U48: =AND(U$22>=$D48,U$22<=$E48)*IF(OR($F48="Straight-Line",$F48="Detail"),$I48/$ES48,FE48) -> 0 | V48: =AND(V$22>=$D48,V$22<=$E48)*IF(OR($F48="Straight-Line",$F48="Detail"),$I48/$ES48,FF48) -> 0 | W48: =AND(W$22>=$D48,W$22<=$E48)*IF(OR($F48="Straight-Line",$F48="Detail"),$I48/$ES48,FG48) -> 0 | X48: =AND(X$22>=$D48,X$22<=$E48)*IF(OR($F48="Straight-Line",$F48="Detail"),$I48/$ES48,FH48) -> 0 | Y48: =AND(Y$22>=$D48,Y$22<=$E48)*IF(OR($F48="Straight-Line",$F48="Detail"),$I48/$ES48,FI48) -> 0 | Z48: =AND(Z$22>=$D48,Z$22<=$E48)*IF(OR($F48="Straight-Line",$F48="Detail"),$I48/$ES48,FJ48) -> 0 | AA48: =AND(AA$22>=$D48,AA$22<=$E48)*IF(OR($F48="Straight-Line",$F48="Detail"),$I48/$ES48,FK48) -> 0 | AB48: =AND(AB$22>=$D48,AB$22<=$E48)*IF(OR($F48="Straight-Line",$F48="Detail"),$I48/$ES48,FL48) -> 0 | AC48: =AND(AC$22>=$D48,AC$22<=$E48)*IF(OR($F48="Straight-Line",$F48="Detail"),$I48/$ES48,FM48) -> 0 | AD48: =AND(AD$22>=$D48,AD$22<=$E48)*IF(OR($F48="Straight-Line",$F48="Detail"),$I48/$ES48,FN48) -> 0 | AE48: =AND(AE$22>=$D48,AE$22<=$E48)*IF(OR($F48="Straight-Line",$F48="Detail"),$I48/$ES48,FO48) -> 0 | AF48: =AND(AF$22>=$D48,AF$22<=$E48)*IF(OR($F48="Straight-Line",$F48="Detail"),$I48/$ES48,FP48) -> 0 | AG48: =AND(AG$22>=$D48,AG$22<=$E48)*IF(OR($F48="Straight-Line",$F48="Detail"),$I48/$ES48,FQ48) -> 0 | AH48: =AND(AH$22>=$D48,AH$22<=$E48)*IF(OR($F48="Straight-Line",$F48="Detail"),$I48/$ES48,FR48) -> 0 | AI48: =AND(AI$22>=$D48,AI$22<=$E48)*IF(OR($F48="Straight-Line",$F48="Detail"),$I48/$ES48,FS48) -> 0 | AJ48: =AND(AJ$22>=$D48,AJ$22<=$E48)*IF(OR($F48="Straight-Line",$F48="Detail"),$I48/$ES48,FT48) -> 0 | AK48: =AND(AK$22>=$D48,AK$22<=$E48)*IF(OR($F48="Straight-Line",$F48="Detail"),$I48/$ES48,FU48) -> 0 | AL48: =AND(AL$22>=$D48,AL$22<=$E48)*IF(OR($F48="Straight-Line",$F48="Detail"),$I48/$ES48,FV48) -> 0 | AM48: =AND(AM$22>=$D48,AM$22<=$E48)*IF(OR($F48="Straight-Line",$F48="Detail"),$I48/$ES48,FW48) -> 0 | AN48: =AND(AN$22>=$D48,AN$22<=$E48)*IF(OR($F48="Straight-Line",$F48="Detail"),$I48/$ES48,FX48) -> 0 | AO48: =AND(AO$22>=$D48,AO$22<=$E48)*IF(OR($F48="Straight-Line",$F48="Detail"),$I48/$ES48,FY48) -> 0 | AP48: =AND(AP$22>=$D48,AP$22<=$E48)*IF(OR($F48="Straight-Line",$F48="Detail"),$I48/$ES48,FZ48) -> 0 | AQ48: =AND(AQ$22>=$D48,AQ$22<=$E48)*IF(OR($F48="Straight-Line",$F48="Detail"),$I48/$ES48,GA48) -> 0 | AR48: =AND(AR$22>=$D48,AR$22<=$E48)*IF(OR($F48="Straight-Line",$F48="Detail"),$I48/$ES48,GB48) -> 0 | AS48: =AND(AS$22>=$D48,AS$22<=$E48)*IF(OR($F48="Straight-Line",$F48="Detail"),$I48/$ES48,GC48) -> 0 | AT48: =AND(AT$22>=$D48,AT$22<=$E48)*IF(OR($F48="Straight-Line",$F48="Detail"),$I48/$ES48,GD48) -> 0 | AU48: =AND(AU$22>=$D48,AU$22<=$E48)*IF(OR($F48="Straight-Line",$F48="Detail"),$I48/$ES48,GE48) -> 0 | AV48: =AND(AV$22>=$D48,AV$22<=$E48)*IF(OR($F48="Straight-Line",$F48="Detail"),$I48/$ES48,GF48) -> 0 | AW48: =AND(AW$22>=$D48,AW$22<=$E48)*IF(OR($F48="Straight-Line",$F48="Detail"),$I48/$ES48,GG48) -> 0 | AX48: =AND(AX$22>=$D48,AX$22<=$E48)*IF(OR($F48="Straight-Line",$F48="Detail"),$I48/$ES48,GH48) -> 0 | AY48: =AND(AY$22>=$D48,AY$22<=$E48)*IF(OR($F48="Straight-Line",$F48="Detail"),$I48/$ES48,GI48) -> 0 | AZ48: =AND(AZ$22>=$D48,AZ$22<=$E48)*IF(OR($F48="Straight-Line",$F48="Detail"),$I48/$ES48,GJ48) -> 0 | BA48: =AND(BA$22>=$D48,BA$22<=$E48)*IF(OR($F48="Straight-Line",$F48="Detail"),$I48/$ES48,GK48) -> 0 | BB48: =AND(BB$22>=$D48,BB$22<=$E48)*IF(OR($F48="Straight-Line",$F48="Detail"),$I48/$ES48,GL48) -> 0 | BC48: =AND(BC$22>=$D48,BC$22<=$E48)*IF(OR($F48="Straight-Line",$F48="Detail"),$I48/$ES48,GM48) -> 0 | BD48: =AND(BD$22>=$D48,BD$22<=$E48)*IF(OR($F48="Straight-Line",$F48="Detail"),$I48/$ES48,GN48) -> 0 | BE48: =AND(BE$22>=$D48,BE$22<=$E48)*IF(OR($F48="Straight-Line",$F48="Detail"),$I48/$ES48,GO48) -> 0 | BF48: =AND(BF$22>=$D48,BF$22<=$E48)*IF(OR($F48="Straight-Line",$F48="Detail"),$I48/$ES48,GP48) -> 0 | BG48: =AND(BG$22>=$D48,BG$22<=$E48)*IF(OR($F48="Straight-Line",$F48="Detail"),$I48/$ES48,GQ48) -> 0 | BH48: =AND(BH$22>=$D48,BH$22<=$E48)*IF(OR($F48="Straight-Line",$F48="Detail"),$I48/$ES48,GR48) -> 0 | BI48: =AND(BI$22>=$D48,BI$22<=$E48)*IF(OR($F48="Straight-Line",$F48="Detail"),$I48/$ES48,GS48) -> 0 | BJ48: =AND(BJ$22>=$D48,BJ$22<=$E48)*IF(OR($F48="Straight-Line",$F48="Detail"),$I48/$ES48,GT48) -> 0 | BK48: =AND(BK$22>=$D48,BK$22<=$E48)*IF(OR($F48="Straight-Line",$F48="Detail"),$I48/$ES48,GU48) -> 0 | BL48: =AND(BL$22>=$D48,BL$22<=$E48)*IF(OR($F48="Straight-Line",$F48="Detail"),$I48/$ES48,GV48) -> 0 | BM48: =AND(BM$22>=$D48,BM$22<=$E48)*IF(OR($F48="Straight-Line",$F48="Detail"),$I48/$ES48,GW48) -> 0 | BN48: =AND(BN$22>=$D48,BN$22<=$E48)*IF(OR($F48="Straight-Line",$F48="Detail"),$I48/$ES48,GX48) -> 0 | BO48: =AND(BO$22>=$D48,BO$22<=$E48)*IF(OR($F48="Straight-Line",$F48="Detail"),$I48/$ES48,GY48) -> 0 | BP48: =AND(BP$22>=$D48,BP$22<=$E48)*IF(OR($F48="Straight-Line",$F48="Detail"),$I48/$ES48,GZ48) -> 0 | BQ48: =AND(BQ$22>=$D48,BQ$22<=$E48)*IF(OR($F48="Straight-Line",$F48="Detail"),$I48/$ES48,HA48) -> 0 | BR48: =AND(BR$22>=$D48,BR$22<=$E48)*IF(OR($F48="Straight-Line",$F48="Detail"),$I48/$ES48,HB48) -> 0 | BS48: =AND(BS$22>=$D48,BS$22<=$E48)*IF(OR($F48="Straight-Line",$F48="Detail"),$I48/$ES48,HC48) -> 0 | BT48: =AND(BT$22>=$D48,BT$22<=$E48)*IF(OR($F48="Straight-Line",$F48="Detail"),$I48/$ES48,HD48) -> 0 | BU48: =AND(BU$22>=$D48,BU$22<=$E48)*IF(OR($F48="Straight-Line",$F48="Detail"),$I48/$ES48,HE48) -> 0 | BV48: =AND(BV$22>=$D48,BV$22<=$E48)*IF(OR($F48="Straight-Line",$F48="Detail"),$I48/$ES48,HF48) -> 0 | BW48: =AND(BW$22>=$D48,BW$22<=$E48)*IF(OR($F48="Straight-Line",$F48="Detail"),$I48/$ES48,HG48) -> 0 | BX48: =AND(BX$22>=$D48,BX$22<=$E48)*IF(OR($F48="Straight-Line",$F48="Detail"),$I48/$ES48,HH48) -> 0 | BY48: =AND(BY$22>=$D48,BY$22<=$E48)*IF(OR($F48="Straight-Line",$F48="Detail"),$I48/$ES48,HI48) -> 0 | BZ48: =AND(BZ$22>=$D48,BZ$22<=$E48)*IF(OR($F48="Straight-Line",$F48="Detail"),$I48/$ES48,HJ48) -> 0 | CA48: =AND(CA$22>=$D48,CA$22<=$E48)*IF(OR($F48="Straight-Line",$F48="Detail"),$I48/$ES48,HK48) -> 0 | CB48: =AND(CB$22>=$D48,CB$22<=$E48)*IF(OR($F48="Straight-Line",$F48="Detail"),$I48/$ES48,HL48) -> 0 | CC48: =AND(CC$22>=$D48,CC$22<=$E48)*IF(OR($F48="Straight-Line",$F48="Detail"),$I48/$ES48,HM48) -> 0 | CD48: =AND(CD$22>=$D48,CD$22<=$E48)*IF(OR($F48="Straight-Line",$F48="Detail"),$I48/$ES48,HN48) -> 0 | CE48: =AND(CE$22>=$D48,CE$22<=$E48)*IF(OR($F48="Straight-Line",$F48="Detail"),$I48/$ES48,HO48) -> 0 | CF48: =AND(CF$22>=$D48,CF$22<=$E48)*IF(OR($F48="Straight-Line",$F48="Detail"),$I48/$ES48,HP48) -> 0 | CG48: =AND(CG$22>=$D48,CG$22<=$E48)*IF(OR($F48="Straight-Line",$F48="Detail"),$I48/$ES48,HQ48) -> 0 | CH48: =AND(CH$22>=$D48,CH$22<=$E48)*IF(OR($F48="Straight-Line",$F48="Detail"),$I48/$ES48,HR48) -> 0 | CI48: =AND(CI$22>=$D48,CI$22<=$E48)*IF(OR($F48="Straight-Line",$F48="Detail"),$I48/$ES48,HS48) -> 0 | CJ48: =AND(CJ$22>=$D48,CJ$22<=$E48)*IF(OR($F48="Straight-Line",$F48="Detail"),$I48/$ES48,HT48) -> 0 | CK48: =AND(CK$22>=$D48,CK$22<=$E48)*IF(OR($F48="Straight-Line",$F48="Detail"),$I48/$ES48,HU48) -> 0 | CL48: =AND(CL$22>=$D48,CL$22<=$E48)*IF(OR($F48="Straight-Line",$F48="Detail"),$I48/$ES48,HV48) -> 0 | CM48: =AND(CM$22>=$D48,CM$22<=$E48)*IF(OR($F48="Straight-Line",$F48="Detail"),$I48/$ES48,HW48) -> 0 | CN48: =AND(CN$22>=$D48,CN$22<=$E48)*IF(OR($F48="Straight-Line",$F48="Detail"),$I48/$ES48,HX48) -> 0 | CO48: =AND(CO$22>=$D48,CO$22<=$E48)*IF(OR($F48="Straight-Line",$F48="Detail"),$I48/$ES48,HY48) -> 0 | CP48: =AND(CP$22>=$D48,CP$22<=$E48)*IF(OR($F48="Straight-Line",$F48="Detail"),$I48/$ES48,HZ48) -> 0 | CQ48: =AND(CQ$22>=$D48,CQ$22<=$E48)*IF(OR($F48="Straight-Line",$F48="Detail"),$I48/$ES48,IA48) -> 0 | CR48: =AND(CR$22>=$D48,CR$22<=$E48)*IF(OR($F48="Straight-Line",$F48="Detail"),$I48/$ES48,IB48) -> 0 | CS48: =AND(CS$22>=$D48,CS$22<=$E48)*IF(OR($F48="Straight-Line",$F48="Detail"),$I48/$ES48,IC48) -> 0 | CT48: =AND(CT$22>=$D48,CT$22<=$E48)*IF(OR($F48="Straight-Line",$F48="Detail"),$I48/$ES48,ID48) -> 0 | CU48: =AND(CU$22>=$D48,CU$22<=$E48)*IF(OR($F48="Straight-Line",$F48="Detail"),$I48/$ES48,IE48) -> 0 | CV48: =AND(CV$22>=$D48,CV$22<=$E48)*IF(OR($F48="Straight-Line",$F48="Detail"),$I48/$ES48,IF48) -> 0 | CW48: =AND(CW$22>=$D48,CW$22<=$E48)*IF(OR($F48="Straight-Line",$F48="Detail"),$I48/$ES48,IG48) -> 0 | CX48: =AND(CX$22>=$D48,CX$22<=$E48)*IF(OR($F48="Straight-Line",$F48="Detail"),$I48/$ES48,IH48) -> 0 | CY48: =AND(CY$22>=$D48,CY$22<=$E48)*IF(OR($F48="Straight-Line",$F48="Detail"),$I48/$ES48,II48) -> 0 | CZ48: =AND(CZ$22>=$D48,CZ$22<=$E48)*IF(OR($F48="Straight-Line",$F48="Detail"),$I48/$ES48,IJ48) -> 0 | DA48: =AND(DA$22>=$D48,DA$22<=$E48)*IF(OR($F48="Straight-Line",$F48="Detail"),$I48/$ES48,IK48) -> 0 | DB48: =AND(DB$22>=$D48,DB$22<=$E48)*IF(OR($F48="Straight-Line",$F48="Detail"),$I48/$ES48,IL48) -> 0 | DC48: =AND(DC$22>=$D48,DC$22<=$E48)*IF(OR($F48="Straight-Line",$F48="Detail"),$I48/$ES48,IM48) -> 0 | DD48: =AND(DD$22>=$D48,DD$22<=$E48)*IF(OR($F48="Straight-Line",$F48="Detail"),$I48/$ES48,IN48) -> 0 | DE48: =AND(DE$22>=$D48,DE$22<=$E48)*IF(OR($F48="Straight-Line",$F48="Detail"),$I48/$ES48,IO48) -> 0 | DF48: =AND(DF$22>=$D48,DF$22<=$E48)*IF(OR($F48="Straight-Line",$F48="Detail"),$I48/$ES48,IP48) -> 0 | DG48: =AND(DG$22>=$D48,DG$22<=$E48)*IF(OR($F48="Straight-Line",$F48="Detail"),$I48/$ES48,IQ48) -> 0 | DH48: =AND(DH$22>=$D48,DH$22<=$E48)*IF(OR($F48="Straight-Line",$F48="Detail"),$I48/$ES48,IR48) -> 0 | DI48: =AND(DI$22>=$D48,DI$22<=$E48)*IF(OR($F48="Straight-Line",$F48="Detail"),$I48/$ES48,IS48) -> 0 | DJ48: =AND(DJ$22>=$D48,DJ$22<=$E48)*IF(OR($F48="Straight-Line",$F48="Detail"),$I48/$ES48,IT48) -> 0 | DK48: =AND(DK$22>=$D48,DK$22<=$E48)*IF(OR($F48="Straight-Line",$F48="Detail"),$I48/$ES48,IU48) -> 0 | DL48: =AND(DL$22>=$D48,DL$22<=$E48)*IF(OR($F48="Straight-Line",$F48="Detail"),$I48/$ES48,IV48) -> 0 | DM48: =AND(DM$22>=$D48,DM$22<=$E48)*IF(OR($F48="Straight-Line",$F48="Detail"),$I48/$ES48,IW48) -> 0 | DN48: =AND(DN$22>=$D48,DN$22<=$E48)*IF(OR($F48="Straight-Line",$F48="Detail"),$I48/$ES48,IX48) -> 0 | DO48: =AND(DO$22>=$D48,DO$22<=$E48)*IF(OR($F48="Straight-Line",$F48="Detail"),$I48/$ES48,IY48) -> 0 | DP48: =AND(DP$22>=$D48,DP$22<=$E48)*IF(OR($F48="Straight-Line",$F48="Detail"),$I48/$ES48,IZ48) -> 0 | DQ48: =AND(DQ$22>=$D48,DQ$22<=$E48)*IF(OR($F48="Straight-Line",$F48="Detail"),$I48/$ES48,JA48) -> 0 | DR48: =AND(DR$22>=$D48,DR$22<=$E48)*IF(OR($F48="Straight-Line",$F48="Detail"),$I48/$ES48,JB48) -> 0 | DS48: =AND(DS$22>=$D48,DS$22<=$E48)*IF(OR($F48="Straight-Line",$F48="Detail"),$I48/$ES48,JC48) -> 0 | DT48: =AND(DT$22>=$D48,DT$22<=$E48)*IF(OR($F48="Straight-Line",$F48="Detail"),$I48/$ES48,JD48) -> 0 | DU48: =AND(DU$22>=$D48,DU$22<=$E48)*IF(OR($F48="Straight-Line",$F48="Detail"),$I48/$ES48,JE48) -> 0 | DV48: =AND(DV$22>=$D48,DV$22<=$E48)*IF(OR($F48="Straight-Line",$F48="Detail"),$I48/$ES48,JF48) -> 0 | DW48: =AND(DW$22>=$D48,DW$22<=$E48)*IF(OR($F48="Straight-Line",$F48="Detail"),$I48/$ES48,JG48) -> 0 | DX48: =AND(DX$22>=$D48,DX$22<=$E48)*IF(OR($F48="Straight-Line",$F48="Detail"),$I48/$ES48,JH48) -> 0 | DY48: =AND(DY$22>=$D48,DY$22<=$E48)*IF(OR($F48="Straight-Line",$F48="Detail"),$I48/$ES48,JI48) -> 0 | DZ48: =AND(DZ$22>=$D48,DZ$22<=$E48)*IF(OR($F48="Straight-Line",$F48="Detail"),$I48/$ES48,JJ48) -> 0 | EA48: =AND(EA$22>=$D48,EA$22<=$E48)*IF(OR($F48="Straight-Line",$F48="Detail"),$I48/$ES48,JK48) -> 0 | EB48: =AND(EB$22>=$D48,EB$22<=$E48)*IF(OR($F48="Straight-Line",$F48="Detail"),$I48/$ES48,JL48) -> 0 | EC48: =AND(EC$22>=$D48,EC$22<=$E48)*IF(OR($F48="Straight-Line",$F48="Detail"),$I48/$ES48,JM48) -> 0 | ED48: =AND(ED$22>=$D48,ED$22<=$E48)*IF(OR($F48="Straight-Line",$F48="Detail"),$I48/$ES48,JN48) -> 0 | EE48: =AND(EE$22>=$D48,EE$22<=$E48)*IF(OR($F48="Straight-Line",$F48="Detail"),$I48/$ES48,JO48) -> 0 | EF48: =AND(EF$22>=$D48,EF$22<=$E48)*IF(OR($F48="Straight-Line",$F48="Detail"),$I48/$ES48,JP48) -> 0 | EG48: =AND(EG$22>=$D48,EG$22<=$E48)*IF(OR($F48="Straight-Line",$F48="Detail"),$I48/$ES48,JQ48) -> 0 | EH48: =AND(EH$22>=$D48,EH$22<=$E48)*IF(OR($F48="Straight-Line",$F48="Detail"),$I48/$ES48,JR48) -> 0 | EI48: =AND(EI$22>=$D48,EI$22<=$E48)*IF(OR($F48="Straight-Line",$F48="Detail"),$I48/$ES48,JS48) -> 0 | EJ48: =AND(EJ$22>=$D48,EJ$22<=$E48)*IF(OR($F48="Straight-Line",$F48="Detail"),$I48/$ES48,JT48) -> 0 | EK48: =AND(EK$22>=$D48,EK$22<=$E48)*IF(OR($F48="Straight-Line",$F48="Detail"),$I48/$ES48,JU48) -> 0 | EL48: =AND(EL$22>=$D48,EL$22<=$E48)*IF(OR($F48="Straight-Line",$F48="Detail"),$I48/$ES48,JV48) -> 0 | EM48: =AND(EM$22>=$D48,EM$22<=$E48)*IF(OR($F48="Straight-Line",$F48="Detail"),$I48/$ES48,JW48) -> 0 | EN48: =AND(EN$22>=$D48,EN$22<=$E48)*IF(OR($F48="Straight-Line",$F48="Detail"),$I48/$ES48,JX48) -> 0 | EP48: 0 | EQ48: 2026-01-31 | ER48: 2028-02-29 | ES48: 26 | ET48: Straight-Line | EU48: 4.333333333 | EV48: 0 | EW48: 0 | EX48: 0 | EY48: 0 | EZ48: 0 | FA48: 0 | FB48: 0 | FC48: 0 | FD48: 0 | FE48: 0 | FF48: 0 | FG48: 0 | FH48: 0 | FI48: 0 | FJ48: 0 | FK48: 0 | FL48: 0 | FM48: 0 | FN48: 0 | FO48: 0 | FP48: 0 | FQ48: 0 | FR48: 0 | FS48: 0 | FT48: 0 | FU48: 0 | FV48: 0 | FW48: 0 | FX48: 0 | FY48: 0 | FZ48: 0 | GA48: 0 | GB48: 0 | GC48: 0 | GD48: 0 | GE48: 0 | GF48: 0 | GG48: 0 | GH48: 0 | GI48: 0 | GJ48: 0 | GK48: 0 | GL48: 0 | GM48: 0 | GN48: 0 | GO48: 0 | GP48: 0 | GQ48: 0 | GR48: 0 | GS48: 0 | GT48: 0 | GU48: 0 | GV48: 0 | GW48: 0 | GX48: 0 | GY48: 0 | GZ48: 0 | HA48: 0 | HB48: 0 | HC48: 0 | HD48: 0 | HE48: 0 | HF48: 0 | HG48: 0 | HH48: 0 | HI48: 0 | HJ48: 0 | HK48: 0 | HL48: 0 | HM48: 0 | HN48: 0 | HO48: 0 | HP48: 0 | HQ48: 0 | HR48: 0 | HS48: 0 | HT48: 0 | HU48: 0 | HV48: 0 | HW48: 0 | HX48: 0 | HY48: 0 | HZ48: 0 | IA48: 0 | IB48: 0 | IC48: 0 | ID48: 0 | IE48: 0 | IF48: 0 | IG48: 0 | IH48: 0 | II48: 0 | IJ48: 0 | IK48: 0 | IL48: 0 | IM48: 0 | IN48: 0 | IO48: 0 | IP48: 0 | IQ48: 0 | IR48: 0 | IS48: 0 | IT48: 0 | IU48: 0 | IV48: 0 | IW48: 0 | IX48: 0 | IY48: 0 | IZ48: 0 | JA48: 0 | JB48: 0 | JC48: 0 | JD48: 0 | JE48: 0 | JF48: 0 | JG48: 0 | JH48: 0 | JI48: 0 | JJ48: 0 | JK48: 0 | JL48: 0 | JM48: 0 | JN48: 0 | JO48: 0 | JP48: 0 | JQ48: 0 | JR48: 0 | JS48: 0 | JT48: 0 | JU48: 0 | JV48: 0 | JW48: 0 | JX48: 0
B49: Insulation | D49: 1 | E49: 26 | F49: Straight-Line | G49: 0 | H49: 0 | I49: 0 | L49: 0 | M49: 0 | N49: 0 | O49: 0 | P49: 0 | Q49: 0 | R49: 0 | S49: 0 | T49: 0 | U49: 0 | V49: 0 | W49: 0 | X49: 0 | Y49: 0 | Z49: 0 | AA49: 0 | AB49: 0 | AC49: 0 | AD49: 0 | AE49: 0 | AF49: 0 | AG49: 0 | AH49: 0 | AI49: 0 | AJ49: 0 | AK49: 0 | AL49: 0 | AM49: 0 | AN49: 0 | AO49: 0 | AP49: 0 | AQ49: 0 | AR49: 0 | AS49: 0 | AT49: 0 | AU49: 0 | AV49: 0 | AW49: 0 | AX49: 0 | AY49: 0 | AZ49: 0 | BA49: 0 | BB49: 0 | BC49: 0 | BD49: 0 | BE49: 0 | BF49: 0 | BG49: 0 | BH49: 0 | BI49: 0 | BJ49: 0 | BK49: 0 | BL49: 0 | BM49: 0 | BN49: 0 | BO49: 0 | BP49: 0 | BQ49: 0 | BR49: 0 | BS49: 0 | BT49: 0 | BU49: 0 | BV49: 0 | BW49: 0 | BX49: 0 | BY49: 0 | BZ49: 0 | CA49: 0 | CB49: 0 | CC49: 0 | CD49: 0 | CE49: 0 | CF49: 0 | CG49: 0 | CH49: 0 | CI49: 0 | CJ49: 0 | CK49: 0 | CL49: 0 | CM49: 0 | CN49: 0 | CO49: 0 | CP49: 0 | CQ49: 0 | CR49: 0 | CS49: 0 | CT49: 0 | CU49: 0 | CV49: 0 | CW49: 0 | CX49: 0 | CY49: 0 | CZ49: 0 | DA49: 0 | DB49: 0 | DC49: 0 | DD49: 0 | DE49: 0 | DF49: 0 | DG49: 0 | DH49: 0 | DI49: 0 | DJ49: 0 | DK49: 0 | DL49: 0 | DM49: 0 | DN49: 0 | DO49: 0 | DP49: 0 | DQ49: 0 | DR49: 0 | DS49: 0 | DT49: 0 | DU49: 0 | DV49: 0 | DW49: 0 | DX49: 0 | DY49: 0 | DZ49: 0 | EA49: 0 | EB49: 0 | EC49: 0 | ED49: 0 | EE49: 0 | EF49: 0 | EG49: 0 | EH49: 0 | EI49: 0 | EJ49: 0 | EK49: 0 | EL49: 0 | EM49: 0 | EN49: 0 | EP49: 0 | EQ49: 2026-01-31 | ER49: 2028-02-29 | ES49: 26 | ET49: Straight-Line | EU49: 4.333333333 | EV49: 0 | EW49: 0 | EX49: 0 | EY49: 0 | EZ49: 0 | FA49: 0 | FB49: 0 | FC49: 0 | FD49: 0 | FE49: 0 | FF49: 0 | FG49: 0 | FH49: 0 | FI49: 0 | FJ49: 0 | FK49: 0 | FL49: 0 | FM49: 0 | FN49: 0 | FO49: 0 | FP49: 0 | FQ49: 0 | FR49: 0 | FS49: 0 | FT49: 0 | FU49: 0 | FV49: 0 | FW49: 0 | FX49: 0 | FY49: 0 | FZ49: 0 | GA49: 0 | GB49: 0 | GC49: 0 | GD49: 0 | GE49: 0 | GF49: 0 | GG49: 0 | GH49: 0 | GI49: 0 | GJ49: 0 | GK49: 0 | GL49: 0 | GM49: 0 | GN49: 0 | GO49: 0 | GP49: 0 | GQ49: 0 | GR49: 0 | GS49: 0 | GT49: 0 | GU49: 0 | GV49: 0 | GW49: 0 | GX49: 0 | GY49: 0 | GZ49: 0 | HA49: 0 | HB49: 0 | HC49: 0 | HD49: 0 | HE49: 0 | HF49: 0 | HG49: =AND($ET49="S-Curve",HG$23>=$EQ49,HG$23<=$ER49)*(_xlfn.NORM.DIST((YEAR(HG$23)-YEAR($EQ49))*12+MONTH(HG$23)-MONTH($EQ49)+1,$ES49/2,$EU49,TRUE)-_xlfn.NORM.DIST((YEAR(HG$23)-YEAR($EQ49))*12+MONTH(HG$23)-MONTH($EQ49),$ES49/2,$EU49,TRUE))/(1-2*_xlfn.NORM.DIST(0,$ES49/2,$EU49,TRUE))*$EP49 -> 0 | HH49: 0 | HI49: 0 | HJ49: 0 | HK49: 0 | HL49: 0 | HM49: 0 | HN49: 0 | HO49: 0 | HP49: 0 | HQ49: 0 | HR49: 0 | HS49: 0 | HT49: 0 | HU49: 0 | HV49: 0 | HW49: 0 | HX49: 0 | HY49: 0 | HZ49: 0 | IA49: 0 | IB49: 0 | IC49: 0 | ID49: 0 | IE49: 0 | IF49: 0 | IG49: 0 | IH49: 0 | II49: 0 | IJ49: 0 | IK49: 0 | IL49: 0 | IM49: 0 | IN49: 0 | IO49: 0 | IP49: 0 | IQ49: 0 | IR49: 0 | IS49: 0 | IT49: 0 | IU49: 0 | IV49: 0 | IW49: 0 | IX49: 0 | IY49: 0 | IZ49: 0 | JA49: 0 | JB49: 0 | JC49: 0 | JD49: 0 | JE49: 0 | JF49: 0 | JG49: 0 | JH49: 0 | JI49: 0 | JJ49: 0 | JK49: 0 | JL49: 0 | JM49: 0 | JN49: 0 | JO49: 0 | JP49: 0 | JQ49: 0 | JR49: 0 | JS49: =AND($ET49="S-Curve",JS$23>=$EQ49,JS$23<=$ER49)*(_xlfn.NORM.DIST((YEAR(JS$23)-YEAR($EQ49))*12+MONTH(JS$23)-MONTH($EQ49)+1,$ES49/2,$EU49,TRUE)-_xlfn.NORM.DIST((YEAR(JS$23)-YEAR($EQ49))*12+MONTH(JS$23)-MONTH($EQ49),$ES49/2,$EU49,TRUE))/(1-2*_xlfn.NORM.DIST(0,$ES49/2,$EU49,TRUE))*$EP49 -> 0 | JT49: 0 | JU49: 0 | JV49: 0 | JW49: 0 | JX49: 0
B50: Drywall | D50: 1 | E50: 26 | F50: Detail | G50: 13.00635634 | H50: 11202.96 | I50: 4481184 | L50: 0 | M50: =$I$50*'HC Draw'!E178 -> 0 | N50: =$I$50*'HC Draw'!F178 -> 0 | O50: =$I$50*'HC Draw'!G178 -> 0 | P50: =$I$50*'HC Draw'!H178 -> 0 | Q50: =$I$50*'HC Draw'!I178 -> 0 | R50: =$I$50*'HC Draw'!J178 -> 0 | S50: =$I$50*'HC Draw'!K178 -> 0 | T50: =$I$50*'HC Draw'!L178 -> 0 | U50: =$I$50*'HC Draw'!M178 -> 160042.7751 | V50: =$I$50*'HC Draw'!N178 -> 320085.5693 | W50: =$I$50*'HC Draw'!O178 -> 320085.5693 | X50: =$I$50*'HC Draw'!P178 -> 320085.5693 | Y50: =$I$50*'HC Draw'!Q178 -> 320085.5693 | Z50: =$I$50*'HC Draw'!R178 -> 320085.5693 | AA50: =$I$50*'HC Draw'!S178 -> 320085.5693 | AB50: =$I$50*'HC Draw'!T178 -> 320085.5693 | AC50: =$I$50*'HC Draw'!U178 -> 320085.5693 | AD50: =$I$50*'HC Draw'!V178 -> 320085.5693 | AE50: =$I$50*'HC Draw'!W178 -> 320085.5693 | AF50: =$I$50*'HC Draw'!X178 -> 320085.5693 | AG50: =$I$50*'HC Draw'!Y178 -> 320085.5693 | AH50: =$I$50*'HC Draw'!Z178 -> 320085.5693 | AI50: =$I$50*'HC Draw'!AA178 -> 160028.8237 | AJ50: =$I$50*'HC Draw'!AB178 -> 0 | AK50: =$I$50*'HC Draw'!AC178 -> 0 | AL50: =$I$50*'HC Draw'!AD178 -> 0 | AM50: 0 | AN50: 0 | AO50: 0 | AP50: 0 | AQ50: 0 | AR50: 0 | AS50: 0 | AT50: 0 | AU50: 0 | AV50: 0 | AW50: 0 | AX50: 0 | AY50: 0 | AZ50: 0 | BA50: 0 | BB50: 0 | BC50: 0 | BD50: 0 | BE50: 0 | BF50: 0 | BG50: 0 | BH50: 0 | BI50: 0 | BJ50: 0 | BK50: 0 | BL50: 0 | BM50: 0 | BN50: 0 | BO50: 0 | BP50: 0 | BQ50: 0 | BR50: 0 | BS50: 0 | BT50: 0 | BU50: 0 | BV50: 0 | BW50: 0 | BX50: 0 | BY50: 0 | BZ50: 0 | CA50: 0 | CB50: 0 | CC50: 0 | CD50: 0 | CE50: 0 | CF50: 0 | CG50: 0 | CH50: 0 | CI50: 0 | CJ50: 0 | CK50: 0 | CL50: 0 | CM50: 0 | CN50: 0 | CO50: 0 | CP50: 0 | CQ50: 0 | CR50: 0 | CS50: 0 | CT50: 0 | CU50: 0 | CV50: 0 | CW50: 0 | CX50: 0 | CY50: 0 | CZ50: 0 | DA50: 0 | DB50: 0 | DC50: 0 | DD50: 0 | DE50: 0 | DF50: 0 | DG50: 0 | DH50: 0 | DI50: 0 | DJ50: 0 | DK50: 0 | DL50: 0 | DM50: 0 | DN50: 0 | DO50: 0 | DP50: 0 | DQ50: 0 | DR50: 0 | DS50: 0 | DT50: 0 | DU50: 0 | DV50: 0 | DW50: 0 | DX50: 0 | DY50: 0 | DZ50: 0 | EA50: 0 | EB50: 0 | EC50: 0 | ED50: 0 | EE50: 0 | EF50: 0 | EG50: 0 | EH50: 0 | EI50: 0 | EJ50: 0 | EK50: 0 | EL50: 0 | EM50: 0 | EN50: 0 | EP50: 4481184 | EQ50: 2026-01-31 | ER50: 2028-02-29 | ES50: 26 | ET50: Detail | EU50: 4.333333333 | EV50: =AND($ET50="S-Curve",EV$23>=$EQ50,EV$23<=$ER50)*(_xlfn.NORM.DIST((YEAR(EV$23)-YEAR($EQ50))*12+MONTH(EV$23)-MONTH($EQ50)+1,$ES50/2,$EU50,TRUE)-_xlfn.NORM.DIST((YEAR(EV$23)-YEAR($EQ50))*12+MONTH(EV$23)-MONTH($EQ50),$ES50/2,$EU50,TRUE))/(1-2*_xlfn.NORM.DIST(0,$ES50/2,$EU50,TRUE))*$EP50 -> 0 | EW50: 0 | EX50: 0 | EY50: 0 | EZ50: 0 | FA50: 0 | FB50: 0 | FC50: 0 | FD50: 0 | FE50: 0 | FF50: 0 | FG50: 0 | FH50: 0 | FI50: 0 | FJ50: 0 | FK50: 0 | FL50: 0 | FM50: 0 | FN50: 0 | FO50: 0 | FP50: 0 | FQ50: 0 | FR50: 0 | FS50: 0 | FT50: 0 | FU50: 0 | FV50: 0 | FW50: 0 | FX50: 0 | FY50: 0 | FZ50: 0 | GA50: 0 | GB50: 0 | GC50: 0 | GD50: 0 | GE50: 0 | GF50: 0 | GG50: 0 | GH50: 0 | GI50: 0 | GJ50: 0 | GK50: 0 | GL50: 0 | GM50: 0 | GN50: 0 | GO50: 0 | GP50: 0 | GQ50: 0 | GR50: 0 | GS50: 0 | GT50: 0 | GU50: 0 | GV50: 0 | GW50: 0 | GX50: 0 | GY50: 0 | GZ50: 0 | HA50: 0 | HB50: 0 | HC50: 0 | HD50: 0 | HE50: 0 | HF50: 0 | HG50: 0 | HH50: =AND($ET50="S-Curve",HH$23>=$EQ50,HH$23<=$ER50)*(_xlfn.NORM.DIST((YEAR(HH$23)-YEAR($EQ50))*12+MONTH(HH$23)-MONTH($EQ50)+1,$ES50/2,$EU50,TRUE)-_xlfn.NORM.DIST((YEAR(HH$23)-YEAR($EQ50))*12+MONTH(HH$23)-MONTH($EQ50),$ES50/2,$EU50,TRUE))/(1-2*_xlfn.NORM.DIST(0,$ES50/2,$EU50,TRUE))*$EP50 -> 0 | HI50: 0 | HJ50: 0 | HK50: 0 | HL50: 0 | HM50: 0 | HN50: 0 | HO50: 0 | HP50: 0 | HQ50: 0 | HR50: 0 | HS50: 0 | HT50: 0 | HU50: 0 | HV50: 0 | HW50: 0 | HX50: 0 | HY50: 0 | HZ50: 0 | IA50: 0 | IB50: 0 | IC50: 0 | ID50: 0 | IE50: 0 | IF50: 0 | IG50: 0 | IH50: 0 | II50: 0 | IJ50: 0 | IK50: 0 | IL50: 0 | IM50: 0 | IN50: 0 | IO50: 0 | IP50: 0 | IQ50: 0 | IR50: 0 | IS50: 0 | IT50: 0 | IU50: 0 | IV50: 0 | IW50: 0 | IX50: 0 | IY50: 0 | IZ50: 0 | JA50: 0 | JB50: 0 | JC50: 0 | JD50: 0 | JE50: 0 | JF50: 0 | JG50: 0 | JH50: 0 | JI50: 0 | JJ50: 0 | JK50: 0 | JL50: 0 | JM50: 0 | JN50: 0 | JO50: 0 | JP50: 0 | JQ50: 0 | JR50: 0 | JS50: 0 | JT50: 0 | JU50: 0 | JV50: 0 | JW50: 0 | JX50: 0
B51: Lightweight Concrete/Gypcrete | D51: 1 | E51: 26 | F51: Straight-Line | G51: 0 | H51: 0 | I51: 0 | L51: =AND(L$22>=$D51,L$22<=$E51)*IF(OR($F51="Straight-Line",$F51="Detail"),$I51/$ES51,EV51) -> 0 | M51: =AND(M$22>=$D51,M$22<=$E51)*IF(OR($F51="Straight-Line",$F51="Detail"),$I51/$ES51,EW51) -> 0 | N51: =AND(N$22>=$D51,N$22<=$E51)*IF(OR($F51="Straight-Line",$F51="Detail"),$I51/$ES51,EX51) -> 0 | O51: =AND(O$22>=$D51,O$22<=$E51)*IF(OR($F51="Straight-Line",$F51="Detail"),$I51/$ES51,EY51) -> 0 | P51: =AND(P$22>=$D51,P$22<=$E51)*IF(OR($F51="Straight-Line",$F51="Detail"),$I51/$ES51,EZ51) -> 0 | Q51: =AND(Q$22>=$D51,Q$22<=$E51)*IF(OR($F51="Straight-Line",$F51="Detail"),$I51/$ES51,FA51) -> 0 | R51: =AND(R$22>=$D51,R$22<=$E51)*IF(OR($F51="Straight-Line",$F51="Detail"),$I51/$ES51,FB51) -> 0 | S51: =AND(S$22>=$D51,S$22<=$E51)*IF(OR($F51="Straight-Line",$F51="Detail"),$I51/$ES51,FC51) -> 0 | T51: =AND(T$22>=$D51,T$22<=$E51)*IF(OR($F51="Straight-Line",$F51="Detail"),$I51/$ES51,FD51) -> 0 | U51: =AND(U$22>=$D51,U$22<=$E51)*IF(OR($F51="Straight-Line",$F51="Detail"),$I51/$ES51,FE51) -> 0 | V51: =AND(V$22>=$D51,V$22<=$E51)*IF(OR($F51="Straight-Line",$F51="Detail"),$I51/$ES51,FF51) -> 0 | W51: =AND(W$22>=$D51,W$22<=$E51)*IF(OR($F51="Straight-Line",$F51="Detail"),$I51/$ES51,FG51) -> 0 | X51: =AND(X$22>=$D51,X$22<=$E51)*IF(OR($F51="Straight-Line",$F51="Detail"),$I51/$ES51,FH51) -> 0 | Y51: =AND(Y$22>=$D51,Y$22<=$E51)*IF(OR($F51="Straight-Line",$F51="Detail"),$I51/$ES51,FI51) -> 0 | Z51: =AND(Z$22>=$D51,Z$22<=$E51)*IF(OR($F51="Straight-Line",$F51="Detail"),$I51/$ES51,FJ51) -> 0 | AA51: =AND(AA$22>=$D51,AA$22<=$E51)*IF(OR($F51="Straight-Line",$F51="Detail"),$I51/$ES51,FK51) -> 0 | AB51: =AND(AB$22>=$D51,AB$22<=$E51)*IF(OR($F51="Straight-Line",$F51="Detail"),$I51/$ES51,FL51) -> 0 | AC51: =AND(AC$22>=$D51,AC$22<=$E51)*IF(OR($F51="Straight-Line",$F51="Detail"),$I51/$ES51,FM51) -> 0 | AD51: =AND(AD$22>=$D51,AD$22<=$E51)*IF(OR($F51="Straight-Line",$F51="Detail"),$I51/$ES51,FN51) -> 0 | AE51: =AND(AE$22>=$D51,AE$22<=$E51)*IF(OR($F51="Straight-Line",$F51="Detail"),$I51/$ES51,FO51) -> 0 | AF51: =AND(AF$22>=$D51,AF$22<=$E51)*IF(OR($F51="Straight-Line",$F51="Detail"),$I51/$ES51,FP51) -> 0 | AG51: =AND(AG$22>=$D51,AG$22<=$E51)*IF(OR($F51="Straight-Line",$F51="Detail"),$I51/$ES51,FQ51) -> 0 | AH51: =AND(AH$22>=$D51,AH$22<=$E51)*IF(OR($F51="Straight-Line",$F51="Detail"),$I51/$ES51,FR51) -> 0 | AI51: =AND(AI$22>=$D51,AI$22<=$E51)*IF(OR($F51="Straight-Line",$F51="Detail"),$I51/$ES51,FS51) -> 0 | AJ51: =AND(AJ$22>=$D51,AJ$22<=$E51)*IF(OR($F51="Straight-Line",$F51="Detail"),$I51/$ES51,FT51) -> 0 | AK51: =AND(AK$22>=$D51,AK$22<=$E51)*IF(OR($F51="Straight-Line",$F51="Detail"),$I51/$ES51,FU51) -> 0 | AL51: =AND(AL$22>=$D51,AL$22<=$E51)*IF(OR($F51="Straight-Line",$F51="Detail"),$I51/$ES51,FV51) -> 0 | AM51: =AND(AM$22>=$D51,AM$22<=$E51)*IF(OR($F51="Straight-Line",$F51="Detail"),$I51/$ES51,FW51) -> 0 | AN51: =AND(AN$22>=$D51,AN$22<=$E51)*IF(OR($F51="Straight-Line",$F51="Detail"),$I51/$ES51,FX51) -> 0 | AO51: =AND(AO$22>=$D51,AO$22<=$E51)*IF(OR($F51="Straight-Line",$F51="Detail"),$I51/$ES51,FY51) -> 0 | AP51: =AND(AP$22>=$D51,AP$22<=$E51)*IF(OR($F51="Straight-Line",$F51="Detail"),$I51/$ES51,FZ51) -> 0 | AQ51: =AND(AQ$22>=$D51,AQ$22<=$E51)*IF(OR($F51="Straight-Line",$F51="Detail"),$I51/$ES51,GA51) -> 0 | AR51: =AND(AR$22>=$D51,AR$22<=$E51)*IF(OR($F51="Straight-Line",$F51="Detail"),$I51/$ES51,GB51) -> 0 | AS51: =AND(AS$22>=$D51,AS$22<=$E51)*IF(OR($F51="Straight-Line",$F51="Detail"),$I51/$ES51,GC51) -> 0 | AT51: =AND(AT$22>=$D51,AT$22<=$E51)*IF(OR($F51="Straight-Line",$F51="Detail"),$I51/$ES51,GD51) -> 0 | AU51: =AND(AU$22>=$D51,AU$22<=$E51)*IF(OR($F51="Straight-Line",$F51="Detail"),$I51/$ES51,GE51) -> 0 | AV51: =AND(AV$22>=$D51,AV$22<=$E51)*IF(OR($F51="Straight-Line",$F51="Detail"),$I51/$ES51,GF51) -> 0 | AW51: =AND(AW$22>=$D51,AW$22<=$E51)*IF(OR($F51="Straight-Line",$F51="Detail"),$I51/$ES51,GG51) -> 0 | AX51: =AND(AX$22>=$D51,AX$22<=$E51)*IF(OR($F51="Straight-Line",$F51="Detail"),$I51/$ES51,GH51) -> 0 | AY51: =AND(AY$22>=$D51,AY$22<=$E51)*IF(OR($F51="Straight-Line",$F51="Detail"),$I51/$ES51,GI51) -> 0 | AZ51: =AND(AZ$22>=$D51,AZ$22<=$E51)*IF(OR($F51="Straight-Line",$F51="Detail"),$I51/$ES51,GJ51) -> 0 | BA51: =AND(BA$22>=$D51,BA$22<=$E51)*IF(OR($F51="Straight-Line",$F51="Detail"),$I51/$ES51,GK51) -> 0 | BB51: =AND(BB$22>=$D51,BB$22<=$E51)*IF(OR($F51="Straight-Line",$F51="Detail"),$I51/$ES51,GL51) -> 0 | BC51: =AND(BC$22>=$D51,BC$22<=$E51)*IF(OR($F51="Straight-Line",$F51="Detail"),$I51/$ES51,GM51) -> 0 | BD51: =AND(BD$22>=$D51,BD$22<=$E51)*IF(OR($F51="Straight-Line",$F51="Detail"),$I51/$ES51,GN51) -> 0 | BE51: =AND(BE$22>=$D51,BE$22<=$E51)*IF(OR($F51="Straight-Line",$F51="Detail"),$I51/$ES51,GO51) -> 0 | BF51: =AND(BF$22>=$D51,BF$22<=$E51)*IF(OR($F51="Straight-Line",$F51="Detail"),$I51/$ES51,GP51) -> 0 | BG51: =AND(BG$22>=$D51,BG$22<=$E51)*IF(OR($F51="Straight-Line",$F51="Detail"),$I51/$ES51,GQ51) -> 0 | BH51: =AND(BH$22>=$D51,BH$22<=$E51)*IF(OR($F51="Straight-Line",$F51="Detail"),$I51/$ES51,GR51) -> 0 | BI51: =AND(BI$22>=$D51,BI$22<=$E51)*IF(OR($F51="Straight-Line",$F51="Detail"),$I51/$ES51,GS51) -> 0 | BJ51: =AND(BJ$22>=$D51,BJ$22<=$E51)*IF(OR($F51="Straight-Line",$F51="Detail"),$I51/$ES51,GT51) -> 0 | BK51: =AND(BK$22>=$D51,BK$22<=$E51)*IF(OR($F51="Straight-Line",$F51="Detail"),$I51/$ES51,GU51) -> 0 | BL51: =AND(BL$22>=$D51,BL$22<=$E51)*IF(OR($F51="Straight-Line",$F51="Detail"),$I51/$ES51,GV51) -> 0 | BM51: =AND(BM$22>=$D51,BM$22<=$E51)*IF(OR($F51="Straight-Line",$F51="Detail"),$I51/$ES51,GW51) -> 0 | BN51: =AND(BN$22>=$D51,BN$22<=$E51)*IF(OR($F51="Straight-Line",$F51="Detail"),$I51/$ES51,GX51) -> 0 | BO51: =AND(BO$22>=$D51,BO$22<=$E51)*IF(OR($F51="Straight-Line",$F51="Detail"),$I51/$ES51,GY51) -> 0 | BP51: =AND(BP$22>=$D51,BP$22<=$E51)*IF(OR($F51="Straight-Line",$F51="Detail"),$I51/$ES51,GZ51) -> 0 | BQ51: =AND(BQ$22>=$D51,BQ$22<=$E51)*IF(OR($F51="Straight-Line",$F51="Detail"),$I51/$ES51,HA51) -> 0 | BR51: =AND(BR$22>=$D51,BR$22<=$E51)*IF(OR($F51="Straight-Line",$F51="Detail"),$I51/$ES51,HB51) -> 0 | BS51: =AND(BS$22>=$D51,BS$22<=$E51)*IF(OR($F51="Straight-Line",$F51="Detail"),$I51/$ES51,HC51) -> 0 | BT51: =AND(BT$22>=$D51,BT$22<=$E51)*IF(OR($F51="Straight-Line",$F51="Detail"),$I51/$ES51,HD51) -> 0 | BU51: =AND(BU$22>=$D51,BU$22<=$E51)*IF(OR($F51="Straight-Line",$F51="Detail"),$I51/$ES51,HE51) -> 0 | BV51: =AND(BV$22>=$D51,BV$22<=$E51)*IF(OR($F51="Straight-Line",$F51="Detail"),$I51/$ES51,HF51) -> 0 | BW51: =AND(BW$22>=$D51,BW$22<=$E51)*IF(OR($F51="Straight-Line",$F51="Detail"),$I51/$ES51,HG51) -> 0 | BX51: =AND(BX$22>=$D51,BX$22<=$E51)*IF(OR($F51="Straight-Line",$F51="Detail"),$I51/$ES51,HH51) -> 0 | BY51: =AND(BY$22>=$D51,BY$22<=$E51)*IF(OR($F51="Straight-Line",$F51="Detail"),$I51/$ES51,HI51) -> 0 | BZ51: =AND(BZ$22>=$D51,BZ$22<=$E51)*IF(OR($F51="Straight-Line",$F51="Detail"),$I51/$ES51,HJ51) -> 0 | CA51: =AND(CA$22>=$D51,CA$22<=$E51)*IF(OR($F51="Straight-Line",$F51="Detail"),$I51/$ES51,HK51) -> 0 | CB51: =AND(CB$22>=$D51,CB$22<=$E51)*IF(OR($F51="Straight-Line",$F51="Detail"),$I51/$ES51,HL51) -> 0 | CC51: =AND(CC$22>=$D51,CC$22<=$E51)*IF(OR($F51="Straight-Line",$F51="Detail"),$I51/$ES51,HM51) -> 0 | CD51: =AND(CD$22>=$D51,CD$22<=$E51)*IF(OR($F51="Straight-Line",$F51="Detail"),$I51/$ES51,HN51) -> 0 | CE51: =AND(CE$22>=$D51,CE$22<=$E51)*IF(OR($F51="Straight-Line",$F51="Detail"),$I51/$ES51,HO51) -> 0 | CF51: =AND(CF$22>=$D51,CF$22<=$E51)*IF(OR($F51="Straight-Line",$F51="Detail"),$I51/$ES51,HP51) -> 0 | CG51: =AND(CG$22>=$D51,CG$22<=$E51)*IF(OR($F51="Straight-Line",$F51="Detail"),$I51/$ES51,HQ51) -> 0 | CH51: =AND(CH$22>=$D51,CH$22<=$E51)*IF(OR($F51="Straight-Line",$F51="Detail"),$I51/$ES51,HR51) -> 0 | CI51: =AND(CI$22>=$D51,CI$22<=$E51)*IF(OR($F51="Straight-Line",$F51="Detail"),$I51/$ES51,HS51) -> 0 | CJ51: =AND(CJ$22>=$D51,CJ$22<=$E51)*IF(OR($F51="Straight-Line",$F51="Detail"),$I51/$ES51,HT51) -> 0 | CK51: =AND(CK$22>=$D51,CK$22<=$E51)*IF(OR($F51="Straight-Line",$F51="Detail"),$I51/$ES51,HU51) -> 0 | CL51: =AND(CL$22>=$D51,CL$22<=$E51)*IF(OR($F51="Straight-Line",$F51="Detail"),$I51/$ES51,HV51) -> 0 | CM51: =AND(CM$22>=$D51,CM$22<=$E51)*IF(OR($F51="Straight-Line",$F51="Detail"),$I51/$ES51,HW51) -> 0 | CN51: =AND(CN$22>=$D51,CN$22<=$E51)*IF(OR($F51="Straight-Line",$F51="Detail"),$I51/$ES51,HX51) -> 0 | CO51: =AND(CO$22>=$D51,CO$22<=$E51)*IF(OR($F51="Straight-Line",$F51="Detail"),$I51/$ES51,HY51) -> 0 | CP51: =AND(CP$22>=$D51,CP$22<=$E51)*IF(OR($F51="Straight-Line",$F51="Detail"),$I51/$ES51,HZ51) -> 0 | CQ51: =AND(CQ$22>=$D51,CQ$22<=$E51)*IF(OR($F51="Straight-Line",$F51="Detail"),$I51/$ES51,IA51) -> 0 | CR51: =AND(CR$22>=$D51,CR$22<=$E51)*IF(OR($F51="Straight-Line",$F51="Detail"),$I51/$ES51,IB51) -> 0 | CS51: =AND(CS$22>=$D51,CS$22<=$E51)*IF(OR($F51="Straight-Line",$F51="Detail"),$I51/$ES51,IC51) -> 0 | CT51: =AND(CT$22>=$D51,CT$22<=$E51)*IF(OR($F51="Straight-Line",$F51="Detail"),$I51/$ES51,ID51) -> 0 | CU51: =AND(CU$22>=$D51,CU$22<=$E51)*IF(OR($F51="Straight-Line",$F51="Detail"),$I51/$ES51,IE51) -> 0 | CV51: =AND(CV$22>=$D51,CV$22<=$E51)*IF(OR($F51="Straight-Line",$F51="Detail"),$I51/$ES51,IF51) -> 0 | CW51: =AND(CW$22>=$D51,CW$22<=$E51)*IF(OR($F51="Straight-Line",$F51="Detail"),$I51/$ES51,IG51) -> 0 | CX51: =AND(CX$22>=$D51,CX$22<=$E51)*IF(OR($F51="Straight-Line",$F51="Detail"),$I51/$ES51,IH51) -> 0 | CY51: =AND(CY$22>=$D51,CY$22<=$E51)*IF(OR($F51="Straight-Line",$F51="Detail"),$I51/$ES51,II51) -> 0 | CZ51: =AND(CZ$22>=$D51,CZ$22<=$E51)*IF(OR($F51="Straight-Line",$F51="Detail"),$I51/$ES51,IJ51) -> 0 | DA51: =AND(DA$22>=$D51,DA$22<=$E51)*IF(OR($F51="Straight-Line",$F51="Detail"),$I51/$ES51,IK51) -> 0 | DB51: =AND(DB$22>=$D51,DB$22<=$E51)*IF(OR($F51="Straight-Line",$F51="Detail"),$I51/$ES51,IL51) -> 0 | DC51: =AND(DC$22>=$D51,DC$22<=$E51)*IF(OR($F51="Straight-Line",$F51="Detail"),$I51/$ES51,IM51) -> 0 | DD51: =AND(DD$22>=$D51,DD$22<=$E51)*IF(OR($F51="Straight-Line",$F51="Detail"),$I51/$ES51,IN51) -> 0 | DE51: =AND(DE$22>=$D51,DE$22<=$E51)*IF(OR($F51="Straight-Line",$F51="Detail"),$I51/$ES51,IO51) -> 0 | DF51: =AND(DF$22>=$D51,DF$22<=$E51)*IF(OR($F51="Straight-Line",$F51="Detail"),$I51/$ES51,IP51) -> 0 | DG51: =AND(DG$22>=$D51,DG$22<=$E51)*IF(OR($F51="Straight-Line",$F51="Detail"),$I51/$ES51,IQ51) -> 0 | DH51: =AND(DH$22>=$D51,DH$22<=$E51)*IF(OR($F51="Straight-Line",$F51="Detail"),$I51/$ES51,IR51) -> 0 | DI51: =AND(DI$22>=$D51,DI$22<=$E51)*IF(OR($F51="Straight-Line",$F51="Detail"),$I51/$ES51,IS51) -> 0 | DJ51: =AND(DJ$22>=$D51,DJ$22<=$E51)*IF(OR($F51="Straight-Line",$F51="Detail"),$I51/$ES51,IT51) -> 0 | DK51: =AND(DK$22>=$D51,DK$22<=$E51)*IF(OR($F51="Straight-Line",$F51="Detail"),$I51/$ES51,IU51) -> 0 | DL51: =AND(DL$22>=$D51,DL$22<=$E51)*IF(OR($F51="Straight-Line",$F51="Detail"),$I51/$ES51,IV51) -> 0 | DM51: =AND(DM$22>=$D51,DM$22<=$E51)*IF(OR($F51="Straight-Line",$F51="Detail"),$I51/$ES51,IW51) -> 0 | DN51: =AND(DN$22>=$D51,DN$22<=$E51)*IF(OR($F51="Straight-Line",$F51="Detail"),$I51/$ES51,IX51) -> 0 | DO51: =AND(DO$22>=$D51,DO$22<=$E51)*IF(OR($F51="Straight-Line",$F51="Detail"),$I51/$ES51,IY51) -> 0 | DP51: =AND(DP$22>=$D51,DP$22<=$E51)*IF(OR($F51="Straight-Line",$F51="Detail"),$I51/$ES51,IZ51) -> 0 | DQ51: =AND(DQ$22>=$D51,DQ$22<=$E51)*IF(OR($F51="Straight-Line",$F51="Detail"),$I51/$ES51,JA51) -> 0 | DR51: =AND(DR$22>=$D51,DR$22<=$E51)*IF(OR($F51="Straight-Line",$F51="Detail"),$I51/$ES51,JB51) -> 0 | DS51: =AND(DS$22>=$D51,DS$22<=$E51)*IF(OR($F51="Straight-Line",$F51="Detail"),$I51/$ES51,JC51) -> 0 | DT51: =AND(DT$22>=$D51,DT$22<=$E51)*IF(OR($F51="Straight-Line",$F51="Detail"),$I51/$ES51,JD51) -> 0 | DU51: =AND(DU$22>=$D51,DU$22<=$E51)*IF(OR($F51="Straight-Line",$F51="Detail"),$I51/$ES51,JE51) -> 0 | DV51: =AND(DV$22>=$D51,DV$22<=$E51)*IF(OR($F51="Straight-Line",$F51="Detail"),$I51/$ES51,JF51) -> 0 | DW51: =AND(DW$22>=$D51,DW$22<=$E51)*IF(OR($F51="Straight-Line",$F51="Detail"),$I51/$ES51,JG51) -> 0 | DX51: =AND(DX$22>=$D51,DX$22<=$E51)*IF(OR($F51="Straight-Line",$F51="Detail"),$I51/$ES51,JH51) -> 0 | DY51: =AND(DY$22>=$D51,DY$22<=$E51)*IF(OR($F51="Straight-Line",$F51="Detail"),$I51/$ES51,JI51) -> 0 | DZ51: =AND(DZ$22>=$D51,DZ$22<=$E51)*IF(OR($F51="Straight-Line",$F51="Detail"),$I51/$ES51,JJ51) -> 0 | EA51: =AND(EA$22>=$D51,EA$22<=$E51)*IF(OR($F51="Straight-Line",$F51="Detail"),$I51/$ES51,JK51) -> 0 | EB51: =AND(EB$22>=$D51,EB$22<=$E51)*IF(OR($F51="Straight-Line",$F51="Detail"),$I51/$ES51,JL51) -> 0 | EC51: =AND(EC$22>=$D51,EC$22<=$E51)*IF(OR($F51="Straight-Line",$F51="Detail"),$I51/$ES51,JM51) -> 0 | ED51: =AND(ED$22>=$D51,ED$22<=$E51)*IF(OR($F51="Straight-Line",$F51="Detail"),$I51/$ES51,JN51) -> 0 | EE51: =AND(EE$22>=$D51,EE$22<=$E51)*IF(OR($F51="Straight-Line",$F51="Detail"),$I51/$ES51,JO51) -> 0 | EF51: =AND(EF$22>=$D51,EF$22<=$E51)*IF(OR($F51="Straight-Line",$F51="Detail"),$I51/$ES51,JP51) -> 0 | EG51: =AND(EG$22>=$D51,EG$22<=$E51)*IF(OR($F51="Straight-Line",$F51="Detail"),$I51/$ES51,JQ51) -> 0 | EH51: =AND(EH$22>=$D51,EH$22<=$E51)*IF(OR($F51="Straight-Line",$F51="Detail"),$I51/$ES51,JR51) -> 0 | EI51: =AND(EI$22>=$D51,EI$22<=$E51)*IF(OR($F51="Straight-Line",$F51="Detail"),$I51/$ES51,JS51) -> 0 | EJ51: =AND(EJ$22>=$D51,EJ$22<=$E51)*IF(OR($F51="Straight-Line",$F51="Detail"),$I51/$ES51,JT51) -> 0 | EK51: =AND(EK$22>=$D51,EK$22<=$E51)*IF(OR($F51="Straight-Line",$F51="Detail"),$I51/$ES51,JU51) -> 0 | EL51: =AND(EL$22>=$D51,EL$22<=$E51)*IF(OR($F51="Straight-Line",$F51="Detail"),$I51/$ES51,JV51) -> 0 | EM51: =AND(EM$22>=$D51,EM$22<=$E51)*IF(OR($F51="Straight-Line",$F51="Detail"),$I51/$ES51,JW51) -> 0 | EN51: =AND(EN$22>=$D51,EN$22<=$E51)*IF(OR($F51="Straight-Line",$F51="Detail"),$I51/$ES51,JX51) -> 0 | EP51: 0 | EQ51: 2026-01-31 | ER51: 2028-02-29 | ES51: 26 | ET51: Straight-Line | EU51: 4.333333333 | EV51: 0 | EW51: 0 | EX51: 0 | EY51: 0 | EZ51: 0 | FA51: 0 | FB51: 0 | FC51: 0 | FD51: 0 | FE51: 0 | FF51: 0 | FG51: 0 | FH51: 0 | FI51: 0 | FJ51: 0 | FK51: 0 | FL51: 0 | FM51: 0 | FN51: 0 | FO51: 0 | FP51: 0 | FQ51: 0 | FR51: 0 | FS51: 0 | FT51: 0 | FU51: 0 | FV51: 0 | FW51: 0 | FX51: 0 | FY51: 0 | FZ51: 0 | GA51: 0 | GB51: 0 | GC51: 0 | GD51: 0 | GE51: 0 | GF51: 0 | GG51: 0 | GH51: 0 | GI51: 0 | GJ51: 0 | GK51: 0 | GL51: 0 | GM51: 0 | GN51: 0 | GO51: 0 | GP51: 0 | GQ51: 0 | GR51: 0 | GS51: 0 | GT51: 0 | GU51: 0 | GV51: 0 | GW51: 0 | GX51: 0 | GY51: 0 | GZ51: 0 | HA51: 0 | HB51: 0 | HC51: 0 | HD51: 0 | HE51: 0 | HF51: 0 | HG51: 0 | HH51: 0 | HI51: 0 | HJ51: 0 | HK51: 0 | HL51: 0 | HM51: 0 | HN51: 0 | HO51: 0 | HP51: 0 | HQ51: 0 | HR51: 0 | HS51: 0 | HT51: 0 | HU51: 0 | HV51: 0 | HW51: 0 | HX51: 0 | HY51: 0 | HZ51: 0 | IA51: 0 | IB51: 0 | IC51: 0 | ID51: 0 | IE51: 0 | IF51: 0 | IG51: 0 | IH51: 0 | II51: 0 | IJ51: 0 | IK51: 0 | IL51: 0 | IM51: 0 | IN51: 0 | IO51: 0 | IP51: 0 | IQ51: 0 | IR51: 0 | IS51: 0 | IT51: 0 | IU51: 0 | IV51: 0 | IW51: 0 | IX51: 0 | IY51: 0 | IZ51: 0 | JA51: 0 | JB51: 0 | JC51: 0 | JD51: 0 | JE51: 0 | JF51: 0 | JG51: 0 | JH51: 0 | JI51: 0 | JJ51: 0 | JK51: 0 | JL51: 0 | JM51: 0 | JN51: 0 | JO51: 0 | JP51: 0 | JQ51: 0 | JR51: 0 | JS51: 0 | JT51: 0 | JU51: 0 | JV51: 0 | JW51: 0 | JX51: 0
B52: Masonry | D52: 1 | E52: 26 | F52: Detail | G52: 4.901926638 | H52: 4222.25 | I52: 1688900 | L52: 0 | M52: =$I$52*'HC Draw'!E128 -> 0 | N52: =$I$52*'HC Draw'!F128 -> 0 | O52: =$I$52*'HC Draw'!G128 -> 0 | P52: =$I$52*'HC Draw'!H128 -> 0 | Q52: =$I$52*'HC Draw'!I128 -> 0 | R52: =$I$52*'HC Draw'!J128 -> 93827.78326 | S52: =$I$52*'HC Draw'!K128 -> 93827.78326 | T52: =$I$52*'HC Draw'!L128 -> 93827.78326 | U52: =$I$52*'HC Draw'!M128 -> 93827.78326 | V52: =$I$52*'HC Draw'!N128 -> 93827.78326 | W52: =$I$52*'HC Draw'!O128 -> 93827.78326 | X52: =$I$52*'HC Draw'!P128 -> 93827.78326 | Y52: =$I$52*'HC Draw'!Q128 -> 93827.78326 | Z52: =$I$52*'HC Draw'!R128 -> 93827.78326 | AA52: =$I$52*'HC Draw'!S128 -> 93827.78326 | AB52: =$I$52*'HC Draw'!T128 -> 93827.78326 | AC52: =$I$52*'HC Draw'!U128 -> 93827.78326 | AD52: =$I$52*'HC Draw'!V128 -> 93827.78326 | AE52: =$I$52*'HC Draw'!W128 -> 93827.78326 | AF52: =$I$52*'HC Draw'!X128 -> 93827.78326 | AG52: =$I$52*'HC Draw'!Y128 -> 93827.78326 | AH52: =$I$52*'HC Draw'!Z128 -> 93827.78326 | AI52: =$I$52*'HC Draw'!AA128 -> 93827.78326 | AJ52: =$I$52*'HC Draw'!AB128 -> 0 | AK52: =$I$52*'HC Draw'!AC128 -> 0 | AL52: =$I$52*'HC Draw'!AD128 -> 0 | AM52: 0 | AN52: 0 | AO52: 0 | AP52: 0 | AQ52: 0 | AR52: 0 | AS52: 0 | AT52: 0 | AU52: 0 | AV52: 0 | AW52: 0 | AX52: 0 | AY52: 0 | AZ52: 0 | BA52: 0 | BB52: 0 | BC52: 0 | BD52: 0 | BE52: 0 | BF52: 0 | BG52: 0 | BH52: 0 | BI52: 0 | BJ52: 0 | BK52: 0 | BL52: 0 | BM52: 0 | BN52: 0 | BO52: 0 | BP52: 0 | BQ52: 0 | BR52: 0 | BS52: 0 | BT52: 0 | BU52: 0 | BV52: 0 | BW52: 0 | BX52: 0 | BY52: 0 | BZ52: 0 | CA52: 0 | CB52: 0 | CC52: 0 | CD52: 0 | CE52: 0 | CF52: 0 | CG52: 0 | CH52: 0 | CI52: 0 | CJ52: 0 | CK52: 0 | CL52: 0 | CM52: 0 | CN52: 0 | CO52: 0 | CP52: 0 | CQ52: 0 | CR52: 0 | CS52: 0 | CT52: 0 | CU52: 0 | CV52: 0 | CW52: 0 | CX52: 0 | CY52: 0 | CZ52: 0 | DA52: 0 | DB52: 0 | DC52: 0 | DD52: 0 | DE52: 0 | DF52: 0 | DG52: 0 | DH52: 0 | DI52: 0 | DJ52: 0 | DK52: 0 | DL52: 0 | DM52: 0 | DN52: 0 | DO52: 0 | DP52: 0 | DQ52: 0 | DR52: 0 | DS52: 0 | DT52: 0 | DU52: 0 | DV52: 0 | DW52: 0 | DX52: 0 | DY52: 0 | DZ52: 0 | EA52: 0 | EB52: 0 | EC52: 0 | ED52: 0 | EE52: 0 | EF52: 0 | EG52: 0 | EH52: 0 | EI52: 0 | EJ52: 0 | EK52: 0 | EL52: 0 | EM52: 0 | EN52: 0 | EP52: 1688900 | EQ52: 2026-01-31 | ER52: 2028-02-29 | ES52: 26 | ET52: Detail | EU52: 4.333333333 | EV52: 0 | EW52: 0 | EX52: 0 | EY52: 0 | EZ52: 0 | FA52: 0 | FB52: 0 | FC52: 0 | FD52: 0 | FE52: 0 | FF52: 0 | FG52: 0 | FH52: 0 | FI52: 0 | FJ52: 0 | FK52: 0 | FL52: 0 | FM52: 0 | FN52: 0 | FO52: 0 | FP52: 0 | FQ52: 0 | FR52: 0 | FS52: 0 | FT52: 0 | FU52: 0 | FV52: 0 | FW52: 0 | FX52: 0 | FY52: 0 | FZ52: 0 | GA52: 0 | GB52: 0 | GC52: 0 | GD52: 0 | GE52: 0 | GF52: 0 | GG52: 0 | GH52: 0 | GI52: 0 | GJ52: 0 | GK52: 0 | GL52: 0 | GM52: 0 | GN52: 0 | GO52: 0 | GP52: 0 | GQ52: 0 | GR52: 0 | GS52: 0 | GT52: 0 | GU52: 0 | GV52: 0 | GW52: 0 | GX52: 0 | GY52: 0 | GZ52: 0 | HA52: 0 | HB52: 0 | HC52: 0 | HD52: 0 | HE52: 0 | HF52: 0 | HG52: 0 | HH52: 0 | HI52: 0 | HJ52: 0 | HK52: 0 | HL52: 0 | HM52: 0 | HN52: 0 | HO52: 0 | HP52: 0 | HQ52: 0 | HR52: 0 | HS52: 0 | HT52: 0 | HU52: 0 | HV52: 0 | HW52: 0 | HX52: 0 | HY52: 0 | HZ52: 0 | IA52: 0 | IB52: 0 | IC52: 0 | ID52: 0 | IE52: 0 | IF52: 0 | IG52: 0 | IH52: 0 | II52: 0 | IJ52: 0 | IK52: 0 | IL52: 0 | IM52: 0 | IN52: 0 | IO52: 0 | IP52: 0 | IQ52: 0 | IR52: 0 | IS52: 0 | IT52: 0 | IU52: 0 | IV52: 0 | IW52: 0 | IX52: 0 | IY52: 0 | IZ52: 0 | JA52: 0 | JB52: 0 | JC52: 0 | JD52: 0 | JE52: 0 | JF52: 0 | JG52: 0 | JH52: 0 | JI52: 0 | JJ52: 0 | JK52: 0 | JL52: 0 | JM52: 0 | JN52: 0 | JO52: 0 | JP52: 0 | JQ52: 0 | JR52: 0 | JS52: 0 | JT52: 0 | JU52: 0 | JV52: 0 | JW52: 0 | JX52: 0
B53: Interior Trim | D53: 1 | E53: 26 | F53: Straight-Line | G53: 0 | H53: 0 | I53: 0 | L53: =AND(L$22>=$D53,L$22<=$E53)*IF(OR($F53="Straight-Line",$F53="Detail"),$I53/$ES53,EV53) -> 0 | M53: =AND(M$22>=$D53,M$22<=$E53)*IF(OR($F53="Straight-Line",$F53="Detail"),$I53/$ES53,EW53) -> 0 | N53: =AND(N$22>=$D53,N$22<=$E53)*IF(OR($F53="Straight-Line",$F53="Detail"),$I53/$ES53,EX53) -> 0 | O53: =AND(O$22>=$D53,O$22<=$E53)*IF(OR($F53="Straight-Line",$F53="Detail"),$I53/$ES53,EY53) -> 0 | P53: =AND(P$22>=$D53,P$22<=$E53)*IF(OR($F53="Straight-Line",$F53="Detail"),$I53/$ES53,EZ53) -> 0 | Q53: =AND(Q$22>=$D53,Q$22<=$E53)*IF(OR($F53="Straight-Line",$F53="Detail"),$I53/$ES53,FA53) -> 0 | R53: =AND(R$22>=$D53,R$22<=$E53)*IF(OR($F53="Straight-Line",$F53="Detail"),$I53/$ES53,FB53) -> 0 | S53: =AND(S$22>=$D53,S$22<=$E53)*IF(OR($F53="Straight-Line",$F53="Detail"),$I53/$ES53,FC53) -> 0 | T53: =AND(T$22>=$D53,T$22<=$E53)*IF(OR($F53="Straight-Line",$F53="Detail"),$I53/$ES53,FD53) -> 0 | U53: =AND(U$22>=$D53,U$22<=$E53)*IF(OR($F53="Straight-Line",$F53="Detail"),$I53/$ES53,FE53) -> 0 | V53: =AND(V$22>=$D53,V$22<=$E53)*IF(OR($F53="Straight-Line",$F53="Detail"),$I53/$ES53,FF53) -> 0 | W53: =AND(W$22>=$D53,W$22<=$E53)*IF(OR($F53="Straight-Line",$F53="Detail"),$I53/$ES53,FG53) -> 0 | X53: =AND(X$22>=$D53,X$22<=$E53)*IF(OR($F53="Straight-Line",$F53="Detail"),$I53/$ES53,FH53) -> 0 | Y53: =AND(Y$22>=$D53,Y$22<=$E53)*IF(OR($F53="Straight-Line",$F53="Detail"),$I53/$ES53,FI53) -> 0 | Z53: =AND(Z$22>=$D53,Z$22<=$E53)*IF(OR($F53="Straight-Line",$F53="Detail"),$I53/$ES53,FJ53) -> 0 | AA53: =AND(AA$22>=$D53,AA$22<=$E53)*IF(OR($F53="Straight-Line",$F53="Detail"),$I53/$ES53,FK53) -> 0 | AB53: =AND(AB$22>=$D53,AB$22<=$E53)*IF(OR($F53="Straight-Line",$F53="Detail"),$I53/$ES53,FL53) -> 0 | AC53: =AND(AC$22>=$D53,AC$22<=$E53)*IF(OR($F53="Straight-Line",$F53="Detail"),$I53/$ES53,FM53) -> 0 | AD53: =AND(AD$22>=$D53,AD$22<=$E53)*IF(OR($F53="Straight-Line",$F53="Detail"),$I53/$ES53,FN53) -> 0 | AE53: =AND(AE$22>=$D53,AE$22<=$E53)*IF(OR($F53="Straight-Line",$F53="Detail"),$I53/$ES53,FO53) -> 0 | AF53: =AND(AF$22>=$D53,AF$22<=$E53)*IF(OR($F53="Straight-Line",$F53="Detail"),$I53/$ES53,FP53) -> 0 | AG53: =AND(AG$22>=$D53,AG$22<=$E53)*IF(OR($F53="Straight-Line",$F53="Detail"),$I53/$ES53,FQ53) -> 0 | AH53: =AND(AH$22>=$D53,AH$22<=$E53)*IF(OR($F53="Straight-Line",$F53="Detail"),$I53/$ES53,FR53) -> 0 | AI53: =AND(AI$22>=$D53,AI$22<=$E53)*IF(OR($F53="Straight-Line",$F53="Detail"),$I53/$ES53,FS53) -> 0 | AJ53: =AND(AJ$22>=$D53,AJ$22<=$E53)*IF(OR($F53="Straight-Line",$F53="Detail"),$I53/$ES53,FT53) -> 0 | AK53: =AND(AK$22>=$D53,AK$22<=$E53)*IF(OR($F53="Straight-Line",$F53="Detail"),$I53/$ES53,FU53) -> 0 | AL53: =AND(AL$22>=$D53,AL$22<=$E53)*IF(OR($F53="Straight-Line",$F53="Detail"),$I53/$ES53,FV53) -> 0 | AM53: =AND(AM$22>=$D53,AM$22<=$E53)*IF(OR($F53="Straight-Line",$F53="Detail"),$I53/$ES53,FW53) -> 0 | AN53: =AND(AN$22>=$D53,AN$22<=$E53)*IF(OR($F53="Straight-Line",$F53="Detail"),$I53/$ES53,FX53) -> 0 | AO53: =AND(AO$22>=$D53,AO$22<=$E53)*IF(OR($F53="Straight-Line",$F53="Detail"),$I53/$ES53,FY53) -> 0 | AP53: =AND(AP$22>=$D53,AP$22<=$E53)*IF(OR($F53="Straight-Line",$F53="Detail"),$I53/$ES53,FZ53) -> 0 | AQ53: =AND(AQ$22>=$D53,AQ$22<=$E53)*IF(OR($F53="Straight-Line",$F53="Detail"),$I53/$ES53,GA53) -> 0 | AR53: =AND(AR$22>=$D53,AR$22<=$E53)*IF(OR($F53="Straight-Line",$F53="Detail"),$I53/$ES53,GB53) -> 0 | AS53: =AND(AS$22>=$D53,AS$22<=$E53)*IF(OR($F53="Straight-Line",$F53="Detail"),$I53/$ES53,GC53) -> 0 | AT53: =AND(AT$22>=$D53,AT$22<=$E53)*IF(OR($F53="Straight-Line",$F53="Detail"),$I53/$ES53,GD53) -> 0 | AU53: =AND(AU$22>=$D53,AU$22<=$E53)*IF(OR($F53="Straight-Line",$F53="Detail"),$I53/$ES53,GE53) -> 0 | AV53: =AND(AV$22>=$D53,AV$22<=$E53)*IF(OR($F53="Straight-Line",$F53="Detail"),$I53/$ES53,GF53) -> 0 | AW53: =AND(AW$22>=$D53,AW$22<=$E53)*IF(OR($F53="Straight-Line",$F53="Detail"),$I53/$ES53,GG53) -> 0 | AX53: =AND(AX$22>=$D53,AX$22<=$E53)*IF(OR($F53="Straight-Line",$F53="Detail"),$I53/$ES53,GH53) -> 0 | AY53: =AND(AY$22>=$D53,AY$22<=$E53)*IF(OR($F53="Straight-Line",$F53="Detail"),$I53/$ES53,GI53) -> 0 | AZ53: =AND(AZ$22>=$D53,AZ$22<=$E53)*IF(OR($F53="Straight-Line",$F53="Detail"),$I53/$ES53,GJ53) -> 0 | BA53: =AND(BA$22>=$D53,BA$22<=$E53)*IF(OR($F53="Straight-Line",$F53="Detail"),$I53/$ES53,GK53) -> 0 | BB53: =AND(BB$22>=$D53,BB$22<=$E53)*IF(OR($F53="Straight-Line",$F53="Detail"),$I53/$ES53,GL53) -> 0 | BC53: =AND(BC$22>=$D53,BC$22<=$E53)*IF(OR($F53="Straight-Line",$F53="Detail"),$I53/$ES53,GM53) -> 0 | BD53: =AND(BD$22>=$D53,BD$22<=$E53)*IF(OR($F53="Straight-Line",$F53="Detail"),$I53/$ES53,GN53) -> 0 | BE53: =AND(BE$22>=$D53,BE$22<=$E53)*IF(OR($F53="Straight-Line",$F53="Detail"),$I53/$ES53,GO53) -> 0 | BF53: =AND(BF$22>=$D53,BF$22<=$E53)*IF(OR($F53="Straight-Line",$F53="Detail"),$I53/$ES53,GP53) -> 0 | BG53: =AND(BG$22>=$D53,BG$22<=$E53)*IF(OR($F53="Straight-Line",$F53="Detail"),$I53/$ES53,GQ53) -> 0 | BH53: =AND(BH$22>=$D53,BH$22<=$E53)*IF(OR($F53="Straight-Line",$F53="Detail"),$I53/$ES53,GR53) -> 0 | BI53: =AND(BI$22>=$D53,BI$22<=$E53)*IF(OR($F53="Straight-Line",$F53="Detail"),$I53/$ES53,GS53) -> 0 | BJ53: =AND(BJ$22>=$D53,BJ$22<=$E53)*IF(OR($F53="Straight-Line",$F53="Detail"),$I53/$ES53,GT53) -> 0 | BK53: =AND(BK$22>=$D53,BK$22<=$E53)*IF(OR($F53="Straight-Line",$F53="Detail"),$I53/$ES53,GU53) -> 0 | BL53: =AND(BL$22>=$D53,BL$22<=$E53)*IF(OR($F53="Straight-Line",$F53="Detail"),$I53/$ES53,GV53) -> 0 | BM53: =AND(BM$22>=$D53,BM$22<=$E53)*IF(OR($F53="Straight-Line",$F53="Detail"),$I53/$ES53,GW53) -> 0 | BN53: =AND(BN$22>=$D53,BN$22<=$E53)*IF(OR($F53="Straight-Line",$F53="Detail"),$I53/$ES53,GX53) -> 0 | BO53: =AND(BO$22>=$D53,BO$22<=$E53)*IF(OR($F53="Straight-Line",$F53="Detail"),$I53/$ES53,GY53) -> 0 | BP53: =AND(BP$22>=$D53,BP$22<=$E53)*IF(OR($F53="Straight-Line",$F53="Detail"),$I53/$ES53,GZ53) -> 0 | BQ53: =AND(BQ$22>=$D53,BQ$22<=$E53)*IF(OR($F53="Straight-Line",$F53="Detail"),$I53/$ES53,HA53) -> 0 | BR53: =AND(BR$22>=$D53,BR$22<=$E53)*IF(OR($F53="Straight-Line",$F53="Detail"),$I53/$ES53,HB53) -> 0 | BS53: =AND(BS$22>=$D53,BS$22<=$E53)*IF(OR($F53="Straight-Line",$F53="Detail"),$I53/$ES53,HC53) -> 0 | BT53: =AND(BT$22>=$D53,BT$22<=$E53)*IF(OR($F53="Straight-Line",$F53="Detail"),$I53/$ES53,HD53) -> 0 | BU53: =AND(BU$22>=$D53,BU$22<=$E53)*IF(OR($F53="Straight-Line",$F53="Detail"),$I53/$ES53,HE53) -> 0 | BV53: =AND(BV$22>=$D53,BV$22<=$E53)*IF(OR($F53="Straight-Line",$F53="Detail"),$I53/$ES53,HF53) -> 0 | BW53: =AND(BW$22>=$D53,BW$22<=$E53)*IF(OR($F53="Straight-Line",$F53="Detail"),$I53/$ES53,HG53) -> 0 | BX53: =AND(BX$22>=$D53,BX$22<=$E53)*IF(OR($F53="Straight-Line",$F53="Detail"),$I53/$ES53,HH53) -> 0 | BY53: =AND(BY$22>=$D53,BY$22<=$E53)*IF(OR($F53="Straight-Line",$F53="Detail"),$I53/$ES53,HI53) -> 0 | BZ53: =AND(BZ$22>=$D53,BZ$22<=$E53)*IF(OR($F53="Straight-Line",$F53="Detail"),$I53/$ES53,HJ53) -> 0 | CA53: =AND(CA$22>=$D53,CA$22<=$E53)*IF(OR($F53="Straight-Line",$F53="Detail"),$I53/$ES53,HK53) -> 0 | CB53: =AND(CB$22>=$D53,CB$22<=$E53)*IF(OR($F53="Straight-Line",$F53="Detail"),$I53/$ES53,HL53) -> 0 | CC53: =AND(CC$22>=$D53,CC$22<=$E53)*IF(OR($F53="Straight-Line",$F53="Detail"),$I53/$ES53,HM53) -> 0 | CD53: =AND(CD$22>=$D53,CD$22<=$E53)*IF(OR($F53="Straight-Line",$F53="Detail"),$I53/$ES53,HN53) -> 0 | CE53: =AND(CE$22>=$D53,CE$22<=$E53)*IF(OR($F53="Straight-Line",$F53="Detail"),$I53/$ES53,HO53) -> 0 | CF53: =AND(CF$22>=$D53,CF$22<=$E53)*IF(OR($F53="Straight-Line",$F53="Detail"),$I53/$ES53,HP53) -> 0 | CG53: =AND(CG$22>=$D53,CG$22<=$E53)*IF(OR($F53="Straight-Line",$F53="Detail"),$I53/$ES53,HQ53) -> 0 | CH53: =AND(CH$22>=$D53,CH$22<=$E53)*IF(OR($F53="Straight-Line",$F53="Detail"),$I53/$ES53,HR53) -> 0 | CI53: =AND(CI$22>=$D53,CI$22<=$E53)*IF(OR($F53="Straight-Line",$F53="Detail"),$I53/$ES53,HS53) -> 0 | CJ53: =AND(CJ$22>=$D53,CJ$22<=$E53)*IF(OR($F53="Straight-Line",$F53="Detail"),$I53/$ES53,HT53) -> 0 | CK53: =AND(CK$22>=$D53,CK$22<=$E53)*IF(OR($F53="Straight-Line",$F53="Detail"),$I53/$ES53,HU53) -> 0 | CL53: =AND(CL$22>=$D53,CL$22<=$E53)*IF(OR($F53="Straight-Line",$F53="Detail"),$I53/$ES53,HV53) -> 0 | CM53: =AND(CM$22>=$D53,CM$22<=$E53)*IF(OR($F53="Straight-Line",$F53="Detail"),$I53/$ES53,HW53) -> 0 | CN53: =AND(CN$22>=$D53,CN$22<=$E53)*IF(OR($F53="Straight-Line",$F53="Detail"),$I53/$ES53,HX53) -> 0 | CO53: =AND(CO$22>=$D53,CO$22<=$E53)*IF(OR($F53="Straight-Line",$F53="Detail"),$I53/$ES53,HY53) -> 0 | CP53: =AND(CP$22>=$D53,CP$22<=$E53)*IF(OR($F53="Straight-Line",$F53="Detail"),$I53/$ES53,HZ53) -> 0 | CQ53: =AND(CQ$22>=$D53,CQ$22<=$E53)*IF(OR($F53="Straight-Line",$F53="Detail"),$I53/$ES53,IA53) -> 0 | CR53: =AND(CR$22>=$D53,CR$22<=$E53)*IF(OR($F53="Straight-Line",$F53="Detail"),$I53/$ES53,IB53) -> 0 | CS53: =AND(CS$22>=$D53,CS$22<=$E53)*IF(OR($F53="Straight-Line",$F53="Detail"),$I53/$ES53,IC53) -> 0 | CT53: =AND(CT$22>=$D53,CT$22<=$E53)*IF(OR($F53="Straight-Line",$F53="Detail"),$I53/$ES53,ID53) -> 0 | CU53: =AND(CU$22>=$D53,CU$22<=$E53)*IF(OR($F53="Straight-Line",$F53="Detail"),$I53/$ES53,IE53) -> 0 | CV53: =AND(CV$22>=$D53,CV$22<=$E53)*IF(OR($F53="Straight-Line",$F53="Detail"),$I53/$ES53,IF53) -> 0 | CW53: =AND(CW$22>=$D53,CW$22<=$E53)*IF(OR($F53="Straight-Line",$F53="Detail"),$I53/$ES53,IG53) -> 0 | CX53: =AND(CX$22>=$D53,CX$22<=$E53)*IF(OR($F53="Straight-Line",$F53="Detail"),$I53/$ES53,IH53) -> 0 | CY53: =AND(CY$22>=$D53,CY$22<=$E53)*IF(OR($F53="Straight-Line",$F53="Detail"),$I53/$ES53,II53) -> 0 | CZ53: =AND(CZ$22>=$D53,CZ$22<=$E53)*IF(OR($F53="Straight-Line",$F53="Detail"),$I53/$ES53,IJ53) -> 0 | DA53: =AND(DA$22>=$D53,DA$22<=$E53)*IF(OR($F53="Straight-Line",$F53="Detail"),$I53/$ES53,IK53) -> 0 | DB53: =AND(DB$22>=$D53,DB$22<=$E53)*IF(OR($F53="Straight-Line",$F53="Detail"),$I53/$ES53,IL53) -> 0 | DC53: =AND(DC$22>=$D53,DC$22<=$E53)*IF(OR($F53="Straight-Line",$F53="Detail"),$I53/$ES53,IM53) -> 0 | DD53: =AND(DD$22>=$D53,DD$22<=$E53)*IF(OR($F53="Straight-Line",$F53="Detail"),$I53/$ES53,IN53) -> 0 | DE53: =AND(DE$22>=$D53,DE$22<=$E53)*IF(OR($F53="Straight-Line",$F53="Detail"),$I53/$ES53,IO53) -> 0 | DF53: =AND(DF$22>=$D53,DF$22<=$E53)*IF(OR($F53="Straight-Line",$F53="Detail"),$I53/$ES53,IP53) -> 0 | DG53: =AND(DG$22>=$D53,DG$22<=$E53)*IF(OR($F53="Straight-Line",$F53="Detail"),$I53/$ES53,IQ53) -> 0 | DH53: =AND(DH$22>=$D53,DH$22<=$E53)*IF(OR($F53="Straight-Line",$F53="Detail"),$I53/$ES53,IR53) -> 0 | DI53: =AND(DI$22>=$D53,DI$22<=$E53)*IF(OR($F53="Straight-Line",$F53="Detail"),$I53/$ES53,IS53) -> 0 | DJ53: =AND(DJ$22>=$D53,DJ$22<=$E53)*IF(OR($F53="Straight-Line",$F53="Detail"),$I53/$ES53,IT53) -> 0 | DK53: =AND(DK$22>=$D53,DK$22<=$E53)*IF(OR($F53="Straight-Line",$F53="Detail"),$I53/$ES53,IU53) -> 0 | DL53: =AND(DL$22>=$D53,DL$22<=$E53)*IF(OR($F53="Straight-Line",$F53="Detail"),$I53/$ES53,IV53) -> 0 | DM53: =AND(DM$22>=$D53,DM$22<=$E53)*IF(OR($F53="Straight-Line",$F53="Detail"),$I53/$ES53,IW53) -> 0 | DN53: =AND(DN$22>=$D53,DN$22<=$E53)*IF(OR($F53="Straight-Line",$F53="Detail"),$I53/$ES53,IX53) -> 0 | DO53: =AND(DO$22>=$D53,DO$22<=$E53)*IF(OR($F53="Straight-Line",$F53="Detail"),$I53/$ES53,IY53) -> 0 | DP53: =AND(DP$22>=$D53,DP$22<=$E53)*IF(OR($F53="Straight-Line",$F53="Detail"),$I53/$ES53,IZ53) -> 0 | DQ53: =AND(DQ$22>=$D53,DQ$22<=$E53)*IF(OR($F53="Straight-Line",$F53="Detail"),$I53/$ES53,JA53) -> 0 | DR53: =AND(DR$22>=$D53,DR$22<=$E53)*IF(OR($F53="Straight-Line",$F53="Detail"),$I53/$ES53,JB53) -> 0 | DS53: =AND(DS$22>=$D53,DS$22<=$E53)*IF(OR($F53="Straight-Line",$F53="Detail"),$I53/$ES53,JC53) -> 0 | DT53: =AND(DT$22>=$D53,DT$22<=$E53)*IF(OR($F53="Straight-Line",$F53="Detail"),$I53/$ES53,JD53) -> 0 | DU53: =AND(DU$22>=$D53,DU$22<=$E53)*IF(OR($F53="Straight-Line",$F53="Detail"),$I53/$ES53,JE53) -> 0 | DV53: =AND(DV$22>=$D53,DV$22<=$E53)*IF(OR($F53="Straight-Line",$F53="Detail"),$I53/$ES53,JF53) -> 0 | DW53: =AND(DW$22>=$D53,DW$22<=$E53)*IF(OR($F53="Straight-Line",$F53="Detail"),$I53/$ES53,JG53) -> 0 | DX53: =AND(DX$22>=$D53,DX$22<=$E53)*IF(OR($F53="Straight-Line",$F53="Detail"),$I53/$ES53,JH53) -> 0 | DY53: =AND(DY$22>=$D53,DY$22<=$E53)*IF(OR($F53="Straight-Line",$F53="Detail"),$I53/$ES53,JI53) -> 0 | DZ53: =AND(DZ$22>=$D53,DZ$22<=$E53)*IF(OR($F53="Straight-Line",$F53="Detail"),$I53/$ES53,JJ53) -> 0 | EA53: =AND(EA$22>=$D53,EA$22<=$E53)*IF(OR($F53="Straight-Line",$F53="Detail"),$I53/$ES53,JK53) -> 0 | EB53: =AND(EB$22>=$D53,EB$22<=$E53)*IF(OR($F53="Straight-Line",$F53="Detail"),$I53/$ES53,JL53) -> 0 | EC53: =AND(EC$22>=$D53,EC$22<=$E53)*IF(OR($F53="Straight-Line",$F53="Detail"),$I53/$ES53,JM53) -> 0 | ED53: =AND(ED$22>=$D53,ED$22<=$E53)*IF(OR($F53="Straight-Line",$F53="Detail"),$I53/$ES53,JN53) -> 0 | EE53: =AND(EE$22>=$D53,EE$22<=$E53)*IF(OR($F53="Straight-Line",$F53="Detail"),$I53/$ES53,JO53) -> 0 | EF53: =AND(EF$22>=$D53,EF$22<=$E53)*IF(OR($F53="Straight-Line",$F53="Detail"),$I53/$ES53,JP53) -> 0 | EG53: =AND(EG$22>=$D53,EG$22<=$E53)*IF(OR($F53="Straight-Line",$F53="Detail"),$I53/$ES53,JQ53) -> 0 | EH53: =AND(EH$22>=$D53,EH$22<=$E53)*IF(OR($F53="Straight-Line",$F53="Detail"),$I53/$ES53,JR53) -> 0 | EI53: =AND(EI$22>=$D53,EI$22<=$E53)*IF(OR($F53="Straight-Line",$F53="Detail"),$I53/$ES53,JS53) -> 0 | EJ53: =AND(EJ$22>=$D53,EJ$22<=$E53)*IF(OR($F53="Straight-Line",$F53="Detail"),$I53/$ES53,JT53) -> 0 | EK53: =AND(EK$22>=$D53,EK$22<=$E53)*IF(OR($F53="Straight-Line",$F53="Detail"),$I53/$ES53,JU53) -> 0 | EL53: =AND(EL$22>=$D53,EL$22<=$E53)*IF(OR($F53="Straight-Line",$F53="Detail"),$I53/$ES53,JV53) -> 0 | EM53: =AND(EM$22>=$D53,EM$22<=$E53)*IF(OR($F53="Straight-Line",$F53="Detail"),$I53/$ES53,JW53) -> 0 | EN53: =AND(EN$22>=$D53,EN$22<=$E53)*IF(OR($F53="Straight-Line",$F53="Detail"),$I53/$ES53,JX53) -> 0 | EP53: 0 | EQ53: 2026-01-31 | ER53: 2028-02-29 | ES53: 26 | ET53: Straight-Line | EU53: 4.333333333 | EV53: 0 | EW53: 0 | EX53: 0 | EY53: 0 | EZ53: 0 | FA53: 0 | FB53: 0 | FC53: 0 | FD53: 0 | FE53: 0 | FF53: 0 | FG53: 0 | FH53: 0 | FI53: 0 | FJ53: 0 | FK53: 0 | FL53: 0 | FM53: 0 | FN53: 0 | FO53: 0 | FP53: 0 | FQ53: 0 | FR53: 0 | FS53: 0 | FT53: 0 | FU53: 0 | FV53: 0 | FW53: 0 | FX53: 0 | FY53: 0 | FZ53: 0 | GA53: 0 | GB53: 0 | GC53: 0 | GD53: 0 | GE53: 0 | GF53: 0 | GG53: 0 | GH53: 0 | GI53: 0 | GJ53: 0 | GK53: 0 | GL53: 0 | GM53: 0 | GN53: 0 | GO53: 0 | GP53: 0 | GQ53: 0 | GR53: 0 | GS53: 0 | GT53: 0 | GU53: 0 | GV53: 0 | GW53: 0 | GX53: 0 | GY53: 0 | GZ53: 0 | HA53: 0 | HB53: 0 | HC53: 0 | HD53: 0 | HE53: 0 | HF53: 0 | HG53: =AND($ET53="S-Curve",HG$23>=$EQ53,HG$23<=$ER53)*(_xlfn.NORM.DIST((YEAR(HG$23)-YEAR($EQ53))*12+MONTH(HG$23)-MONTH($EQ53)+1,$ES53/2,$EU53,TRUE)-_xlfn.NORM.DIST((YEAR(HG$23)-YEAR($EQ53))*12+MONTH(HG$23)-MONTH($EQ53),$ES53/2,$EU53,TRUE))/(1-2*_xlfn.NORM.DIST(0,$ES53/2,$EU53,TRUE))*$EP53 -> 0 | HH53: 0 | HI53: 0 | HJ53: 0 | HK53: 0 | HL53: 0 | HM53: 0 | HN53: 0 | HO53: 0 | HP53: 0 | HQ53: 0 | HR53: 0 | HS53: 0 | HT53: 0 | HU53: 0 | HV53: 0 | HW53: 0 | HX53: 0 | HY53: 0 | HZ53: 0 | IA53: 0 | IB53: 0 | IC53: 0 | ID53: 0 | IE53: 0 | IF53: 0 | IG53: 0 | IH53: 0 | II53: 0 | IJ53: 0 | IK53: 0 | IL53: 0 | IM53: 0 | IN53: 0 | IO53: 0 | IP53: 0 | IQ53: 0 | IR53: 0 | IS53: 0 | IT53: 0 | IU53: 0 | IV53: 0 | IW53: 0 | IX53: 0 | IY53: 0 | IZ53: 0 | JA53: 0 | JB53: 0 | JC53: 0 | JD53: 0 | JE53: 0 | JF53: 0 | JG53: 0 | JH53: 0 | JI53: 0 | JJ53: 0 | JK53: 0 | JL53: 0 | JM53: 0 | JN53: 0 | JO53: 0 | JP53: 0 | JQ53: 0 | JR53: 0 | JS53: =AND($ET53="S-Curve",JS$23>=$EQ53,JS$23<=$ER53)*(_xlfn.NORM.DIST((YEAR(JS$23)-YEAR($EQ53))*12+MONTH(JS$23)-MONTH($EQ53)+1,$ES53/2,$EU53,TRUE)-_xlfn.NORM.DIST((YEAR(JS$23)-YEAR($EQ53))*12+MONTH(JS$23)-MONTH($EQ53),$ES53/2,$EU53,TRUE))/(1-2*_xlfn.NORM.DIST(0,$ES53/2,$EU53,TRUE))*$EP53 -> 0 | JT53: 0 | JU53: 0 | JV53: 0 | JW53: 0 | JX53: 0
B54: Painting | D54: 1 | E54: 26 | F54: Straight-Line | G54: 0 | H54: 0 | I54: 0 | L54: 0 | M54: 0 | N54: 0 | O54: 0 | P54: 0 | Q54: 0 | R54: 0 | S54: 0 | T54: 0 | U54: 0 | V54: 0 | W54: 0 | X54: 0 | Y54: 0 | Z54: 0 | AA54: 0 | AB54: 0 | AC54: 0 | AD54: 0 | AE54: 0 | AF54: 0 | AG54: 0 | AH54: 0 | AI54: 0 | AJ54: 0 | AK54: 0 | AL54: 0 | AM54: 0 | AN54: 0 | AO54: 0 | AP54: 0 | AQ54: 0 | AR54: 0 | AS54: 0 | AT54: 0 | AU54: 0 | AV54: 0 | AW54: 0 | AX54: 0 | AY54: 0 | AZ54: 0 | BA54: 0 | BB54: 0 | BC54: 0 | BD54: 0 | BE54: 0 | BF54: 0 | BG54: 0 | BH54: 0 | BI54: 0 | BJ54: 0 | BK54: 0 | BL54: 0 | BM54: 0 | BN54: 0 | BO54: 0 | BP54: 0 | BQ54: 0 | BR54: 0 | BS54: 0 | BT54: 0 | BU54: 0 | BV54: 0 | BW54: 0 | BX54: 0 | BY54: 0 | BZ54: 0 | CA54: 0 | CB54: 0 | CC54: 0 | CD54: 0 | CE54: 0 | CF54: 0 | CG54: 0 | CH54: 0 | CI54: 0 | CJ54: 0 | CK54: 0 | CL54: 0 | CM54: 0 | CN54: 0 | CO54: 0 | CP54: 0 | CQ54: 0 | CR54: 0 | CS54: 0 | CT54: 0 | CU54: 0 | CV54: 0 | CW54: 0 | CX54: 0 | CY54: 0 | CZ54: 0 | DA54: 0 | DB54: 0 | DC54: 0 | DD54: 0 | DE54: 0 | DF54: 0 | DG54: 0 | DH54: 0 | DI54: 0 | DJ54: 0 | DK54: 0 | DL54: 0 | DM54: 0 | DN54: 0 | DO54: 0 | DP54: 0 | DQ54: 0 | DR54: 0 | DS54: 0 | DT54: 0 | DU54: 0 | DV54: 0 | DW54: 0 | DX54: 0 | DY54: 0 | DZ54: 0 | EA54: 0 | EB54: 0 | EC54: 0 | ED54: 0 | EE54: 0 | EF54: 0 | EG54: 0 | EH54: 0 | EI54: 0 | EJ54: 0 | EK54: 0 | EL54: 0 | EM54: 0 | EN54: 0 | EP54: 0 | EQ54: 2026-01-31 | ER54: 2028-02-29 | ES54: 26 | ET54: Straight-Line | EU54: 4.333333333 | EV54: =AND($ET54="S-Curve",EV$23>=$EQ54,EV$23<=$ER54)*(_xlfn.NORM.DIST((YEAR(EV$23)-YEAR($EQ54))*12+MONTH(EV$23)-MONTH($EQ54)+1,$ES54/2,$EU54,TRUE)-_xlfn.NORM.DIST((YEAR(EV$23)-YEAR($EQ54))*12+MONTH(EV$23)-MONTH($EQ54),$ES54/2,$EU54,TRUE))/(1-2*_xlfn.NORM.DIST(0,$ES54/2,$EU54,TRUE))*$EP54 -> 0 | EW54: 0 | EX54: 0 | EY54: 0 | EZ54: 0 | FA54: 0 | FB54: 0 | FC54: 0 | FD54: 0 | FE54: 0 | FF54: 0 | FG54: 0 | FH54: 0 | FI54: 0 | FJ54: 0 | FK54: 0 | FL54: 0 | FM54: 0 | FN54: 0 | FO54: 0 | FP54: 0 | FQ54: 0 | FR54: 0 | FS54: 0 | FT54: 0 | FU54: 0 | FV54: 0 | FW54: 0 | FX54: 0 | FY54: 0 | FZ54: 0 | GA54: 0 | GB54: 0 | GC54: 0 | GD54: 0 | GE54: 0 | GF54: 0 | GG54: 0 | GH54: 0 | GI54: 0 | GJ54: 0 | GK54: 0 | GL54: 0 | GM54: 0 | GN54: 0 | GO54: 0 | GP54: 0 | GQ54: 0 | GR54: 0 | GS54: 0 | GT54: 0 | GU54: 0 | GV54: 0 | GW54: 0 | GX54: 0 | GY54: 0 | GZ54: 0 | HA54: 0 | HB54: 0 | HC54: 0 | HD54: 0 | HE54: 0 | HF54: 0 | HG54: 0 | HH54: =AND($ET54="S-Curve",HH$23>=$EQ54,HH$23<=$ER54)*(_xlfn.NORM.DIST((YEAR(HH$23)-YEAR($EQ54))*12+MONTH(HH$23)-MONTH($EQ54)+1,$ES54/2,$EU54,TRUE)-_xlfn.NORM.DIST((YEAR(HH$23)-YEAR($EQ54))*12+MONTH(HH$23)-MONTH($EQ54),$ES54/2,$EU54,TRUE))/(1-2*_xlfn.NORM.DIST(0,$ES54/2,$EU54,TRUE))*$EP54 -> 0 | HI54: 0 | HJ54: 0 | HK54: 0 | HL54: 0 | HM54: 0 | HN54: 0 | HO54: 0 | HP54: 0 | HQ54: 0 | HR54: 0 | HS54: 0 | HT54: 0 | HU54: 0 | HV54: 0 | HW54: 0 | HX54: 0 | HY54: 0 | HZ54: 0 | IA54: 0 | IB54: 0 | IC54: 0 | ID54: 0 | IE54: 0 | IF54: 0 | IG54: 0 | IH54: 0 | II54: 0 | IJ54: 0 | IK54: 0 | IL54: 0 | IM54: 0 | IN54: 0 | IO54: 0 | IP54: 0 | IQ54: 0 | IR54: 0 | IS54: 0 | IT54: 0 | IU54: 0 | IV54: 0 | IW54: 0 | IX54: 0 | IY54: 0 | IZ54: 0 | JA54: 0 | JB54: 0 | JC54: 0 | JD54: 0 | JE54: 0 | JF54: 0 | JG54: 0 | JH54: 0 | JI54: 0 | JJ54: 0 | JK54: 0 | JL54: 0 | JM54: 0 | JN54: 0 | JO54: 0 | JP54: 0 | JQ54: 0 | JR54: 0 | JS54: 0 | JT54: 0 | JU54: 0 | JV54: 0 | JW54: 0 | JX54: 0
B55: Gutters/Downsports | D55: 1 | E55: 26 | F55: Straight-Line | G55: 0 | H55: 0 | I55: 0 | L55: 0 | M55: 0 | N55: 0 | O55: 0 | P55: 0 | Q55: 0 | R55: 0 | S55: 0 | T55: 0 | U55: 0 | V55: 0 | W55: 0 | X55: 0 | Y55: 0 | Z55: 0 | AA55: 0 | AB55: 0 | AC55: 0 | AD55: 0 | AE55: 0 | AF55: 0 | AG55: 0 | AH55: 0 | AI55: 0 | AJ55: 0 | AK55: 0 | AL55: 0 | AM55: 0 | AN55: 0 | AO55: 0 | AP55: 0 | AQ55: 0 | AR55: 0 | AS55: 0 | AT55: 0 | AU55: 0 | AV55: 0 | AW55: 0 | AX55: 0 | AY55: 0 | AZ55: 0 | BA55: 0 | BB55: 0 | BC55: 0 | BD55: 0 | BE55: 0 | BF55: 0 | BG55: 0 | BH55: 0 | BI55: 0 | BJ55: 0 | BK55: 0 | BL55: 0 | BM55: 0 | BN55: 0 | BO55: 0 | BP55: 0 | BQ55: 0 | BR55: 0 | BS55: 0 | BT55: 0 | BU55: 0 | BV55: 0 | BW55: 0 | BX55: 0 | BY55: 0 | BZ55: 0 | CA55: 0 | CB55: 0 | CC55: 0 | CD55: 0 | CE55: 0 | CF55: 0 | CG55: 0 | CH55: 0 | CI55: 0 | CJ55: 0 | CK55: 0 | CL55: 0 | CM55: 0 | CN55: 0 | CO55: 0 | CP55: 0 | CQ55: 0 | CR55: 0 | CS55: 0 | CT55: 0 | CU55: 0 | CV55: 0 | CW55: 0 | CX55: 0 | CY55: 0 | CZ55: 0 | DA55: 0 | DB55: 0 | DC55: 0 | DD55: 0 | DE55: 0 | DF55: 0 | DG55: 0 | DH55: 0 | DI55: 0 | DJ55: 0 | DK55: 0 | DL55: 0 | DM55: 0 | DN55: 0 | DO55: 0 | DP55: 0 | DQ55: 0 | DR55: 0 | DS55: 0 | DT55: 0 | DU55: 0 | DV55: 0 | DW55: 0 | DX55: 0 | DY55: 0 | DZ55: 0 | EA55: 0 | EB55: 0 | EC55: 0 | ED55: 0 | EE55: 0 | EF55: 0 | EG55: 0 | EH55: 0 | EI55: 0 | EJ55: 0 | EK55: 0 | EL55: 0 | EM55: 0 | EN55: 0 | EP55: 0 | EQ55: 2026-01-31 | ER55: 2028-02-29 | ES55: 26 | ET55: Straight-Line | EU55: 4.333333333 | EV55: 0 | EW55: 0 | EX55: 0 | EY55: 0 | EZ55: 0 | FA55: 0 | FB55: 0 | FC55: 0 | FD55: 0 | FE55: 0 | FF55: 0 | FG55: 0 | FH55: 0 | FI55: 0 | FJ55: 0 | FK55: 0 | FL55: 0 | FM55: 0 | FN55: 0 | FO55: 0 | FP55: 0 | FQ55: 0 | FR55: 0 | FS55: 0 | FT55: 0 | FU55: 0 | FV55: 0 | FW55: 0 | FX55: 0 | FY55: 0 | FZ55: 0 | GA55: 0 | GB55: 0 | GC55: 0 | GD55: 0 | GE55: 0 | GF55: 0 | GG55: 0 | GH55: 0 | GI55: 0 | GJ55: 0 | GK55: 0 | GL55: 0 | GM55: 0 | GN55: 0 | GO55: 0 | GP55: 0 | GQ55: 0 | GR55: 0 | GS55: 0 | GT55: 0 | GU55: 0 | GV55: 0 | GW55: 0 | GX55: 0 | GY55: 0 | GZ55: 0 | HA55: 0 | HB55: 0 | HC55: 0 | HD55: 0 | HE55: 0 | HF55: 0 | HG55: 0 | HH55: 0 | HI55: 0 | HJ55: 0 | HK55: 0 | HL55: 0 | HM55: 0 | HN55: 0 | HO55: 0 | HP55: 0 | HQ55: 0 | HR55: 0 | HS55: 0 | HT55: 0 | HU55: 0 | HV55: 0 | HW55: 0 | HX55: 0 | HY55: 0 | HZ55: 0 | IA55: 0 | IB55: 0 | IC55: 0 | ID55: 0 | IE55: 0 | IF55: 0 | IG55: 0 | IH55: 0 | II55: 0 | IJ55: 0 | IK55: 0 | IL55: 0 | IM55: 0 | IN55: 0 | IO55: 0 | IP55: 0 | IQ55: 0 | IR55: 0 | IS55: 0 | IT55: 0 | IU55: 0 | IV55: 0 | IW55: 0 | IX55: 0 | IY55: 0 | IZ55: 0 | JA55: 0 | JB55: 0 | JC55: 0 | JD55: 0 | JE55: 0 | JF55: 0 | JG55: 0 | JH55: 0 | JI55: 0 | JJ55: 0 | JK55: 0 | JL55: 0 | JM55: 0 | JN55: 0 | JO55: 0 | JP55: 0 | JQ55: 0 | JR55: 0 | JS55: 0 | JT55: 0 | JU55: 0 | JV55: 0 | JW55: 0 | JX55: 0
B56: Ceramic Tile | D56: 1 | E56: 26 | F56: Straight-Line | G56: 0 | H56: 0 | I56: 0 | L56: 0 | M56: 0 | N56: 0 | O56: 0 | P56: 0 | Q56: 0 | R56: 0 | S56: 0 | T56: 0 | U56: 0 | V56: 0 | W56: 0 | X56: 0 | Y56: 0 | Z56: 0 | AA56: 0 | AB56: 0 | AC56: 0 | AD56: 0 | AE56: 0 | AF56: 0 | AG56: 0 | AH56: 0 | AI56: 0 | AJ56: 0 | AK56: 0 | AL56: 0 | AM56: 0 | AN56: 0 | AO56: 0 | AP56: 0 | AQ56: 0 | AR56: 0 | AS56: 0 | AT56: 0 | AU56: 0 | AV56: 0 | AW56: 0 | AX56: 0 | AY56: 0 | AZ56: 0 | BA56: 0 | BB56: 0 | BC56: 0 | BD56: 0 | BE56: 0 | BF56: 0 | BG56: 0 | BH56: 0 | BI56: 0 | BJ56: 0 | BK56: 0 | BL56: 0 | BM56: 0 | BN56: 0 | BO56: 0 | BP56: 0 | BQ56: 0 | BR56: 0 | BS56: 0 | BT56: 0 | BU56: 0 | BV56: 0 | BW56: 0 | BX56: 0 | BY56: 0 | BZ56: 0 | CA56: 0 | CB56: 0 | CC56: 0 | CD56: 0 | CE56: 0 | CF56: 0 | CG56: 0 | CH56: 0 | CI56: 0 | CJ56: 0 | CK56: 0 | CL56: 0 | CM56: 0 | CN56: 0 | CO56: 0 | CP56: 0 | CQ56: 0 | CR56: 0 | CS56: 0 | CT56: 0 | CU56: 0 | CV56: 0 | CW56: 0 | CX56: 0 | CY56: 0 | CZ56: 0 | DA56: 0 | DB56: 0 | DC56: 0 | DD56: 0 | DE56: 0 | DF56: 0 | DG56: 0 | DH56: 0 | DI56: 0 | DJ56: 0 | DK56: 0 | DL56: 0 | DM56: 0 | DN56: 0 | DO56: 0 | DP56: 0 | DQ56: 0 | DR56: 0 | DS56: 0 | DT56: 0 | DU56: 0 | DV56: 0 | DW56: 0 | DX56: 0 | DY56: 0 | DZ56: 0 | EA56: 0 | EB56: 0 | EC56: 0 | ED56: 0 | EE56: 0 | EF56: 0 | EG56: 0 | EH56: 0 | EI56: 0 | EJ56: 0 | EK56: 0 | EL56: 0 | EM56: 0 | EN56: 0 | EP56: 0 | EQ56: 2026-01-31 | ER56: 2028-02-29 | ES56: 26 | ET56: Straight-Line | EU56: 4.333333333 | EV56: 0 | EW56: 0 | EX56: 0 | EY56: 0 | EZ56: 0 | FA56: 0 | FB56: 0 | FC56: 0 | FD56: 0 | FE56: 0 | FF56: 0 | FG56: 0 | FH56: 0 | FI56: 0 | FJ56: 0 | FK56: 0 | FL56: 0 | FM56: 0 | FN56: 0 | FO56: 0 | FP56: 0 | FQ56: 0 | FR56: 0 | FS56: 0 | FT56: 0 | FU56: 0 | FV56: 0 | FW56: 0 | FX56: 0 | FY56: 0 | FZ56: 0 | GA56: 0 | GB56: 0 | GC56: 0 | GD56: 0 | GE56: 0 | GF56: 0 | GG56: 0 | GH56: 0 | GI56: 0 | GJ56: 0 | GK56: 0 | GL56: 0 | GM56: 0 | GN56: 0 | GO56: 0 | GP56: 0 | GQ56: 0 | GR56: 0 | GS56: 0 | GT56: 0 | GU56: 0 | GV56: 0 | GW56: 0 | GX56: 0 | GY56: 0 | GZ56: 0 | HA56: 0 | HB56: 0 | HC56: 0 | HD56: 0 | HE56: 0 | HF56: 0 | HG56: 0 | HH56: 0 | HI56: 0 | HJ56: 0 | HK56: 0 | HL56: 0 | HM56: 0 | HN56: 0 | HO56: 0 | HP56: 0 | HQ56: 0 | HR56: 0 | HS56: 0 | HT56: 0 | HU56: 0 | HV56: 0 | HW56: 0 | HX56: 0 | HY56: 0 | HZ56: 0 | IA56: 0 | IB56: 0 | IC56: 0 | ID56: 0 | IE56: 0 | IF56: 0 | IG56: 0 | IH56: 0 | II56: 0 | IJ56: 0 | IK56: 0 | IL56: 0 | IM56: 0 | IN56: 0 | IO56: 0 | IP56: 0 | IQ56: 0 | IR56: 0 | IS56: 0 | IT56: 0 | IU56: 0 | IV56: 0 | IW56: 0 | IX56: 0 | IY56: 0 | IZ56: 0 | JA56: 0 | JB56: 0 | JC56: 0 | JD56: 0 | JE56: 0 | JF56: 0 | JG56: 0 | JH56: 0 | JI56: 0 | JJ56: 0 | JK56: 0 | JL56: 0 | JM56: 0 | JN56: 0 | JO56: 0 | JP56: 0 | JQ56: 0 | JR56: 0 | JS56: 0 | JT56: 0 | JU56: 0 | JV56: 0 | JW56: 0 | JX56: 0
B57: Cabinets/Countertops | D57: 1 | E57: 26 | F57: Detail | G57: 5.26478937 | H57: 4534.8 | I57: 1813920 | L57: 0 | M57: ='HC Draw'!E221 -> $ - | N57: ='HC Draw'!F221 -> $ - | O57: ='HC Draw'!G221 -> $ - | P57: ='HC Draw'!H221 -> $ - | Q57: ='HC Draw'!I221 -> $ - | R57: ='HC Draw'!J221 -> $ - | S57: ='HC Draw'!K221 -> $ - | T57: ='HC Draw'!L221 -> $ - | U57: ='HC Draw'!M221 -> $ - | V57: ='HC Draw'!N221 -> 95714.29 | W57: ='HC Draw'!O221 -> 129565.71 | X57: ='HC Draw'!P221 -> 129565.71 | Y57: ='HC Draw'!Q221 -> 129565.71 | Z57: ='HC Draw'!R221 -> 129565.71 | AA57: ='HC Draw'!S221 -> 129565.71 | AB57: ='HC Draw'!T221 -> 129565.71 | AC57: ='HC Draw'!U221 -> 129565.71 | AD57: ='HC Draw'!V221 -> 129565.71 | AE57: ='HC Draw'!W221 -> 129565.71 | AF57: ='HC Draw'!X221 -> 129565.71 | AG57: ='HC Draw'!Y221 -> 129565.71 | AH57: ='HC Draw'!Z221 -> 129565.71 | AI57: ='HC Draw'!AA221 -> 129565.71 | AJ57: ='HC Draw'!AB221 -> 33851.43 | AK57: ='HC Draw'!AC221 -> $ - | AL57: ='HC Draw'!AD221 -> $ - | AM57: 0 | AN57: 0 | AO57: 0 | AP57: 0 | AQ57: 0 | AR57: 0 | AS57: 0 | AT57: 0 | AU57: 0 | AV57: 0 | AW57: 0 | AX57: 0 | AY57: 0 | AZ57: 0 | BA57: 0 | BB57: 0 | BC57: 0 | BD57: 0 | BE57: 0 | BF57: 0 | BG57: 0 | BH57: 0 | BI57: 0 | BJ57: 0 | BK57: 0 | BL57: 0 | BM57: 0 | BN57: 0 | BO57: 0 | BP57: 0 | BQ57: 0 | BR57: 0 | BS57: 0 | BT57: 0 | BU57: 0 | BV57: 0 | BW57: 0 | BX57: 0 | BY57: 0 | BZ57: 0 | CA57: 0 | CB57: 0 | CC57: 0 | CD57: 0 | CE57: 0 | CF57: 0 | CG57: 0 | CH57: 0 | CI57: 0 | CJ57: 0 | CK57: 0 | CL57: 0 | CM57: 0 | CN57: 0 | CO57: 0 | CP57: 0 | CQ57: 0 | CR57: 0 | CS57: 0 | CT57: 0 | CU57: 0 | CV57: 0 | CW57: 0 | CX57: 0 | CY57: 0 | CZ57: 0 | DA57: 0 | DB57: 0 | DC57: 0 | DD57: 0 | DE57: 0 | DF57: 0 | DG57: 0 | DH57: 0 | DI57: 0 | DJ57: 0 | DK57: 0 | DL57: 0 | DM57: 0 | DN57: 0 | DO57: 0 | DP57: 0 | DQ57: 0 | DR57: 0 | DS57: 0 | DT57: 0 | DU57: 0 | DV57: 0 | DW57: 0 | DX57: 0 | DY57: 0 | DZ57: 0 | EA57: 0 | EB57: 0 | EC57: 0 | ED57: 0 | EE57: 0 | EF57: 0 | EG57: 0 | EH57: 0 | EI57: 0 | EJ57: 0 | EK57: 0 | EL57: 0 | EM57: 0 | EN57: 0 | EP57: 1813920 | EQ57: 2026-01-31 | ER57: 2028-02-29 | ES57: 26 | ET57: Detail | EU57: 4.333333333 | EV57: 0 | EW57: 0 | EX57: 0 | EY57: 0 | EZ57: 0 | FA57: 0 | FB57: 0 | FC57: 0 | FD57: 0 | FE57: 0 | FF57: 0 | FG57: 0 | FH57: 0 | FI57: 0 | FJ57: 0 | FK57: 0 | FL57: 0 | FM57: 0 | FN57: 0 | FO57: 0 | FP57: 0 | FQ57: 0 | FR57: 0 | FS57: 0 | FT57: 0 | FU57: 0 | FV57: 0 | FW57: 0 | FX57: 0 | FY57: 0 | FZ57: 0 | GA57: 0 | GB57: 0 | GC57: 0 | GD57: 0 | GE57: 0 | GF57: 0 | GG57: 0 | GH57: 0 | GI57: 0 | GJ57: 0 | GK57: 0 | GL57: 0 | GM57: 0 | GN57: 0 | GO57: 0 | GP57: 0 | GQ57: 0 | GR57: 0 | GS57: 0 | GT57: 0 | GU57: 0 | GV57: 0 | GW57: 0 | GX57: 0 | GY57: 0 | GZ57: 0 | HA57: 0 | HB57: 0 | HC57: 0 | HD57: 0 | HE57: 0 | HF57: 0 | HG57: =AND($ET57="S-Curve",HG$23>=$EQ57,HG$23<=$ER57)*(_xlfn.NORM.DIST((YEAR(HG$23)-YEAR($EQ57))*12+MONTH(HG$23)-MONTH($EQ57)+1,$ES57/2,$EU57,TRUE)-_xlfn.NORM.DIST((YEAR(HG$23)-YEAR($EQ57))*12+MONTH(HG$23)-MONTH($EQ57),$ES57/2,$EU57,TRUE))/(1-2*_xlfn.NORM.DIST(0,$ES57/2,$EU57,TRUE))*$EP57 -> 0 | HH57: 0 | HI57: 0 | HJ57: 0 | HK57: 0 | HL57: 0 | HM57: 0 | HN57: 0 | HO57: 0 | HP57: 0 | HQ57: 0 | HR57: 0 | HS57: 0 | HT57: 0 | HU57: 0 | HV57: 0 | HW57: 0 | HX57: 0 | HY57: 0 | HZ57: 0 | IA57: 0 | IB57: 0 | IC57: 0 | ID57: 0 | IE57: 0 | IF57: 0 | IG57: 0 | IH57: 0 | II57: 0 | IJ57: 0 | IK57: 0 | IL57: 0 | IM57: 0 | IN57: 0 | IO57: 0 | IP57: 0 | IQ57: 0 | IR57: 0 | IS57: 0 | IT57: 0 | IU57: 0 | IV57: 0 | IW57: 0 | IX57: 0 | IY57: 0 | IZ57: 0 | JA57: 0 | JB57: 0 | JC57: 0 | JD57: 0 | JE57: 0 | JF57: 0 | JG57: 0 | JH57: 0 | JI57: 0 | JJ57: 0 | JK57: 0 | JL57: 0 | JM57: 0 | JN57: 0 | JO57: 0 | JP57: 0 | JQ57: 0 | JR57: 0 | JS57: =AND($ET57="S-Curve",JS$23>=$EQ57,JS$23<=$ER57)*(_xlfn.NORM.DIST((YEAR(JS$23)-YEAR($EQ57))*12+MONTH(JS$23)-MONTH($EQ57)+1,$ES57/2,$EU57,TRUE)-_xlfn.NORM.DIST((YEAR(JS$23)-YEAR($EQ57))*12+MONTH(JS$23)-MONTH($EQ57),$ES57/2,$EU57,TRUE))/(1-2*_xlfn.NORM.DIST(0,$ES57/2,$EU57,TRUE))*$EP57 -> 0 | JT57: 0 | JU57: 0 | JV57: 0 | JW57: 0 | JX57: 0
B58: Finish Hardware | D58: 1 | E58: 26 | F58: Straight-Line | G58: 0 | H58: 0 | I58: 0 | L58: =AND(L$22>=$D58,L$22<=$E58)*IF(OR($F58="Straight-Line",$F58="Detail"),$I58/$ES58,EV58) -> 0 | M58: =AND(M$22>=$D58,M$22<=$E58)*IF(OR($F58="Straight-Line",$F58="Detail"),$I58/$ES58,EW58) -> 0 | N58: =AND(N$22>=$D58,N$22<=$E58)*IF(OR($F58="Straight-Line",$F58="Detail"),$I58/$ES58,EX58) -> 0 | O58: =AND(O$22>=$D58,O$22<=$E58)*IF(OR($F58="Straight-Line",$F58="Detail"),$I58/$ES58,EY58) -> 0 | P58: =AND(P$22>=$D58,P$22<=$E58)*IF(OR($F58="Straight-Line",$F58="Detail"),$I58/$ES58,EZ58) -> 0 | Q58: =AND(Q$22>=$D58,Q$22<=$E58)*IF(OR($F58="Straight-Line",$F58="Detail"),$I58/$ES58,FA58) -> 0 | R58: =AND(R$22>=$D58,R$22<=$E58)*IF(OR($F58="Straight-Line",$F58="Detail"),$I58/$ES58,FB58) -> 0 | S58: =AND(S$22>=$D58,S$22<=$E58)*IF(OR($F58="Straight-Line",$F58="Detail"),$I58/$ES58,FC58) -> 0 | T58: =AND(T$22>=$D58,T$22<=$E58)*IF(OR($F58="Straight-Line",$F58="Detail"),$I58/$ES58,FD58) -> 0 | U58: =AND(U$22>=$D58,U$22<=$E58)*IF(OR($F58="Straight-Line",$F58="Detail"),$I58/$ES58,FE58) -> 0 | V58: =AND(V$22>=$D58,V$22<=$E58)*IF(OR($F58="Straight-Line",$F58="Detail"),$I58/$ES58,FF58) -> 0 | W58: =AND(W$22>=$D58,W$22<=$E58)*IF(OR($F58="Straight-Line",$F58="Detail"),$I58/$ES58,FG58) -> 0 | X58: =AND(X$22>=$D58,X$22<=$E58)*IF(OR($F58="Straight-Line",$F58="Detail"),$I58/$ES58,FH58) -> 0 | Y58: =AND(Y$22>=$D58,Y$22<=$E58)*IF(OR($F58="Straight-Line",$F58="Detail"),$I58/$ES58,FI58) -> 0 | Z58: =AND(Z$22>=$D58,Z$22<=$E58)*IF(OR($F58="Straight-Line",$F58="Detail"),$I58/$ES58,FJ58) -> 0 | AA58: =AND(AA$22>=$D58,AA$22<=$E58)*IF(OR($F58="Straight-Line",$F58="Detail"),$I58/$ES58,FK58) -> 0 | AB58: =AND(AB$22>=$D58,AB$22<=$E58)*IF(OR($F58="Straight-Line",$F58="Detail"),$I58/$ES58,FL58) -> 0 | AC58: =AND(AC$22>=$D58,AC$22<=$E58)*IF(OR($F58="Straight-Line",$F58="Detail"),$I58/$ES58,FM58) -> 0 | AD58: =AND(AD$22>=$D58,AD$22<=$E58)*IF(OR($F58="Straight-Line",$F58="Detail"),$I58/$ES58,FN58) -> 0 | AE58: =AND(AE$22>=$D58,AE$22<=$E58)*IF(OR($F58="Straight-Line",$F58="Detail"),$I58/$ES58,FO58) -> 0 | AF58: =AND(AF$22>=$D58,AF$22<=$E58)*IF(OR($F58="Straight-Line",$F58="Detail"),$I58/$ES58,FP58) -> 0 | AG58: =AND(AG$22>=$D58,AG$22<=$E58)*IF(OR($F58="Straight-Line",$F58="Detail"),$I58/$ES58,FQ58) -> 0 | AH58: =AND(AH$22>=$D58,AH$22<=$E58)*IF(OR($F58="Straight-Line",$F58="Detail"),$I58/$ES58,FR58) -> 0 | AI58: =AND(AI$22>=$D58,AI$22<=$E58)*IF(OR($F58="Straight-Line",$F58="Detail"),$I58/$ES58,FS58) -> 0 | AJ58: =AND(AJ$22>=$D58,AJ$22<=$E58)*IF(OR($F58="Straight-Line",$F58="Detail"),$I58/$ES58,FT58) -> 0 | AK58: =AND(AK$22>=$D58,AK$22<=$E58)*IF(OR($F58="Straight-Line",$F58="Detail"),$I58/$ES58,FU58) -> 0 | AL58: =AND(AL$22>=$D58,AL$22<=$E58)*IF(OR($F58="Straight-Line",$F58="Detail"),$I58/$ES58,FV58) -> 0 | AM58: =AND(AM$22>=$D58,AM$22<=$E58)*IF(OR($F58="Straight-Line",$F58="Detail"),$I58/$ES58,FW58) -> 0 | AN58: =AND(AN$22>=$D58,AN$22<=$E58)*IF(OR($F58="Straight-Line",$F58="Detail"),$I58/$ES58,FX58) -> 0 | AO58: =AND(AO$22>=$D58,AO$22<=$E58)*IF(OR($F58="Straight-Line",$F58="Detail"),$I58/$ES58,FY58) -> 0 | AP58: =AND(AP$22>=$D58,AP$22<=$E58)*IF(OR($F58="Straight-Line",$F58="Detail"),$I58/$ES58,FZ58) -> 0 | AQ58: =AND(AQ$22>=$D58,AQ$22<=$E58)*IF(OR($F58="Straight-Line",$F58="Detail"),$I58/$ES58,GA58) -> 0 | AR58: =AND(AR$22>=$D58,AR$22<=$E58)*IF(OR($F58="Straight-Line",$F58="Detail"),$I58/$ES58,GB58) -> 0 | AS58: =AND(AS$22>=$D58,AS$22<=$E58)*IF(OR($F58="Straight-Line",$F58="Detail"),$I58/$ES58,GC58) -> 0 | AT58: =AND(AT$22>=$D58,AT$22<=$E58)*IF(OR($F58="Straight-Line",$F58="Detail"),$I58/$ES58,GD58) -> 0 | AU58: =AND(AU$22>=$D58,AU$22<=$E58)*IF(OR($F58="Straight-Line",$F58="Detail"),$I58/$ES58,GE58) -> 0 | AV58: =AND(AV$22>=$D58,AV$22<=$E58)*IF(OR($F58="Straight-Line",$F58="Detail"),$I58/$ES58,GF58) -> 0 | AW58: =AND(AW$22>=$D58,AW$22<=$E58)*IF(OR($F58="Straight-Line",$F58="Detail"),$I58/$ES58,GG58) -> 0 | AX58: =AND(AX$22>=$D58,AX$22<=$E58)*IF(OR($F58="Straight-Line",$F58="Detail"),$I58/$ES58,GH58) -> 0 | AY58: =AND(AY$22>=$D58,AY$22<=$E58)*IF(OR($F58="Straight-Line",$F58="Detail"),$I58/$ES58,GI58) -> 0 | AZ58: =AND(AZ$22>=$D58,AZ$22<=$E58)*IF(OR($F58="Straight-Line",$F58="Detail"),$I58/$ES58,GJ58) -> 0 | BA58: =AND(BA$22>=$D58,BA$22<=$E58)*IF(OR($F58="Straight-Line",$F58="Detail"),$I58/$ES58,GK58) -> 0 | BB58: =AND(BB$22>=$D58,BB$22<=$E58)*IF(OR($F58="Straight-Line",$F58="Detail"),$I58/$ES58,GL58) -> 0 | BC58: =AND(BC$22>=$D58,BC$22<=$E58)*IF(OR($F58="Straight-Line",$F58="Detail"),$I58/$ES58,GM58) -> 0 | BD58: =AND(BD$22>=$D58,BD$22<=$E58)*IF(OR($F58="Straight-Line",$F58="Detail"),$I58/$ES58,GN58) -> 0 | BE58: =AND(BE$22>=$D58,BE$22<=$E58)*IF(OR($F58="Straight-Line",$F58="Detail"),$I58/$ES58,GO58) -> 0 | BF58: =AND(BF$22>=$D58,BF$22<=$E58)*IF(OR($F58="Straight-Line",$F58="Detail"),$I58/$ES58,GP58) -> 0 | BG58: =AND(BG$22>=$D58,BG$22<=$E58)*IF(OR($F58="Straight-Line",$F58="Detail"),$I58/$ES58,GQ58) -> 0 | BH58: =AND(BH$22>=$D58,BH$22<=$E58)*IF(OR($F58="Straight-Line",$F58="Detail"),$I58/$ES58,GR58) -> 0 | BI58: =AND(BI$22>=$D58,BI$22<=$E58)*IF(OR($F58="Straight-Line",$F58="Detail"),$I58/$ES58,GS58) -> 0 | BJ58: =AND(BJ$22>=$D58,BJ$22<=$E58)*IF(OR($F58="Straight-Line",$F58="Detail"),$I58/$ES58,GT58) -> 0 | BK58: =AND(BK$22>=$D58,BK$22<=$E58)*IF(OR($F58="Straight-Line",$F58="Detail"),$I58/$ES58,GU58) -> 0 | BL58: =AND(BL$22>=$D58,BL$22<=$E58)*IF(OR($F58="Straight-Line",$F58="Detail"),$I58/$ES58,GV58) -> 0 | BM58: =AND(BM$22>=$D58,BM$22<=$E58)*IF(OR($F58="Straight-Line",$F58="Detail"),$I58/$ES58,GW58) -> 0 | BN58: =AND(BN$22>=$D58,BN$22<=$E58)*IF(OR($F58="Straight-Line",$F58="Detail"),$I58/$ES58,GX58) -> 0 | BO58: =AND(BO$22>=$D58,BO$22<=$E58)*IF(OR($F58="Straight-Line",$F58="Detail"),$I58/$ES58,GY58) -> 0 | BP58: =AND(BP$22>=$D58,BP$22<=$E58)*IF(OR($F58="Straight-Line",$F58="Detail"),$I58/$ES58,GZ58) -> 0 | BQ58: =AND(BQ$22>=$D58,BQ$22<=$E58)*IF(OR($F58="Straight-Line",$F58="Detail"),$I58/$ES58,HA58) -> 0 | BR58: =AND(BR$22>=$D58,BR$22<=$E58)*IF(OR($F58="Straight-Line",$F58="Detail"),$I58/$ES58,HB58) -> 0 | BS58: =AND(BS$22>=$D58,BS$22<=$E58)*IF(OR($F58="Straight-Line",$F58="Detail"),$I58/$ES58,HC58) -> 0 | BT58: =AND(BT$22>=$D58,BT$22<=$E58)*IF(OR($F58="Straight-Line",$F58="Detail"),$I58/$ES58,HD58) -> 0 | BU58: =AND(BU$22>=$D58,BU$22<=$E58)*IF(OR($F58="Straight-Line",$F58="Detail"),$I58/$ES58,HE58) -> 0 | BV58: =AND(BV$22>=$D58,BV$22<=$E58)*IF(OR($F58="Straight-Line",$F58="Detail"),$I58/$ES58,HF58) -> 0 | BW58: =AND(BW$22>=$D58,BW$22<=$E58)*IF(OR($F58="Straight-Line",$F58="Detail"),$I58/$ES58,HG58) -> 0 | BX58: =AND(BX$22>=$D58,BX$22<=$E58)*IF(OR($F58="Straight-Line",$F58="Detail"),$I58/$ES58,HH58) -> 0 | BY58: =AND(BY$22>=$D58,BY$22<=$E58)*IF(OR($F58="Straight-Line",$F58="Detail"),$I58/$ES58,HI58) -> 0 | BZ58: =AND(BZ$22>=$D58,BZ$22<=$E58)*IF(OR($F58="Straight-Line",$F58="Detail"),$I58/$ES58,HJ58) -> 0 | CA58: =AND(CA$22>=$D58,CA$22<=$E58)*IF(OR($F58="Straight-Line",$F58="Detail"),$I58/$ES58,HK58) -> 0 | CB58: =AND(CB$22>=$D58,CB$22<=$E58)*IF(OR($F58="Straight-Line",$F58="Detail"),$I58/$ES58,HL58) -> 0 | CC58: =AND(CC$22>=$D58,CC$22<=$E58)*IF(OR($F58="Straight-Line",$F58="Detail"),$I58/$ES58,HM58) -> 0 | CD58: =AND(CD$22>=$D58,CD$22<=$E58)*IF(OR($F58="Straight-Line",$F58="Detail"),$I58/$ES58,HN58) -> 0 | CE58: =AND(CE$22>=$D58,CE$22<=$E58)*IF(OR($F58="Straight-Line",$F58="Detail"),$I58/$ES58,HO58) -> 0 | CF58: =AND(CF$22>=$D58,CF$22<=$E58)*IF(OR($F58="Straight-Line",$F58="Detail"),$I58/$ES58,HP58) -> 0 | CG58: =AND(CG$22>=$D58,CG$22<=$E58)*IF(OR($F58="Straight-Line",$F58="Detail"),$I58/$ES58,HQ58) -> 0 | CH58: =AND(CH$22>=$D58,CH$22<=$E58)*IF(OR($F58="Straight-Line",$F58="Detail"),$I58/$ES58,HR58) -> 0 | CI58: =AND(CI$22>=$D58,CI$22<=$E58)*IF(OR($F58="Straight-Line",$F58="Detail"),$I58/$ES58,HS58) -> 0 | CJ58: =AND(CJ$22>=$D58,CJ$22<=$E58)*IF(OR($F58="Straight-Line",$F58="Detail"),$I58/$ES58,HT58) -> 0 | CK58: =AND(CK$22>=$D58,CK$22<=$E58)*IF(OR($F58="Straight-Line",$F58="Detail"),$I58/$ES58,HU58) -> 0 | CL58: =AND(CL$22>=$D58,CL$22<=$E58)*IF(OR($F58="Straight-Line",$F58="Detail"),$I58/$ES58,HV58) -> 0 | CM58: =AND(CM$22>=$D58,CM$22<=$E58)*IF(OR($F58="Straight-Line",$F58="Detail"),$I58/$ES58,HW58) -> 0 | CN58: =AND(CN$22>=$D58,CN$22<=$E58)*IF(OR($F58="Straight-Line",$F58="Detail"),$I58/$ES58,HX58) -> 0 | CO58: =AND(CO$22>=$D58,CO$22<=$E58)*IF(OR($F58="Straight-Line",$F58="Detail"),$I58/$ES58,HY58) -> 0 | CP58: =AND(CP$22>=$D58,CP$22<=$E58)*IF(OR($F58="Straight-Line",$F58="Detail"),$I58/$ES58,HZ58) -> 0 | CQ58: =AND(CQ$22>=$D58,CQ$22<=$E58)*IF(OR($F58="Straight-Line",$F58="Detail"),$I58/$ES58,IA58) -> 0 | CR58: =AND(CR$22>=$D58,CR$22<=$E58)*IF(OR($F58="Straight-Line",$F58="Detail"),$I58/$ES58,IB58) -> 0 | CS58: =AND(CS$22>=$D58,CS$22<=$E58)*IF(OR($F58="Straight-Line",$F58="Detail"),$I58/$ES58,IC58) -> 0 | CT58: =AND(CT$22>=$D58,CT$22<=$E58)*IF(OR($F58="Straight-Line",$F58="Detail"),$I58/$ES58,ID58) -> 0 | CU58: =AND(CU$22>=$D58,CU$22<=$E58)*IF(OR($F58="Straight-Line",$F58="Detail"),$I58/$ES58,IE58) -> 0 | CV58: =AND(CV$22>=$D58,CV$22<=$E58)*IF(OR($F58="Straight-Line",$F58="Detail"),$I58/$ES58,IF58) -> 0 | CW58: =AND(CW$22>=$D58,CW$22<=$E58)*IF(OR($F58="Straight-Line",$F58="Detail"),$I58/$ES58,IG58) -> 0 | CX58: =AND(CX$22>=$D58,CX$22<=$E58)*IF(OR($F58="Straight-Line",$F58="Detail"),$I58/$ES58,IH58) -> 0 | CY58: =AND(CY$22>=$D58,CY$22<=$E58)*IF(OR($F58="Straight-Line",$F58="Detail"),$I58/$ES58,II58) -> 0 | CZ58: =AND(CZ$22>=$D58,CZ$22<=$E58)*IF(OR($F58="Straight-Line",$F58="Detail"),$I58/$ES58,IJ58) -> 0 | DA58: =AND(DA$22>=$D58,DA$22<=$E58)*IF(OR($F58="Straight-Line",$F58="Detail"),$I58/$ES58,IK58) -> 0 | DB58: =AND(DB$22>=$D58,DB$22<=$E58)*IF(OR($F58="Straight-Line",$F58="Detail"),$I58/$ES58,IL58) -> 0 | DC58: =AND(DC$22>=$D58,DC$22<=$E58)*IF(OR($F58="Straight-Line",$F58="Detail"),$I58/$ES58,IM58) -> 0 | DD58: =AND(DD$22>=$D58,DD$22<=$E58)*IF(OR($F58="Straight-Line",$F58="Detail"),$I58/$ES58,IN58) -> 0 | DE58: =AND(DE$22>=$D58,DE$22<=$E58)*IF(OR($F58="Straight-Line",$F58="Detail"),$I58/$ES58,IO58) -> 0 | DF58: =AND(DF$22>=$D58,DF$22<=$E58)*IF(OR($F58="Straight-Line",$F58="Detail"),$I58/$ES58,IP58) -> 0 | DG58: =AND(DG$22>=$D58,DG$22<=$E58)*IF(OR($F58="Straight-Line",$F58="Detail"),$I58/$ES58,IQ58) -> 0 | DH58: =AND(DH$22>=$D58,DH$22<=$E58)*IF(OR($F58="Straight-Line",$F58="Detail"),$I58/$ES58,IR58) -> 0 | DI58: =AND(DI$22>=$D58,DI$22<=$E58)*IF(OR($F58="Straight-Line",$F58="Detail"),$I58/$ES58,IS58) -> 0 | DJ58: =AND(DJ$22>=$D58,DJ$22<=$E58)*IF(OR($F58="Straight-Line",$F58="Detail"),$I58/$ES58,IT58) -> 0 | DK58: =AND(DK$22>=$D58,DK$22<=$E58)*IF(OR($F58="Straight-Line",$F58="Detail"),$I58/$ES58,IU58) -> 0 | DL58: =AND(DL$22>=$D58,DL$22<=$E58)*IF(OR($F58="Straight-Line",$F58="Detail"),$I58/$ES58,IV58) -> 0 | DM58: =AND(DM$22>=$D58,DM$22<=$E58)*IF(OR($F58="Straight-Line",$F58="Detail"),$I58/$ES58,IW58) -> 0 | DN58: =AND(DN$22>=$D58,DN$22<=$E58)*IF(OR($F58="Straight-Line",$F58="Detail"),$I58/$ES58,IX58) -> 0 | DO58: =AND(DO$22>=$D58,DO$22<=$E58)*IF(OR($F58="Straight-Line",$F58="Detail"),$I58/$ES58,IY58) -> 0 | DP58: =AND(DP$22>=$D58,DP$22<=$E58)*IF(OR($F58="Straight-Line",$F58="Detail"),$I58/$ES58,IZ58) -> 0 | DQ58: =AND(DQ$22>=$D58,DQ$22<=$E58)*IF(OR($F58="Straight-Line",$F58="Detail"),$I58/$ES58,JA58) -> 0 | DR58: =AND(DR$22>=$D58,DR$22<=$E58)*IF(OR($F58="Straight-Line",$F58="Detail"),$I58/$ES58,JB58) -> 0 | DS58: =AND(DS$22>=$D58,DS$22<=$E58)*IF(OR($F58="Straight-Line",$F58="Detail"),$I58/$ES58,JC58) -> 0 | DT58: =AND(DT$22>=$D58,DT$22<=$E58)*IF(OR($F58="Straight-Line",$F58="Detail"),$I58/$ES58,JD58) -> 0 | DU58: =AND(DU$22>=$D58,DU$22<=$E58)*IF(OR($F58="Straight-Line",$F58="Detail"),$I58/$ES58,JE58) -> 0 | DV58: =AND(DV$22>=$D58,DV$22<=$E58)*IF(OR($F58="Straight-Line",$F58="Detail"),$I58/$ES58,JF58) -> 0 | DW58: =AND(DW$22>=$D58,DW$22<=$E58)*IF(OR($F58="Straight-Line",$F58="Detail"),$I58/$ES58,JG58) -> 0 | DX58: =AND(DX$22>=$D58,DX$22<=$E58)*IF(OR($F58="Straight-Line",$F58="Detail"),$I58/$ES58,JH58) -> 0 | DY58: =AND(DY$22>=$D58,DY$22<=$E58)*IF(OR($F58="Straight-Line",$F58="Detail"),$I58/$ES58,JI58) -> 0 | DZ58: =AND(DZ$22>=$D58,DZ$22<=$E58)*IF(OR($F58="Straight-Line",$F58="Detail"),$I58/$ES58,JJ58) -> 0 | EA58: =AND(EA$22>=$D58,EA$22<=$E58)*IF(OR($F58="Straight-Line",$F58="Detail"),$I58/$ES58,JK58) -> 0 | EB58: =AND(EB$22>=$D58,EB$22<=$E58)*IF(OR($F58="Straight-Line",$F58="Detail"),$I58/$ES58,JL58) -> 0 | EC58: =AND(EC$22>=$D58,EC$22<=$E58)*IF(OR($F58="Straight-Line",$F58="Detail"),$I58/$ES58,JM58) -> 0 | ED58: =AND(ED$22>=$D58,ED$22<=$E58)*IF(OR($F58="Straight-Line",$F58="Detail"),$I58/$ES58,JN58) -> 0 | EE58: =AND(EE$22>=$D58,EE$22<=$E58)*IF(OR($F58="Straight-Line",$F58="Detail"),$I58/$ES58,JO58) -> 0 | EF58: =AND(EF$22>=$D58,EF$22<=$E58)*IF(OR($F58="Straight-Line",$F58="Detail"),$I58/$ES58,JP58) -> 0 | EG58: =AND(EG$22>=$D58,EG$22<=$E58)*IF(OR($F58="Straight-Line",$F58="Detail"),$I58/$ES58,JQ58) -> 0 | EH58: =AND(EH$22>=$D58,EH$22<=$E58)*IF(OR($F58="Straight-Line",$F58="Detail"),$I58/$ES58,JR58) -> 0 | EI58: =AND(EI$22>=$D58,EI$22<=$E58)*IF(OR($F58="Straight-Line",$F58="Detail"),$I58/$ES58,JS58) -> 0 | EJ58: =AND(EJ$22>=$D58,EJ$22<=$E58)*IF(OR($F58="Straight-Line",$F58="Detail"),$I58/$ES58,JT58) -> 0 | EK58: =AND(EK$22>=$D58,EK$22<=$E58)*IF(OR($F58="Straight-Line",$F58="Detail"),$I58/$ES58,JU58) -> 0 | EL58: =AND(EL$22>=$D58,EL$22<=$E58)*IF(OR($F58="Straight-Line",$F58="Detail"),$I58/$ES58,JV58) -> 0 | EM58: =AND(EM$22>=$D58,EM$22<=$E58)*IF(OR($F58="Straight-Line",$F58="Detail"),$I58/$ES58,JW58) -> 0 | EN58: =AND(EN$22>=$D58,EN$22<=$E58)*IF(OR($F58="Straight-Line",$F58="Detail"),$I58/$ES58,JX58) -> 0 | EP58: 0 | EQ58: 2026-01-31 | ER58: 2028-02-29 | ES58: 26 | ET58: Straight-Line | EU58: 4.333333333 | EV58: =AND($ET58="S-Curve",EV$23>=$EQ58,EV$23<=$ER58)*(_xlfn.NORM.DIST((YEAR(EV$23)-YEAR($EQ58))*12+MONTH(EV$23)-MONTH($EQ58)+1,$ES58/2,$EU58,TRUE)-_xlfn.NORM.DIST((YEAR(EV$23)-YEAR($EQ58))*12+MONTH(EV$23)-MONTH($EQ58),$ES58/2,$EU58,TRUE))/(1-2*_xlfn.NORM.DIST(0,$ES58/2,$EU58,TRUE))*$EP58 -> 0 | EW58: 0 | EX58: 0 | EY58: 0 | EZ58: 0 | FA58: 0 | FB58: 0 | FC58: 0 | FD58: 0 | FE58: 0 | FF58: 0 | FG58: 0 | FH58: 0 | FI58: 0 | FJ58: 0 | FK58: 0 | FL58: 0 | FM58: 0 | FN58: 0 | FO58: 0 | FP58: 0 | FQ58: 0 | FR58: 0 | FS58: 0 | FT58: 0 | FU58: 0 | FV58: 0 | FW58: 0 | FX58: 0 | FY58: 0 | FZ58: 0 | GA58: 0 | GB58: 0 | GC58: 0 | GD58: 0 | GE58: 0 | GF58: 0 | GG58: 0 | GH58: 0 | GI58: 0 | GJ58: 0 | GK58: 0 | GL58: 0 | GM58: 0 | GN58: 0 | GO58: 0 | GP58: 0 | GQ58: 0 | GR58: 0 | GS58: 0 | GT58: 0 | GU58: 0 | GV58: 0 | GW58: 0 | GX58: 0 | GY58: 0 | GZ58: 0 | HA58: 0 | HB58: 0 | HC58: 0 | HD58: 0 | HE58: 0 | HF58: 0 | HG58: 0 | HH58: =AND($ET58="S-Curve",HH$23>=$EQ58,HH$23<=$ER58)*(_xlfn.NORM.DIST((YEAR(HH$23)-YEAR($EQ58))*12+MONTH(HH$23)-MONTH($EQ58)+1,$ES58/2,$EU58,TRUE)-_xlfn.NORM.DIST((YEAR(HH$23)-YEAR($EQ58))*12+MONTH(HH$23)-MONTH($EQ58),$ES58/2,$EU58,TRUE))/(1-2*_xlfn.NORM.DIST(0,$ES58/2,$EU58,TRUE))*$EP58 -> 0 | HI58: 0 | HJ58: 0 | HK58: 0 | HL58: 0 | HM58: 0 | HN58: 0 | HO58: 0 | HP58: 0 | HQ58: 0 | HR58: 0 | HS58: 0 | HT58: 0 | HU58: 0 | HV58: 0 | HW58: 0 | HX58: 0 | HY58: 0 | HZ58: 0 | IA58: 0 | IB58: 0 | IC58: 0 | ID58: 0 | IE58: 0 | IF58: 0 | IG58: 0 | IH58: 0 | II58: 0 | IJ58: 0 | IK58: 0 | IL58: 0 | IM58: 0 | IN58: 0 | IO58: 0 | IP58: 0 | IQ58: 0 | IR58: 0 | IS58: 0 | IT58: 0 | IU58: 0 | IV58: 0 | IW58: 0 | IX58: 0 | IY58: 0 | IZ58: 0 | JA58: 0 | JB58: 0 | JC58: 0 | JD58: 0 | JE58: 0 | JF58: 0 | JG58: 0 | JH58: 0 | JI58: 0 | JJ58: 0 | JK58: 0 | JL58: 0 | JM58: 0 | JN58: 0 | JO58: 0 | JP58: 0 | JQ58: 0 | JR58: 0 | JS58: 0 | JT58: 0 | JU58: 0 | JV58: 0 | JW58: 0 | JX58: 0
B59: Mirrors/Shower Doors | D59: 1 | E59: 26 | F59: Straight-Line | G59: 0 | H59: 0 | I59: 0 | L59: 0 | M59: 0 | N59: 0 | O59: 0 | P59: 0 | Q59: 0 | R59: 0 | S59: 0 | T59: 0 | U59: 0 | V59: 0 | W59: 0 | X59: 0 | Y59: 0 | Z59: 0 | AA59: 0 | AB59: 0 | AC59: 0 | AD59: 0 | AE59: 0 | AF59: 0 | AG59: 0 | AH59: 0 | AI59: 0 | AJ59: 0 | AK59: 0 | AL59: 0 | AM59: 0 | AN59: 0 | AO59: 0 | AP59: 0 | AQ59: 0 | AR59: 0 | AS59: 0 | AT59: 0 | AU59: 0 | AV59: 0 | AW59: 0 | AX59: 0 | AY59: 0 | AZ59: 0 | BA59: 0 | BB59: 0 | BC59: 0 | BD59: 0 | BE59: 0 | BF59: 0 | BG59: 0 | BH59: 0 | BI59: 0 | BJ59: 0 | BK59: 0 | BL59: 0 | BM59: 0 | BN59: 0 | BO59: 0 | BP59: 0 | BQ59: 0 | BR59: 0 | BS59: 0 | BT59: 0 | BU59: 0 | BV59: 0 | BW59: 0 | BX59: 0 | BY59: 0 | BZ59: 0 | CA59: 0 | CB59: 0 | CC59: 0 | CD59: 0 | CE59: 0 | CF59: 0 | CG59: 0 | CH59: 0 | CI59: 0 | CJ59: 0 | CK59: 0 | CL59: 0 | CM59: 0 | CN59: 0 | CO59: 0 | CP59: 0 | CQ59: 0 | CR59: 0 | CS59: 0 | CT59: 0 | CU59: 0 | CV59: 0 | CW59: 0 | CX59: 0 | CY59: 0 | CZ59: 0 | DA59: 0 | DB59: 0 | DC59: 0 | DD59: 0 | DE59: 0 | DF59: 0 | DG59: 0 | DH59: 0 | DI59: 0 | DJ59: 0 | DK59: 0 | DL59: 0 | DM59: 0 | DN59: 0 | DO59: 0 | DP59: 0 | DQ59: 0 | DR59: 0 | DS59: 0 | DT59: 0 | DU59: 0 | DV59: 0 | DW59: 0 | DX59: 0 | DY59: 0 | DZ59: 0 | EA59: 0 | EB59: 0 | EC59: 0 | ED59: 0 | EE59: 0 | EF59: 0 | EG59: 0 | EH59: 0 | EI59: 0 | EJ59: 0 | EK59: 0 | EL59: 0 | EM59: 0 | EN59: 0 | EP59: 0 | EQ59: 2026-01-31 | ER59: 2028-02-29 | ES59: 26 | ET59: Straight-Line | EU59: 4.333333333 | EV59: 0 | EW59: 0 | EX59: 0 | EY59: 0 | EZ59: 0 | FA59: 0 | FB59: 0 | FC59: 0 | FD59: 0 | FE59: 0 | FF59: 0 | FG59: 0 | FH59: 0 | FI59: 0 | FJ59: 0 | FK59: 0 | FL59: 0 | FM59: 0 | FN59: 0 | FO59: 0 | FP59: 0 | FQ59: 0 | FR59: 0 | FS59: 0 | FT59: 0 | FU59: 0 | FV59: 0 | FW59: 0 | FX59: 0 | FY59: 0 | FZ59: 0 | GA59: 0 | GB59: 0 | GC59: 0 | GD59: 0 | GE59: 0 | GF59: 0 | GG59: 0 | GH59: 0 | GI59: 0 | GJ59: 0 | GK59: 0 | GL59: 0 | GM59: 0 | GN59: 0 | GO59: 0 | GP59: 0 | GQ59: 0 | GR59: 0 | GS59: 0 | GT59: 0 | GU59: 0 | GV59: 0 | GW59: 0 | GX59: 0 | GY59: 0 | GZ59: 0 | HA59: 0 | HB59: 0 | HC59: 0 | HD59: 0 | HE59: 0 | HF59: 0 | HG59: 0 | HH59: 0 | HI59: 0 | HJ59: 0 | HK59: 0 | HL59: 0 | HM59: 0 | HN59: 0 | HO59: 0 | HP59: 0 | HQ59: 0 | HR59: 0 | HS59: 0 | HT59: 0 | HU59: 0 | HV59: 0 | HW59: 0 | HX59: 0 | HY59: 0 | HZ59: 0 | IA59: 0 | IB59: 0 | IC59: 0 | ID59: 0 | IE59: 0 | IF59: 0 | IG59: 0 | IH59: 0 | II59: 0 | IJ59: 0 | IK59: 0 | IL59: 0 | IM59: 0 | IN59: 0 | IO59: 0 | IP59: 0 | IQ59: 0 | IR59: 0 | IS59: 0 | IT59: 0 | IU59: 0 | IV59: 0 | IW59: 0 | IX59: 0 | IY59: 0 | IZ59: 0 | JA59: 0 | JB59: 0 | JC59: 0 | JD59: 0 | JE59: 0 | JF59: 0 | JG59: 0 | JH59: 0 | JI59: 0 | JJ59: 0 | JK59: 0 | JL59: 0 | JM59: 0 | JN59: 0 | JO59: 0 | JP59: 0 | JQ59: 0 | JR59: 0 | JS59: 0 | JT59: 0 | JU59: 0 | JV59: 0 | JW59: 0 | JX59: 0
B60: Flooring | D60: 1 | E60: 26 | F60: Straight-Line | G60: 0 | H60: 0 | I60: 0 | L60: 0 | M60: 0 | N60: 0 | O60: 0 | P60: 0 | Q60: 0 | R60: 0 | S60: 0 | T60: 0 | U60: 0 | V60: 0 | W60: 0 | X60: 0 | Y60: 0 | Z60: 0 | AA60: 0 | AB60: 0 | AC60: 0 | AD60: 0 | AE60: 0 | AF60: 0 | AG60: 0 | AH60: 0 | AI60: 0 | AJ60: 0 | AK60: 0 | AL60: 0 | AM60: 0 | AN60: 0 | AO60: 0 | AP60: 0 | AQ60: 0 | AR60: 0 | AS60: 0 | AT60: 0 | AU60: 0 | AV60: 0 | AW60: 0 | AX60: 0 | AY60: 0 | AZ60: 0 | BA60: 0 | BB60: 0 | BC60: 0 | BD60: 0 | BE60: 0 | BF60: 0 | BG60: 0 | BH60: 0 | BI60: 0 | BJ60: 0 | BK60: 0 | BL60: 0 | BM60: 0 | BN60: 0 | BO60: 0 | BP60: 0 | BQ60: 0 | BR60: 0 | BS60: 0 | BT60: 0 | BU60: 0 | BV60: 0 | BW60: 0 | BX60: 0 | BY60: 0 | BZ60: 0 | CA60: 0 | CB60: 0 | CC60: 0 | CD60: 0 | CE60: 0 | CF60: 0 | CG60: 0 | CH60: 0 | CI60: 0 | CJ60: 0 | CK60: 0 | CL60: 0 | CM60: 0 | CN60: 0 | CO60: 0 | CP60: 0 | CQ60: 0 | CR60: 0 | CS60: 0 | CT60: 0 | CU60: 0 | CV60: 0 | CW60: 0 | CX60: 0 | CY60: 0 | CZ60: 0 | DA60: 0 | DB60: 0 | DC60: 0 | DD60: 0 | DE60: 0 | DF60: 0 | DG60: 0 | DH60: 0 | DI60: 0 | DJ60: 0 | DK60: 0 | DL60: 0 | DM60: 0 | DN60: 0 | DO60: 0 | DP60: 0 | DQ60: 0 | DR60: 0 | DS60: 0 | DT60: 0 | DU60: 0 | DV60: 0 | DW60: 0 | DX60: 0 | DY60: 0 | DZ60: 0 | EA60: 0 | EB60: 0 | EC60: 0 | ED60: 0 | EE60: 0 | EF60: 0 | EG60: 0 | EH60: 0 | EI60: 0 | EJ60: 0 | EK60: 0 | EL60: 0 | EM60: 0 | EN60: 0 | EP60: 0 | EQ60: 2026-01-31 | ER60: 2028-02-29 | ES60: 26 | ET60: Straight-Line | EU60: 4.333333333 | EV60: 0 | EW60: 0 | EX60: 0 | EY60: 0 | EZ60: 0 | FA60: 0 | FB60: 0 | FC60: 0 | FD60: 0 | FE60: 0 | FF60: 0 | FG60: 0 | FH60: 0 | FI60: 0 | FJ60: 0 | FK60: 0 | FL60: 0 | FM60: 0 | FN60: 0 | FO60: 0 | FP60: 0 | FQ60: 0 | FR60: 0 | FS60: 0 | FT60: 0 | FU60: 0 | FV60: 0 | FW60: 0 | FX60: 0 | FY60: 0 | FZ60: 0 | GA60: 0 | GB60: 0 | GC60: 0 | GD60: 0 | GE60: 0 | GF60: 0 | GG60: 0 | GH60: 0 | GI60: 0 | GJ60: 0 | GK60: 0 | GL60: 0 | GM60: 0 | GN60: 0 | GO60: 0 | GP60: 0 | GQ60: 0 | GR60: 0 | GS60: 0 | GT60: 0 | GU60: 0 | GV60: 0 | GW60: 0 | GX60: 0 | GY60: 0 | GZ60: 0 | HA60: 0 | HB60: 0 | HC60: 0 | HD60: 0 | HE60: 0 | HF60: 0 | HG60: 0 | HH60: 0 | HI60: 0 | HJ60: 0 | HK60: 0 | HL60: 0 | HM60: 0 | HN60: 0 | HO60: 0 | HP60: 0 | HQ60: 0 | HR60: 0 | HS60: 0 | HT60: 0 | HU60: 0 | HV60: 0 | HW60: 0 | HX60: 0 | HY60: 0 | HZ60: 0 | IA60: 0 | IB60: 0 | IC60: 0 | ID60: 0 | IE60: 0 | IF60: 0 | IG60: 0 | IH60: 0 | II60: 0 | IJ60: 0 | IK60: 0 | IL60: 0 | IM60: 0 | IN60: 0 | IO60: 0 | IP60: 0 | IQ60: 0 | IR60: 0 | IS60: 0 | IT60: 0 | IU60: 0 | IV60: 0 | IW60: 0 | IX60: 0 | IY60: 0 | IZ60: 0 | JA60: 0 | JB60: 0 | JC60: 0 | JD60: 0 | JE60: 0 | JF60: 0 | JG60: 0 | JH60: 0 | JI60: 0 | JJ60: 0 | JK60: 0 | JL60: 0 | JM60: 0 | JN60: 0 | JO60: 0 | JP60: 0 | JQ60: 0 | JR60: 0 | JS60: 0 | JT60: 0 | JU60: 0 | JV60: 0 | JW60: 0 | JX60: 0
B61: Window Coverings | D61: 1 | E61: 26 | F61: Straight-Line | G61: 0 | H61: 0 | I61: 0 | L61: 0 | M61: 0 | N61: 0 | O61: 0 | P61: 0 | Q61: 0 | R61: 0 | S61: 0 | T61: 0 | U61: 0 | V61: 0 | W61: 0 | X61: 0 | Y61: 0 | Z61: 0 | AA61: 0 | AB61: 0 | AC61: 0 | AD61: 0 | AE61: 0 | AF61: 0 | AG61: 0 | AH61: 0 | AI61: 0 | AJ61: 0 | AK61: 0 | AL61: 0 | AM61: 0 | AN61: 0 | AO61: 0 | AP61: 0 | AQ61: 0 | AR61: 0 | AS61: 0 | AT61: 0 | AU61: 0 | AV61: 0 | AW61: 0 | AX61: 0 | AY61: 0 | AZ61: 0 | BA61: 0 | BB61: 0 | BC61: 0 | BD61: 0 | BE61: 0 | BF61: 0 | BG61: 0 | BH61: 0 | BI61: 0 | BJ61: 0 | BK61: 0 | BL61: 0 | BM61: 0 | BN61: 0 | BO61: 0 | BP61: 0 | BQ61: 0 | BR61: 0 | BS61: 0 | BT61: 0 | BU61: 0 | BV61: 0 | BW61: 0 | BX61: 0 | BY61: 0 | BZ61: 0 | CA61: 0 | CB61: 0 | CC61: 0 | CD61: 0 | CE61: 0 | CF61: 0 | CG61: 0 | CH61: 0 | CI61: 0 | CJ61: 0 | CK61: 0 | CL61: 0 | CM61: 0 | CN61: 0 | CO61: 0 | CP61: 0 | CQ61: 0 | CR61: 0 | CS61: 0 | CT61: 0 | CU61: 0 | CV61: 0 | CW61: 0 | CX61: 0 | CY61: 0 | CZ61: 0 | DA61: 0 | DB61: 0 | DC61: 0 | DD61: 0 | DE61: 0 | DF61: 0 | DG61: 0 | DH61: 0 | DI61: 0 | DJ61: 0 | DK61: 0 | DL61: 0 | DM61: 0 | DN61: 0 | DO61: 0 | DP61: 0 | DQ61: 0 | DR61: 0 | DS61: 0 | DT61: 0 | DU61: 0 | DV61: 0 | DW61: 0 | DX61: 0 | DY61: 0 | DZ61: 0 | EA61: 0 | EB61: 0 | EC61: 0 | ED61: 0 | EE61: 0 | EF61: 0 | EG61: 0 | EH61: 0 | EI61: 0 | EJ61: 0 | EK61: 0 | EL61: 0 | EM61: 0 | EN61: 0 | EP61: 0 | EQ61: 2026-01-31 | ER61: 2028-02-29 | ES61: 26 | ET61: Straight-Line | EU61: 4.333333333 | EV61: 0 | EW61: 0 | EX61: 0 | EY61: 0 | EZ61: 0 | FA61: 0 | FB61: 0 | FC61: 0 | FD61: 0 | FE61: 0 | FF61: 0 | FG61: 0 | FH61: 0 | FI61: 0 | FJ61: 0 | FK61: 0 | FL61: 0 | FM61: 0 | FN61: 0 | FO61: 0 | FP61: 0 | FQ61: 0 | FR61: 0 | FS61: 0 | FT61: 0 | FU61: 0 | FV61: 0 | FW61: 0 | FX61: 0 | FY61: 0 | FZ61: 0 | GA61: 0 | GB61: 0 | GC61: 0 | GD61: 0 | GE61: 0 | GF61: 0 | GG61: 0 | GH61: 0 | GI61: 0 | GJ61: 0 | GK61: 0 | GL61: 0 | GM61: 0 | GN61: 0 | GO61: 0 | GP61: 0 | GQ61: 0 | GR61: 0 | GS61: 0 | GT61: 0 | GU61: 0 | GV61: 0 | GW61: 0 | GX61: 0 | GY61: 0 | GZ61: 0 | HA61: 0 | HB61: 0 | HC61: 0 | HD61: 0 | HE61: 0 | HF61: 0 | HG61: =AND($ET61="S-Curve",HG$23>=$EQ61,HG$23<=$ER61)*(_xlfn.NORM.DIST((YEAR(HG$23)-YEAR($EQ61))*12+MONTH(HG$23)-MONTH($EQ61)+1,$ES61/2,$EU61,TRUE)-_xlfn.NORM.DIST((YEAR(HG$23)-YEAR($EQ61))*12+MONTH(HG$23)-MONTH($EQ61),$ES61/2,$EU61,TRUE))/(1-2*_xlfn.NORM.DIST(0,$ES61/2,$EU61,TRUE))*$EP61 -> 0 | HH61: 0 | HI61: 0 | HJ61: 0 | HK61: 0 | HL61: 0 | HM61: 0 | HN61: 0 | HO61: 0 | HP61: 0 | HQ61: 0 | HR61: 0 | HS61: 0 | HT61: 0 | HU61: 0 | HV61: 0 | HW61: 0 | HX61: 0 | HY61: 0 | HZ61: 0 | IA61: 0 | IB61: 0 | IC61: 0 | ID61: 0 | IE61: 0 | IF61: 0 | IG61: 0 | IH61: 0 | II61: 0 | IJ61: 0 | IK61: 0 | IL61: 0 | IM61: 0 | IN61: 0 | IO61: 0 | IP61: 0 | IQ61: 0 | IR61: 0 | IS61: 0 | IT61: 0 | IU61: 0 | IV61: 0 | IW61: 0 | IX61: 0 | IY61: 0 | IZ61: 0 | JA61: 0 | JB61: 0 | JC61: 0 | JD61: 0 | JE61: 0 | JF61: 0 | JG61: 0 | JH61: 0 | JI61: 0 | JJ61: 0 | JK61: 0 | JL61: 0 | JM61: 0 | JN61: 0 | JO61: 0 | JP61: 0 | JQ61: 0 | JR61: 0 | JS61: =AND($ET61="S-Curve",JS$23>=$EQ61,JS$23<=$ER61)*(_xlfn.NORM.DIST((YEAR(JS$23)-YEAR($EQ61))*12+MONTH(JS$23)-MONTH($EQ61)+1,$ES61/2,$EU61,TRUE)-_xlfn.NORM.DIST((YEAR(JS$23)-YEAR($EQ61))*12+MONTH(JS$23)-MONTH($EQ61),$ES61/2,$EU61,TRUE))/(1-2*_xlfn.NORM.DIST(0,$ES61/2,$EU61,TRUE))*$EP61 -> 0 | JT61: 0 | JU61: 0 | JV61: 0 | JW61: 0 | JX61: 0
B62: Appliances | D62: 1 | E62: 26 | F62: Detail | G62: 4.152830747 | H62: 3577.02 | I62: 1430808 | L62: 0 | M62: ='HC Draw'!E253 -> $ - | N62: ='HC Draw'!F253 -> $ - | O62: ='HC Draw'!G253 -> $ - | P62: ='HC Draw'!H253 -> $ - | Q62: ='HC Draw'!I253 -> $ - | R62: ='HC Draw'!J253 -> $ - | S62: ='HC Draw'!K253 -> $ - | T62: ='HC Draw'!L253 -> $ - | U62: ='HC Draw'!M253 -> $ - | V62: ='HC Draw'!N253 -> $ - | W62: ='HC Draw'!O253 -> 4199 | X62: ='HC Draw'!P253 -> $ - | Y62: ='HC Draw'!Q253 -> 118884.08 | Z62: ='HC Draw'!R253 -> 118884.08 | AA62: ='HC Draw'!S253 -> 118884.08 | AB62: ='HC Draw'!T253 -> 118884.08 | AC62: ='HC Draw'!U253 -> 118884.08 | AD62: ='HC Draw'!V253 -> 118884.08 | AE62: ='HC Draw'!W253 -> 118884.08 | AF62: ='HC Draw'!X253 -> 118884.08 | AG62: ='HC Draw'!Y253 -> 118884.08 | AH62: ='HC Draw'!Z253 -> 118884.08 | AI62: ='HC Draw'!AA253 -> 118884.08 | AJ62: ='HC Draw'!AB253 -> 118884.08 | AK62: ='HC Draw'!AC253 -> $ - | AL62: ='HC Draw'!AD253 -> $ - | AM62: 0 | AN62: 0 | AO62: 0 | AP62: 0 | AQ62: 0 | AR62: 0 | AS62: 0 | AT62: 0 | AU62: 0 | AV62: 0 | AW62: 0 | AX62: 0 | AY62: 0 | AZ62: 0 | BA62: 0 | BB62: 0 | BC62: 0 | BD62: 0 | BE62: 0 | BF62: 0 | BG62: 0 | BH62: 0 | BI62: 0 | BJ62: 0 | BK62: 0 | BL62: 0 | BM62: 0 | BN62: 0 | BO62: 0 | BP62: 0 | BQ62: 0 | BR62: 0 | BS62: 0 | BT62: 0 | BU62: 0 | BV62: 0 | BW62: 0 | BX62: 0 | BY62: 0 | BZ62: 0 | CA62: 0 | CB62: 0 | CC62: 0 | CD62: 0 | CE62: 0 | CF62: 0 | CG62: 0 | CH62: 0 | CI62: 0 | CJ62: 0 | CK62: 0 | CL62: 0 | CM62: 0 | CN62: 0 | CO62: 0 | CP62: 0 | CQ62: 0 | CR62: 0 | CS62: 0 | CT62: 0 | CU62: 0 | CV62: 0 | CW62: 0 | CX62: 0 | CY62: 0 | CZ62: 0 | DA62: 0 | DB62: 0 | DC62: 0 | DD62: 0 | DE62: 0 | DF62: 0 | DG62: 0 | DH62: 0 | DI62: 0 | DJ62: 0 | DK62: 0 | DL62: 0 | DM62: 0 | DN62: 0 | DO62: 0 | DP62: 0 | DQ62: 0 | DR62: 0 | DS62: 0 | DT62: 0 | DU62: 0 | DV62: 0 | DW62: 0 | DX62: 0 | DY62: 0 | DZ62: 0 | EA62: 0 | EB62: 0 | EC62: 0 | ED62: 0 | EE62: 0 | EF62: 0 | EG62: 0 | EH62: 0 | EI62: 0 | EJ62: 0 | EK62: 0 | EL62: 0 | EM62: 0 | EN62: 0 | EP62: 1430808 | EQ62: 2026-01-31 | ER62: 2028-02-29 | ES62: 26 | ET62: Detail | EU62: 4.333333333 | EV62: =AND($ET62="S-Curve",EV$23>=$EQ62,EV$23<=$ER62)*(_xlfn.NORM.DIST((YEAR(EV$23)-YEAR($EQ62))*12+MONTH(EV$23)-MONTH($EQ62)+1,$ES62/2,$EU62,TRUE)-_xlfn.NORM.DIST((YEAR(EV$23)-YEAR($EQ62))*12+MONTH(EV$23)-MONTH($EQ62),$ES62/2,$EU62,TRUE))/(1-2*_xlfn.NORM.DIST(0,$ES62/2,$EU62,TRUE))*$EP62 -> 0 | EW62: 0 | EX62: 0 | EY62: 0 | EZ62: 0 | FA62: 0 | FB62: 0 | FC62: 0 | FD62: 0 | FE62: 0 | FF62: 0 | FG62: 0 | FH62: 0 | FI62: 0 | FJ62: 0 | FK62: 0 | FL62: 0 | FM62: 0 | FN62: 0 | FO62: 0 | FP62: 0 | FQ62: 0 | FR62: 0 | FS62: 0 | FT62: 0 | FU62: 0 | FV62: 0 | FW62: 0 | FX62: 0 | FY62: 0 | FZ62: 0 | GA62: 0 | GB62: 0 | GC62: 0 | GD62: 0 | GE62: 0 | GF62: 0 | GG62: 0 | GH62: 0 | GI62: 0 | GJ62: 0 | GK62: 0 | GL62: 0 | GM62: 0 | GN62: 0 | GO62: 0 | GP62: 0 | GQ62: 0 | GR62: 0 | GS62: 0 | GT62: 0 | GU62: 0 | GV62: 0 | GW62: 0 | GX62: 0 | GY62: 0 | GZ62: 0 | HA62: 0 | HB62: 0 | HC62: 0 | HD62: 0 | HE62: 0 | HF62: 0 | HG62: 0 | HH62: =AND($ET62="S-Curve",HH$23>=$EQ62,HH$23<=$ER62)*(_xlfn.NORM.DIST((YEAR(HH$23)-YEAR($EQ62))*12+MONTH(HH$23)-MONTH($EQ62)+1,$ES62/2,$EU62,TRUE)-_xlfn.NORM.DIST((YEAR(HH$23)-YEAR($EQ62))*12+MONTH(HH$23)-MONTH($EQ62),$ES62/2,$EU62,TRUE))/(1-2*_xlfn.NORM.DIST(0,$ES62/2,$EU62,TRUE))*$EP62 -> 0 | HI62: 0 | HJ62: 0 | HK62: 0 | HL62: 0 | HM62: 0 | HN62: 0 | HO62: 0 | HP62: 0 | HQ62: 0 | HR62: 0 | HS62: 0 | HT62: 0 | HU62: 0 | HV62: 0 | HW62: 0 | HX62: 0 | HY62: 0 | HZ62: 0 | IA62: 0 | IB62: 0 | IC62: 0 | ID62: 0 | IE62: 0 | IF62: 0 | IG62: 0 | IH62: 0 | II62: 0 | IJ62: 0 | IK62: 0 | IL62: 0 | IM62: 0 | IN62: 0 | IO62: 0 | IP62: 0 | IQ62: 0 | IR62: 0 | IS62: 0 | IT62: 0 | IU62: 0 | IV62: 0 | IW62: 0 | IX62: 0 | IY62: 0 | IZ62: 0 | JA62: 0 | JB62: 0 | JC62: 0 | JD62: 0 | JE62: 0 | JF62: 0 | JG62: 0 | JH62: 0 | JI62: 0 | JJ62: 0 | JK62: 0 | JL62: 0 | JM62: 0 | JN62: 0 | JO62: 0 | JP62: 0 | JQ62: 0 | JR62: 0 | JS62: 0 | JT62: 0 | JU62: 0 | JV62: 0 | JW62: 0 | JX62: 0
B63: Clean Up | D63: 1 | E63: 26 | F63: Straight-Line | G63: 0 | H63: 0 | I63: 0 | L63: =AND(L$22>=$D63,L$22<=$E63)*IF(OR($F63="Straight-Line",$F63="Detail"),$I63/$ES63,EV63) -> 0 | M63: =AND(M$22>=$D63,M$22<=$E63)*IF(OR($F63="Straight-Line",$F63="Detail"),$I63/$ES63,EW63) -> 0 | N63: =AND(N$22>=$D63,N$22<=$E63)*IF(OR($F63="Straight-Line",$F63="Detail"),$I63/$ES63,EX63) -> 0 | O63: =AND(O$22>=$D63,O$22<=$E63)*IF(OR($F63="Straight-Line",$F63="Detail"),$I63/$ES63,EY63) -> 0 | P63: =AND(P$22>=$D63,P$22<=$E63)*IF(OR($F63="Straight-Line",$F63="Detail"),$I63/$ES63,EZ63) -> 0 | Q63: =AND(Q$22>=$D63,Q$22<=$E63)*IF(OR($F63="Straight-Line",$F63="Detail"),$I63/$ES63,FA63) -> 0 | R63: =AND(R$22>=$D63,R$22<=$E63)*IF(OR($F63="Straight-Line",$F63="Detail"),$I63/$ES63,FB63) -> 0 | S63: =AND(S$22>=$D63,S$22<=$E63)*IF(OR($F63="Straight-Line",$F63="Detail"),$I63/$ES63,FC63) -> 0 | T63: =AND(T$22>=$D63,T$22<=$E63)*IF(OR($F63="Straight-Line",$F63="Detail"),$I63/$ES63,FD63) -> 0 | U63: =AND(U$22>=$D63,U$22<=$E63)*IF(OR($F63="Straight-Line",$F63="Detail"),$I63/$ES63,FE63) -> 0 | V63: =AND(V$22>=$D63,V$22<=$E63)*IF(OR($F63="Straight-Line",$F63="Detail"),$I63/$ES63,FF63) -> 0 | W63: =AND(W$22>=$D63,W$22<=$E63)*IF(OR($F63="Straight-Line",$F63="Detail"),$I63/$ES63,FG63) -> 0 | X63: =AND(X$22>=$D63,X$22<=$E63)*IF(OR($F63="Straight-Line",$F63="Detail"),$I63/$ES63,FH63) -> 0 | Y63: =AND(Y$22>=$D63,Y$22<=$E63)*IF(OR($F63="Straight-Line",$F63="Detail"),$I63/$ES63,FI63) -> 0 | Z63: =AND(Z$22>=$D63,Z$22<=$E63)*IF(OR($F63="Straight-Line",$F63="Detail"),$I63/$ES63,FJ63) -> 0 | AA63: =AND(AA$22>=$D63,AA$22<=$E63)*IF(OR($F63="Straight-Line",$F63="Detail"),$I63/$ES63,FK63) -> 0 | AB63: =AND(AB$22>=$D63,AB$22<=$E63)*IF(OR($F63="Straight-Line",$F63="Detail"),$I63/$ES63,FL63) -> 0 | AC63: =AND(AC$22>=$D63,AC$22<=$E63)*IF(OR($F63="Straight-Line",$F63="Detail"),$I63/$ES63,FM63) -> 0 | AD63: =AND(AD$22>=$D63,AD$22<=$E63)*IF(OR($F63="Straight-Line",$F63="Detail"),$I63/$ES63,FN63) -> 0 | AE63: =AND(AE$22>=$D63,AE$22<=$E63)*IF(OR($F63="Straight-Line",$F63="Detail"),$I63/$ES63,FO63) -> 0 | AF63: =AND(AF$22>=$D63,AF$22<=$E63)*IF(OR($F63="Straight-Line",$F63="Detail"),$I63/$ES63,FP63) -> 0 | AG63: =AND(AG$22>=$D63,AG$22<=$E63)*IF(OR($F63="Straight-Line",$F63="Detail"),$I63/$ES63,FQ63) -> 0 | AH63: =AND(AH$22>=$D63,AH$22<=$E63)*IF(OR($F63="Straight-Line",$F63="Detail"),$I63/$ES63,FR63) -> 0 | AI63: =AND(AI$22>=$D63,AI$22<=$E63)*IF(OR($F63="Straight-Line",$F63="Detail"),$I63/$ES63,FS63) -> 0 | AJ63: =AND(AJ$22>=$D63,AJ$22<=$E63)*IF(OR($F63="Straight-Line",$F63="Detail"),$I63/$ES63,FT63) -> 0 | AK63: =AND(AK$22>=$D63,AK$22<=$E63)*IF(OR($F63="Straight-Line",$F63="Detail"),$I63/$ES63,FU63) -> 0 | AL63: =AND(AL$22>=$D63,AL$22<=$E63)*IF(OR($F63="Straight-Line",$F63="Detail"),$I63/$ES63,FV63) -> 0 | AM63: =AND(AM$22>=$D63,AM$22<=$E63)*IF(OR($F63="Straight-Line",$F63="Detail"),$I63/$ES63,FW63) -> 0 | AN63: =AND(AN$22>=$D63,AN$22<=$E63)*IF(OR($F63="Straight-Line",$F63="Detail"),$I63/$ES63,FX63) -> 0 | AO63: =AND(AO$22>=$D63,AO$22<=$E63)*IF(OR($F63="Straight-Line",$F63="Detail"),$I63/$ES63,FY63) -> 0 | AP63: =AND(AP$22>=$D63,AP$22<=$E63)*IF(OR($F63="Straight-Line",$F63="Detail"),$I63/$ES63,FZ63) -> 0 | AQ63: =AND(AQ$22>=$D63,AQ$22<=$E63)*IF(OR($F63="Straight-Line",$F63="Detail"),$I63/$ES63,GA63) -> 0 | AR63: =AND(AR$22>=$D63,AR$22<=$E63)*IF(OR($F63="Straight-Line",$F63="Detail"),$I63/$ES63,GB63) -> 0 | AS63: =AND(AS$22>=$D63,AS$22<=$E63)*IF(OR($F63="Straight-Line",$F63="Detail"),$I63/$ES63,GC63) -> 0 | AT63: =AND(AT$22>=$D63,AT$22<=$E63)*IF(OR($F63="Straight-Line",$F63="Detail"),$I63/$ES63,GD63) -> 0 | AU63: =AND(AU$22>=$D63,AU$22<=$E63)*IF(OR($F63="Straight-Line",$F63="Detail"),$I63/$ES63,GE63) -> 0 | AV63: =AND(AV$22>=$D63,AV$22<=$E63)*IF(OR($F63="Straight-Line",$F63="Detail"),$I63/$ES63,GF63) -> 0 | AW63: =AND(AW$22>=$D63,AW$22<=$E63)*IF(OR($F63="Straight-Line",$F63="Detail"),$I63/$ES63,GG63) -> 0 | AX63: =AND(AX$22>=$D63,AX$22<=$E63)*IF(OR($F63="Straight-Line",$F63="Detail"),$I63/$ES63,GH63) -> 0 | AY63: =AND(AY$22>=$D63,AY$22<=$E63)*IF(OR($F63="Straight-Line",$F63="Detail"),$I63/$ES63,GI63) -> 0 | AZ63: =AND(AZ$22>=$D63,AZ$22<=$E63)*IF(OR($F63="Straight-Line",$F63="Detail"),$I63/$ES63,GJ63) -> 0 | BA63: =AND(BA$22>=$D63,BA$22<=$E63)*IF(OR($F63="Straight-Line",$F63="Detail"),$I63/$ES63,GK63) -> 0 | BB63: =AND(BB$22>=$D63,BB$22<=$E63)*IF(OR($F63="Straight-Line",$F63="Detail"),$I63/$ES63,GL63) -> 0 | BC63: =AND(BC$22>=$D63,BC$22<=$E63)*IF(OR($F63="Straight-Line",$F63="Detail"),$I63/$ES63,GM63) -> 0 | BD63: =AND(BD$22>=$D63,BD$22<=$E63)*IF(OR($F63="Straight-Line",$F63="Detail"),$I63/$ES63,GN63) -> 0 | BE63: =AND(BE$22>=$D63,BE$22<=$E63)*IF(OR($F63="Straight-Line",$F63="Detail"),$I63/$ES63,GO63) -> 0 | BF63: =AND(BF$22>=$D63,BF$22<=$E63)*IF(OR($F63="Straight-Line",$F63="Detail"),$I63/$ES63,GP63) -> 0 | BG63: =AND(BG$22>=$D63,BG$22<=$E63)*IF(OR($F63="Straight-Line",$F63="Detail"),$I63/$ES63,GQ63) -> 0 | BH63: =AND(BH$22>=$D63,BH$22<=$E63)*IF(OR($F63="Straight-Line",$F63="Detail"),$I63/$ES63,GR63) -> 0 | BI63: =AND(BI$22>=$D63,BI$22<=$E63)*IF(OR($F63="Straight-Line",$F63="Detail"),$I63/$ES63,GS63) -> 0 | BJ63: =AND(BJ$22>=$D63,BJ$22<=$E63)*IF(OR($F63="Straight-Line",$F63="Detail"),$I63/$ES63,GT63) -> 0 | BK63: =AND(BK$22>=$D63,BK$22<=$E63)*IF(OR($F63="Straight-Line",$F63="Detail"),$I63/$ES63,GU63) -> 0 | BL63: =AND(BL$22>=$D63,BL$22<=$E63)*IF(OR($F63="Straight-Line",$F63="Detail"),$I63/$ES63,GV63) -> 0 | BM63: =AND(BM$22>=$D63,BM$22<=$E63)*IF(OR($F63="Straight-Line",$F63="Detail"),$I63/$ES63,GW63) -> 0 | BN63: =AND(BN$22>=$D63,BN$22<=$E63)*IF(OR($F63="Straight-Line",$F63="Detail"),$I63/$ES63,GX63) -> 0 | BO63: =AND(BO$22>=$D63,BO$22<=$E63)*IF(OR($F63="Straight-Line",$F63="Detail"),$I63/$ES63,GY63) -> 0 | BP63: =AND(BP$22>=$D63,BP$22<=$E63)*IF(OR($F63="Straight-Line",$F63="Detail"),$I63/$ES63,GZ63) -> 0 | BQ63: =AND(BQ$22>=$D63,BQ$22<=$E63)*IF(OR($F63="Straight-Line",$F63="Detail"),$I63/$ES63,HA63) -> 0 | BR63: =AND(BR$22>=$D63,BR$22<=$E63)*IF(OR($F63="Straight-Line",$F63="Detail"),$I63/$ES63,HB63) -> 0 | BS63: =AND(BS$22>=$D63,BS$22<=$E63)*IF(OR($F63="Straight-Line",$F63="Detail"),$I63/$ES63,HC63) -> 0 | BT63: =AND(BT$22>=$D63,BT$22<=$E63)*IF(OR($F63="Straight-Line",$F63="Detail"),$I63/$ES63,HD63) -> 0 | BU63: =AND(BU$22>=$D63,BU$22<=$E63)*IF(OR($F63="Straight-Line",$F63="Detail"),$I63/$ES63,HE63) -> 0 | BV63: =AND(BV$22>=$D63,BV$22<=$E63)*IF(OR($F63="Straight-Line",$F63="Detail"),$I63/$ES63,HF63) -> 0 | BW63: =AND(BW$22>=$D63,BW$22<=$E63)*IF(OR($F63="Straight-Line",$F63="Detail"),$I63/$ES63,HG63) -> 0 | BX63: =AND(BX$22>=$D63,BX$22<=$E63)*IF(OR($F63="Straight-Line",$F63="Detail"),$I63/$ES63,HH63) -> 0 | BY63: =AND(BY$22>=$D63,BY$22<=$E63)*IF(OR($F63="Straight-Line",$F63="Detail"),$I63/$ES63,HI63) -> 0 | BZ63: =AND(BZ$22>=$D63,BZ$22<=$E63)*IF(OR($F63="Straight-Line",$F63="Detail"),$I63/$ES63,HJ63) -> 0 | CA63: =AND(CA$22>=$D63,CA$22<=$E63)*IF(OR($F63="Straight-Line",$F63="Detail"),$I63/$ES63,HK63) -> 0 | CB63: =AND(CB$22>=$D63,CB$22<=$E63)*IF(OR($F63="Straight-Line",$F63="Detail"),$I63/$ES63,HL63) -> 0 | CC63: =AND(CC$22>=$D63,CC$22<=$E63)*IF(OR($F63="Straight-Line",$F63="Detail"),$I63/$ES63,HM63) -> 0 | CD63: =AND(CD$22>=$D63,CD$22<=$E63)*IF(OR($F63="Straight-Line",$F63="Detail"),$I63/$ES63,HN63) -> 0 | CE63: =AND(CE$22>=$D63,CE$22<=$E63)*IF(OR($F63="Straight-Line",$F63="Detail"),$I63/$ES63,HO63) -> 0 | CF63: =AND(CF$22>=$D63,CF$22<=$E63)*IF(OR($F63="Straight-Line",$F63="Detail"),$I63/$ES63,HP63) -> 0 | CG63: =AND(CG$22>=$D63,CG$22<=$E63)*IF(OR($F63="Straight-Line",$F63="Detail"),$I63/$ES63,HQ63) -> 0 | CH63: =AND(CH$22>=$D63,CH$22<=$E63)*IF(OR($F63="Straight-Line",$F63="Detail"),$I63/$ES63,HR63) -> 0 | CI63: =AND(CI$22>=$D63,CI$22<=$E63)*IF(OR($F63="Straight-Line",$F63="Detail"),$I63/$ES63,HS63) -> 0 | CJ63: =AND(CJ$22>=$D63,CJ$22<=$E63)*IF(OR($F63="Straight-Line",$F63="Detail"),$I63/$ES63,HT63) -> 0 | CK63: =AND(CK$22>=$D63,CK$22<=$E63)*IF(OR($F63="Straight-Line",$F63="Detail"),$I63/$ES63,HU63) -> 0 | CL63: =AND(CL$22>=$D63,CL$22<=$E63)*IF(OR($F63="Straight-Line",$F63="Detail"),$I63/$ES63,HV63) -> 0 | CM63: =AND(CM$22>=$D63,CM$22<=$E63)*IF(OR($F63="Straight-Line",$F63="Detail"),$I63/$ES63,HW63) -> 0 | CN63: =AND(CN$22>=$D63,CN$22<=$E63)*IF(OR($F63="Straight-Line",$F63="Detail"),$I63/$ES63,HX63) -> 0 | CO63: =AND(CO$22>=$D63,CO$22<=$E63)*IF(OR($F63="Straight-Line",$F63="Detail"),$I63/$ES63,HY63) -> 0 | CP63: =AND(CP$22>=$D63,CP$22<=$E63)*IF(OR($F63="Straight-Line",$F63="Detail"),$I63/$ES63,HZ63) -> 0 | CQ63: =AND(CQ$22>=$D63,CQ$22<=$E63)*IF(OR($F63="Straight-Line",$F63="Detail"),$I63/$ES63,IA63) -> 0 | CR63: =AND(CR$22>=$D63,CR$22<=$E63)*IF(OR($F63="Straight-Line",$F63="Detail"),$I63/$ES63,IB63) -> 0 | CS63: =AND(CS$22>=$D63,CS$22<=$E63)*IF(OR($F63="Straight-Line",$F63="Detail"),$I63/$ES63,IC63) -> 0 | CT63: =AND(CT$22>=$D63,CT$22<=$E63)*IF(OR($F63="Straight-Line",$F63="Detail"),$I63/$ES63,ID63) -> 0 | CU63: =AND(CU$22>=$D63,CU$22<=$E63)*IF(OR($F63="Straight-Line",$F63="Detail"),$I63/$ES63,IE63) -> 0 | CV63: =AND(CV$22>=$D63,CV$22<=$E63)*IF(OR($F63="Straight-Line",$F63="Detail"),$I63/$ES63,IF63) -> 0 | CW63: =AND(CW$22>=$D63,CW$22<=$E63)*IF(OR($F63="Straight-Line",$F63="Detail"),$I63/$ES63,IG63) -> 0 | CX63: =AND(CX$22>=$D63,CX$22<=$E63)*IF(OR($F63="Straight-Line",$F63="Detail"),$I63/$ES63,IH63) -> 0 | CY63: =AND(CY$22>=$D63,CY$22<=$E63)*IF(OR($F63="Straight-Line",$F63="Detail"),$I63/$ES63,II63) -> 0 | CZ63: =AND(CZ$22>=$D63,CZ$22<=$E63)*IF(OR($F63="Straight-Line",$F63="Detail"),$I63/$ES63,IJ63) -> 0 | DA63: =AND(DA$22>=$D63,DA$22<=$E63)*IF(OR($F63="Straight-Line",$F63="Detail"),$I63/$ES63,IK63) -> 0 | DB63: =AND(DB$22>=$D63,DB$22<=$E63)*IF(OR($F63="Straight-Line",$F63="Detail"),$I63/$ES63,IL63) -> 0 | DC63: =AND(DC$22>=$D63,DC$22<=$E63)*IF(OR($F63="Straight-Line",$F63="Detail"),$I63/$ES63,IM63) -> 0 | DD63: =AND(DD$22>=$D63,DD$22<=$E63)*IF(OR($F63="Straight-Line",$F63="Detail"),$I63/$ES63,IN63) -> 0 | DE63: =AND(DE$22>=$D63,DE$22<=$E63)*IF(OR($F63="Straight-Line",$F63="Detail"),$I63/$ES63,IO63) -> 0 | DF63: =AND(DF$22>=$D63,DF$22<=$E63)*IF(OR($F63="Straight-Line",$F63="Detail"),$I63/$ES63,IP63) -> 0 | DG63: =AND(DG$22>=$D63,DG$22<=$E63)*IF(OR($F63="Straight-Line",$F63="Detail"),$I63/$ES63,IQ63) -> 0 | DH63: =AND(DH$22>=$D63,DH$22<=$E63)*IF(OR($F63="Straight-Line",$F63="Detail"),$I63/$ES63,IR63) -> 0 | DI63: =AND(DI$22>=$D63,DI$22<=$E63)*IF(OR($F63="Straight-Line",$F63="Detail"),$I63/$ES63,IS63) -> 0 | DJ63: =AND(DJ$22>=$D63,DJ$22<=$E63)*IF(OR($F63="Straight-Line",$F63="Detail"),$I63/$ES63,IT63) -> 0 | DK63: =AND(DK$22>=$D63,DK$22<=$E63)*IF(OR($F63="Straight-Line",$F63="Detail"),$I63/$ES63,IU63) -> 0 | DL63: =AND(DL$22>=$D63,DL$22<=$E63)*IF(OR($F63="Straight-Line",$F63="Detail"),$I63/$ES63,IV63) -> 0 | DM63: =AND(DM$22>=$D63,DM$22<=$E63)*IF(OR($F63="Straight-Line",$F63="Detail"),$I63/$ES63,IW63) -> 0 | DN63: =AND(DN$22>=$D63,DN$22<=$E63)*IF(OR($F63="Straight-Line",$F63="Detail"),$I63/$ES63,IX63) -> 0 | DO63: =AND(DO$22>=$D63,DO$22<=$E63)*IF(OR($F63="Straight-Line",$F63="Detail"),$I63/$ES63,IY63) -> 0 | DP63: =AND(DP$22>=$D63,DP$22<=$E63)*IF(OR($F63="Straight-Line",$F63="Detail"),$I63/$ES63,IZ63) -> 0 | DQ63: =AND(DQ$22>=$D63,DQ$22<=$E63)*IF(OR($F63="Straight-Line",$F63="Detail"),$I63/$ES63,JA63) -> 0 | DR63: =AND(DR$22>=$D63,DR$22<=$E63)*IF(OR($F63="Straight-Line",$F63="Detail"),$I63/$ES63,JB63) -> 0 | DS63: =AND(DS$22>=$D63,DS$22<=$E63)*IF(OR($F63="Straight-Line",$F63="Detail"),$I63/$ES63,JC63) -> 0 | DT63: =AND(DT$22>=$D63,DT$22<=$E63)*IF(OR($F63="Straight-Line",$F63="Detail"),$I63/$ES63,JD63) -> 0 | DU63: =AND(DU$22>=$D63,DU$22<=$E63)*IF(OR($F63="Straight-Line",$F63="Detail"),$I63/$ES63,JE63) -> 0 | DV63: =AND(DV$22>=$D63,DV$22<=$E63)*IF(OR($F63="Straight-Line",$F63="Detail"),$I63/$ES63,JF63) -> 0 | DW63: =AND(DW$22>=$D63,DW$22<=$E63)*IF(OR($F63="Straight-Line",$F63="Detail"),$I63/$ES63,JG63) -> 0 | DX63: =AND(DX$22>=$D63,DX$22<=$E63)*IF(OR($F63="Straight-Line",$F63="Detail"),$I63/$ES63,JH63) -> 0 | DY63: =AND(DY$22>=$D63,DY$22<=$E63)*IF(OR($F63="Straight-Line",$F63="Detail"),$I63/$ES63,JI63) -> 0 | DZ63: =AND(DZ$22>=$D63,DZ$22<=$E63)*IF(OR($F63="Straight-Line",$F63="Detail"),$I63/$ES63,JJ63) -> 0 | EA63: =AND(EA$22>=$D63,EA$22<=$E63)*IF(OR($F63="Straight-Line",$F63="Detail"),$I63/$ES63,JK63) -> 0 | EB63: =AND(EB$22>=$D63,EB$22<=$E63)*IF(OR($F63="Straight-Line",$F63="Detail"),$I63/$ES63,JL63) -> 0 | EC63: =AND(EC$22>=$D63,EC$22<=$E63)*IF(OR($F63="Straight-Line",$F63="Detail"),$I63/$ES63,JM63) -> 0 | ED63: =AND(ED$22>=$D63,ED$22<=$E63)*IF(OR($F63="Straight-Line",$F63="Detail"),$I63/$ES63,JN63) -> 0 | EE63: =AND(EE$22>=$D63,EE$22<=$E63)*IF(OR($F63="Straight-Line",$F63="Detail"),$I63/$ES63,JO63) -> 0 | EF63: =AND(EF$22>=$D63,EF$22<=$E63)*IF(OR($F63="Straight-Line",$F63="Detail"),$I63/$ES63,JP63) -> 0 | EG63: =AND(EG$22>=$D63,EG$22<=$E63)*IF(OR($F63="Straight-Line",$F63="Detail"),$I63/$ES63,JQ63) -> 0 | EH63: =AND(EH$22>=$D63,EH$22<=$E63)*IF(OR($F63="Straight-Line",$F63="Detail"),$I63/$ES63,JR63) -> 0 | EI63: =AND(EI$22>=$D63,EI$22<=$E63)*IF(OR($F63="Straight-Line",$F63="Detail"),$I63/$ES63,JS63) -> 0 | EJ63: =AND(EJ$22>=$D63,EJ$22<=$E63)*IF(OR($F63="Straight-Line",$F63="Detail"),$I63/$ES63,JT63) -> 0 | EK63: =AND(EK$22>=$D63,EK$22<=$E63)*IF(OR($F63="Straight-Line",$F63="Detail"),$I63/$ES63,JU63) -> 0 | EL63: =AND(EL$22>=$D63,EL$22<=$E63)*IF(OR($F63="Straight-Line",$F63="Detail"),$I63/$ES63,JV63) -> 0 | EM63: =AND(EM$22>=$D63,EM$22<=$E63)*IF(OR($F63="Straight-Line",$F63="Detail"),$I63/$ES63,JW63) -> 0 | EN63: =AND(EN$22>=$D63,EN$22<=$E63)*IF(OR($F63="Straight-Line",$F63="Detail"),$I63/$ES63,JX63) -> 0 | EP63: 0 | EQ63: 2026-01-31 | ER63: 2028-02-29 | ES63: 26 | ET63: Straight-Line | EU63: 4.333333333 | EV63: 0 | EW63: 0 | EX63: 0 | EY63: 0 | EZ63: 0 | FA63: 0 | FB63: 0 | FC63: 0 | FD63: 0 | FE63: 0 | FF63: 0 | FG63: 0 | FH63: 0 | FI63: 0 | FJ63: 0 | FK63: 0 | FL63: 0 | FM63: 0 | FN63: 0 | FO63: 0 | FP63: 0 | FQ63: 0 | FR63: 0 | FS63: 0 | FT63: 0 | FU63: 0 | FV63: 0 | FW63: 0 | FX63: 0 | FY63: 0 | FZ63: 0 | GA63: 0 | GB63: 0 | GC63: 0 | GD63: 0 | GE63: 0 | GF63: 0 | GG63: 0 | GH63: 0 | GI63: 0 | GJ63: 0 | GK63: 0 | GL63: 0 | GM63: 0 | GN63: 0 | GO63: 0 | GP63: 0 | GQ63: 0 | GR63: 0 | GS63: 0 | GT63: 0 | GU63: 0 | GV63: 0 | GW63: 0 | GX63: 0 | GY63: 0 | GZ63: 0 | HA63: 0 | HB63: 0 | HC63: 0 | HD63: 0 | HE63: 0 | HF63: 0 | HG63: 0 | HH63: 0 | HI63: 0 | HJ63: 0 | HK63: 0 | HL63: 0 | HM63: 0 | HN63: 0 | HO63: 0 | HP63: 0 | HQ63: 0 | HR63: 0 | HS63: 0 | HT63: 0 | HU63: 0 | HV63: 0 | HW63: 0 | HX63: 0 | HY63: 0 | HZ63: 0 | IA63: 0 | IB63: 0 | IC63: 0 | ID63: 0 | IE63: 0 | IF63: 0 | IG63: 0 | IH63: 0 | II63: 0 | IJ63: 0 | IK63: 0 | IL63: 0 | IM63: 0 | IN63: 0 | IO63: 0 | IP63: 0 | IQ63: 0 | IR63: 0 | IS63: 0 | IT63: 0 | IU63: 0 | IV63: 0 | IW63: 0 | IX63: 0 | IY63: 0 | IZ63: 0 | JA63: 0 | JB63: 0 | JC63: 0 | JD63: 0 | JE63: 0 | JF63: 0 | JG63: 0 | JH63: 0 | JI63: 0 | JJ63: 0 | JK63: 0 | JL63: 0 | JM63: 0 | JN63: 0 | JO63: 0 | JP63: 0 | JQ63: 0 | JR63: 0 | JS63: 0 | JT63: 0 | JU63: 0 | JV63: 0 | JW63: 0 | JX63: 0
B64: Swimming Pool | D64: 1 | E64: 26 | F64: Detail | G64: 1.652630479 | H64: 1423.485 | I64: 569394 | L64: 0 | M64: ='HC Draw'!E265 -> $ - | N64: ='HC Draw'!F265 -> $ - | O64: ='HC Draw'!G265 -> $ - | P64: ='HC Draw'!H265 -> $ - | Q64: ='HC Draw'!I265 -> $ - | R64: ='HC Draw'!J265 -> $ - | S64: ='HC Draw'!K265 -> $ - | T64: ='HC Draw'!L265 -> $ - | U64: ='HC Draw'!M265 -> 214959.5 | V64: ='HC Draw'!N265 -> 354434.5 | W64: ='HC Draw'!O265 -> $ - | X64: ='HC Draw'!P265 -> $ - | Y64: ='HC Draw'!Q265 -> $ - | Z64: ='HC Draw'!R265 -> $ - | AA64: ='HC Draw'!S265 -> $ - | AB64: ='HC Draw'!T265 -> $ - | AC64: ='HC Draw'!U265 -> $ - | AD64: ='HC Draw'!V265 -> $ - | AE64: ='HC Draw'!W265 -> $ - | AF64: ='HC Draw'!X265 -> $ - | AG64: ='HC Draw'!Y265 -> $ - | AH64: ='HC Draw'!Z265 -> $ - | AI64: ='HC Draw'!AA265 -> $ - | AJ64: ='HC Draw'!AB265 -> $ - | AK64: ='HC Draw'!AC265 -> $ - | AL64: ='HC Draw'!AD265 -> $ - | AM64: 0 | AN64: 0 | AO64: 0 | AP64: 0 | AQ64: 0 | AR64: 0 | AS64: 0 | AT64: 0 | AU64: 0 | AV64: 0 | AW64: 0 | AX64: 0 | AY64: 0 | AZ64: 0 | BA64: 0 | BB64: 0 | BC64: 0 | BD64: 0 | BE64: 0 | BF64: 0 | BG64: 0 | BH64: 0 | BI64: 0 | BJ64: 0 | BK64: 0 | BL64: 0 | BM64: 0 | BN64: 0 | BO64: 0 | BP64: 0 | BQ64: 0 | BR64: 0 | BS64: 0 | BT64: 0 | BU64: 0 | BV64: 0 | BW64: 0 | BX64: 0 | BY64: 0 | BZ64: 0 | CA64: 0 | CB64: 0 | CC64: 0 | CD64: 0 | CE64: 0 | CF64: 0 | CG64: 0 | CH64: 0 | CI64: 0 | CJ64: 0 | CK64: 0 | CL64: 0 | CM64: 0 | CN64: 0 | CO64: 0 | CP64: 0 | CQ64: 0 | CR64: 0 | CS64: 0 | CT64: 0 | CU64: 0 | CV64: 0 | CW64: 0 | CX64: 0 | CY64: 0 | CZ64: 0 | DA64: 0 | DB64: 0 | DC64: 0 | DD64: 0 | DE64: 0 | DF64: 0 | DG64: 0 | DH64: 0 | DI64: 0 | DJ64: 0 | DK64: 0 | DL64: 0 | DM64: 0 | DN64: 0 | DO64: 0 | DP64: 0 | DQ64: 0 | DR64: 0 | DS64: 0 | DT64: 0 | DU64: 0 | DV64: 0 | DW64: 0 | DX64: 0 | DY64: 0 | DZ64: 0 | EA64: 0 | EB64: 0 | EC64: 0 | ED64: 0 | EE64: 0 | EF64: 0 | EG64: 0 | EH64: 0 | EI64: 0 | EJ64: 0 | EK64: 0 | EL64: 0 | EM64: 0 | EN64: 0 | EP64: 569394 | EQ64: 2026-01-31 | ER64: 2028-02-29 | ES64: 26 | ET64: Detail | EU64: 4.333333333 | EV64: 0 | EW64: 0 | EX64: 0 | EY64: 0 | EZ64: 0 | FA64: 0 | FB64: 0 | FC64: 0 | FD64: 0 | FE64: 0 | FF64: 0 | FG64: 0 | FH64: 0 | FI64: 0 | FJ64: 0 | FK64: 0 | FL64: 0 | FM64: 0 | FN64: 0 | FO64: 0 | FP64: 0 | FQ64: 0 | FR64: 0 | FS64: 0 | FT64: 0 | FU64: 0 | FV64: 0 | FW64: 0 | FX64: 0 | FY64: 0 | FZ64: 0 | GA64: 0 | GB64: 0 | GC64: 0 | GD64: 0 | GE64: 0 | GF64: 0 | GG64: 0 | GH64: 0 | GI64: 0 | GJ64: 0 | GK64: 0 | GL64: 0 | GM64: 0 | GN64: 0 | GO64: 0 | GP64: 0 | GQ64: 0 | GR64: 0 | GS64: 0 | GT64: 0 | GU64: 0 | GV64: 0 | GW64: 0 | GX64: 0 | GY64: 0 | GZ64: 0 | HA64: 0 | HB64: 0 | HC64: 0 | HD64: 0 | HE64: 0 | HF64: 0 | HG64: 0 | HH64: 0 | HI64: 0 | HJ64: 0 | HK64: 0 | HL64: 0 | HM64: 0 | HN64: 0 | HO64: 0 | HP64: 0 | HQ64: 0 | HR64: 0 | HS64: 0 | HT64: 0 | HU64: 0 | HV64: 0 | HW64: 0 | HX64: 0 | HY64: 0 | HZ64: 0 | IA64: 0 | IB64: 0 | IC64: 0 | ID64: 0 | IE64: 0 | IF64: 0 | IG64: 0 | IH64: 0 | II64: 0 | IJ64: 0 | IK64: 0 | IL64: 0 | IM64: 0 | IN64: 0 | IO64: 0 | IP64: 0 | IQ64: 0 | IR64: 0 | IS64: 0 | IT64: 0 | IU64: 0 | IV64: 0 | IW64: 0 | IX64: 0 | IY64: 0 | IZ64: 0 | JA64: 0 | JB64: 0 | JC64: 0 | JD64: 0 | JE64: 0 | JF64: 0 | JG64: 0 | JH64: 0 | JI64: 0 | JJ64: 0 | JK64: 0 | JL64: 0 | JM64: 0 | JN64: 0 | JO64: 0 | JP64: 0 | JQ64: 0 | JR64: 0 | JS64: 0 | JT64: 0 | JU64: 0 | JV64: 0 | JW64: 0 | JX64: 0
B65: Landscaping | D65: 1 | E65: 26 | F65: Straight-Line | G65: 0 | H65: 0 | I65: 0 | L65: =AND(L$22>=$D65,L$22<=$E65)*IF(OR($F65="Straight-Line",$F65="Detail"),$I65/$ES65,EV65) -> 0 | M65: =AND(M$22>=$D65,M$22<=$E65)*IF(OR($F65="Straight-Line",$F65="Detail"),$I65/$ES65,EW65) -> 0 | N65: =AND(N$22>=$D65,N$22<=$E65)*IF(OR($F65="Straight-Line",$F65="Detail"),$I65/$ES65,EX65) -> 0 | O65: =AND(O$22>=$D65,O$22<=$E65)*IF(OR($F65="Straight-Line",$F65="Detail"),$I65/$ES65,EY65) -> 0 | P65: =AND(P$22>=$D65,P$22<=$E65)*IF(OR($F65="Straight-Line",$F65="Detail"),$I65/$ES65,EZ65) -> 0 | Q65: =AND(Q$22>=$D65,Q$22<=$E65)*IF(OR($F65="Straight-Line",$F65="Detail"),$I65/$ES65,FA65) -> 0 | R65: =AND(R$22>=$D65,R$22<=$E65)*IF(OR($F65="Straight-Line",$F65="Detail"),$I65/$ES65,FB65) -> 0 | S65: =AND(S$22>=$D65,S$22<=$E65)*IF(OR($F65="Straight-Line",$F65="Detail"),$I65/$ES65,FC65) -> 0 | T65: =AND(T$22>=$D65,T$22<=$E65)*IF(OR($F65="Straight-Line",$F65="Detail"),$I65/$ES65,FD65) -> 0 | U65: =AND(U$22>=$D65,U$22<=$E65)*IF(OR($F65="Straight-Line",$F65="Detail"),$I65/$ES65,FE65) -> 0 | V65: =AND(V$22>=$D65,V$22<=$E65)*IF(OR($F65="Straight-Line",$F65="Detail"),$I65/$ES65,FF65) -> 0 | W65: =AND(W$22>=$D65,W$22<=$E65)*IF(OR($F65="Straight-Line",$F65="Detail"),$I65/$ES65,FG65) -> 0 | X65: =AND(X$22>=$D65,X$22<=$E65)*IF(OR($F65="Straight-Line",$F65="Detail"),$I65/$ES65,FH65) -> 0 | Y65: =AND(Y$22>=$D65,Y$22<=$E65)*IF(OR($F65="Straight-Line",$F65="Detail"),$I65/$ES65,FI65) -> 0 | Z65: =AND(Z$22>=$D65,Z$22<=$E65)*IF(OR($F65="Straight-Line",$F65="Detail"),$I65/$ES65,FJ65) -> 0 | AA65: =AND(AA$22>=$D65,AA$22<=$E65)*IF(OR($F65="Straight-Line",$F65="Detail"),$I65/$ES65,FK65) -> 0 | AB65: =AND(AB$22>=$D65,AB$22<=$E65)*IF(OR($F65="Straight-Line",$F65="Detail"),$I65/$ES65,FL65) -> 0 | AC65: =AND(AC$22>=$D65,AC$22<=$E65)*IF(OR($F65="Straight-Line",$F65="Detail"),$I65/$ES65,FM65) -> 0 | AD65: =AND(AD$22>=$D65,AD$22<=$E65)*IF(OR($F65="Straight-Line",$F65="Detail"),$I65/$ES65,FN65) -> 0 | AE65: =AND(AE$22>=$D65,AE$22<=$E65)*IF(OR($F65="Straight-Line",$F65="Detail"),$I65/$ES65,FO65) -> 0 | AF65: =AND(AF$22>=$D65,AF$22<=$E65)*IF(OR($F65="Straight-Line",$F65="Detail"),$I65/$ES65,FP65) -> 0 | AG65: =AND(AG$22>=$D65,AG$22<=$E65)*IF(OR($F65="Straight-Line",$F65="Detail"),$I65/$ES65,FQ65) -> 0 | AH65: =AND(AH$22>=$D65,AH$22<=$E65)*IF(OR($F65="Straight-Line",$F65="Detail"),$I65/$ES65,FR65) -> 0 | AI65: =AND(AI$22>=$D65,AI$22<=$E65)*IF(OR($F65="Straight-Line",$F65="Detail"),$I65/$ES65,FS65) -> 0 | AJ65: =AND(AJ$22>=$D65,AJ$22<=$E65)*IF(OR($F65="Straight-Line",$F65="Detail"),$I65/$ES65,FT65) -> 0 | AK65: =AND(AK$22>=$D65,AK$22<=$E65)*IF(OR($F65="Straight-Line",$F65="Detail"),$I65/$ES65,FU65) -> 0 | AL65: =AND(AL$22>=$D65,AL$22<=$E65)*IF(OR($F65="Straight-Line",$F65="Detail"),$I65/$ES65,FV65) -> 0 | AM65: =AND(AM$22>=$D65,AM$22<=$E65)*IF(OR($F65="Straight-Line",$F65="Detail"),$I65/$ES65,FW65) -> 0 | AN65: =AND(AN$22>=$D65,AN$22<=$E65)*IF(OR($F65="Straight-Line",$F65="Detail"),$I65/$ES65,FX65) -> 0 | AO65: =AND(AO$22>=$D65,AO$22<=$E65)*IF(OR($F65="Straight-Line",$F65="Detail"),$I65/$ES65,FY65) -> 0 | AP65: =AND(AP$22>=$D65,AP$22<=$E65)*IF(OR($F65="Straight-Line",$F65="Detail"),$I65/$ES65,FZ65) -> 0 | AQ65: =AND(AQ$22>=$D65,AQ$22<=$E65)*IF(OR($F65="Straight-Line",$F65="Detail"),$I65/$ES65,GA65) -> 0 | AR65: =AND(AR$22>=$D65,AR$22<=$E65)*IF(OR($F65="Straight-Line",$F65="Detail"),$I65/$ES65,GB65) -> 0 | AS65: =AND(AS$22>=$D65,AS$22<=$E65)*IF(OR($F65="Straight-Line",$F65="Detail"),$I65/$ES65,GC65) -> 0 | AT65: =AND(AT$22>=$D65,AT$22<=$E65)*IF(OR($F65="Straight-Line",$F65="Detail"),$I65/$ES65,GD65) -> 0 | AU65: =AND(AU$22>=$D65,AU$22<=$E65)*IF(OR($F65="Straight-Line",$F65="Detail"),$I65/$ES65,GE65) -> 0 | AV65: =AND(AV$22>=$D65,AV$22<=$E65)*IF(OR($F65="Straight-Line",$F65="Detail"),$I65/$ES65,GF65) -> 0 | AW65: =AND(AW$22>=$D65,AW$22<=$E65)*IF(OR($F65="Straight-Line",$F65="Detail"),$I65/$ES65,GG65) -> 0 | AX65: =AND(AX$22>=$D65,AX$22<=$E65)*IF(OR($F65="Straight-Line",$F65="Detail"),$I65/$ES65,GH65) -> 0 | AY65: =AND(AY$22>=$D65,AY$22<=$E65)*IF(OR($F65="Straight-Line",$F65="Detail"),$I65/$ES65,GI65) -> 0 | AZ65: =AND(AZ$22>=$D65,AZ$22<=$E65)*IF(OR($F65="Straight-Line",$F65="Detail"),$I65/$ES65,GJ65) -> 0 | BA65: =AND(BA$22>=$D65,BA$22<=$E65)*IF(OR($F65="Straight-Line",$F65="Detail"),$I65/$ES65,GK65) -> 0 | BB65: =AND(BB$22>=$D65,BB$22<=$E65)*IF(OR($F65="Straight-Line",$F65="Detail"),$I65/$ES65,GL65) -> 0 | BC65: =AND(BC$22>=$D65,BC$22<=$E65)*IF(OR($F65="Straight-Line",$F65="Detail"),$I65/$ES65,GM65) -> 0 | BD65: =AND(BD$22>=$D65,BD$22<=$E65)*IF(OR($F65="Straight-Line",$F65="Detail"),$I65/$ES65,GN65) -> 0 | BE65: =AND(BE$22>=$D65,BE$22<=$E65)*IF(OR($F65="Straight-Line",$F65="Detail"),$I65/$ES65,GO65) -> 0 | BF65: =AND(BF$22>=$D65,BF$22<=$E65)*IF(OR($F65="Straight-Line",$F65="Detail"),$I65/$ES65,GP65) -> 0 | BG65: =AND(BG$22>=$D65,BG$22<=$E65)*IF(OR($F65="Straight-Line",$F65="Detail"),$I65/$ES65,GQ65) -> 0 | BH65: =AND(BH$22>=$D65,BH$22<=$E65)*IF(OR($F65="Straight-Line",$F65="Detail"),$I65/$ES65,GR65) -> 0 | BI65: =AND(BI$22>=$D65,BI$22<=$E65)*IF(OR($F65="Straight-Line",$F65="Detail"),$I65/$ES65,GS65) -> 0 | BJ65: =AND(BJ$22>=$D65,BJ$22<=$E65)*IF(OR($F65="Straight-Line",$F65="Detail"),$I65/$ES65,GT65) -> 0 | BK65: =AND(BK$22>=$D65,BK$22<=$E65)*IF(OR($F65="Straight-Line",$F65="Detail"),$I65/$ES65,GU65) -> 0 | BL65: =AND(BL$22>=$D65,BL$22<=$E65)*IF(OR($F65="Straight-Line",$F65="Detail"),$I65/$ES65,GV65) -> 0 | BM65: =AND(BM$22>=$D65,BM$22<=$E65)*IF(OR($F65="Straight-Line",$F65="Detail"),$I65/$ES65,GW65) -> 0 | BN65: =AND(BN$22>=$D65,BN$22<=$E65)*IF(OR($F65="Straight-Line",$F65="Detail"),$I65/$ES65,GX65) -> 0 | BO65: =AND(BO$22>=$D65,BO$22<=$E65)*IF(OR($F65="Straight-Line",$F65="Detail"),$I65/$ES65,GY65) -> 0 | BP65: =AND(BP$22>=$D65,BP$22<=$E65)*IF(OR($F65="Straight-Line",$F65="Detail"),$I65/$ES65,GZ65) -> 0 | BQ65: =AND(BQ$22>=$D65,BQ$22<=$E65)*IF(OR($F65="Straight-Line",$F65="Detail"),$I65/$ES65,HA65) -> 0 | BR65: =AND(BR$22>=$D65,BR$22<=$E65)*IF(OR($F65="Straight-Line",$F65="Detail"),$I65/$ES65,HB65) -> 0 | BS65: =AND(BS$22>=$D65,BS$22<=$E65)*IF(OR($F65="Straight-Line",$F65="Detail"),$I65/$ES65,HC65) -> 0 | BT65: =AND(BT$22>=$D65,BT$22<=$E65)*IF(OR($F65="Straight-Line",$F65="Detail"),$I65/$ES65,HD65) -> 0 | BU65: =AND(BU$22>=$D65,BU$22<=$E65)*IF(OR($F65="Straight-Line",$F65="Detail"),$I65/$ES65,HE65) -> 0 | BV65: =AND(BV$22>=$D65,BV$22<=$E65)*IF(OR($F65="Straight-Line",$F65="Detail"),$I65/$ES65,HF65) -> 0 | BW65: =AND(BW$22>=$D65,BW$22<=$E65)*IF(OR($F65="Straight-Line",$F65="Detail"),$I65/$ES65,HG65) -> 0 | BX65: =AND(BX$22>=$D65,BX$22<=$E65)*IF(OR($F65="Straight-Line",$F65="Detail"),$I65/$ES65,HH65) -> 0 | BY65: =AND(BY$22>=$D65,BY$22<=$E65)*IF(OR($F65="Straight-Line",$F65="Detail"),$I65/$ES65,HI65) -> 0 | BZ65: =AND(BZ$22>=$D65,BZ$22<=$E65)*IF(OR($F65="Straight-Line",$F65="Detail"),$I65/$ES65,HJ65) -> 0 | CA65: =AND(CA$22>=$D65,CA$22<=$E65)*IF(OR($F65="Straight-Line",$F65="Detail"),$I65/$ES65,HK65) -> 0 | CB65: =AND(CB$22>=$D65,CB$22<=$E65)*IF(OR($F65="Straight-Line",$F65="Detail"),$I65/$ES65,HL65) -> 0 | CC65: =AND(CC$22>=$D65,CC$22<=$E65)*IF(OR($F65="Straight-Line",$F65="Detail"),$I65/$ES65,HM65) -> 0 | CD65: =AND(CD$22>=$D65,CD$22<=$E65)*IF(OR($F65="Straight-Line",$F65="Detail"),$I65/$ES65,HN65) -> 0 | CE65: =AND(CE$22>=$D65,CE$22<=$E65)*IF(OR($F65="Straight-Line",$F65="Detail"),$I65/$ES65,HO65) -> 0 | CF65: =AND(CF$22>=$D65,CF$22<=$E65)*IF(OR($F65="Straight-Line",$F65="Detail"),$I65/$ES65,HP65) -> 0 | CG65: =AND(CG$22>=$D65,CG$22<=$E65)*IF(OR($F65="Straight-Line",$F65="Detail"),$I65/$ES65,HQ65) -> 0 | CH65: =AND(CH$22>=$D65,CH$22<=$E65)*IF(OR($F65="Straight-Line",$F65="Detail"),$I65/$ES65,HR65) -> 0 | CI65: =AND(CI$22>=$D65,CI$22<=$E65)*IF(OR($F65="Straight-Line",$F65="Detail"),$I65/$ES65,HS65) -> 0 | CJ65: =AND(CJ$22>=$D65,CJ$22<=$E65)*IF(OR($F65="Straight-Line",$F65="Detail"),$I65/$ES65,HT65) -> 0 | CK65: =AND(CK$22>=$D65,CK$22<=$E65)*IF(OR($F65="Straight-Line",$F65="Detail"),$I65/$ES65,HU65) -> 0 | CL65: =AND(CL$22>=$D65,CL$22<=$E65)*IF(OR($F65="Straight-Line",$F65="Detail"),$I65/$ES65,HV65) -> 0 | CM65: =AND(CM$22>=$D65,CM$22<=$E65)*IF(OR($F65="Straight-Line",$F65="Detail"),$I65/$ES65,HW65) -> 0 | CN65: =AND(CN$22>=$D65,CN$22<=$E65)*IF(OR($F65="Straight-Line",$F65="Detail"),$I65/$ES65,HX65) -> 0 | CO65: =AND(CO$22>=$D65,CO$22<=$E65)*IF(OR($F65="Straight-Line",$F65="Detail"),$I65/$ES65,HY65) -> 0 | CP65: =AND(CP$22>=$D65,CP$22<=$E65)*IF(OR($F65="Straight-Line",$F65="Detail"),$I65/$ES65,HZ65) -> 0 | CQ65: =AND(CQ$22>=$D65,CQ$22<=$E65)*IF(OR($F65="Straight-Line",$F65="Detail"),$I65/$ES65,IA65) -> 0 | CR65: =AND(CR$22>=$D65,CR$22<=$E65)*IF(OR($F65="Straight-Line",$F65="Detail"),$I65/$ES65,IB65) -> 0 | CS65: =AND(CS$22>=$D65,CS$22<=$E65)*IF(OR($F65="Straight-Line",$F65="Detail"),$I65/$ES65,IC65) -> 0 | CT65: =AND(CT$22>=$D65,CT$22<=$E65)*IF(OR($F65="Straight-Line",$F65="Detail"),$I65/$ES65,ID65) -> 0 | CU65: =AND(CU$22>=$D65,CU$22<=$E65)*IF(OR($F65="Straight-Line",$F65="Detail"),$I65/$ES65,IE65) -> 0 | CV65: =AND(CV$22>=$D65,CV$22<=$E65)*IF(OR($F65="Straight-Line",$F65="Detail"),$I65/$ES65,IF65) -> 0 | CW65: =AND(CW$22>=$D65,CW$22<=$E65)*IF(OR($F65="Straight-Line",$F65="Detail"),$I65/$ES65,IG65) -> 0 | CX65: =AND(CX$22>=$D65,CX$22<=$E65)*IF(OR($F65="Straight-Line",$F65="Detail"),$I65/$ES65,IH65) -> 0 | CY65: =AND(CY$22>=$D65,CY$22<=$E65)*IF(OR($F65="Straight-Line",$F65="Detail"),$I65/$ES65,II65) -> 0 | CZ65: =AND(CZ$22>=$D65,CZ$22<=$E65)*IF(OR($F65="Straight-Line",$F65="Detail"),$I65/$ES65,IJ65) -> 0 | DA65: =AND(DA$22>=$D65,DA$22<=$E65)*IF(OR($F65="Straight-Line",$F65="Detail"),$I65/$ES65,IK65) -> 0 | DB65: =AND(DB$22>=$D65,DB$22<=$E65)*IF(OR($F65="Straight-Line",$F65="Detail"),$I65/$ES65,IL65) -> 0 | DC65: =AND(DC$22>=$D65,DC$22<=$E65)*IF(OR($F65="Straight-Line",$F65="Detail"),$I65/$ES65,IM65) -> 0 | DD65: =AND(DD$22>=$D65,DD$22<=$E65)*IF(OR($F65="Straight-Line",$F65="Detail"),$I65/$ES65,IN65) -> 0 | DE65: =AND(DE$22>=$D65,DE$22<=$E65)*IF(OR($F65="Straight-Line",$F65="Detail"),$I65/$ES65,IO65) -> 0 | DF65: =AND(DF$22>=$D65,DF$22<=$E65)*IF(OR($F65="Straight-Line",$F65="Detail"),$I65/$ES65,IP65) -> 0 | DG65: =AND(DG$22>=$D65,DG$22<=$E65)*IF(OR($F65="Straight-Line",$F65="Detail"),$I65/$ES65,IQ65) -> 0 | DH65: =AND(DH$22>=$D65,DH$22<=$E65)*IF(OR($F65="Straight-Line",$F65="Detail"),$I65/$ES65,IR65) -> 0 | DI65: =AND(DI$22>=$D65,DI$22<=$E65)*IF(OR($F65="Straight-Line",$F65="Detail"),$I65/$ES65,IS65) -> 0 | DJ65: =AND(DJ$22>=$D65,DJ$22<=$E65)*IF(OR($F65="Straight-Line",$F65="Detail"),$I65/$ES65,IT65) -> 0 | DK65: =AND(DK$22>=$D65,DK$22<=$E65)*IF(OR($F65="Straight-Line",$F65="Detail"),$I65/$ES65,IU65) -> 0 | DL65: =AND(DL$22>=$D65,DL$22<=$E65)*IF(OR($F65="Straight-Line",$F65="Detail"),$I65/$ES65,IV65) -> 0 | DM65: =AND(DM$22>=$D65,DM$22<=$E65)*IF(OR($F65="Straight-Line",$F65="Detail"),$I65/$ES65,IW65) -> 0 | DN65: =AND(DN$22>=$D65,DN$22<=$E65)*IF(OR($F65="Straight-Line",$F65="Detail"),$I65/$ES65,IX65) -> 0 | DO65: =AND(DO$22>=$D65,DO$22<=$E65)*IF(OR($F65="Straight-Line",$F65="Detail"),$I65/$ES65,IY65) -> 0 | DP65: =AND(DP$22>=$D65,DP$22<=$E65)*IF(OR($F65="Straight-Line",$F65="Detail"),$I65/$ES65,IZ65) -> 0 | DQ65: =AND(DQ$22>=$D65,DQ$22<=$E65)*IF(OR($F65="Straight-Line",$F65="Detail"),$I65/$ES65,JA65) -> 0 | DR65: =AND(DR$22>=$D65,DR$22<=$E65)*IF(OR($F65="Straight-Line",$F65="Detail"),$I65/$ES65,JB65) -> 0 | DS65: =AND(DS$22>=$D65,DS$22<=$E65)*IF(OR($F65="Straight-Line",$F65="Detail"),$I65/$ES65,JC65) -> 0 | DT65: =AND(DT$22>=$D65,DT$22<=$E65)*IF(OR($F65="Straight-Line",$F65="Detail"),$I65/$ES65,JD65) -> 0 | DU65: =AND(DU$22>=$D65,DU$22<=$E65)*IF(OR($F65="Straight-Line",$F65="Detail"),$I65/$ES65,JE65) -> 0 | DV65: =AND(DV$22>=$D65,DV$22<=$E65)*IF(OR($F65="Straight-Line",$F65="Detail"),$I65/$ES65,JF65) -> 0 | DW65: =AND(DW$22>=$D65,DW$22<=$E65)*IF(OR($F65="Straight-Line",$F65="Detail"),$I65/$ES65,JG65) -> 0 | DX65: =AND(DX$22>=$D65,DX$22<=$E65)*IF(OR($F65="Straight-Line",$F65="Detail"),$I65/$ES65,JH65) -> 0 | DY65: =AND(DY$22>=$D65,DY$22<=$E65)*IF(OR($F65="Straight-Line",$F65="Detail"),$I65/$ES65,JI65) -> 0 | DZ65: =AND(DZ$22>=$D65,DZ$22<=$E65)*IF(OR($F65="Straight-Line",$F65="Detail"),$I65/$ES65,JJ65) -> 0 | EA65: =AND(EA$22>=$D65,EA$22<=$E65)*IF(OR($F65="Straight-Line",$F65="Detail"),$I65/$ES65,JK65) -> 0 | EB65: =AND(EB$22>=$D65,EB$22<=$E65)*IF(OR($F65="Straight-Line",$F65="Detail"),$I65/$ES65,JL65) -> 0 | EC65: =AND(EC$22>=$D65,EC$22<=$E65)*IF(OR($F65="Straight-Line",$F65="Detail"),$I65/$ES65,JM65) -> 0 | ED65: =AND(ED$22>=$D65,ED$22<=$E65)*IF(OR($F65="Straight-Line",$F65="Detail"),$I65/$ES65,JN65) -> 0 | EE65: =AND(EE$22>=$D65,EE$22<=$E65)*IF(OR($F65="Straight-Line",$F65="Detail"),$I65/$ES65,JO65) -> 0 | EF65: =AND(EF$22>=$D65,EF$22<=$E65)*IF(OR($F65="Straight-Line",$F65="Detail"),$I65/$ES65,JP65) -> 0 | EG65: =AND(EG$22>=$D65,EG$22<=$E65)*IF(OR($F65="Straight-Line",$F65="Detail"),$I65/$ES65,JQ65) -> 0 | EH65: =AND(EH$22>=$D65,EH$22<=$E65)*IF(OR($F65="Straight-Line",$F65="Detail"),$I65/$ES65,JR65) -> 0 | EI65: =AND(EI$22>=$D65,EI$22<=$E65)*IF(OR($F65="Straight-Line",$F65="Detail"),$I65/$ES65,JS65) -> 0 | EJ65: =AND(EJ$22>=$D65,EJ$22<=$E65)*IF(OR($F65="Straight-Line",$F65="Detail"),$I65/$ES65,JT65) -> 0 | EK65: =AND(EK$22>=$D65,EK$22<=$E65)*IF(OR($F65="Straight-Line",$F65="Detail"),$I65/$ES65,JU65) -> 0 | EL65: =AND(EL$22>=$D65,EL$22<=$E65)*IF(OR($F65="Straight-Line",$F65="Detail"),$I65/$ES65,JV65) -> 0 | EM65: =AND(EM$22>=$D65,EM$22<=$E65)*IF(OR($F65="Straight-Line",$F65="Detail"),$I65/$ES65,JW65) -> 0 | EN65: =AND(EN$22>=$D65,EN$22<=$E65)*IF(OR($F65="Straight-Line",$F65="Detail"),$I65/$ES65,JX65) -> 0 | EP65: 0 | EQ65: 2026-01-31 | ER65: 2028-02-29 | ES65: 26 | ET65: Straight-Line | EU65: 4.333333333 | EV65: 0 | EW65: 0 | EX65: 0 | EY65: 0 | EZ65: 0 | FA65: 0 | FB65: 0 | FC65: 0 | FD65: 0 | FE65: 0 | FF65: 0 | FG65: 0 | FH65: 0 | FI65: 0 | FJ65: 0 | FK65: 0 | FL65: 0 | FM65: 0 | FN65: 0 | FO65: 0 | FP65: 0 | FQ65: 0 | FR65: 0 | FS65: 0 | FT65: 0 | FU65: 0 | FV65: 0 | FW65: 0 | FX65: 0 | FY65: 0 | FZ65: 0 | GA65: 0 | GB65: 0 | GC65: 0 | GD65: 0 | GE65: 0 | GF65: 0 | GG65: 0 | GH65: 0 | GI65: 0 | GJ65: 0 | GK65: 0 | GL65: 0 | GM65: 0 | GN65: 0 | GO65: 0 | GP65: 0 | GQ65: 0 | GR65: 0 | GS65: 0 | GT65: 0 | GU65: 0 | GV65: 0 | GW65: 0 | GX65: 0 | GY65: 0 | GZ65: 0 | HA65: 0 | HB65: 0 | HC65: 0 | HD65: 0 | HE65: 0 | HF65: 0 | HG65: =AND($ET65="S-Curve",HG$23>=$EQ65,HG$23<=$ER65)*(_xlfn.NORM.DIST((YEAR(HG$23)-YEAR($EQ65))*12+MONTH(HG$23)-MONTH($EQ65)+1,$ES65/2,$EU65,TRUE)-_xlfn.NORM.DIST((YEAR(HG$23)-YEAR($EQ65))*12+MONTH(HG$23)-MONTH($EQ65),$ES65/2,$EU65,TRUE))/(1-2*_xlfn.NORM.DIST(0,$ES65/2,$EU65,TRUE))*$EP65 -> 0 | HH65: 0 | HI65: 0 | HJ65: 0 | HK65: 0 | HL65: 0 | HM65: 0 | HN65: 0 | HO65: 0 | HP65: 0 | HQ65: 0 | HR65: 0 | HS65: 0 | HT65: 0 | HU65: 0 | HV65: 0 | HW65: 0 | HX65: 0 | HY65: 0 | HZ65: 0 | IA65: 0 | IB65: 0 | IC65: 0 | ID65: 0 | IE65: 0 | IF65: 0 | IG65: 0 | IH65: 0 | II65: 0 | IJ65: 0 | IK65: 0 | IL65: 0 | IM65: 0 | IN65: 0 | IO65: 0 | IP65: 0 | IQ65: 0 | IR65: 0 | IS65: 0 | IT65: 0 | IU65: 0 | IV65: 0 | IW65: 0 | IX65: 0 | IY65: 0 | IZ65: 0 | JA65: 0 | JB65: 0 | JC65: 0 | JD65: 0 | JE65: 0 | JF65: 0 | JG65: 0 | JH65: 0 | JI65: 0 | JJ65: 0 | JK65: 0 | JL65: 0 | JM65: 0 | JN65: 0 | JO65: 0 | JP65: 0 | JQ65: 0 | JR65: 0 | JS65: =AND($ET65="S-Curve",JS$23>=$EQ65,JS$23<=$ER65)*(_xlfn.NORM.DIST((YEAR(JS$23)-YEAR($EQ65))*12+MONTH(JS$23)-MONTH($EQ65)+1,$ES65/2,$EU65,TRUE)-_xlfn.NORM.DIST((YEAR(JS$23)-YEAR($EQ65))*12+MONTH(JS$23)-MONTH($EQ65),$ES65/2,$EU65,TRUE))/(1-2*_xlfn.NORM.DIST(0,$ES65/2,$EU65,TRUE))*$EP65 -> 0 | JT65: 0 | JU65: 0 | JV65: 0 | JW65: 0 | JX65: 0
B66: Site Amenity Package | D66: 1 | E66: 26 | F66: Straight-Line | G66: 0 | H66: 0 | I66: 0 | L66: 0 | M66: 0 | N66: 0 | O66: 0 | P66: 0 | Q66: 0 | R66: 0 | S66: 0 | T66: 0 | U66: 0 | V66: 0 | W66: 0 | X66: 0 | Y66: 0 | Z66: 0 | AA66: 0 | AB66: 0 | AC66: 0 | AD66: 0 | AE66: 0 | AF66: 0 | AG66: 0 | AH66: 0 | AI66: 0 | AJ66: 0 | AK66: 0 | AL66: 0 | AM66: 0 | AN66: 0 | AO66: 0 | AP66: 0 | AQ66: 0 | AR66: 0 | AS66: 0 | AT66: 0 | AU66: 0 | AV66: 0 | AW66: 0 | AX66: 0 | AY66: 0 | AZ66: 0 | BA66: 0 | BB66: 0 | BC66: 0 | BD66: 0 | BE66: 0 | BF66: 0 | BG66: 0 | BH66: 0 | BI66: 0 | BJ66: 0 | BK66: 0 | BL66: 0 | BM66: 0 | BN66: 0 | BO66: 0 | BP66: 0 | BQ66: 0 | BR66: 0 | BS66: 0 | BT66: 0 | BU66: 0 | BV66: 0 | BW66: 0 | BX66: 0 | BY66: 0 | BZ66: 0 | CA66: 0 | CB66: 0 | CC66: 0 | CD66: 0 | CE66: 0 | CF66: 0 | CG66: 0 | CH66: 0 | CI66: 0 | CJ66: 0 | CK66: 0 | CL66: 0 | CM66: 0 | CN66: 0 | CO66: 0 | CP66: 0 | CQ66: 0 | CR66: 0 | CS66: 0 | CT66: 0 | CU66: 0 | CV66: 0 | CW66: 0 | CX66: 0 | CY66: 0 | CZ66: 0 | DA66: 0 | DB66: 0 | DC66: 0 | DD66: 0 | DE66: 0 | DF66: 0 | DG66: 0 | DH66: 0 | DI66: 0 | DJ66: 0 | DK66: 0 | DL66: 0 | DM66: 0 | DN66: 0 | DO66: 0 | DP66: 0 | DQ66: 0 | DR66: 0 | DS66: 0 | DT66: 0 | DU66: 0 | DV66: 0 | DW66: 0 | DX66: 0 | DY66: 0 | DZ66: 0 | EA66: 0 | EB66: 0 | EC66: 0 | ED66: 0 | EE66: 0 | EF66: 0 | EG66: 0 | EH66: 0 | EI66: 0 | EJ66: 0 | EK66: 0 | EL66: 0 | EM66: 0 | EN66: 0 | EP66: 0 | EQ66: 2026-01-31 | ER66: 2028-02-29 | ES66: 26 | ET66: Straight-Line | EU66: 4.333333333 | EV66: =AND($ET66="S-Curve",EV$23>=$EQ66,EV$23<=$ER66)*(_xlfn.NORM.DIST((YEAR(EV$23)-YEAR($EQ66))*12+MONTH(EV$23)-MONTH($EQ66)+1,$ES66/2,$EU66,TRUE)-_xlfn.NORM.DIST((YEAR(EV$23)-YEAR($EQ66))*12+MONTH(EV$23)-MONTH($EQ66),$ES66/2,$EU66,TRUE))/(1-2*_xlfn.NORM.DIST(0,$ES66/2,$EU66,TRUE))*$EP66 -> 0 | EW66: 0 | EX66: 0 | EY66: 0 | EZ66: 0 | FA66: 0 | FB66: 0 | FC66: 0 | FD66: 0 | FE66: 0 | FF66: 0 | FG66: 0 | FH66: 0 | FI66: 0 | FJ66: 0 | FK66: 0 | FL66: 0 | FM66: 0 | FN66: 0 | FO66: 0 | FP66: 0 | FQ66: 0 | FR66: 0 | FS66: 0 | FT66: 0 | FU66: 0 | FV66: 0 | FW66: 0 | FX66: 0 | FY66: 0 | FZ66: 0 | GA66: 0 | GB66: 0 | GC66: 0 | GD66: 0 | GE66: 0 | GF66: 0 | GG66: 0 | GH66: 0 | GI66: 0 | GJ66: 0 | GK66: 0 | GL66: 0 | GM66: 0 | GN66: 0 | GO66: 0 | GP66: 0 | GQ66: 0 | GR66: 0 | GS66: 0 | GT66: 0 | GU66: 0 | GV66: 0 | GW66: 0 | GX66: 0 | GY66: 0 | GZ66: 0 | HA66: 0 | HB66: 0 | HC66: 0 | HD66: 0 | HE66: 0 | HF66: 0 | HG66: 0 | HH66: =AND($ET66="S-Curve",HH$23>=$EQ66,HH$23<=$ER66)*(_xlfn.NORM.DIST((YEAR(HH$23)-YEAR($EQ66))*12+MONTH(HH$23)-MONTH($EQ66)+1,$ES66/2,$EU66,TRUE)-_xlfn.NORM.DIST((YEAR(HH$23)-YEAR($EQ66))*12+MONTH(HH$23)-MONTH($EQ66),$ES66/2,$EU66,TRUE))/(1-2*_xlfn.NORM.DIST(0,$ES66/2,$EU66,TRUE))*$EP66 -> 0 | HI66: 0 | HJ66: 0 | HK66: 0 | HL66: 0 | HM66: 0 | HN66: 0 | HO66: 0 | HP66: 0 | HQ66: 0 | HR66: 0 | HS66: 0 | HT66: 0 | HU66: 0 | HV66: 0 | HW66: 0 | HX66: 0 | HY66: 0 | HZ66: 0 | IA66: 0 | IB66: 0 | IC66: 0 | ID66: 0 | IE66: 0 | IF66: 0 | IG66: 0 | IH66: 0 | II66: 0 | IJ66: 0 | IK66: 0 | IL66: 0 | IM66: 0 | IN66: 0 | IO66: 0 | IP66: 0 | IQ66: 0 | IR66: 0 | IS66: 0 | IT66: 0 | IU66: 0 | IV66: 0 | IW66: 0 | IX66: 0 | IY66: 0 | IZ66: 0 | JA66: 0 | JB66: 0 | JC66: 0 | JD66: 0 | JE66: 0 | JF66: 0 | JG66: 0 | JH66: 0 | JI66: 0 | JJ66: 0 | JK66: 0 | JL66: 0 | JM66: 0 | JN66: 0 | JO66: 0 | JP66: 0 | JQ66: 0 | JR66: 0 | JS66: 0 | JT66: 0 | JU66: 0 | JV66: 0 | JW66: 0 | JX66: 0
